Workbook

Sheet Introduction (hidden)

Sheet Start
D9: Project details
D11: Planning authority:
D12: Project name:
D13: Applicant:
D14: Application type:
D15: Planning application reference:
D16: Assessor:
D17: Reviewer:
D18: Metric version:
D19: Assessment date:
D20: Planning authority reviewer:
D23: Cell style conventions
F25: Enter data
F26: Automatic lookup
F27: Result

Sheet Instructions (hidden)

Sheet Main Menu
Q3: Urban tree helper
Q4: Tree size | R4: Tree number | S4: Area
Q5: Small | S5: =R5*'G-3 Multipliers'!$Z$4 -> 0
Q6: Medium | S6: =R6*'G-3 Multipliers'!$Z$5 -> 0
Q7: Large | S7: =R7*'G-3 Multipliers'!$Z$6 -> 0
Q8: Total | R8: =SUM(R5:R7) -> 0 | S8: =SUM(S5:S7) -> 0

Sheet Results

Sheet Headline Results
B2: =IF(Start!$F$12="","",Start!$F$12) -> 
B3: =MID(CELL("filename",A1),FIND("]",CELL("filename",A1))+1,256) -> Headline Results
B8: On-site baseline | F8: Habitat units | H8: =IFERROR('A-1 Site Habitat Baseline'!Q259,"Check Data") -> 0.8832
F9: Hedgerow units | H9: =IFERROR('B-1 Site Hedge Baseline'!N258,"Check Data") -> 0
F10: River units | H10: ='C-1 Site River Baseline'!R258 -> 0
B12: On-site post-intervention (Including habitat retention, creation & enhancement) | F12: Habitat units | H12: =IFERROR('A-2 Site Habitat Creation'!Y257+'A-3 Site Habitat Enhancement'!AN258+'A-1 Site Habitat Baseline'!U259,"Check Data") -> 0
F13: Hedgerow units | H13: =IFERROR('B-2 Site Hedge Creation'!W260+'B-3 Site Hedge Enhancement'!AH258+'B-1 Site Hedge Baseline'!R258,"Check Data") -> 0
F14: River units | H14: =IFERROR('C-2 Site River Creation'!Z260 + 'C-3 Site River Enhancement'!AM258+'C-1 Site River Baseline'!V258,"Check Data") -> 0
B16: On-site net % change (Including habitat retention, creation & enhancement) | F16: Habitat units | H16: =IF(H12=0,0,IF(AND(H8=0,H12>0),1,IFERROR((H12/H8)-1,"Check Data"))) -> 0
F17: Hedgerow units | H17: =IF(H13=0,0,IF(AND(H9=0,H13>0),1,IFERROR((H13/H9)-1,"Check Data"))) -> 0
F18: River units | H18: =IF(H14=0,0,IF(AND(H10=0,H14>0),1,IFERROR((H14/H10)-1,"Check Data"))) -> 0
B20: Off-site baseline | F20: Habitat units | H20: =IFERROR('D-1 Off Site Habitat Baseline'!Q259,"Check Data") -> 0.966
F21: Hedgerow units | H21: =IFERROR('E-1 Off Site Hedge Baseline'!N258,"Check Data") -> 0
F22: River units | H22: =IFERROR('F-1 Off Site River Baseline'!R258,"Check Data") -> 0
B24: Off-site post-intervention (Including habitat retention, creation & enhancement) | F24: Habitat units | H24: =IFERROR('D-1 Off Site Habitat Baseline'!$U$259+'D-2 Off Site Habitat Creation'!AA257+'D-3 Off Site Habitat Enhancment'!AP259,"Check Data") -> 1.419236694
F25: Hedgerow units | H25: =IFERROR('E-1 Off Site Hedge Baseline'!R258+'E-2 Off Site Hedge Creation'!Y260+'E-3 Off Site Hedge Enhancement'!AJ258,"Check Data") -> 0
F26: River units | H26: =IFERROR('F-1 Off Site River Baseline'!V258+'F-2 Off Site River Creation'!AB260+'F-3 Off Site River Enhancement'!AO258,"Check Data") -> 0
B28: Total net unit change (including all on-site & off-site habitat retention, creation & enhancement) | F28: Habitat units | H28: =IFERROR((H12-H8)+((H24-H20)),"Check Data") -> -0.4299633065
F29: Hedgerow units | H29: =IFERROR((H13-H9)+((H25-H21)),"Check Data") -> 0
F30: River units | H30: =IFERROR((H14-H10)+((H26-H22)),"Check Data") -> 0
B32: Total on-site net % change plus off-site surplus (including all on-site & off-site habitat retention, creation & enhancement) | F32: Habitat units | H32: =IF(H28=0,0,IF(AND(H8=0,H20=0,H28>0),1,IFERROR((H28/H8),"Check Data"))) -> -0.4868243959
F33: Hedgerow units | H33: =IF(H29=0,0,IF(AND(H9=0,H21=0,H29>0),1,IFERROR((H29/H9),"Check Data"))) -> 0
F34: River units | H34: =IF(H30=0,0,IF(AND(H10=0,H22=0,H30>0),1,IFERROR((H30/H10),"Check Data"))) -> 0
B36: Trading rules Satisfied? | F36: =IF(OR('Trading Summary'!G5="No",'Trading Summary'!G6="No",'Trading Summary'!G7="No",'Trading Summary'!G8="No"),"No - Check Trading Summary","Yes") -> No - Check Trading Summary

Sheet Detailed Results (hidden)
B2: =IF(Start!$F$12="","",Start!$F$12) -> 
B3: =MID(CELL("filename",A1),FIND("]",CELL("filename",A1))+1,256) -> Detailed Results
B7: Summary Figures
B10: Net project biodiversity units (including all on-site & off-site habitat retention/creation) | F10: Habitat units | H10: =IFERROR('Headline Results'!$H$28:$I$28,"Check Data") -> -0.4299633065
F11: Hedgerow units | H11: =IFERROR('Headline Results'!$H$29:$I$29,"Check Data") -> 0
F12: River units | H12: =IFERROR('Headline Results'!$H$30:$I$30,"Check Data") -> 0
B14: Total project biodiversity % change (including all On-site & Off-site Habitat Creation + Retained Habitats) | F14: Habitat units | H14: =IFERROR('Headline Results'!$H$32:$I$32,"Check Data") -> -0.4868243959
F15: Hedgerow units | H15: =IFERROR('Headline Results'!$H$33:$I$33,"Check Data") -> 0
F16: River units | H16: =IFERROR('Headline Results'!$H$34:$I$34,"Check Data") -> 0
B18: Combined habitat retention and enhancement
D20: Habitats | F20: Hedgerows | H20: Rivers
B21: Total area / length | D21: =IF(AND($K$40=0,'A-1 Site Habitat Baseline'!Y11:Y258<>"No",'D-1 Off Site Habitat Baseline'!Y11:Y258<>"No"),'A-1 Site Habitat Baseline'!$H259+'D-1 Off Site Habitat Baseline'!H259,"Error") -> 0.204 | F21: ='B-1 Site Hedge Baseline'!$E$258+'E-1 Off Site Hedge Baseline'!$E$258 -> 0 | H21: ='C-1 Site River Baseline'!$E$258+'F-1 Off Site River Baseline'!$E$258 -> 0
B22: Total units | D22: =IF(AND($K$40=0,'A-1 Site Habitat Baseline'!Y11:Y258<>"No",'D-1 Off Site Habitat Baseline'!Y11:Y258<>"No"),'A-1 Site Habitat Baseline'!$Q259+'D-1 Off Site Habitat Baseline'!Q259,"Error") -> 1.8492 | F22: ='B-1 Site Hedge Baseline'!$N$258+'E-1 Off Site Hedge Baseline'!$N$258 -> 0 | H22: ='C-1 Site River Baseline'!$R$258+'F-1 Off Site River Baseline'!$R$258 -> 0
B24: Area / length retained | D24: =IF(AND($K$40=0,'A-1 Site Habitat Baseline'!Y11:Y258<>"No",'D-1 Off Site Habitat Baseline'!Y11:Y258<>"No"),'A-1 Site Habitat Baseline'!$S259+'D-1 Off Site Habitat Baseline'!S259,"Error") -> 0 | F24: ='B-1 Site Hedge Baseline'!$P$258+'E-1 Off Site Hedge Baseline'!$P$258 -> 0 | H24: ='C-1 Site River Baseline'!T258+'F-1 Off Site River Baseline'!T258 -> 0
B25: Units Retained | D25: =IF(AND($K$40=0,'A-1 Site Habitat Baseline'!Y11:Y258<>"No",'D-1 Off Site Habitat Baseline'!Y11:Y258<>"No"),'A-1 Site Habitat Baseline'!$U259+'D-1 Off Site Habitat Baseline'!U259,"Error") -> 0 | F25: ='B-1 Site Hedge Baseline'!R258+'E-1 Off Site Hedge Baseline'!R258 -> 0 | H25: ='C-1 Site River Baseline'!V258+'F-1 Off Site River Baseline'!V258 -> 0
B27: Area / length proposed for enhancement | D27: =IF(AND($K$40=0,'A-1 Site Habitat Baseline'!Y11:Y258<>"No",'D-1 Off Site Habitat Baseline'!Y11:Y258<>"No"),'A-1 Site Habitat Baseline'!$T259+'D-1 Off Site Habitat Baseline'!T259,"Error") -> 0.14 | F27: ='B-1 Site Hedge Baseline'!$Q$258+'E-1 Off Site Hedge Baseline'!$Q$258 -> 0 | H27: ='C-1 Site River Baseline'!U258+'F-1 Off Site River Baseline'!U258 -> 0
B28: Baseline units proposed for enhancement | D28: =IF(AND($K$40=0,'A-1 Site Habitat Baseline'!Y11:Y258<>"No",'D-1 Off Site Habitat Baseline'!Y11:Y258<>"No"),'A-1 Site Habitat Baseline'!$V259+'D-1 Off Site Habitat Baseline'!V259,"Error") -> 0.966 | F28: ='B-1 Site Hedge Baseline'!$S$258+'E-1 Off Site Hedge Baseline'!$S$258 -> 0 | H28: ='C-1 Site River Baseline'!W258+'F-1 Off Site River Baseline'!W258 -> 0
B30: Area / length lost | D30: =IF(AND($K$40=0,'A-1 Site Habitat Baseline'!Y11:Y258<>"No",'D-1 Off Site Habitat Baseline'!Y11:Y258<>"No"),'A-1 Site Habitat Baseline'!$W259+'D-1 Off Site Habitat Baseline'!W259,"Error") -> 0.064 | F30: ='B-1 Site Hedge Baseline'!$T$258+'E-1 Off Site Hedge Baseline'!$T$258 -> 0 | H30: ='C-1 Site River Baseline'!X258+'F-1 Off Site River Baseline'!X258 -> 0
B31: Units lost | D31: =IF(AND($K$40=0,'A-1 Site Habitat Baseline'!Y11:Y258<>"No",'D-1 Off Site Habitat Baseline'!Y11:Y258<>"No"),'A-1 Site Habitat Baseline'!$X259+'D-1 Off Site Habitat Baseline'!X259,"Error") -> 0.8832 | F31: ='B-1 Site Hedge Baseline'!$U$258+'E-1 Off Site Hedge Baseline'!$U$258 -> 0 | H31: ='C-1 Site River Baseline'!Y258+'F-1 Off Site River Baseline'!Y258 -> 0
A33: Area Habitats Area Habitats Area Habitats
B34: Area habitats
B36: On site change by broad habitat type | J36: Combined area lost by distinctiveness band
C37: Baseline | E37: Post development on site | G37: Onsite Change
B38: Habitat group | C38: Existing area | D38: Existing value | E38: Proposed area | F38: Proposed value | G38: Area change | H38: Onsite Unit change | J38: Category | K38: Area lost (hectares) | L38: Area lost (%)
B39: Cropland | C39: ='G-2 Habitat groups'!$AK$4 -> 0 | D39: ='G-2 Habitat groups'!$AL$4 -> 0 | E39: ='G-2 Habitat groups'!$AM$4 -> 0 | F39: ='G-2 Habitat groups'!$AN$4 -> 0 | G39: =E39-C39 -> 0 | H39: =F39-D39 -> 0
B40: Grassland | C40: ='G-2 Habitat groups'!$AK$5 -> 0 | D40: ='G-2 Habitat groups'!$AL$5 -> 0 | E40: ='G-2 Habitat groups'!$AM$5 -> 0 | F40: ='G-2 Habitat groups'!$AN$5 -> 0 | G40: =E40-C40 -> 0 | H40: =F40-D40 -> 0 | J40: ='G-1 All Habitats'!$V$3 -> V.High | K40: =SUMIF('A-1 Site Habitat Baseline'!$I$11:$I$258,'Detailed Results'!J40,'A-1 Site Habitat Baseline'!$W$11:$W$258)+SUMIF('D-1 Off Site Habitat Baseline'!$I$11:$I$258,'Detailed Results'!J40,'D-1 Off Site Habitat Baseline'!$W$11:$W$258) -> 0 | L40: =IF(K40=0,"",(K40/(SUM($K$40:$K$49)))*100) -> 
B41: Heathland and shrub | C41: ='G-2 Habitat groups'!$AK$6 -> 0 | D41: ='G-2 Habitat groups'!$AL$6 -> 0 | E41: ='G-2 Habitat groups'!$AM$6 -> 0 | F41: ='G-2 Habitat groups'!$AN$6 -> 0 | G41: 0 | H41: 0
B42: Lakes | C42: ='G-2 Habitat groups'!$AK$7 -> 0 | D42: ='G-2 Habitat groups'!$AL$7 -> 0 | E42: ='G-2 Habitat groups'!$AM$7 -> 0 | F42: ='G-2 Habitat groups'!$AN$7 -> 0 | G42: 0 | H42: 0 | J42: ='G-1 All Habitats'!$V$4 -> High | K42: =SUMIF('A-1 Site Habitat Baseline'!$I$11:$I$258,'Detailed Results'!J42,'A-1 Site Habitat Baseline'!$W$11:$W$258)+SUMIF('D-1 Off Site Habitat Baseline'!$I$11:$I$258,'Detailed Results'!J42,'D-1 Off Site Habitat Baseline'!$W$11:$W$258) -> 0.064 | L42: =IF(K42=0,"",(K42/(SUM($K$40:$K$49)))*100) -> 100
B43: Sparsely vegetated land | C43: ='G-2 Habitat groups'!$AK$8 -> 0 | D43: ='G-2 Habitat groups'!$AL$8 -> 0 | E43: ='G-2 Habitat groups'!$AM$8 -> 0 | F43: ='G-2 Habitat groups'!$AN$8 -> 0 | G43: 0 | H43: 0
B44: Urban | C44: ='G-2 Habitat groups'!$AK$9 -> 0 | D44: ='G-2 Habitat groups'!$AL$9 -> 0 | E44: ='G-2 Habitat groups'!$AM$9 -> 0 | F44: ='G-2 Habitat groups'!$AP$9 -> 0 | G44: 0 | H44: 0 | J44: ='G-1 All Habitats'!$V5 -> Medium | K44: =SUMIF('A-1 Site Habitat Baseline'!$I$11:$I$258,'Detailed Results'!J44,'A-1 Site Habitat Baseline'!$W$11:$W$258)+SUMIF('D-1 Off Site Habitat Baseline'!$I$11:$I$258,'Detailed Results'!J44,'D-1 Off Site Habitat Baseline'!$W$11:$W$258) -> 0 | L44: =IF(K44=0,"",(K44/(SUM($K$40:$K$49)))*100) -> 
B45: Wetland | C45: ='G-2 Habitat groups'!$AK$10 -> 0.064 | D45: ='G-2 Habitat groups'!$AL$10 -> 0.8832 | E45: ='G-2 Habitat groups'!$AM$10 -> 0 | F45: ='G-2 Habitat groups'!$AN$10 -> 0 | G45: -0.064 | H45: -0.8832
B46: Woodland and forest | C46: ='G-2 Habitat groups'!$AK$11 -> 0 | D46: ='G-2 Habitat groups'!$AL$11 -> 0 | E46: ='G-2 Habitat groups'!$AM$11 -> 0 | F46: ='G-2 Habitat groups'!$AN$11 -> 0 | G46: 0 | H46: 0 | J46: ='G-1 All Habitats'!$V$6 -> Low | K46: =SUMIF('A-1 Site Habitat Baseline'!$I$11:$I$258,'Detailed Results'!J46,'A-1 Site Habitat Baseline'!$W$11:$W$258)+SUMIF('D-1 Off Site Habitat Baseline'!$I$11:$I$258,'Detailed Results'!J46,'D-1 Off Site Habitat Baseline'!$W$11:$W$258) -> 0 | L46: =IF(K46=0,"",(K46/(SUM($K$40:$K$49)))*100) -> 
B47: Intertidal sediment | C47: ='G-2 Habitat groups'!$AK$12 -> 0 | D47: ='G-2 Habitat groups'!$AL$12 -> 0 | E47: ='G-2 Habitat groups'!$AM$12 -> 0 | F47: ='G-2 Habitat groups'!$AN$12 -> 0 | G47: 0 | H47: 0
B48: Coastal saltmarsh | C48: ='G-2 Habitat groups'!$AK$13 -> 0 | D48: ='G-2 Habitat groups'!$AL$13 -> 0 | E48: ='G-2 Habitat groups'!$AM$13 -> 0 | F48: ='G-2 Habitat groups'!$AN$13 -> 0 | G48: 0 | H48: 0 | J48: ='G-1 All Habitats'!$V$7 -> V.Low | K48: =SUMIF('A-1 Site Habitat Baseline'!$I$11:$I$258,'Detailed Results'!J48,'A-1 Site Habitat Baseline'!$W$11:$W$258)+SUMIF('D-1 Off Site Habitat Baseline'!$I$11:$I$258,'Detailed Results'!J48,'D-1 Off Site Habitat Baseline'!$W$11:$W$258) -> 0 | L48: =IF(K48=0,"",(K48/(SUM($K$40:$K$49)))*100) -> 
B49: Rocky shore | C49: ='G-2 Habitat groups'!$AK$14 -> 0 | D49: ='G-2 Habitat groups'!$AL$14 -> 0 | E49: ='G-2 Habitat groups'!$AM$14 -> 0 | F49: ='G-2 Habitat groups'!$AN$14 -> 0 | G49: 0 | H49: 0
B50: Coastal lagoons | C50: ='G-2 Habitat groups'!$AK$15 -> 0 | D50: ='G-2 Habitat groups'!$AL$15 -> 0 | E50: ='G-2 Habitat groups'!$AM$15 -> 0 | F50: ='G-2 Habitat groups'!$AN$15 -> 0 | G50: 0 | H50: 0
B51: Intertidal Hard Structures | C51: ='G-2 Habitat groups'!$AK$16 -> 0 | D51: ='G-2 Habitat groups'!$AL$16 -> 0 | E51: ='G-2 Habitat groups'!$AM$16 -> 0 | F51: ='G-2 Habitat groups'!$AN$16 -> 0 | G51: =E51-C51 -> 0 | H51: =F51-D51 -> 0
B55: Off site change by broad habitat type
C56: Baseline | E56: Post development Off-site | G56: Off-site Change
B57: Habitat group | C57: Existing area | D57: Off-site Existing value | E57: Off-site proposed area | F57: Off site Proposed value | G57: Off-site area change | H57: Off-site unit change
B58: Cropland | C58: ='G-2 Habitat groups'!$AK$20 -> 0 | D58: ='G-2 Habitat groups'!$AL$20 -> 0 | E58: ='G-2 Habitat groups'!$AM$20 -> 0 | F58: ='G-2 Habitat groups'!$AN$20 -> 0 | G58: =E58-C58 -> 0 | H58: =F58-D58 -> 0
B59: Grassland | C59: ='G-2 Habitat groups'!$AK$21 -> 0 | D59: ='G-2 Habitat groups'!$AL$21 -> 0 | E59: ='G-2 Habitat groups'!$AM$21 -> 0 | F59: ='G-2 Habitat groups'!$AN$21 -> 0 | G59: 0 | H59: 0
B60: Heathland and shrub | C60: ='G-2 Habitat groups'!$AK$22 -> 0 | D60: ='G-2 Habitat groups'!$AL$22 -> 0 | E60: ='G-2 Habitat groups'!$AM$22 -> 0 | F60: ='G-2 Habitat groups'!$AN$22 -> 0 | G60: 0 | H60: 0
B61: Lakes | C61: ='G-2 Habitat groups'!$AK$23 -> 0 | D61: ='G-2 Habitat groups'!$AL$23 -> 0 | E61: ='G-2 Habitat groups'!$AM$23 -> 0 | F61: ='G-2 Habitat groups'!$AN$23 -> 0 | G61: 0 | H61: 0
B62: Sparsely vegetated land | C62: ='G-2 Habitat groups'!$AK$24 -> 0 | D62: ='G-2 Habitat groups'!$AL$24 -> 0 | E62: ='G-2 Habitat groups'!$AM$24 -> 0 | F62: ='G-2 Habitat groups'!$AN$24 -> 0 | G62: 0 | H62: 0
B63: Urban | C63: ='G-2 Habitat groups'!$AK$25 -> 0.14 | D63: ='G-2 Habitat groups'!$AL$25 -> 0.966 | E63: ='G-2 Habitat groups'!$AM$25 -> 0 | F63: ='G-2 Habitat groups'!$AN$25 -> 0 | G63: -0.14 | H63: -0.966
B64: Wetland | C64: ='G-2 Habitat groups'!$AK$26 -> 0 | D64: ='G-2 Habitat groups'!$AL$26 -> 0 | E64: ='G-2 Habitat groups'!$AM$26 -> 0.14 | F64: ='G-2 Habitat groups'!$AN$26 -> 1.419236694 | G64: 0.14 | H64: 1.419236694
B65: Woodland and forest | C65: ='G-2 Habitat groups'!$AK$27 -> 0 | D65: ='G-2 Habitat groups'!$AL$27 -> 0 | E65: ='G-2 Habitat groups'!$AM$27 -> 0 | F65: ='G-2 Habitat groups'!$AN$27 -> 0 | G65: 0 | H65: 0
B66: Intertidal sediment | C66: ='G-2 Habitat groups'!$AK$28 -> 0 | D66: ='G-2 Habitat groups'!$AL$28 -> 0 | E66: ='G-2 Habitat groups'!$AM$28 -> 0 | F66: ='G-2 Habitat groups'!$AN$28 -> 0 | G66: 0 | H66: 0
B67: Coastal saltmarsh | C67: ='G-2 Habitat groups'!$AK$29 -> 0 | D67: ='G-2 Habitat groups'!$AL$29 -> 0 | E67: ='G-2 Habitat groups'!$AM$29 -> 0 | F67: ='G-2 Habitat groups'!$AN$29 -> 0 | G67: 0 | H67: 0
B68: Rocky shore | C68: ='G-2 Habitat groups'!$AK$30 -> 0 | D68: ='G-2 Habitat groups'!$AL$30 -> 0 | E68: ='G-2 Habitat groups'!$AM$30 -> 0 | F68: ='G-2 Habitat groups'!$AN$30 -> 0 | G68: 0 | H68: 0
B69: Coastal lagoons | C69: ='G-2 Habitat groups'!$AK$31 -> 0 | D69: ='G-2 Habitat groups'!$AL$31 -> 0 | E69: ='G-2 Habitat groups'!$AM$31 -> 0 | F69: ='G-2 Habitat groups'!$AN$31 -> 0 | G69: 0 | H69: 0
B70: Intertidal Hard Structures | C70: ='G-2 Habitat groups'!$AK$32 -> 0 | D70: ='G-2 Habitat groups'!$AL$32 -> 0 | E70: ='G-2 Habitat groups'!$AM$32 -> 0 | F70: ='G-2 Habitat groups'!$AN$32 -> 0 | G70: =E70-C70 -> 0 | H70: =F70-D70 -> 0
B74: Combined on site and off site change by broad habitat type
C75: Baseline | E75: On-site and Off-site post development | G75: Combined change
B76: Habitat group | C76: Existing area | D76: Existing value | E76: Combined proposed area | F76: Combined proposed value | G76: Proposed area | H76: Proposed value
B77: Cropland | C77: =C39+C58 -> 0 | D77: 0 | E77: 0 | F77: 0 | G77: 0 | H77: 0
B78: Grassland | C78: 0 | D78: 0 | E78: 0 | F78: 0 | G78: 0 | H78: 0
B79: Heathland and shrub | C79: 0 | D79: 0 | E79: 0 | F79: 0 | G79: 0 | H79: 0
B80: Lakes | C80: 0 | D80: 0 | E80: 0 | F80: 0 | G80: 0 | H80: 0
B81: Sparsely vegetated land | C81: 0 | D81: 0 | E81: 0 | F81: 0 | G81: 0 | H81: 0
B82: Urban | C82: 0.14 | D82: 0.966 | E82: 0 | F82: 0 | G82: -0.14 | H82: -0.966
B83: Wetland | C83: 0.064 | D83: 0.8832 | E83: 0.14 | F83: 1.419236694 | G83: 0.076 | H83: 0.5360366935
B84: Woodland and forest | C84: 0 | D84: 0 | E84: 0 | F84: 0 | G84: 0 | H84: 0
B85: Intertidal sediment | C85: 0 | D85: 0 | E85: 0 | F85: 0 | G85: 0 | H85: 0
B86: Coastal saltmarsh | C86: 0 | D86: 0 | E86: 0 | F86: 0 | G86: 0 | H86: 0
B87: Rocky shore | C87: 0 | D87: 0 | E87: 0 | F87: 0 | G87: 0 | H87: 0
B88: Coastal lagoons | C88: 0 | D88: 0 | E88: 0 | F88: 0 | G88: 0 | H88: 0
B89: Intertidal Hard Structures | C89: 0 | D89: 0 | E89: 0 | F89: 0 | G89: 0 | H89: 0
A92: Hedgerows and Lines of Trees Hedgerows and Lines of Trees Hedgerows and Lines of Trees
B93: Hedgerows and lines of trees
B96: On site change by hedgerow type | J96: Combined length lost by distinctiveness band
C97: Baseline | E97: Post development on site | G97: Onsite Change
B98: Hedgerow type | C98: Existing length on-site | D98: Existing value | E98: Proposed length on-site | F98: Proposed value on-site | G98: On-site length change | H98: On-site Unit change | J98: Category | K98: Length lost (KM) | L98: Length lost (%)
B99: Native Species Rich Hedgerow with trees - Associated with bank or ditch | C99: ='G-2 Habitat groups'!E147 -> 0 | D99: ='G-2 Habitat groups'!F147 -> 0 | E99: ='G-2 Habitat groups'!O147 -> 0 | F99: ='G-2 Habitat groups'!P147 -> 0 | G99: =E99-C99 -> 0 | H99: =F99-D99 -> 0
B100: Native Species Rich Hedgerow with trees | C100: ='G-2 Habitat groups'!E148 -> 0 | D100: ='G-2 Habitat groups'!F148 -> 0 | E100: ='G-2 Habitat groups'!O148 -> 0 | F100: ='G-2 Habitat groups'!P148 -> 0 | G100: =E100-C100 -> 0 | H100: 0 | J100: ='G-1 All Habitats'!$V$3 -> V.High | K100: =SUMIF('B-1 Site Hedge Baseline'!$F$10:$F$257,'Detailed Results'!J100,'B-1 Site Hedge Baseline'!$T$10:$T$257)+SUMIF('E-1 Off Site Hedge Baseline'!$F$10:$F$257,'Detailed Results'!J100,'E-1 Off Site Hedge Baseline'!$T$10:$T$257) -> 0 | L100: =IF(K100=0,"",(K100/(SUM($K$100:$K$109)))*100) -> 
B101: Native Species Rich Hedgerow - Associated with bank or ditch | C101: ='G-2 Habitat groups'!E149 -> 0 | D101: ='G-2 Habitat groups'!F149 -> 0 | E101: ='G-2 Habitat groups'!O149 -> 0 | F101: ='G-2 Habitat groups'!P149 -> 0 | G101: 0 | H101: 0
B102: Native Hedgerow with trees - Associated with bank or ditch | C102: ='G-2 Habitat groups'!E150 -> 0 | D102: ='G-2 Habitat groups'!F150 -> 0 | E102: ='G-2 Habitat groups'!O150 -> 0 | F102: ='G-2 Habitat groups'!P150 -> 0 | G102: 0 | H102: 0 | J102: ='G-1 All Habitats'!$V$4 -> High | K102: =SUMIF('B-1 Site Hedge Baseline'!$F$10:$F$257,'Detailed Results'!J102,'B-1 Site Hedge Baseline'!$T$10:$T$257)+SUMIF('E-1 Off Site Hedge Baseline'!$F$10:$F$257,'Detailed Results'!J102,'E-1 Off Site Hedge Baseline'!$T$10:$T$257) -> 0 | L102: =IF(K102=0,"",(K102/(SUM($K$100:$K$109)))*100) -> 
B103: Native Species Rich Hedgerow | C103: ='G-2 Habitat groups'!E151 -> 0 | D103: ='G-2 Habitat groups'!F151 -> 0 | E103: ='G-2 Habitat groups'!O151 -> 0 | F103: ='G-2 Habitat groups'!P151 -> 0 | G103: 0 | H103: 0
B104: Native Hedgerow - Associated with bank or ditch | C104: ='G-2 Habitat groups'!E152 -> 0 | D104: ='G-2 Habitat groups'!F152 -> 0 | E104: ='G-2 Habitat groups'!O152 -> 0 | F104: ='G-2 Habitat groups'!P152 -> 0 | G104: 0 | H104: 0 | J104: ='G-1 All Habitats'!$V$5 -> Medium | K104: =SUMIF('B-1 Site Hedge Baseline'!$F$10:$F$257,'Detailed Results'!J104,'B-1 Site Hedge Baseline'!$T$10:$T$257)+SUMIF('E-1 Off Site Hedge Baseline'!$F$10:$F$257,'Detailed Results'!J104,'E-1 Off Site Hedge Baseline'!$T$10:$T$257) -> 0 | L104: =IF(K104=0,"",(K104/(SUM($K$100:$K$109)))*100) -> 
B105: Native Hedgerow with trees | C105: ='G-2 Habitat groups'!E153 -> 0 | D105: ='G-2 Habitat groups'!F153 -> 0 | E105: ='G-2 Habitat groups'!O153 -> 0 | F105: ='G-2 Habitat groups'!P153 -> 0 | G105: 0 | H105: 0
B106: Line of Trees (Ecologically Valuable) | C106: ='G-2 Habitat groups'!E154 -> 0 | D106: ='G-2 Habitat groups'!F154 -> 0 | E106: ='G-2 Habitat groups'!O154 -> 0 | F106: ='G-2 Habitat groups'!P154 -> 0 | G106: 0 | H106: 0 | J106: ='G-1 All Habitats'!$V$6 -> Low | K106: =SUMIF('B-1 Site Hedge Baseline'!$F$10:$F$257,'Detailed Results'!J106,'B-1 Site Hedge Baseline'!$T$10:$T$257)+SUMIF('E-1 Off Site Hedge Baseline'!$F$10:$F$257,'Detailed Results'!J106,'E-1 Off Site Hedge Baseline'!$T$10:$T$257) -> 0 | L106: =IF(K106=0,"",(K106/(SUM($K$100:$K$109)))*100) -> 
B107: Line of Trees (Ecologically Valuable) - with Bank or Ditch | C107: ='G-2 Habitat groups'!E155 -> 0 | D107: ='G-2 Habitat groups'!F155 -> 0 | E107: ='G-2 Habitat groups'!O155 -> 0 | F107: ='G-2 Habitat groups'!P155 -> 0 | G107: 0 | H107: 0
B108: Native Hedgerow | C108: ='G-2 Habitat groups'!E156 -> 0 | D108: ='G-2 Habitat groups'!F156 -> 0 | E108: ='G-2 Habitat groups'!O156 -> 0 | F108: ='G-2 Habitat groups'!P156 -> 0 | G108: 0 | H108: 0 | J108: ='G-1 All Habitats'!$V$7 -> V.Low | K108: =SUMIF('B-1 Site Hedge Baseline'!$F$10:$F$257,'Detailed Results'!J108,'B-1 Site Hedge Baseline'!$T$10:$T$257)+SUMIF('E-1 Off Site Hedge Baseline'!$F$10:$F$257,'Detailed Results'!J108,'E-1 Off Site Hedge Baseline'!$T$10:$T$257) -> 0 | L108: =IF(K108=0,"",(K108/(SUM($K$100:$K$109)))*100) -> 
B109: Line of Trees | C109: ='G-2 Habitat groups'!E157 -> 0 | D109: ='G-2 Habitat groups'!F157 -> 0 | E109: ='G-2 Habitat groups'!O157 -> 0 | F109: ='G-2 Habitat groups'!P157 -> 0 | G109: 0 | H109: 0
B110: Line of Trees - Associated with bank or ditch | C110: ='G-2 Habitat groups'!E158 -> 0 | D110: ='G-2 Habitat groups'!F158 -> 0 | E110: ='G-2 Habitat groups'!O158 -> 0 | F110: ='G-2 Habitat groups'!P158 -> 0 | G110: 0 | H110: 0
B111: Hedge Ornamental Non Native | C111: ='G-2 Habitat groups'!E159 -> 0 | D111: ='G-2 Habitat groups'!F159 -> 0 | E111: ='G-2 Habitat groups'!O159 -> 0 | F111: ='G-2 Habitat groups'!P159 -> 0 | G111: 0 | H111: 0
B116: Off site change by hedgerow type
C117: Off site baseline | E117: Post development off site | G117: Off site Change
B118: Hedgerow type | C118: Existing length off-site | D118: Existing value off-site | E118: Proposed length off-site | F118: Proposed value off-site | G118: Off-site length change | H118: Off site Unit change
B119: Native Species Rich Hedgerow with trees - Associated with bank or ditch | C119: ='G-2 Habitat groups'!S147 -> 0 | D119: ='G-2 Habitat groups'!T147 -> 0 | E119: ='G-2 Habitat groups'!AA147 -> 0 | F119: ='G-2 Habitat groups'!AB147 -> 0 | G119: =E119-C119 -> 0 | H119: =F119-D119 -> 0
B120: Native Species Rich Hedgerow with trees | C120: ='G-2 Habitat groups'!S148 -> 0 | D120: ='G-2 Habitat groups'!T148 -> 0 | E120: ='G-2 Habitat groups'!AA148 -> 0 | F120: ='G-2 Habitat groups'!AB148 -> 0 | G120: 0 | H120: 0
B121: Native Species Rich Hedgerow - Associated with bank or ditch | C121: ='G-2 Habitat groups'!S149 -> 0 | D121: ='G-2 Habitat groups'!T149 -> 0 | E121: ='G-2 Habitat groups'!AA149 -> 0 | F121: ='G-2 Habitat groups'!AB149 -> 0 | G121: 0 | H121: 0
B122: Native Hedgerow with trees - Associated with bank or ditch | C122: ='G-2 Habitat groups'!S150 -> 0 | D122: ='G-2 Habitat groups'!T150 -> 0 | E122: ='G-2 Habitat groups'!AA150 -> 0 | F122: ='G-2 Habitat groups'!AB150 -> 0 | G122: 0 | H122: 0
B123: Native Species Rich Hedgerow | C123: ='G-2 Habitat groups'!S151 -> 0 | D123: ='G-2 Habitat groups'!T151 -> 0 | E123: ='G-2 Habitat groups'!AA151 -> 0 | F123: ='G-2 Habitat groups'!AB151 -> 0 | G123: 0 | H123: 0
B124: Native Hedgerow - Associated with bank or ditch | C124: ='G-2 Habitat groups'!S152 -> 0 | D124: ='G-2 Habitat groups'!T152 -> 0 | E124: ='G-2 Habitat groups'!AA152 -> 0 | F124: ='G-2 Habitat groups'!AB152 -> 0 | G124: 0 | H124: 0
B125: Native Hedgerow with trees | C125: ='G-2 Habitat groups'!S153 -> 0 | D125: ='G-2 Habitat groups'!T153 -> 0 | E125: ='G-2 Habitat groups'!AA153 -> 0 | F125: ='G-2 Habitat groups'!AB153 -> 0 | G125: 0 | H125: 0
B126: Line of Trees (Ecologically Valuable) | C126: ='G-2 Habitat groups'!S154 -> 0 | D126: ='G-2 Habitat groups'!T154 -> 0 | E126: ='G-2 Habitat groups'!AA154 -> 0 | F126: ='G-2 Habitat groups'!AB154 -> 0 | G126: 0 | H126: 0
B127: Line of Trees (Ecologically Valuable) - with Bank or Ditch | C127: ='G-2 Habitat groups'!S155 -> 0 | D127: ='G-2 Habitat groups'!T155 -> 0 | E127: ='G-2 Habitat groups'!AA155 -> 0 | F127: ='G-2 Habitat groups'!AB155 -> 0 | G127: 0 | H127: 0
B128: Native Hedgerow | C128: ='G-2 Habitat groups'!S156 -> 0 | D128: ='G-2 Habitat groups'!T156 -> 0 | E128: ='G-2 Habitat groups'!AA156 -> 0 | F128: ='G-2 Habitat groups'!AB156 -> 0 | G128: 0 | H128: 0
B129: Line of Trees | C129: ='G-2 Habitat groups'!S157 -> 0 | D129: ='G-2 Habitat groups'!T157 -> 0 | E129: ='G-2 Habitat groups'!AA157 -> 0 | F129: ='G-2 Habitat groups'!AB157 -> 0 | G129: 0 | H129: 0
B130: Line of Trees - Associated with bank or ditch | C130: ='G-2 Habitat groups'!S158 -> 0 | D130: ='G-2 Habitat groups'!T158 -> 0 | E130: ='G-2 Habitat groups'!AA158 -> 0 | F130: ='G-2 Habitat groups'!AB158 -> 0 | G130: 0 | H130: 0
B131: Hedge Ornamental Non Native | C131: ='G-2 Habitat groups'!S159 -> 0 | D131: ='G-2 Habitat groups'!T159 -> 0 | E131: ='G-2 Habitat groups'!AA159 -> 0 | F131: ='G-2 Habitat groups'!AB159 -> 0 | G131: 0 | H131: 0
B136: Combined on and off site change by hedgerow type
C137: Baseline | E137: Post development on site | G137: Onsite Change
B138: Hedgerow type | C138: Existing length | D138: Existing value | E138: Proposed length | F138: Proposed value | G138: length change | H138: Onsite Unit change
B139: Native Species Rich Hedgerow with trees - Associated with bank or ditch | C139: =C99+C119 -> 0 | D139: =D99+D119 -> 0 | E139: 0 | F139: 0 | G139: =G99+G119 -> 0 | H139: 0
B140: Native Species Rich Hedgerow with trees | C140: =C100+C120 -> 0 | D140: 0 | E140: 0 | F140: 0 | G140: 0 | H140: 0
B141: Native Species Rich Hedgerow - Associated with bank or ditch | C141: =C101+C121 -> 0 | D141: =D101+D121 -> 0 | E141: 0 | F141: 0 | G141: 0 | H141: 0
B142: Native Hedgerow with trees - Associated with bank or ditch | C142: =C102+C122 -> 0 | D142: 0 | E142: 0 | F142: 0 | G142: 0 | H142: 0
B143: Native Species Rich Hedgerow | C143: =C103+C123 -> 0 | D143: 0 | E143: 0 | F143: 0 | G143: 0 | H143: 0
B144: Native Hedgerow - Associated with bank or ditch | C144: =C104+C124 -> 0 | D144: 0 | E144: 0 | F144: 0 | G144: 0 | H144: 0
B145: Native Hedgerow with trees | C145: =C105+C125 -> 0 | D145: 0 | E145: 0 | F145: 0 | G145: 0 | H145: 0
B146: Line of Trees (Ecologically Valuable) | C146: =C106+C126 -> 0 | D146: 0 | E146: 0 | F146: 0 | G146: 0 | H146: 0
B147: Line of Trees (Ecologically Valuable) - with Bank or Ditch | C147: =C107+C127 -> 0 | D147: 0 | E147: 0 | F147: 0 | G147: 0 | H147: 0
B148: Native Hedgerow | C148: =C108+C128 -> 0 | D148: 0 | E148: 0 | F148: 0 | G148: 0 | H148: 0
B149: Line of Trees | C149: =C109+C129 -> 0 | D149: 0 | E149: 0 | F149: 0 | G149: 0 | H149: 0
B150: Line of Trees - Associated with bank or ditch | C150: =C110+C130 -> 0 | D150: 0 | E150: 0 | F150: 0 | G150: 0 | H150: 0
B151: Hedge Ornamental Non Native | C151: =C111+C131 -> 0 | D151: 0 | E151: 0 | F151: 0 | G151: 0 | H151: 0
A154: Rivers and Streams Rivers and Streams Rivers and Streams
B156: Rivers and Streams
B159: On site change by river type | J159: Combined length lost by distinctiveness band
C160: Baseline | E160: Post development on site | G160: Onsite Change
B161: River type | C161: Existing length | D161: Existing value | E161: Proposed length | F161: Proposed value | G161: length change | H161: Onsite Unit change | J161: Category | K161: Length lost (KM) | L161: Length lost (%)
B162: Priority Habitat | C162: ='G-2 Habitat groups'!E169 -> 0 | D162: ='G-2 Habitat groups'!F169 -> 0 | E162: ='G-2 Habitat groups'!O169 -> 0 | F162: ='G-2 Habitat groups'!P169 -> 0 | G162: =E162-C162 -> 0 | H162: =F162-D162 -> 0
B163: Other Rivers and Streams | C163: ='G-2 Habitat groups'!E170 -> 0 | D163: ='G-2 Habitat groups'!F170 -> 0 | E163: ='G-2 Habitat groups'!O170 -> 0 | F163: ='G-2 Habitat groups'!P170 -> 0 | G163: =E163-C163 -> 0 | H163: =F163-D163 -> 0 | J163: ='G-1 All Habitats'!$V$3 -> V.High | K163: =SUMIF('C-1 Site River Baseline'!$F$10:$F$257,'Detailed Results'!J163,'C-1 Site River Baseline'!$X$10:$X$257)+SUMIF('F-1 Off Site River Baseline'!$F$10:$F$257,'Detailed Results'!J163,'F-1 Off Site River Baseline'!$X$10:$X$257) -> 0 | L163: =IF(K163=0,"",(K163/(SUM($K$100:$K$109)))*100) -> 
B164: Ditches | C164: ='G-2 Habitat groups'!E171 -> 0 | D164: ='G-2 Habitat groups'!F171 -> 0 | E164: ='G-2 Habitat groups'!O171 -> 0 | F164: ='G-2 Habitat groups'!P171 -> 0 | G164: 0 | H164: 0
B165: Canals | C165: ='G-2 Habitat groups'!E172 -> 0 | D165: ='G-2 Habitat groups'!F172 -> 0 | E165: ='G-2 Habitat groups'!O172 -> 0 | F165: ='G-2 Habitat groups'!P172 -> 0 | G165: 0 | H165: 0 | J165: ='G-1 All Habitats'!$V$4 -> High | K165: =SUMIF('C-1 Site River Baseline'!$F$10:$F$257,'Detailed Results'!J165,'C-1 Site River Baseline'!$X$10:$X$257)+SUMIF('F-1 Off Site River Baseline'!$F$10:$F$257,'Detailed Results'!J165,'F-1 Off Site River Baseline'!$X$10:$X$257) -> 0 | L165: =IF(K165=0,"",(K165/(SUM($K$100:$K$109)))*100) -> 
B166: Culvert | C166: ='G-2 Habitat groups'!E173 -> 0 | D166: ='G-2 Habitat groups'!F173 -> 0 | E166: ='G-2 Habitat groups'!O173 -> 0 | F166: ='G-2 Habitat groups'!P173 -> 0 | G166: 0 | H166: 0
J167: ='G-1 All Habitats'!$V$5 -> Medium | K167: =SUMIF('C-1 Site River Baseline'!$F$10:$F$257,'Detailed Results'!J167,'C-1 Site River Baseline'!$X$10:$X$257)+SUMIF('F-1 Off Site River Baseline'!$F$10:$F$257,'Detailed Results'!J167,'F-1 Off Site River Baseline'!$X$10:$X$257) -> 0 | L167: =IF(K167=0,"",(K167/(SUM($K$100:$K$109)))*100) -> 
J169: ='G-1 All Habitats'!$V$6 -> Low | K169: =SUMIF('C-1 Site River Baseline'!$F$10:$F$257,'Detailed Results'!J169,'C-1 Site River Baseline'!$X$10:$X$257)+SUMIF('F-1 Off Site River Baseline'!$F$10:$F$257,'Detailed Results'!J169,'F-1 Off Site River Baseline'!$X$10:$X$257) -> 0 | L169: =IF(K169=0,"",(K169/(SUM($K$100:$K$109)))*100) -> 
B179: Off site change by river type
C180: Baseline | E180: Post development off-site | G180: Off-site Change
B181: River type | C181: Existing length off-site | D181: Existing value off-site | E181: Proposed length off-site | F181: Proposed value off-site | G181: Off-site length change | H181: Off-site unit change
B182: Priority Habitat | C182: ='G-2 Habitat groups'!S169 -> 0 | D182: ='G-2 Habitat groups'!T169 -> 0 | E182: ='G-2 Habitat groups'!AA169 -> 0 | F182: ='G-2 Habitat groups'!AB210 -> 0 | G182: =E182-C182 -> 0 | H182: =F182-D182 -> 0
B183: Other Rivers and Streams | C183: ='G-2 Habitat groups'!S170 -> 0 | D183: ='G-2 Habitat groups'!T170 -> 0 | E183: ='G-2 Habitat groups'!AA170 -> 0 | F183: ='G-2 Habitat groups'!AB211 -> 0 | G183: 0 | H183: 0
B184: Ditches | C184: ='G-2 Habitat groups'!S171 -> 0 | D184: ='G-2 Habitat groups'!T171 -> 0 | E184: ='G-2 Habitat groups'!AA171 -> 0 | F184: ='G-2 Habitat groups'!AB212 -> 0 | G184: 0 | H184: 0
B185: Canals | C185: ='G-2 Habitat groups'!S172 -> 0 | D185: ='G-2 Habitat groups'!T172 -> 0 | E185: ='G-2 Habitat groups'!AA172 -> 0 | F185: ='G-2 Habitat groups'!AB213 -> 0 | G185: 0 | H185: 0
B186: Culvert | C186: ='G-2 Habitat groups'!S173 -> 0 | D186: ='G-2 Habitat groups'!T173 -> 0 | E186: ='G-2 Habitat groups'!AA173 -> 0 | F186: ='G-2 Habitat groups'!AB214 -> 0 | G186: 0 | H186: 0
B199: Combined on and off site change by river type
C200: Baseline | E200: Post development on site | G200: Onsite Change
B201: River type | C201: Existing length | D201: Existing value | E201: Proposed length | F201: Proposed value | G201: length change | H201: Onsite Unit change
B202: Priority Habitat | C202: =C162+C182 -> 0 | D202: =D162+D182 -> 0 | E202: 0 | F202: 0 | G202: 0 | H202: 0
B203: Other Rivers and Streams | C203: =C163+C183 -> 0 | D203: =D163+D183 -> 0 | E203: 0 | F203: 0 | G203: 0 | H203: 0
B204: Ditches | C204: =C164+C184 -> 0 | D204: 0 | E204: 0 | F204: 0 | G204: 0 | H204: 0
B205: Canals | C205: =C165+C185 -> 0 | D205: 0 | E205: 0 | F205: 0 | G205: 0 | H205: 0
B206: Culvert | C206: =C166+C186 -> 0 | D206: 0 | E206: 0 | F206: 0 | G206: 0 | H206: 0

Sheet Trading Summary (hidden)
B2: Trading Summary
B3: Distinctiveness Group | C3: Trading Rule | G3: Trading Satisfied?
B5: Very High | C5: Bespoke compensation likely to be required | G5: =IF(('A-1 Site Habitat Baseline'!AQ259+'D-1 Off Site Habitat Baseline'!AQ259)>0,"No","Yes") -> Yes
B6: High | C6: Same habitat required | G6: =IFERROR(IF(J41<0,"No","Yes"),"") -> Yes
B7: Medium | C7: Same broad habitat or a higher distinctiveness habitat required | G7: =IF(J40+J12+J89<0,"No","Yes") -> Yes
B8: Low | C8: Same distinctiveness or better habitat required | G8: =IF(J125<0,"No","Yes") -> No
B11: Very High Distinctiveness | I11: Very High Distinctiveness Summary
B12: Habitat group | C12: Group | D12: On Site Unit Change | E12: Off Site Unit Change | F12: Project wide Unit Change | G12: Unit Losses | I12: Very High Distinctiveness Units available to offset lower distinctiveness defecit | J12: =SUMIF($F$13:$F$32,">0") -> 0
B13: ='G-2 Habitat groups'!AU5 -> Grassland - Lowland dry acid grassland | C13: ='G-2 Habitat groups'!AV5 -> Grassland | D13: ='G-2 Habitat groups'!BB5 -> 0 | E13: ='G-2 Habitat groups'!BD5 -> 0 | F13: ='G-2 Habitat groups'!BE5 -> 0 | G13: ='G-2 Habitat groups'!BF5 ->  | I13: =IF($G$33<0,"Very high distinctiveness unit defecit - CHECK DATA","") -> 
B14: ='G-2 Habitat groups'!AU6 -> Grassland - Lowland meadows | C14: ='G-2 Habitat groups'!AV6 -> Grassland | D14: ='G-2 Habitat groups'!BB6 -> 0 | E14: ='G-2 Habitat groups'!BD6 -> 0 | F14: ='G-2 Habitat groups'!BE6 -> 0 | G14: ='G-2 Habitat groups'!BF6 -> 
B15: ='G-2 Habitat groups'!AU7 -> Grassland - Upland hay meadows | C15: ='G-2 Habitat groups'!AV7 -> Grassland | D15: ='G-2 Habitat groups'!BB7 -> 0 | E15: ='G-2 Habitat groups'!BD7 -> 0 | F15: ='G-2 Habitat groups'!BE7 -> 0 | G15: ='G-2 Habitat groups'!BF7 -> 
B16: ='G-2 Habitat groups'!AU8 -> Heathland and shrub - Mountain heaths and willow scrub | C16: ='G-2 Habitat groups'!AV8 -> Heathland and shrub | D16: ='G-2 Habitat groups'!BB8 -> 0 | E16: ='G-2 Habitat groups'!BD8 -> 0 | F16: ='G-2 Habitat groups'!BE8 -> 0 | G16: ='G-2 Habitat groups'!BF8 -> 
B17: ='G-2 Habitat groups'!AU9 -> Lakes - Aquifer fed naturally fluctuating water bodies | C17: ='G-2 Habitat groups'!AV9 -> Lakes | D17: ='G-2 Habitat groups'!BB9 -> 0 | E17: ='G-2 Habitat groups'!BD9 -> 0 | F17: ='G-2 Habitat groups'!BE9 -> 0 | G17: ='G-2 Habitat groups'!BF9 -> 
B18: ='G-2 Habitat groups'!AU10 -> Sparsely vegetated land - Calaminarian grasslands | C18: ='G-2 Habitat groups'!AV10 -> Sparsely vegetated land | D18: ='G-2 Habitat groups'!BB10 -> 0 | E18: ='G-2 Habitat groups'!BD10 -> 0 | F18: ='G-2 Habitat groups'!BE10 -> 0 | G18: ='G-2 Habitat groups'!BF10 -> 
B19: ='G-2 Habitat groups'!AU11 -> Sparsely vegetated land - Limestone pavement | C19: ='G-2 Habitat groups'!AV11 -> Sparsely vegetated land | D19: ='G-2 Habitat groups'!BB11 -> 0 | E19: ='G-2 Habitat groups'!BD11 -> 0 | F19: ='G-2 Habitat groups'!BE11 -> 0 | G19: ='G-2 Habitat groups'!BF11 -> 
B20: ='G-2 Habitat groups'!AU12 -> Wetland - Blanket bog | C20: ='G-2 Habitat groups'!AV12 -> Wetland | D20: ='G-2 Habitat groups'!BB12 -> 0 | E20: ='G-2 Habitat groups'!BD12 -> 0 | F20: ='G-2 Habitat groups'!BE12 -> 0 | G20: ='G-2 Habitat groups'!BF12 -> 
B21: ='G-2 Habitat groups'!AU13 -> Wetland - Depressions on Peat substrates (H7150) | C21: ='G-2 Habitat groups'!AV13 -> Wetland | D21: ='G-2 Habitat groups'!BB13 -> 0 | E21: ='G-2 Habitat groups'!BD13 -> 0 | F21: ='G-2 Habitat groups'!BE13 -> 0 | G21: ='G-2 Habitat groups'!BF13 -> 
B22: ='G-2 Habitat groups'!AU14 -> Wetland - Fens (upland and lowland) | C22: ='G-2 Habitat groups'!AV14 -> Wetland | D22: ='G-2 Habitat groups'!BB14 -> 0 | E22: ='G-2 Habitat groups'!BD14 -> 0 | F22: ='G-2 Habitat groups'!BE14 -> 0 | G22: ='G-2 Habitat groups'!BF14 -> 
B23: ='G-2 Habitat groups'!AU15 -> Wetland - Lowland raised bog | C23: ='G-2 Habitat groups'!AV15 -> Wetland | D23: ='G-2 Habitat groups'!BB15 -> 0 | E23: ='G-2 Habitat groups'!BD15 -> 0 | F23: ='G-2 Habitat groups'!BE15 -> 0 | G23: ='G-2 Habitat groups'!BF15 -> 
B24: ='G-2 Habitat groups'!AU16 -> Wetland - Oceanic Valley Mire[1] (D2.1) | C24: ='G-2 Habitat groups'!AV16 -> Wetland | D24: ='G-2 Habitat groups'!BB16 -> 0 | E24: ='G-2 Habitat groups'!BD16 -> 0 | F24: ='G-2 Habitat groups'!BE16 -> 0 | G24: ='G-2 Habitat groups'!BF16 -> 
B25: ='G-2 Habitat groups'!AU17 -> Wetland - Purple moor grass and rush pastures | C25: ='G-2 Habitat groups'!AV17 -> Wetland | D25: ='G-2 Habitat groups'!BB17 -> 0 | E25: ='G-2 Habitat groups'!BD17 -> 0 | F25: ='G-2 Habitat groups'!BE17 -> 0 | G25: ='G-2 Habitat groups'!BF17 -> 
B26: ='G-2 Habitat groups'!AU18 -> Wetland - Transition mires and quaking bogs (H7140) | C26: ='G-2 Habitat groups'!AV18 -> Wetland | D26: ='G-2 Habitat groups'!BB18 -> 0 | E26: ='G-2 Habitat groups'!BD18 -> 0 | F26: ='G-2 Habitat groups'!BE18 -> 0 | G26: ='G-2 Habitat groups'!BF18 -> 
B27: ='G-2 Habitat groups'!AU19 -> Woodland and forest - Wood-pasture and parkland | C27: ='G-2 Habitat groups'!AV19 -> Woodland and forest | D27: ='G-2 Habitat groups'!BB19 -> 0 | E27: ='G-2 Habitat groups'!BD19 -> 0 | F27: ='G-2 Habitat groups'!BE19 -> 0 | G27: ='G-2 Habitat groups'!BF19 -> 
B28: ='G-2 Habitat groups'!AU20 -> Rocky shore - High energy littoral rock - on peat, clay or chalk | C28: ='G-2 Habitat groups'!AV20 -> Rocky shore | D28: ='G-2 Habitat groups'!BB20 -> 0 | E28: ='G-2 Habitat groups'!BD20 -> 0 | F28: ='G-2 Habitat groups'!BE20 -> 0 | G28: ='G-2 Habitat groups'!BF20 -> 
B29: ='G-2 Habitat groups'!AU21 -> Rocky shore - Moderate energy littoral rock - on peat, clay or chalk | C29: ='G-2 Habitat groups'!AV21 -> Rocky shore | D29: ='G-2 Habitat groups'!BB21 -> 0 | E29: ='G-2 Habitat groups'!BD21 -> 0 | F29: ='G-2 Habitat groups'!BE21 -> 0 | G29: ='G-2 Habitat groups'!BF21 -> 
B30: ='G-2 Habitat groups'!AU22 -> Rocky shore - Low energy littoral rock - on peat, clay or chalk | C30: ='G-2 Habitat groups'!AV22 -> Rocky shore | D30: ='G-2 Habitat groups'!BB22 -> 0 | E30: ='G-2 Habitat groups'!BD22 -> 0 | F30: ='G-2 Habitat groups'!BE22 -> 0 | G30: ='G-2 Habitat groups'!BF22 -> 
B31: ='G-2 Habitat groups'!AU23 -> Rocky shore - Features of littoral rock - on peat, clay or chalk | C31: ='G-2 Habitat groups'!AV23 -> Rocky shore | D31: ='G-2 Habitat groups'!BB23 -> 0 | E31: ='G-2 Habitat groups'!BD23 -> 0 | F31: ='G-2 Habitat groups'!BE23 -> 0 | G31: ='G-2 Habitat groups'!BF23 -> 
B32: ='G-2 Habitat groups'!AU24 -> Intertidal sediment - Littoral seagrass on peat, clay or chalk | C32: ='G-2 Habitat groups'!AV24 -> Intertidal sediment | D32: ='G-2 Habitat groups'!BB24 -> 0 | E32: ='G-2 Habitat groups'!BD24 -> 0 | F32: ='G-2 Habitat groups'!BE24 -> 0 | G32: ='G-2 Habitat groups'!BF24 -> 
D33: =SUM(D13:D32) -> 0 | E33: =SUM(E13:E32) -> 0 | F33: =SUM(F13:F32) -> 0 | G33: =SUM(G13:G32) -> 0
B39: High Distinctiveness | I39: High Distinctiveness Summary
B40: Habitat group | C40: Group | D40: On Site Unit Change | E40: Off Site Unit Change | F40: Project wide Unit Change | G40: Losses not yet accounted for | I40: High Distinctiveness Units available to offset lower distinctiveness defecit | J40: =SUMIF($F$41:$F$81,">0") -> 0.5360366935
B41: ='G-2 Habitat groups'!AU31 -> Grassland - Traditional orchards | C41: ='G-2 Habitat groups'!AV31 -> Grassland | D41: ='G-2 Habitat groups'!BB31 -> 0 | E41: ='G-2 Habitat groups'!BD31 -> 0 | F41: ='G-2 Habitat groups'!BE31 -> 0 | G41: ='G-2 Habitat groups'!BF31 ->  | I41: Unit Defecit; Like for like not satisfied | J41: =G82 -> 0
B42: ='G-2 Habitat groups'!AU32 -> Grassland - Floodplain Wetland Mosaic (CFGM) | C42: ='G-2 Habitat groups'!AV32 -> Grassland | D42: ='G-2 Habitat groups'!BB32 -> 0 | E42: ='G-2 Habitat groups'!BD32 -> 0 | F42: ='G-2 Habitat groups'!BE32 -> 0 | G42: ='G-2 Habitat groups'!BF32 -> 
B43: ='G-2 Habitat groups'!AU33 -> Grassland - Lowland calcareous grassland | C43: ='G-2 Habitat groups'!AV33 -> Grassland | D43: ='G-2 Habitat groups'!BB33 -> 0 | E43: ='G-2 Habitat groups'!BD33 -> 0 | F43: ='G-2 Habitat groups'!BE33 -> 0 | G43: ='G-2 Habitat groups'!BF33 -> 
B44: ='G-2 Habitat groups'!AU34 -> Grassland - Tall herb communities | C44: ='G-2 Habitat groups'!AV34 -> Grassland | D44: ='G-2 Habitat groups'!BB34 -> 0 | E44: ='G-2 Habitat groups'!BD34 -> 0 | F44: ='G-2 Habitat groups'!BE34 -> 0 | G44: ='G-2 Habitat groups'!BF34 -> 
B45: ='G-2 Habitat groups'!AU35 -> Grassland - Upland calcareous grassland | C45: ='G-2 Habitat groups'!AV35 -> Grassland | D45: ='G-2 Habitat groups'!BB35 -> 0 | E45: ='G-2 Habitat groups'!BD35 -> 0 | F45: ='G-2 Habitat groups'!BE35 -> 0 | G45: ='G-2 Habitat groups'!BF35 -> 
B46: ='G-2 Habitat groups'!AU36 -> Heathland and shrub - Lowland Heathland | C46: ='G-2 Habitat groups'!AV36 -> Grassland | D46: ='G-2 Habitat groups'!BB36 -> 0 | E46: ='G-2 Habitat groups'!BD36 -> 0 | F46: ='G-2 Habitat groups'!BE36 -> 0 | G46: ='G-2 Habitat groups'!BF36 -> 
B47: ='G-2 Habitat groups'!AU37 -> Heathland and shrub - Sea buckthorn scrub (Annex 1) | C47: ='G-2 Habitat groups'!AV37 -> Heathland and shrub | D47: ='G-2 Habitat groups'!BB37 -> 0 | E47: ='G-2 Habitat groups'!BD37 -> 0 | F47: ='G-2 Habitat groups'!BE37 -> 0 | G47: ='G-2 Habitat groups'!BF37 -> 
B48: ='G-2 Habitat groups'!AU38 -> Heathland and shrub - Upland Heathland | C48: ='G-2 Habitat groups'!AV38 -> Heathland and shrub | D48: ='G-2 Habitat groups'!BB38 -> 0 | E48: ='G-2 Habitat groups'!BD38 -> 0 | F48: ='G-2 Habitat groups'!BE38 -> 0 | G48: ='G-2 Habitat groups'!BF38 -> 
B49: ='G-2 Habitat groups'!AU39 -> Lakes - High alkalinity lakes | C49: ='G-2 Habitat groups'!AV39 -> Lakes | D49: ='G-2 Habitat groups'!BB39 -> 0 | E49: ='G-2 Habitat groups'!BD39 -> 0 | F49: ='G-2 Habitat groups'!BE39 -> 0 | G49: ='G-2 Habitat groups'!BF39 -> 
B50: ='G-2 Habitat groups'!AU40 -> Lakes - Low alkalinity lakes | C50: ='G-2 Habitat groups'!AV40 -> Lakes | D50: ='G-2 Habitat groups'!BB40 -> 0 | E50: ='G-2 Habitat groups'!BD40 -> 0 | F50: ='G-2 Habitat groups'!BE40 -> 0 | G50: ='G-2 Habitat groups'!BF40 -> 
B51: ='G-2 Habitat groups'!AU41 -> Lakes - Marl Lakes | C51: ='G-2 Habitat groups'!AV41 -> Lakes | D51: ='G-2 Habitat groups'!BB41 -> 0 | E51: ='G-2 Habitat groups'!BD41 -> 0 | F51: ='G-2 Habitat groups'!BE41 -> 0 | G51: ='G-2 Habitat groups'!BF41 -> 
B52: ='G-2 Habitat groups'!AU42 -> Lakes - Moderate alkalinity lakes | C52: ='G-2 Habitat groups'!AV42 -> Lakes | D52: ='G-2 Habitat groups'!BB42 -> 0 | E52: ='G-2 Habitat groups'!BD42 -> 0 | F52: ='G-2 Habitat groups'!BE42 -> 0 | G52: ='G-2 Habitat groups'!BF42 -> 
B53: ='G-2 Habitat groups'!AU43 -> Lakes - Peat Lakes | C53: ='G-2 Habitat groups'!AV43 -> Lakes | D53: ='G-2 Habitat groups'!BB43 -> 0 | E53: ='G-2 Habitat groups'!BD43 -> 0 | F53: ='G-2 Habitat groups'!BE43 -> 0 | G53: ='G-2 Habitat groups'!BF43 -> 
B54: ='G-2 Habitat groups'!AU44 -> Lakes - Ponds (Priority Habitat) | C54: ='G-2 Habitat groups'!AV44 -> Lakes | D54: ='G-2 Habitat groups'!BB44 -> 0 | E54: ='G-2 Habitat groups'!BD44 -> 0 | F54: ='G-2 Habitat groups'!BE44 -> 0 | G54: ='G-2 Habitat groups'!BF44 -> 
B55: ='G-2 Habitat groups'!AU45 -> Lakes - Temporary lakes, ponds and pools | C55: ='G-2 Habitat groups'!AV45 -> Lakes | D55: ='G-2 Habitat groups'!BB45 -> 0 | E55: ='G-2 Habitat groups'!BD45 -> 0 | F55: ='G-2 Habitat groups'!BE45 -> 0 | G55: ='G-2 Habitat groups'!BF45 -> 
B56: ='G-2 Habitat groups'!AU46 -> Sparsely vegetated land - Coastal sand dunes | C56: ='G-2 Habitat groups'!AV46 -> Sparsely vegetated land | D56: ='G-2 Habitat groups'!BB46 -> 0 | E56: ='G-2 Habitat groups'!BD46 -> 0 | F56: ='G-2 Habitat groups'!BE46 -> 0 | G56: ='G-2 Habitat groups'!BF46 -> 
B57: ='G-2 Habitat groups'!AU47 -> Sparsely vegetated land - Coastal vegetated shingle | C57: ='G-2 Habitat groups'!AV47 -> Sparsely vegetated land | D57: ='G-2 Habitat groups'!BB47 -> 0 | E57: ='G-2 Habitat groups'!BD47 -> 0 | F57: ='G-2 Habitat groups'!BE47 -> 0 | G57: ='G-2 Habitat groups'!BF47 -> 
B58: ='G-2 Habitat groups'!AU48 -> Sparsely vegetated land - Inland rock outcrop and scree habitats | C58: ='G-2 Habitat groups'!AV48 -> Sparsely vegetated land | D58: ='G-2 Habitat groups'!BB48 -> 0 | E58: ='G-2 Habitat groups'!BD48 -> 0 | F58: ='G-2 Habitat groups'!BE48 -> 0 | G58: ='G-2 Habitat groups'!BF48 -> 
B59: ='G-2 Habitat groups'!AU49 -> Sparsely vegetated land - Maritime cliff and slopes | C59: ='G-2 Habitat groups'!AV49 -> Sparsely vegetated land | D59: ='G-2 Habitat groups'!BB49 -> 0 | E59: ='G-2 Habitat groups'!BD49 -> 0 | F59: ='G-2 Habitat groups'!BE49 -> 0 | G59: ='G-2 Habitat groups'!BF49 -> 
B60: ='G-2 Habitat groups'!AU50 -> Urban - Open Mosaic Habitats on Previously Developed Land | C60: ='G-2 Habitat groups'!AV50 -> Urban | D60: ='G-2 Habitat groups'!BB50 -> 0 | E60: ='G-2 Habitat groups'!BD50 -> 0 | F60: ='G-2 Habitat groups'!BE50 -> 0 | G60: ='G-2 Habitat groups'!BF50 -> 
B61: ='G-2 Habitat groups'!AU51 -> Wetland - Reedbeds | C61: ='G-2 Habitat groups'!AV51 -> Wetland | D61: ='G-2 Habitat groups'!BB51 -> -0.8832 | E61: ='G-2 Habitat groups'!BD51 -> 1.419236694 | F61: ='G-2 Habitat groups'!BE51 -> 0.5360366935 | G61: ='G-2 Habitat groups'!BF51 -> 
B62: ='G-2 Habitat groups'!AU52 -> Woodland and forest - Felled | C62: ='G-2 Habitat groups'!AV52 -> Woodland and forest | D62: ='G-2 Habitat groups'!BB52 -> 0 | E62: ='G-2 Habitat groups'!BD52 -> 0 | F62: ='G-2 Habitat groups'!BE52 -> 0 | G62: ='G-2 Habitat groups'!BF52 -> 
B63: ='G-2 Habitat groups'!AU53 -> Woodland and forest - Lowland beech and yew woodland | C63: ='G-2 Habitat groups'!AV53 -> Woodland and forest | D63: ='G-2 Habitat groups'!BB53 -> 0 | E63: ='G-2 Habitat groups'!BD53 -> 0 | F63: ='G-2 Habitat groups'!BE53 -> 0 | G63: ='G-2 Habitat groups'!BF53 -> 
B64: ='G-2 Habitat groups'!AU54 -> Woodland and forest - Lowland mixed deciduous woodland | C64: ='G-2 Habitat groups'!AV54 -> Woodland and forest | D64: ='G-2 Habitat groups'!BB54 -> 0 | E64: ='G-2 Habitat groups'!BD54 -> 0 | F64: ='G-2 Habitat groups'!BE54 -> 0 | G64: ='G-2 Habitat groups'!BF54 -> 
B65: ='G-2 Habitat groups'!AU55 -> Woodland and forest - Native pine woodlands | C65: ='G-2 Habitat groups'!AV55 -> Woodland and forest | D65: ='G-2 Habitat groups'!BB55 -> 0 | E65: ='G-2 Habitat groups'!BD55 -> 0 | F65: ='G-2 Habitat groups'!BE55 -> 0 | G65: ='G-2 Habitat groups'!BF55 -> 
B66: ='G-2 Habitat groups'!AU56 -> Woodland and forest - Upland birchwoods | C66: ='G-2 Habitat groups'!AV56 -> Woodland and forest | D66: ='G-2 Habitat groups'!BB56 -> 0 | E66: ='G-2 Habitat groups'!BD56 -> 0 | F66: ='G-2 Habitat groups'!BE56 -> 0 | G66: ='G-2 Habitat groups'!BF56 -> 
B67: ='G-2 Habitat groups'!AU57 -> Woodland and forest - Upland mixed ashwoods | C67: ='G-2 Habitat groups'!AV57 -> Woodland and forest | D67: ='G-2 Habitat groups'!BB57 -> 0 | E67: ='G-2 Habitat groups'!BD57 -> 0 | F67: ='G-2 Habitat groups'!BE57 -> 0 | G67: ='G-2 Habitat groups'!BF57 -> 
B68: ='G-2 Habitat groups'!AU58 -> Woodland and forest - Upland oakwood | C68: ='G-2 Habitat groups'!AV58 -> Woodland and forest | D68: ='G-2 Habitat groups'!BB58 -> 0 | E68: ='G-2 Habitat groups'!BD58 -> 0 | F68: ='G-2 Habitat groups'!BE58 -> 0 | G68: ='G-2 Habitat groups'!BF58 -> 
B69: ='G-2 Habitat groups'!AU59 -> Woodland and forest - Wet woodland | C69: ='G-2 Habitat groups'!AV59 -> Woodland and forest | D69: ='G-2 Habitat groups'!BB59 -> 0 | E69: ='G-2 Habitat groups'!BD59 -> 0 | F69: ='G-2 Habitat groups'!BE59 -> 0 | G69: ='G-2 Habitat groups'!BF59 -> 
B70: ='G-2 Habitat groups'!AU60 -> Coastal lagoons - Coastal lagoons | C70: ='G-2 Habitat groups'!AV60 -> Coastal lagoons | D70: ='G-2 Habitat groups'!BB60 -> 0 | E70: ='G-2 Habitat groups'!BD60 -> 0 | F70: ='G-2 Habitat groups'!BE60 -> 0 | G70: ='G-2 Habitat groups'!BF60 -> 
B71: ='G-2 Habitat groups'!AU61 -> Rocky shore - High energy littoral rock | C71: ='G-2 Habitat groups'!AV61 -> Rocky shore | D71: ='G-2 Habitat groups'!BB61 -> 0 | E71: ='G-2 Habitat groups'!BD61 -> 0 | F71: ='G-2 Habitat groups'!BE61 -> 0 | G71: ='G-2 Habitat groups'!BF61 -> 
B72: ='G-2 Habitat groups'!AU62 -> Rocky shore - Moderate energy littoral rock | C72: ='G-2 Habitat groups'!AV62 -> Rocky shore | D72: ='G-2 Habitat groups'!BB62 -> 0 | E72: ='G-2 Habitat groups'!BD62 -> 0 | F72: ='G-2 Habitat groups'!BE62 -> 0 | G72: ='G-2 Habitat groups'!BF62 -> 
B73: ='G-2 Habitat groups'!AU63 -> Rocky shore - Low energy littoral rock | C73: ='G-2 Habitat groups'!AV63 -> Rocky shore | D73: ='G-2 Habitat groups'!BB63 -> 0 | E73: ='G-2 Habitat groups'!BD63 -> 0 | F73: ='G-2 Habitat groups'!BE63 -> 0 | G73: ='G-2 Habitat groups'!BF63 -> 
B74: ='G-2 Habitat groups'!AU64 -> Rocky shore - Features of littoral rock | C74: ='G-2 Habitat groups'!AV64 -> Rocky shore | D74: ='G-2 Habitat groups'!BB64 -> 0 | E74: ='G-2 Habitat groups'!BD64 -> 0 | F74: ='G-2 Habitat groups'!BE64 -> 0 | G74: ='G-2 Habitat groups'!BF64 -> 
B75: ='G-2 Habitat groups'!AU65 -> Intertidal sediment - Littoral mud | C75: ='G-2 Habitat groups'!AV65 -> Intertidal sediment | D75: ='G-2 Habitat groups'!BB65 -> 0 | E75: ='G-2 Habitat groups'!BD65 -> 0 | F75: ='G-2 Habitat groups'!BE65 -> 0 | G75: ='G-2 Habitat groups'!BF65 -> 
B76: ='G-2 Habitat groups'!AU66 -> Intertidal sediment - Littoral mixed sediments | C76: ='G-2 Habitat groups'!AV66 -> Intertidal sediment | D76: ='G-2 Habitat groups'!BB66 -> 0 | E76: ='G-2 Habitat groups'!BD66 -> 0 | F76: ='G-2 Habitat groups'!BE66 -> 0 | G76: ='G-2 Habitat groups'!BF66 -> 
B77: ='G-2 Habitat groups'!AU67 -> Coastal saltmarsh - Saltmarshes and saline reedbeds | C77: ='G-2 Habitat groups'!AV67 -> Coastal Saltmarsh | D77: ='G-2 Habitat groups'!BB67 -> 0 | E77: ='G-2 Habitat groups'!BD67 -> 0 | F77: ='G-2 Habitat groups'!BE67 -> 0 | G77: ='G-2 Habitat groups'!BF67 -> 
B78: ='G-2 Habitat groups'!AU68 -> Intertidal sediment - Littoral biogenic reefs - Mussels | C78: ='G-2 Habitat groups'!AV68 -> Intertidal sediment | D78: ='G-2 Habitat groups'!BB68 -> 0 | E78: ='G-2 Habitat groups'!BD68 -> 0 | F78: ='G-2 Habitat groups'!BE68 -> 0 | G78: ='G-2 Habitat groups'!BF68 -> 
B79: ='G-2 Habitat groups'!AU69 -> Intertidal sediment - Littoral biogenic reefs - Sabellaria | C79: ='G-2 Habitat groups'!AV69 -> Intertidal sediment | D79: ='G-2 Habitat groups'!BB69 -> 0 | E79: ='G-2 Habitat groups'!BD69 -> 0 | F79: ='G-2 Habitat groups'!BE69 -> 0 | G79: ='G-2 Habitat groups'!BF69 -> 
B80: ='G-2 Habitat groups'!AU70 -> Intertidal sediment - Features of littoral sediment | C80: ='G-2 Habitat groups'!AV70 -> Intertidal sediment | D80: ='G-2 Habitat groups'!BB70 -> 0 | E80: ='G-2 Habitat groups'!BD70 -> 0 | F80: ='G-2 Habitat groups'!BE70 -> 0 | G80: ='G-2 Habitat groups'!BF70 -> 
B81: ='G-2 Habitat groups'!AU71 -> Intertidal sediment - Littoral muddy sand | C81: ='G-2 Habitat groups'!AV71 -> Intertidal sediment | D81: ='G-2 Habitat groups'!BB71 -> 0 | E81: ='G-2 Habitat groups'!BD71 -> 0 | F81: ='G-2 Habitat groups'!BE71 -> 0 | G81: ='G-2 Habitat groups'!BF71 -> 
D82: =SUM(D41:D81) -> -0.8832 | E82: =SUM(E41:E81) -> 1.419236694 | F82: =SUM(F41:F81) -> 0.5360366935 | G82: =SUM(G41:G81) -> 0
B87: Medium Distinctiveness | I87: Medium Distinctiveness Summary
B88: Habitat Group | C88: Group | D88: On site unit change | E88: Off Site Unit Change | F88: Project wide unit change | G88: Cumulative Broad Habitat Change | I88: Medium Distinctiveness Units available to offset lower distinctiveness defecit | J88: =SUMIF(G89:G114,">0") -> 0
B89: ='G-2 Habitat groups'!AU78 -> Cropland - Arable field margins cultivated annually | C89: ='G-2 Habitat groups'!AV78 -> Cropland | D89: ='G-2 Habitat groups'!BB78 -> 0 | E89: ='G-2 Habitat groups'!BD78 -> 0 | F89: ='G-2 Habitat groups'!BE78 -> 0 | G89: =SUM(F89:F93) -> 0 | I89: Medium Distinctiveness Broad Habitat Deficit to be offset by trading up | J89: =SUMIF(G89:G114,"<0") -> 0
B90: ='G-2 Habitat groups'!AU79 -> Cropland - Arable field margins game bird mix | C90: ='G-2 Habitat groups'!AV79 -> Cropland | D90: ='G-2 Habitat groups'!BB79 -> 0 | E90: ='G-2 Habitat groups'!BD79 -> 0 | F90: ='G-2 Habitat groups'!BE79 -> 0 | I90: Higher distinctiveness surplus units miunus Medium Distinctivenss Broad Habitat Defecit | J90: =IF(J40+J12+J89>0,J40+J12+J89,0) -> 0.5360366935
B91: ='G-2 Habitat groups'!AU80 -> Cropland - Arable field margins pollen & nectar | C91: ='G-2 Habitat groups'!AV80 -> Cropland | D91: ='G-2 Habitat groups'!BB80 -> 0 | E91: ='G-2 Habitat groups'!BD80 -> 0 | F91: ='G-2 Habitat groups'!BE80 -> 0 | I91: Cumulative surplus of units | J91: =J90+J88 -> 0.5360366935
B92: ='G-2 Habitat groups'!AU81 -> Cropland - Arable field margins tussocky | C92: ='G-2 Habitat groups'!AV81 -> Cropland | D92: ='G-2 Habitat groups'!BB81 -> 0 | E92: ='G-2 Habitat groups'!BD81 -> 0 | F92: ='G-2 Habitat groups'!BE81 -> 0
B93: ='G-2 Habitat groups'!AU82 -> Cropland - Cereal crops winter stubble | C93: ='G-2 Habitat groups'!AV82 -> Cropland | D93: ='G-2 Habitat groups'!BB82 -> 0 | E93: ='G-2 Habitat groups'!BD82 -> 0 | F93: ='G-2 Habitat groups'!BE82 -> 0
B94: ='G-2 Habitat groups'!AU83 -> Grassland - Other lowland acid grassland | C94: ='G-2 Habitat groups'!AV83 -> Grassland | D94: ='G-2 Habitat groups'!BB83 -> 0 | E94: ='G-2 Habitat groups'!BD83 -> 0 | F94: ='G-2 Habitat groups'!BE83 -> 0 | G94: =SUM(F94:F96) -> 0
B95: ='G-2 Habitat groups'!AU84 -> Grassland - Other neutral grassland | C95: ='G-2 Habitat groups'!AV84 -> Grassland | D95: ='G-2 Habitat groups'!BB84 -> 0 | E95: ='G-2 Habitat groups'!BD84 -> 0 | F95: ='G-2 Habitat groups'!BE84 -> 0
B96: ='G-2 Habitat groups'!AU85 -> Grassland - Upland acid grassland | C96: ='G-2 Habitat groups'!AV85 -> Grassland | D96: ='G-2 Habitat groups'!BB85 -> 0 | E96: ='G-2 Habitat groups'!BD85 -> 0 | F96: ='G-2 Habitat groups'!BE85 -> 0
B97: ='G-2 Habitat groups'!AU86 -> Heathland and shrub - Blackthorn scrub | C97: ='G-2 Habitat groups'!AV86 -> Heathland and shrub | D97: ='G-2 Habitat groups'!BB86 -> 0 | E97: ='G-2 Habitat groups'!BD86 -> 0 | F97: ='G-2 Habitat groups'!BE86 -> 0 | G97: =SUM(F97:F102) -> 0
B98: ='G-2 Habitat groups'!AU87 -> Heathland and shrub - Bramble scrub | C98: ='G-2 Habitat groups'!AV87 -> Heathland and shrub | D98: ='G-2 Habitat groups'!BB87 -> 0 | E98: ='G-2 Habitat groups'!BD87 -> 0 | F98: ='G-2 Habitat groups'!BE87 -> 0
B99: ='G-2 Habitat groups'!AU88 -> Heathland and shrub - Gorse scrub | C99: ='G-2 Habitat groups'!AV88 -> Heathland and shrub | D99: ='G-2 Habitat groups'!BB88 -> 0 | E99: ='G-2 Habitat groups'!BD88 -> 0 | F99: ='G-2 Habitat groups'!BE88 -> 0
B100: ='G-2 Habitat groups'!AU89 -> Heathland and shrub - Hawthorn scrub | C100: ='G-2 Habitat groups'!AV89 -> Heathland and shrub | D100: ='G-2 Habitat groups'!BB89 -> 0 | E100: ='G-2 Habitat groups'!BD89 -> 0 | F100: ='G-2 Habitat groups'!BE89 -> 0
B101: ='G-2 Habitat groups'!AU90 -> Heathland and shrub - Hazel scrub | C101: ='G-2 Habitat groups'!AV90 -> Heathland and shrub | D101: ='G-2 Habitat groups'!BB90 -> 0 | E101: ='G-2 Habitat groups'!BD90 -> 0 | F101: ='G-2 Habitat groups'!BE90 -> 0
B102: ='G-2 Habitat groups'!AU91 -> Heathland and shrub - Mixed scrub | C102: ='G-2 Habitat groups'!AV91 -> Heathland and shrub | D102: ='G-2 Habitat groups'!BB91 -> 0 | E102: ='G-2 Habitat groups'!BD91 -> 0 | F102: ='G-2 Habitat groups'!BE91 -> 0
B103: ='G-2 Habitat groups'!AU92 -> Lakes - Ponds (Non- Priority Habitat) | C103: ='G-2 Habitat groups'!AV92 -> Lakes | D103: ='G-2 Habitat groups'!BB92 -> 0 | E103: ='G-2 Habitat groups'!BD92 -> 0 | F103: ='G-2 Habitat groups'!BE92 -> 0 | G103: =SUM(F103:F104) -> 0
B104: ='G-2 Habitat groups'!AU93 -> Lakes - Reservoirs | C104: ='G-2 Habitat groups'!AV93 -> Lakes | D104: ='G-2 Habitat groups'!BB93 -> 0 | E104: ='G-2 Habitat groups'!BD93 -> 0 | F104: ='G-2 Habitat groups'!BE93 -> 0
B105: ='G-2 Habitat groups'!AU94 -> Sparsely vegetated land - Other inland rock and scree | C105: ='G-2 Habitat groups'!AV94 -> Sparsely vegetated land | D105: ='G-2 Habitat groups'!BB94 -> 0 | E105: ='G-2 Habitat groups'!BD94 -> 0 | F105: ='G-2 Habitat groups'!BE94 -> 0 | G105: =F105 -> 0
B106: ='G-2 Habitat groups'!AU95 -> Urban - Brown roof | C106: ='G-2 Habitat groups'!AV95 -> Urban | D106: ='G-2 Habitat groups'!BB95 -> 0 | E106: ='G-2 Habitat groups'!BD95 -> 0 | F106: ='G-2 Habitat groups'!BE95 -> 0 | G106: =SUM(F106:F108) -> 0
B107: ='G-2 Habitat groups'!AU96 -> Urban - Cemeteries and churchyards | C107: ='G-2 Habitat groups'!AV96 -> Urban | D107: ='G-2 Habitat groups'!BB96 -> 0 | E107: ='G-2 Habitat groups'!BD96 -> 0 | F107: ='G-2 Habitat groups'!BE96 -> 0
B108: ='G-2 Habitat groups'!AU97 -> Urban - Intensive green roof | C108: ='G-2 Habitat groups'!AV97 -> Urban | D108: ='G-2 Habitat groups'!BB97 -> 0 | E108: ='G-2 Habitat groups'!BD97 -> 0 | F108: ='G-2 Habitat groups'!BE97 -> 0
B109: ='G-2 Habitat groups'!AU98 -> Woodland and forest - Other Scot's Pine woodland | C109: ='G-2 Habitat groups'!AV98 -> Woodland and forest | D109: ='G-2 Habitat groups'!BB98 -> 0 | E109: ='G-2 Habitat groups'!BD98 -> 0 | F109: ='G-2 Habitat groups'!BE98 -> 0 | G109: =SUM(F109:F111) -> 0
B110: ='G-2 Habitat groups'!AU99 -> Woodland and forest - Other woodland; broadleaved | C110: ='G-2 Habitat groups'!AV99 -> Woodland and forest | D110: ='G-2 Habitat groups'!BB99 -> 0 | E110: ='G-2 Habitat groups'!BD99 -> 0 | F110: ='G-2 Habitat groups'!BE99 -> 0
B111: ='G-2 Habitat groups'!AU100 -> Woodland and forest - Other woodland; mixed | C111: ='G-2 Habitat groups'!AV100 -> Woodland and forest | D111: ='G-2 Habitat groups'!BB100 -> 0 | E111: ='G-2 Habitat groups'!BD100 -> 0 | F111: ='G-2 Habitat groups'!BE100 -> 0
B112: ='G-2 Habitat groups'!AU101 -> Intertidal sediment - Littoral coarse sediment | C112: ='G-2 Habitat groups'!AV101 -> Intertidal sediment | D112: ='G-2 Habitat groups'!BB101 -> 0 | E112: ='G-2 Habitat groups'!BD101 -> 0 | F112: ='G-2 Habitat groups'!BE101 -> 0 | G112: =SUM(F112:F114) -> 0
B113: ='G-2 Habitat groups'!AU102 -> Intertidal sediment - Littoral sand | C113: ='G-2 Habitat groups'!AV102 -> Intertidal sediment | D113: ='G-2 Habitat groups'!BB102 -> 0 | E113: ='G-2 Habitat groups'!BD102 -> 0 | F113: ='G-2 Habitat groups'!BE102 -> 0
B114: ='G-2 Habitat groups'!AU103 -> Intertidal Hard Structures - Artificial hard structures with Integrated Greening of Grey Infrastructure (IGGI) | C114: ='G-2 Habitat groups'!AV103 -> Intertidal | D114: ='G-2 Habitat groups'!BB103 -> 0 | E114: ='G-2 Habitat groups'!BD103 -> 0 | F114: ='G-2 Habitat groups'!BE103 -> 0
D115: =SUM(D89:D114) -> 0 | E115: =SUM(E89:E114) -> 0 | F115: =SUM(F89:F114) -> 0
B122: Low Distinctiveness
B123: Habitat group | C123: Group | D123: On site unit change | E123: Off Site Unit Change | F123: Project wide unit change | I123: Low Distinctiveness Summary
B124: ='G-2 Habitat groups'!AU111 -> Cropland - Cereal crops | C124: ='G-2 Habitat groups'!AV111 -> Cropland | D124: ='G-2 Habitat groups'!BB111 -> 0 | E124: ='G-2 Habitat groups'!BD111 -> 0 | F124: ='G-2 Habitat groups'!BE111 -> 0 | I124: Low Distinctiveness Net Change in Units | J124: =F160 -> -0.966
B125: ='G-2 Habitat groups'!AU112 -> Cropland - Cereal crops other | C125: ='G-2 Habitat groups'!AV112 -> Cropland | D125: ='G-2 Habitat groups'!BB112 -> 0 | E125: ='G-2 Habitat groups'!BD112 -> 0 | F125: ='G-2 Habitat groups'!BE112 -> 0 | I125: Cumulative surplus of units | J125: =J124+J91 -> -0.4299633065
B126: ='G-2 Habitat groups'!AU113 -> Cropland - Horticulture | C126: ='G-2 Habitat groups'!AV113 -> Cropland | D126: ='G-2 Habitat groups'!BB113 -> 0 | E126: ='G-2 Habitat groups'!BD113 -> 0 | F126: ='G-2 Habitat groups'!BE113 -> 0
B127: ='G-2 Habitat groups'!AU114 -> Cropland - Intensive orchards | C127: ='G-2 Habitat groups'!AV114 -> Cropland | D127: ='G-2 Habitat groups'!BB114 -> 0 | E127: ='G-2 Habitat groups'!BD114 -> 0 | F127: ='G-2 Habitat groups'!BE114 -> 0
B128: ='G-2 Habitat groups'!AU115 -> Cropland - Non-cereal crops | C128: ='G-2 Habitat groups'!AV115 -> Cropland | D128: ='G-2 Habitat groups'!BB115 -> 0 | E128: ='G-2 Habitat groups'!BD115 -> 0 | F128: ='G-2 Habitat groups'!BE115 -> 0
B129: ='G-2 Habitat groups'!AU116 -> Cropland - Temporary grass and clover leys | C129: ='G-2 Habitat groups'!AV116 -> Cropland | D129: ='G-2 Habitat groups'!BB116 -> 0 | E129: ='G-2 Habitat groups'!BD116 -> 0 | F129: ='G-2 Habitat groups'!BE116 -> 0
B130: ='G-2 Habitat groups'!AU117 -> Grassland - Modified grassland | C130: ='G-2 Habitat groups'!AV117 -> Grassland | D130: ='G-2 Habitat groups'!BB117 -> 0 | E130: ='G-2 Habitat groups'!BD117 -> 0 | F130: ='G-2 Habitat groups'!BE117 -> 0
B131: ='G-2 Habitat groups'!AU118 -> Grassland - Bracken | C131: ='G-2 Habitat groups'!AV118 -> Grassland | D131: ='G-2 Habitat groups'!BB118 -> 0 | E131: ='G-2 Habitat groups'!BD118 -> 0 | F131: ='G-2 Habitat groups'!BE118 -> 0
B132: ='G-2 Habitat groups'!AU119 -> Heathland and shrub - Rhododendron scrub | C132: ='G-2 Habitat groups'!AV119 -> Heathland and shrub | D132: ='G-2 Habitat groups'!BB119 -> 0 | E132: ='G-2 Habitat groups'!BD119 -> 0 | F132: ='G-2 Habitat groups'!BE119 -> 0
B133: ='G-2 Habitat groups'!AU120 -> Lakes - Ornamental lake or pond | C133: ='G-2 Habitat groups'!AV120 -> Lakes | D133: ='G-2 Habitat groups'!BB120 -> 0 | E133: ='G-2 Habitat groups'!BD120 -> -0.966 | F133: ='G-2 Habitat groups'!BE120 -> -0.966
B134: ='G-2 Habitat groups'!AU121 -> Sparsely vegetated land - Ruderal/Ephemeral | C134: ='G-2 Habitat groups'!AV121 -> Sparsely vegetated land | D134: ='G-2 Habitat groups'!BB121 -> 0 | E134: ='G-2 Habitat groups'!BD121 -> 0 | F134: ='G-2 Habitat groups'!BE121 -> 0
B135: ='G-2 Habitat groups'!AU122 -> Urban - Bioswale | C135: ='G-2 Habitat groups'!AV121 -> Sparsely vegetated land | D135: ='G-2 Habitat groups'!BB122 -> 0 | E135: ='G-2 Habitat groups'!BD122 -> 0 | F135: ='G-2 Habitat groups'!BE122 -> 0
B136: ='G-2 Habitat groups'!AU123 -> Urban - Allotments | C136: ='G-2 Habitat groups'!AV122 -> Urban | D136: ='G-2 Habitat groups'!BB123 -> 0 | E136: ='G-2 Habitat groups'!BD123 -> 0 | F136: ='G-2 Habitat groups'!BE123 -> 0
B137: ='G-2 Habitat groups'!AU124 -> Urban - Facade-bound green wall | C137: ='G-2 Habitat groups'!AV124 -> Urban | D137: ='G-2 Habitat groups'!BB124 -> 0 | E137: ='G-2 Habitat groups'!BD124 -> 0 | F137: ='G-2 Habitat groups'!BE124 -> 0
B138: ='G-2 Habitat groups'!AU125 -> Urban - Ground based green wall | C138: ='G-2 Habitat groups'!AV125 -> Urban | D138: ='G-2 Habitat groups'!BB125 -> 0 | E138: ='G-2 Habitat groups'!BD125 -> 0 | F138: ='G-2 Habitat groups'!BE125 -> 0
B139: ='G-2 Habitat groups'!AU126 -> Urban - Ground level planters | C139: ='G-2 Habitat groups'!AV126 -> Urban | D139: ='G-2 Habitat groups'!BB126 -> 0 | E139: ='G-2 Habitat groups'!BD126 -> 0 | F139: ='G-2 Habitat groups'!BE126 -> 0
B140: ='G-2 Habitat groups'!AU127 -> Urban - Extensive green roof | C140: ='G-2 Habitat groups'!AV127 -> Urban | D140: ='G-2 Habitat groups'!BB127 -> 0 | E140: ='G-2 Habitat groups'!BD127 -> 0 | F140: ='G-2 Habitat groups'!BE127 -> 0
B141: ='G-2 Habitat groups'!AU128 -> Urban - Introduced shrub | C141: ='G-2 Habitat groups'!AV128 -> Urban | D141: ='G-2 Habitat groups'!BB128 -> 0 | E141: ='G-2 Habitat groups'!BD128 -> 0 | F141: ='G-2 Habitat groups'!BE128 -> 0
B142: ='G-2 Habitat groups'!AU129 -> Urban - Rain garden | C142: ='G-2 Habitat groups'!AV129 -> Urban | D142: ='G-2 Habitat groups'!BB129 -> 0 | E142: ='G-2 Habitat groups'!BD129 -> 0 | F142: ='G-2 Habitat groups'!BE129 -> 0
B143: ='G-2 Habitat groups'!AU130 -> Urban - Sand pit quarry or open cast mine | C143: ='G-2 Habitat groups'!AV130 -> Urban | D143: ='G-2 Habitat groups'!BB130 -> 0 | E143: ='G-2 Habitat groups'!BD130 -> 0 | F143: ='G-2 Habitat groups'!BE130 -> 0
B144: ='G-2 Habitat groups'!AU131 -> Urban - Urban Tree | C144: ='G-2 Habitat groups'!AV131 -> Urban | D144: ='G-2 Habitat groups'!BB131 -> 0 | E144: ='G-2 Habitat groups'!BD131 -> 0 | F144: ='G-2 Habitat groups'!BE131 -> 0
B145: ='G-2 Habitat groups'!AU132 -> Urban - Sustainable urban drainage feature | C145: ='G-2 Habitat groups'!AV132 -> Urban | D145: ='G-2 Habitat groups'!BB132 -> 0 | E145: ='G-2 Habitat groups'!BD132 -> 0 | F145: ='G-2 Habitat groups'!BE132 -> 0
B146: ='G-2 Habitat groups'!AU133 -> Urban - Vacant/derelict land/ bareground | C146: ='G-2 Habitat groups'!AV133 -> Urban | D146: ='G-2 Habitat groups'!BB133 -> 0 | E146: ='G-2 Habitat groups'!BD133 -> 0 | F146: ='G-2 Habitat groups'!BE133 -> 0
B147: ='G-2 Habitat groups'!AU134 -> Urban - Vegetated garden | C147: ='G-2 Habitat groups'!AV134 -> Urban | D147: ='G-2 Habitat groups'!BB134 -> 0 | E147: ='G-2 Habitat groups'!BD134 -> 0 | F147: ='G-2 Habitat groups'!BE134 -> 0
B148: ='G-2 Habitat groups'!AU135 -> Woodland and forest - Other coniferous woodland | C148: ='G-2 Habitat groups'!AV135 -> Woodland and forest | D148: ='G-2 Habitat groups'!BB135 -> 0 | E148: ='G-2 Habitat groups'!BD135 -> 0 | F148: ='G-2 Habitat groups'!BE135 -> 0
B149: ='G-2 Habitat groups'!AU136 -> Coastal saltmarsh - Artificial saltmarshes and saline reedbeds | C149: ='G-2 Habitat groups'!AV136 -> Coastal saltmarsh | D149: ='G-2 Habitat groups'!BB136 -> 0 | E149: ='G-2 Habitat groups'!BD136 -> 0 | F149: ='G-2 Habitat groups'!BE136 -> 0
B150: ='G-2 Habitat groups'!AU137 -> Intertidal sediment - Artificial littoral coarse sediment | C150: ='G-2 Habitat groups'!AV137 -> Intertidal sediment | D150: ='G-2 Habitat groups'!BB137 -> 0 | E150: ='G-2 Habitat groups'!BD137 -> 0 | F150: ='G-2 Habitat groups'!BE137 -> 0
B151: ='G-2 Habitat groups'!AU138 -> Intertidal sediment - Artificial littoral mud | C151: ='G-2 Habitat groups'!AV138 -> Intertidal sediment | D151: ='G-2 Habitat groups'!BB138 -> 0 | E151: ='G-2 Habitat groups'!BD138 -> 0 | F151: ='G-2 Habitat groups'!BE138 -> 0
B152: ='G-2 Habitat groups'!AU139 -> Intertidal sediment - Artificial littoral sand | C152: ='G-2 Habitat groups'!AV139 -> Intertidal sediment | D152: ='G-2 Habitat groups'!BB139 -> 0 | E152: ='G-2 Habitat groups'!BD139 -> 0 | F152: ='G-2 Habitat groups'!BE139 -> 0
B153: ='G-2 Habitat groups'!AU140 -> Intertidal sediment - Artificial littoral muddy sand | C153: ='G-2 Habitat groups'!AV140 -> Intertidal sediment | D153: ='G-2 Habitat groups'!BB140 -> 0 | E153: ='G-2 Habitat groups'!BD140 -> 0 | F153: ='G-2 Habitat groups'!BE140 -> 0
B154: ='G-2 Habitat groups'!AU141 -> Intertidal sediment - Artificial littoral mixed sediments | C154: ='G-2 Habitat groups'!AV141 -> Intertidal sediment | D154: ='G-2 Habitat groups'!BB141 -> 0 | E154: ='G-2 Habitat groups'!BD141 -> 0 | F154: ='G-2 Habitat groups'!BE141 -> 0
B155: ='G-2 Habitat groups'!AU142 -> Intertidal sediment - Artificial littoral seagrass | C155: ='G-2 Habitat groups'!AV142 -> Intertidal sediment | D155: ='G-2 Habitat groups'!BB142 -> 0 | E155: ='G-2 Habitat groups'!BD142 -> 0 | F155: ='G-2 Habitat groups'!BE142 -> 0
B156: ='G-2 Habitat groups'!AU143 -> Intertidal sediment - Artificial littoral biogenic reefs | C156: ='G-2 Habitat groups'!AV143 -> Intertidal sediment | D156: ='G-2 Habitat groups'!BB143 -> 0 | E156: ='G-2 Habitat groups'!BD143 -> 0 | F156: ='G-2 Habitat groups'!BE143 -> 0
B157: ='G-2 Habitat groups'!AU144 -> Intertidal Hard Structures - Artificial hard structures | C157: ='G-2 Habitat groups'!AV144 -> Intertidal | D157: ='G-2 Habitat groups'!BB144 -> 0 | E157: ='G-2 Habitat groups'!BD144 -> 0 | F157: ='G-2 Habitat groups'!BE144 -> 0
B158: ='G-2 Habitat groups'!AU145 -> Intertidal Hard Structures - Artificial features of hard structures | C158: ='G-2 Habitat groups'!AV145 -> Intertidal | D158: ='G-2 Habitat groups'!BB145 -> 0 | E158: ='G-2 Habitat groups'!BD145 -> 0 | F158: ='G-2 Habitat groups'!BE145 -> 0
B159: ='G-2 Habitat groups'!AU146 -> Heathland and shrub - Sea buckthorn scrub (other) | C159: ='G-2 Habitat groups'!AV146 -> Heathland and shrub | D159: ='G-2 Habitat groups'!BB146 -> 0 | E159: ='G-2 Habitat groups'!BD146 -> 0 | F159: ='G-2 Habitat groups'!BE146 -> 0
D160: =SUM(D124:D159) -> 0 | F160: =SUM(F124:F159) -> -0.966

Sheet A-1 Site Habitat Baseline
D2: =IF(Start!$F$12="","",Start!$F$12) -> 
D3: =MID(CELL("filename",C1),FIND("]",CELL("filename",C1))+1,256) -> A-1 Site Habitat Baseline | AC3: HIDDEN - NOT SHOWN BY BUTTON | AD3: HIDDEN - NOT SHOWN BY BUTTON | AE3: HIDDEN - NOT SHOWN BY BUTTON | AF3: HIDDEN - NOT SHOWN BY BUTTON | AG3: HIDDEN - NOT SHOWN BY BUTTON | AH3: HIDDEN - NOT SHOWN BY BUTTON | AI3: HIDDEN - NOT SHOWN BY BUTTON | AJ3: HIDDEN - NOT SHOWN BY BUTTON | AK3: HIDDEN - NOT SHOWN BY BUTTON | AL3: HIDDEN - NOT SHOWN BY BUTTON | AM3: HIDDEN - NOT SHOWN BY BUTTON | AN3: HIDDEN - NOT SHOWN BY BUTTON
AF4: Hide | AG4: Hide | AH4: Hide | AI4: Hide | AJ4: Hide | AK4: Hide | AL4: Hide | AM4: Hide | AN4: Hide
E9: Habitats and areas | I9: Distinctiveness | K9: Condition | M9: Strategic significance | P9: Suggested action to address habitat losses | Q9: Ecological baseline | S9: Retention category biodiversity value | Y9: Bespoke compensation agreed for unacceptable losses | Z9: Comments | AC9: Hide | AD9: Hide | AF9: retention cat checks | AK9: list of lines for enhanced and succession | AQ9: Bespoke Compensation agreed?
B10: Condition Group | D10: Ref | E10: Broad habitat | F10: Habitat type | G10: Habitat type | H10: Area (hectares) | I10: Distinctiveness | J10: Score | K10: Condition | L10: Score | M10: Strategic significance | N10: Strategic significance | O10: Strategic Significance multiplier | Q10: Total habitat units | S10: Area retained | T10: Area enhanced | U10: Baseline units retained | V10: Baseline units enhanced | W10: Area lost | X10: Units lost | Z10: Assessor comments | AA10: Reviewer comments | AC10: Area of Unacceptable Losses | AD10: Units Unacceptable Losses | AF10: Retained | AG10: Enhanced | AH10: Succession | AI10: line number | AK10: Retained | AL10: Enhanced | AM10: Succession
A11: =IFERROR(INDEX('G-1 All Habitats'!$AG$3:$AG$15,MATCH(E11,'G-1 All Habitats'!$AF$3:$AF$15,0)),"") -> Wetland | B11: =IFERROR(INDEX('G-8 Condition Look up'!$I$4:$I$131,MATCH(G11,'G-8 Condition Look up'!$A$4:$A$131,0)),"") -> Cond4 | D11: 1 | E11: Wetland | F11: Reedbeds | G11: =IFERROR(INDEX('G-1 All Habitats'!$B$3:$B$130,MATCH(F11,'G-1 All Habitats'!$A$3:$A$130,0)),"") -> Wetland - Reedbeds | H11: 0.032 | I11: =IF(G11="","",VLOOKUP(G11,'G-1 All Habitats'!$B$2:$M$130,10,FALSE)) -> High | J11: =IFERROR(VLOOKUP(I11,'G-1 All Habitats'!$V$3:$W$7,2,FALSE),"") -> 6 | K11: Good | L11: =IFERROR(INDEX('G-8 Condition Look up'!$A$3:$H$131,MATCH(G11,'G-8 Condition Look up'!$A$3:$A$131,0),MATCH(K11,'G-8 Condition Look up'!$A$3:$H$3,0)),"") -> 3 | M11: Within area formally identified in local strategy | N11: =IF(M11="","",IF(VLOOKUP(M11,'G-3 Multipliers'!$L$3:$N$6,2,FALSE)=0,"Spatial Data Missing",VLOOKUP(M11,'G-3 Multipliers'!$L$3:$N$6,2,FALSE))) -> High strategic significance | O11: =IF(M11="","",IF(VLOOKUP(M11,'G-3 Multipliers'!$L$3:$N$6,3,FALSE)=0,"Spatial Data Missing",VLOOKUP(M11,'G-3 Multipliers'!$L$3:$N$6,3,FALSE))) -> 1.15 | P11: =IFERROR(VLOOKUP(G11,'G-1 All Habitats'!$B$2:$M$130,12,FALSE),"") -> Same habitat required | Q11: =IFERROR(IF(P11="","",IF(AND(P11='G-1 All Habitats'!$X$3,T11>0),U11+V11,IF(AND(P11='G-1 All Habitats'!$X$3,S11>0),U11+V11,IF(AND(P11='G-1 All Habitats'!$X$3,AC11>0),"Any Loss Unacceptable",IF(AND(P11='G-1 All Habitats'!$X$3,W11>0),"Any Loss Unacceptable",H11*J11*L11*O11))))),"Check Data") -> 0.6624 | U11: =IFERROR(S11*J11*L11*O11,"") -> 0 | V11: =IFERROR(T11*J11*L11*O11,"") -> 0 | W11: =IF(E11="","",IF(H11<S11+T11,"Error in Areas",IF(P11<>'G-1 All Habitats'!$X$3,H11-S11-T11,IF(AND(P11='G-1 All Habitats'!$X$3,Y11="Yes"),"Unacceptable Loss",IF(AND(P11='G-1 All Habitats'!$X$3,Y11="No"),AC11,IF(AND(P11='G-1 All Habitats'!$X$3,Y11=""),AC11,IF(AND(P11='G-1 All Habitats'!$X$3,AC11="None",AC11),IF(AND(P11='G-1 All Habitats'!$X$3,AC11>0),H11-S11-T11)))))))) -> 0.032 | X11: =IFERROR(IF(H11="","",IF(H11-S11-T11=0<0,"Error in Areas",IF(S11+T11>H11,"Error in Areas",IF(AND(P11='G-1 All Habitats'!$X$3,Y11="Yes"),"Alternative Compensation",IF(W11=0,0,IF(P11='G-1 All Habitats'!$X$3,"Unacceptable Loss",Q11-U11-V11)))))),"Check Data") -> 0.6624 | AC11: =IF(P11="","",IF(P11='G-1 All Habitats'!$X$3,H11-S11-T11,"None")) -> None | AD11: =IFERROR(AC11*J11*L11*#REF!*O11,IF(P11="","","None")) -> None | AF11: =IF(G11="","",IF(S11>0,TRUE,FALSE)) -> FALSE | AG11: =IF(H11="","",IF(T11>0,TRUE,FALSE)) -> FALSE | AH11: =IF(I11="","",IF(#REF!>0,TRUE,FALSE)) ->  | AI11: 1 | AK11: =IFERROR(INDEX($AI$11:$AI$259, MATCH(0, IF(TRUE=$AF$11:$AF$259, COUNTIF($AK$10:$AK10, $AI$11:$AI$259), ""), 0)),"") ->  | AL11: =IFERROR(INDEX($AI$11:$AI$259, MATCH(0, IF(TRUE=$AG$11:$AG$259, COUNTIF($AL$10:$AL10, $AI$11:$AI$259), ""), 0)),"") ->  | AM11: =IFERROR(INDEX($AI$11:$AI$259, MATCH(0, IF(TRUE=$AH$11:$AH$259, COUNTIF($AM$10:$AM10, $AI$11:$AI$259), ""), 0)),"") ->  | AQ11: =IF(X11="Unacceptable Loss",1,0) -> 0
A12: =IFERROR(INDEX('G-1 All Habitats'!$AG$3:$AG$15,MATCH(E12,'G-1 All Habitats'!$AF$3:$AF$15,0)),"") -> Wetland | B12: =IFERROR(INDEX('G-8 Condition Look up'!$I$4:$I$131,MATCH(G12,'G-8 Condition Look up'!$A$4:$A$131,0)),"") -> Cond4 | D12: 2 | E12: Wetland | F12: Reedbeds | G12: =IFERROR(INDEX('G-1 All Habitats'!$B$3:$B$130,MATCH(F12,'G-1 All Habitats'!$A$3:$A$130,0)),"") -> Wetland - Reedbeds | H12: 0.032 | I12: =IF(G12="","",VLOOKUP(G12,'G-1 All Habitats'!$B$2:$M$130,10,FALSE)) -> High | J12: =IFERROR(VLOOKUP(I12,'G-1 All Habitats'!$V$3:$W$7,2,FALSE),"") -> 6 | K12: Poor | L12: =IFERROR(INDEX('G-8 Condition Look up'!$A$3:$H$131,MATCH(G12,'G-8 Condition Look up'!$A$3:$A$131,0),MATCH(K12,'G-8 Condition Look up'!$A$3:$H$3,0)),"") -> 1 | M12: Within area formally identified in local strategy | N12: =IF(M12="","",IF(VLOOKUP(M12,'G-3 Multipliers'!$L$3:$N$6,2,FALSE)=0,"Spatial Data Missing",VLOOKUP(M12,'G-3 Multipliers'!$L$3:$N$6,2,FALSE))) -> High strategic significance | O12: =IF(M12="","",IF(VLOOKUP(M12,'G-3 Multipliers'!$L$3:$N$6,3,FALSE)=0,"Spatial Data Missing",VLOOKUP(M12,'G-3 Multipliers'!$L$3:$N$6,3,FALSE))) -> 1.15 | P12: =IFERROR(VLOOKUP(G12,'G-1 All Habitats'!$B$2:$M$130,12,FALSE),"") -> Same habitat required | Q12: =IFERROR(IF(P12="","",IF(AND(P12='G-1 All Habitats'!$X$3,T12>0),U12+V12,IF(AND(P12='G-1 All Habitats'!$X$3,S12>0),U12+V12,IF(AND(P12='G-1 All Habitats'!$X$3,AC12>0),"Any Loss Unacceptable",IF(AND(P12='G-1 All Habitats'!$X$3,W12>0),"Any Loss Unacceptable",H12*J12*L12*O12))))),"Check Data") -> 0.2208 | U12: =IFERROR(S12*J12*L12*O12,"") -> 0 | V12: =IFERROR(T12*J12*L12*O12,"") -> 0 | W12: =IF(E12="","",IF(H12<S12+T12,"Error in Areas",IF(P12<>'G-1 All Habitats'!$X$3,H12-S12-T12,IF(AND(P12='G-1 All Habitats'!$X$3,Y12="Yes"),"Unacceptable Loss",IF(AND(P12='G-1 All Habitats'!$X$3,Y12="No"),AC12,IF(AND(P12='G-1 All Habitats'!$X$3,Y12=""),AC12,IF(AND(P12='G-1 All Habitats'!$X$3,AC12="None",AC12),IF(AND(P12='G-1 All Habitats'!$X$3,AC12>0),H12-S12-T12)))))))) -> 0.032 | X12: =IFERROR(IF(H12="","",IF(H12-S12-T12=0<0,"Error in Areas",IF(S12+T12>H12,"Error in Areas",IF(AND(P12='G-1 All Habitats'!$X$3,Y12="Yes"),"Alternative Compensation",IF(W12=0,0,IF(P12='G-1 All Habitats'!$X$3,"Unacceptable Loss",Q12-U12-V12)))))),"Check Data") -> 0.2208 | AC12: =IF(P12="","",IF(P12='G-1 All Habitats'!$X$3,H12-S12-T12,"None")) -> None | AD12: =IFERROR(AC12*J12*L12*#REF!*O12,IF(P12="","","None")) -> None | AF12: FALSE | AG12: FALSE | AH12: =IF(I12="","",IF(#REF!>0,TRUE,FALSE)) ->  | AI12: 2 | AK12: =IFERROR(INDEX($AI$11:$AI$259, MATCH(0, IF(TRUE=$AF$11:$AF$259, COUNTIF($AK$10:$AK11, $AI$11:$AI$259), ""), 0)),"") ->  | AL12: =IFERROR(INDEX($AI$11:$AI$259, MATCH(0, IF(TRUE=$AG$11:$AG$259, COUNTIF($AL$10:$AL11, $AI$11:$AI$259), ""), 0)),"") ->  | AM12: =IFERROR(INDEX($AI$11:$AI$259, MATCH(0, IF(TRUE=$AH$11:$AH$259, COUNTIF($AM$10:$AM11, $AI$11:$AI$259), ""), 0)),"") ->  | AQ12: =IF(X12="Unacceptable Loss",1,0) -> 0
A13: =IFERROR(INDEX('G-1 All Habitats'!$AG$3:$AG$15,MATCH(E13,'G-1 All Habitats'!$AF$3:$AF$15,0)),"") ->  | B13: =IFERROR(INDEX('G-8 Condition Look up'!$I$4:$I$131,MATCH(G13,'G-8 Condition Look up'!$A$4:$A$131,0)),"") ->  | D13: 3 | G13: =IFERROR(INDEX('G-1 All Habitats'!$B$3:$B$130,MATCH(F13,'G-1 All Habitats'!$A$3:$A$130,0)),"") ->  | I13: =IF(G13="","",VLOOKUP(G13,'G-1 All Habitats'!$B$2:$M$130,10,FALSE)) ->  | J13: =IFERROR(VLOOKUP(I13,'G-1 All Habitats'!$V$3:$W$7,2,FALSE),"") ->  | L13: =IFERROR(INDEX('G-8 Condition Look up'!$A$3:$H$131,MATCH(G13,'G-8 Condition Look up'!$A$3:$A$131,0),MATCH(K13,'G-8 Condition Look up'!$A$3:$H$3,0)),"") ->  | N13: =IF(M13="","",IF(VLOOKUP(M13,'G-3 Multipliers'!$L$3:$N$6,2,FALSE)=0,"Spatial Data Missing",VLOOKUP(M13,'G-3 Multipliers'!$L$3:$N$6,2,FALSE))) ->  | O13: =IF(M13="","",IF(VLOOKUP(M13,'G-3 Multipliers'!$L$3:$N$6,3,FALSE)=0,"Spatial Data Missing",VLOOKUP(M13,'G-3 Multipliers'!$L$3:$N$6,3,FALSE))) ->  | P13: =IFERROR(VLOOKUP(G13,'G-1 All Habitats'!$B$2:$M$130,12,FALSE),"") ->  | Q13: =IFERROR(IF(P13="","",IF(AND(P13='G-1 All Habitats'!$X$3,T13>0),U13+V13,IF(AND(P13='G-1 All Habitats'!$X$3,S13>0),U13+V13,IF(AND(P13='G-1 All Habitats'!$X$3,AC13>0),"Any Loss Unacceptable",IF(AND(P13='G-1 All Habitats'!$X$3,W13>0),"Any Loss Unacceptable",H13*J13*L13*O13))))),"Check Data") ->  | U13: =IFERROR(S13*J13*L13*O13,"") ->  | V13: =IFERROR(T13*J13*L13*O13,"") ->  | W13: =IF(E13="","",IF(H13<S13+T13,"Error in Areas",IF(P13<>'G-1 All Habitats'!$X$3,H13-S13-T13,IF(AND(P13='G-1 All Habitats'!$X$3,Y13="Yes"),"Unacceptable Loss",IF(AND(P13='G-1 All Habitats'!$X$3,Y13="No"),AC13,IF(AND(P13='G-1 All Habitats'!$X$3,Y13=""),AC13,IF(AND(P13='G-1 All Habitats'!$X$3,AC13="None",AC13),IF(AND(P13='G-1 All Habitats'!$X$3,AC13>0),H13-S13-T13)))))))) ->  | X13: =IFERROR(IF(H13="","",IF(H13-S13-T13=0<0,"Error in Areas",IF(S13+T13>H13,"Error in Areas",IF(AND(P13='G-1 All Habitats'!$X$3,Y13="Yes"),"Alternative Compensation",IF(W13=0,0,IF(P13='G-1 All Habitats'!$X$3,"Unacceptable Loss",Q13-U13-V13)))))),"Check Data") ->  | AC13: =IF(P13="","",IF(P13='G-1 All Habitats'!$X$3,H13-S13-T13,"None")) ->  | AD13: =IFERROR(AC13*J13*L13*#REF!*O13,IF(P13="","","None")) ->  | AH13: =IF(I13="","",IF(#REF!>0,TRUE,FALSE)) ->  | AI13: 3 | AK13: =IFERROR(INDEX($AI$11:$AI$259, MATCH(0, IF(TRUE=$AF$11:$AF$259, COUNTIF($AK$10:$AK12, $AI$11:$AI$259), ""), 0)),"") ->  | AL13: =IFERROR(INDEX($AI$11:$AI$259, MATCH(0, IF(TRUE=$AG$11:$AG$259, COUNTIF($AL$10:$AL12, $AI$11:$AI$259), ""), 0)),"") ->  | AM13: =IFERROR(INDEX($AI$11:$AI$259, MATCH(0, IF(TRUE=$AH$11:$AH$259, COUNTIF($AM$10:$AM12, $AI$11:$AI$259), ""), 0)),"") ->  | AQ13: 0
A14: =IFERROR(INDEX('G-1 All Habitats'!$AG$3:$AG$15,MATCH(E14,'G-1 All Habitats'!$AF$3:$AF$15,0)),"") ->  | B14: =IFERROR(INDEX('G-8 Condition Look up'!$I$4:$I$131,MATCH(G14,'G-8 Condition Look up'!$A$4:$A$131,0)),"") ->  | D14: 4 | G14: =IFERROR(INDEX('G-1 All Habitats'!$B$3:$B$130,MATCH(F14,'G-1 All Habitats'!$A$3:$A$130,0)),"") ->  | I14: =IF(G14="","",VLOOKUP(G14,'G-1 All Habitats'!$B$2:$M$130,10,FALSE)) ->  | J14: =IFERROR(VLOOKUP(I14,'G-1 All Habitats'!$V$3:$W$7,2,FALSE),"") ->  | L14: =IFERROR(INDEX('G-8 Condition Look up'!$A$3:$H$131,MATCH(G14,'G-8 Condition Look up'!$A$3:$A$131,0),MATCH(K14,'G-8 Condition Look up'!$A$3:$H$3,0)),"") ->  | N14: =IF(M14="","",IF(VLOOKUP(M14,'G-3 Multipliers'!$L$3:$N$6,2,FALSE)=0,"Spatial Data Missing",VLOOKUP(M14,'G-3 Multipliers'!$L$3:$N$6,2,FALSE))) ->  | O14: =IF(M14="","",IF(VLOOKUP(M14,'G-3 Multipliers'!$L$3:$N$6,3,FALSE)=0,"Spatial Data Missing",VLOOKUP(M14,'G-3 Multipliers'!$L$3:$N$6,3,FALSE))) ->  | P14: =IFERROR(VLOOKUP(G14,'G-1 All Habitats'!$B$2:$M$130,12,FALSE),"") ->  | Q14: =IFERROR(IF(P14="","",IF(AND(P14='G-1 All Habitats'!$X$3,T14>0),U14+V14,IF(AND(P14='G-1 All Habitats'!$X$3,S14>0),U14+V14,IF(AND(P14='G-1 All Habitats'!$X$3,AC14>0),"Any Loss Unacceptable",IF(AND(P14='G-1 All Habitats'!$X$3,W14>0),"Any Loss Unacceptable",H14*J14*L14*O14))))),"Check Data") ->  | W14: =IF(E14="","",IF(H14<S14+T14,"Error in Areas",IF(P14<>'G-1 All Habitats'!$X$3,H14-S14-T14,IF(AND(P14='G-1 All Habitats'!$X$3,Y14="Yes"),"Unacceptable Loss",IF(AND(P14='G-1 All Habitats'!$X$3,Y14="No"),AC14,IF(AND(P14='G-1 All Habitats'!$X$3,Y14=""),AC14,IF(AND(P14='G-1 All Habitats'!$X$3,AC14="None",AC14),IF(AND(P14='G-1 All Habitats'!$X$3,AC14>0),H14-S14-T14)))))))) ->  | X14: =IFERROR(IF(H14="","",IF(H14-S14-T14=0<0,"Error in Areas",IF(S14+T14>H14,"Error in Areas",IF(AND(P14='G-1 All Habitats'!$X$3,Y14="Yes"),"Alternative Compensation",IF(W14=0,0,IF(P14='G-1 All Habitats'!$X$3,"Unacceptable Loss",Q14-U14-V14)))))),"Check Data") ->  | AC14: =IF(P14="","",IF(P14='G-1 All Habitats'!$X$3,H14-S14-T14,"None")) ->  | AD14: =IFERROR(AC14*J14*L14*#REF!*O14,IF(P14="","","None")) ->  | AH14: =IF(I14="","",IF(#REF!>0,TRUE,FALSE)) ->  | AI14: 4 | AK14: =IFERROR(INDEX($AI$11:$AI$259, MATCH(0, IF(TRUE=$AF$11:$AF$259, COUNTIF($AK$10:$AK13, $AI$11:$AI$259), ""), 0)),"") ->  | AL14: =IFERROR(INDEX($AI$11:$AI$259, MATCH(0, IF(TRUE=$AG$11:$AG$259, COUNTIF($AL$10:$AL13, $AI$11:$AI$259), ""), 0)),"") ->  | AM14: =IFERROR(INDEX($AI$11:$AI$259, MATCH(0, IF(TRUE=$AH$11:$AH$259, COUNTIF($AM$10:$AM13, $AI$11:$AI$259), ""), 0)),"") ->  | AQ14: 0
A15: =IFERROR(INDEX('G-1 All Habitats'!$AG$3:$AG$15,MATCH(E15,'G-1 All Habitats'!$AF$3:$AF$15,0)),"") ->  | B15: =IFERROR(INDEX('G-8 Condition Look up'!$I$4:$I$131,MATCH(G15,'G-8 Condition Look up'!$A$4:$A$131,0)),"") ->  | D15: 5 | G15: =IFERROR(INDEX('G-1 All Habitats'!$B$3:$B$130,MATCH(F15,'G-1 All Habitats'!$A$3:$A$130,0)),"") ->  | I15: =IF(G15="","",VLOOKUP(G15,'G-1 All Habitats'!$B$2:$M$130,10,FALSE)) ->  | J15: =IFERROR(VLOOKUP(I15,'G-1 All Habitats'!$V$3:$W$7,2,FALSE),"") ->  | L15: =IFERROR(INDEX('G-8 Condition Look up'!$A$3:$H$131,MATCH(G15,'G-8 Condition Look up'!$A$3:$A$131,0),MATCH(K15,'G-8 Condition Look up'!$A$3:$H$3,0)),"") ->  | N15: =IF(M15="","",IF(VLOOKUP(M15,'G-3 Multipliers'!$L$3:$N$6,2,FALSE)=0,"Spatial Data Missing",VLOOKUP(M15,'G-3 Multipliers'!$L$3:$N$6,2,FALSE))) ->  | O15: =IF(M15="","",IF(VLOOKUP(M15,'G-3 Multipliers'!$L$3:$N$6,3,FALSE)=0,"Spatial Data Missing",VLOOKUP(M15,'G-3 Multipliers'!$L$3:$N$6,3,FALSE))) ->  | P15: =IFERROR(VLOOKUP(G15,'G-1 All Habitats'!$B$2:$M$130,12,FALSE),"") ->  | Q15: =IFERROR(IF(P15="","",IF(AND(P15='G-1 All Habitats'!$X$3,T15>0),U15+V15,IF(AND(P15='G-1 All Habitats'!$X$3,S15>0),U15+V15,IF(AND(P15='G-1 All Habitats'!$X$3,AC15>0),"Any Loss Unacceptable",IF(AND(P15='G-1 All Habitats'!$X$3,W15>0),"Any Loss Unacceptable",H15*J15*L15*O15))))),"Check Data") ->  | W15: =IF(E15="","",IF(H15<S15+T15,"Error in Areas",IF(P15<>'G-1 All Habitats'!$X$3,H15-S15-T15,IF(AND(P15='G-1 All Habitats'!$X$3,Y15="Yes"),"Unacceptable Loss",IF(AND(P15='G-1 All Habitats'!$X$3,Y15="No"),AC15,IF(AND(P15='G-1 All Habitats'!$X$3,Y15=""),AC15,IF(AND(P15='G-1 All Habitats'!$X$3,AC15="None",AC15),IF(AND(P15='G-1 All Habitats'!$X$3,AC15>0),H15-S15-T15)))))))) ->  | X15: =IFERROR(IF(H15="","",IF(H15-S15-T15=0<0,"Error in Areas",IF(S15+T15>H15,"Error in Areas",IF(AND(P15='G-1 All Habitats'!$X$3,Y15="Yes"),"Alternative Compensation",IF(W15=0,0,IF(P15='G-1 All Habitats'!$X$3,"Unacceptable Loss",Q15-U15-V15)))))),"Check Data") ->  | AC15: =IF(P15="","",IF(P15='G-1 All Habitats'!$X$3,H15-S15-T15,"None")) ->  | AD15: =IFERROR(AC15*J15*L15*#REF!*O15,IF(P15="","","None")) ->  | AH15: =IF(I15="","",IF(#REF!>0,TRUE,FALSE)) ->  | AI15: 5 | AK15: =IFERROR(INDEX($AI$11:$AI$259, MATCH(0, IF(TRUE=$AF$11:$AF$259, COUNTIF($AK$10:$AK14, $AI$11:$AI$259), ""), 0)),"") ->  | AL15: =IFERROR(INDEX($AI$11:$AI$259, MATCH(0, IF(TRUE=$AG$11:$AG$259, COUNTIF($AL$10:$AL14, $AI$11:$AI$259), ""), 0)),"") ->  | AM15: =IFERROR(INDEX($AI$11:$AI$259, MATCH(0, IF(TRUE=$AH$11:$AH$259, COUNTIF($AM$10:$AM14, $AI$11:$AI$259), ""), 0)),"") ->  | AQ15: 0
A16: =IFERROR(INDEX('G-1 All Habitats'!$AG$3:$AG$15,MATCH(E16,'G-1 All Habitats'!$AF$3:$AF$15,0)),"") ->  | B16: =IFERROR(INDEX('G-8 Condition Look up'!$I$4:$I$131,MATCH(G16,'G-8 Condition Look up'!$A$4:$A$131,0)),"") ->  | D16: 6 | G16: =IFERROR(INDEX('G-1 All Habitats'!$B$3:$B$130,MATCH(F16,'G-1 All Habitats'!$A$3:$A$130,0)),"") ->  | I16: =IF(G16="","",VLOOKUP(G16,'G-1 All Habitats'!$B$2:$M$130,10,FALSE)) ->  | J16: =IFERROR(VLOOKUP(I16,'G-1 All Habitats'!$V$3:$W$7,2,FALSE),"") ->  | L16: =IFERROR(INDEX('G-8 Condition Look up'!$A$3:$H$131,MATCH(G16,'G-8 Condition Look up'!$A$3:$A$131,0),MATCH(K16,'G-8 Condition Look up'!$A$3:$H$3,0)),"") ->  | N16: =IF(M16="","",IF(VLOOKUP(M16,'G-3 Multipliers'!$L$3:$N$6,2,FALSE)=0,"Spatial Data Missing",VLOOKUP(M16,'G-3 Multipliers'!$L$3:$N$6,2,FALSE))) ->  | O16: =IF(M16="","",IF(VLOOKUP(M16,'G-3 Multipliers'!$L$3:$N$6,3,FALSE)=0,"Spatial Data Missing",VLOOKUP(M16,'G-3 Multipliers'!$L$3:$N$6,3,FALSE))) ->  | P16: =IFERROR(VLOOKUP(G16,'G-1 All Habitats'!$B$2:$M$130,12,FALSE),"") ->  | Q16: =IFERROR(IF(P16="","",IF(AND(P16='G-1 All Habitats'!$X$3,T16>0),U16+V16,IF(AND(P16='G-1 All Habitats'!$X$3,S16>0),U16+V16,IF(AND(P16='G-1 All Habitats'!$X$3,AC16>0),"Any Loss Unacceptable",IF(AND(P16='G-1 All Habitats'!$X$3,W16>0),"Any Loss Unacceptable",H16*J16*L16*O16))))),"Check Data") ->  | W16: =IF(E16="","",IF(H16<S16+T16,"Error in Areas",IF(P16<>'G-1 All Habitats'!$X$3,H16-S16-T16,IF(AND(P16='G-1 All Habitats'!$X$3,Y16="Yes"),"Unacceptable Loss",IF(AND(P16='G-1 All Habitats'!$X$3,Y16="No"),AC16,IF(AND(P16='G-1 All Habitats'!$X$3,Y16=""),AC16,IF(AND(P16='G-1 All Habitats'!$X$3,AC16="None",AC16),IF(AND(P16='G-1 All Habitats'!$X$3,AC16>0),H16-S16-T16)))))))) ->  | X16: =IFERROR(IF(H16="","",IF(H16-S16-T16=0<0,"Error in Areas",IF(S16+T16>H16,"Error in Areas",IF(AND(P16='G-1 All Habitats'!$X$3,Y16="Yes"),"Alternative Compensation",IF(W16=0,0,IF(P16='G-1 All Habitats'!$X$3,"Unacceptable Loss",Q16-U16-V16)))))),"Check Data") ->  | AC16: =IF(P16="","",IF(P16='G-1 All Habitats'!$X$3,H16-S16-T16,"None")) ->  | AD16: =IFERROR(AC16*J16*L16*#REF!*O16,IF(P16="","","None")) ->  | AH16: =IF(I16="","",IF(#REF!>0,TRUE,FALSE)) ->  | AI16: 6 | AK16: =IFERROR(INDEX($AI$11:$AI$259, MATCH(0, IF(TRUE=$AF$11:$AF$259, COUNTIF($AK$10:$AK15, $AI$11:$AI$259), ""), 0)),"") ->  | AL16: =IFERROR(INDEX($AI$11:$AI$259, MATCH(0, IF(TRUE=$AG$11:$AG$259, COUNTIF($AL$10:$AL15, $AI$11:$AI$259), ""), 0)),"") ->  | AM16: =IFERROR(INDEX($AI$11:$AI$259, MATCH(0, IF(TRUE=$AH$11:$AH$259, COUNTIF($AM$10:$AM15, $AI$11:$AI$259), ""), 0)),"") ->  | AQ16: 0
A17: =IFERROR(INDEX('G-1 All Habitats'!$AG$3:$AG$15,MATCH(E17,'G-1 All Habitats'!$AF$3:$AF$15,0)),"") ->  | B17: =IFERROR(INDEX('G-8 Condition Look up'!$I$4:$I$131,MATCH(G17,'G-8 Condition Look up'!$A$4:$A$131,0)),"") ->  | D17: 7 | G17: =IFERROR(INDEX('G-1 All Habitats'!$B$3:$B$130,MATCH(F17,'G-1 All Habitats'!$A$3:$A$130,0)),"") ->  | I17: =IF(G17="","",VLOOKUP(G17,'G-1 All Habitats'!$B$2:$M$130,10,FALSE)) ->  | J17: =IFERROR(VLOOKUP(I17,'G-1 All Habitats'!$V$3:$W$7,2,FALSE),"") ->  | L17: =IFERROR(INDEX('G-8 Condition Look up'!$A$3:$H$131,MATCH(G17,'G-8 Condition Look up'!$A$3:$A$131,0),MATCH(K17,'G-8 Condition Look up'!$A$3:$H$3,0)),"") ->  | N17: =IF(M17="","",IF(VLOOKUP(M17,'G-3 Multipliers'!$L$3:$N$6,2,FALSE)=0,"Spatial Data Missing",VLOOKUP(M17,'G-3 Multipliers'!$L$3:$N$6,2,FALSE))) ->  | O17: =IF(M17="","",IF(VLOOKUP(M17,'G-3 Multipliers'!$L$3:$N$6,3,FALSE)=0,"Spatial Data Missing",VLOOKUP(M17,'G-3 Multipliers'!$L$3:$N$6,3,FALSE))) ->  | P17: =IFERROR(VLOOKUP(G17,'G-1 All Habitats'!$B$2:$M$130,12,FALSE),"") ->  | Q17: =IFERROR(IF(P17="","",IF(AND(P17='G-1 All Habitats'!$X$3,T17>0),U17+V17,IF(AND(P17='G-1 All Habitats'!$X$3,S17>0),U17+V17,IF(AND(P17='G-1 All Habitats'!$X$3,AC17>0),"Any Loss Unacceptable",IF(AND(P17='G-1 All Habitats'!$X$3,W17>0),"Any Loss Unacceptable",H17*J17*L17*O17))))),"Check Data") ->  | W17: =IF(E17="","",IF(H17<S17+T17,"Error in Areas",IF(P17<>'G-1 All Habitats'!$X$3,H17-S17-T17,IF(AND(P17='G-1 All Habitats'!$X$3,Y17="Yes"),"Unacceptable Loss",IF(AND(P17='G-1 All Habitats'!$X$3,Y17="No"),AC17,IF(AND(P17='G-1 All Habitats'!$X$3,Y17=""),AC17,IF(AND(P17='G-1 All Habitats'!$X$3,AC17="None",AC17),IF(AND(P17='G-1 All Habitats'!$X$3,AC17>0),H17-S17-T17)))))))) ->  | X17: =IFERROR(IF(H17="","",IF(H17-S17-T17=0<0,"Error in Areas",IF(S17+T17>H17,"Error in Areas",IF(AND(P17='G-1 All Habitats'!$X$3,Y17="Yes"),"Alternative Compensation",IF(W17=0,0,IF(P17='G-1 All Habitats'!$X$3,"Unacceptable Loss",Q17-U17-V17)))))),"Check Data") ->  | AC17: =IF(P17="","",IF(P17='G-1 All Habitats'!$X$3,H17-S17-T17,"None")) ->  | AD17: =IFERROR(AC17*J17*L17*#REF!*O17,IF(P17="","","None")) ->  | AH17: =IF(I17="","",IF(#REF!>0,TRUE,FALSE)) ->  | AI17: 7 | AK17: =IFERROR(INDEX($AI$11:$AI$259, MATCH(0, IF(TRUE=$AF$11:$AF$259, COUNTIF($AK$10:$AK16, $AI$11:$AI$259), ""), 0)),"") ->  | AL17: =IFERROR(INDEX($AI$11:$AI$259, MATCH(0, IF(TRUE=$AG$11:$AG$259, COUNTIF($AL$10:$AL16, $AI$11:$AI$259), ""), 0)),"") ->  | AM17: =IFERROR(INDEX($AI$11:$AI$259, MATCH(0, IF(TRUE=$AH$11:$AH$259, COUNTIF($AM$10:$AM16, $AI$11:$AI$259), ""), 0)),"") ->  | AQ17: 0
A18: =IFERROR(INDEX('G-1 All Habitats'!$AG$3:$AG$15,MATCH(E18,'G-1 All Habitats'!$AF$3:$AF$15,0)),"") ->  | B18: =IFERROR(INDEX('G-8 Condition Look up'!$I$4:$I$131,MATCH(G18,'G-8 Condition Look up'!$A$4:$A$131,0)),"") ->  | D18: 8 | G18: =IFERROR(INDEX('G-1 All Habitats'!$B$3:$B$130,MATCH(F18,'G-1 All Habitats'!$A$3:$A$130,0)),"") ->  | I18: =IF(G18="","",VLOOKUP(G18,'G-1 All Habitats'!$B$2:$M$130,10,FALSE)) ->  | J18: =IFERROR(VLOOKUP(I18,'G-1 All Habitats'!$V$3:$W$7,2,FALSE),"") ->  | L18: =IFERROR(INDEX('G-8 Condition Look up'!$A$3:$H$131,MATCH(G18,'G-8 Condition Look up'!$A$3:$A$131,0),MATCH(K18,'G-8 Condition Look up'!$A$3:$H$3,0)),"") ->  | N18: =IF(M18="","",IF(VLOOKUP(M18,'G-3 Multipliers'!$L$3:$N$6,2,FALSE)=0,"Spatial Data Missing",VLOOKUP(M18,'G-3 Multipliers'!$L$3:$N$6,2,FALSE))) ->  | O18: =IF(M18="","",IF(VLOOKUP(M18,'G-3 Multipliers'!$L$3:$N$6,3,FALSE)=0,"Spatial Data Missing",VLOOKUP(M18,'G-3 Multipliers'!$L$3:$N$6,3,FALSE))) ->  | P18: =IFERROR(VLOOKUP(G18,'G-1 All Habitats'!$B$2:$M$130,12,FALSE),"") ->  | Q18: =IFERROR(IF(P18="","",IF(AND(P18='G-1 All Habitats'!$X$3,T18>0),U18+V18,IF(AND(P18='G-1 All Habitats'!$X$3,S18>0),U18+V18,IF(AND(P18='G-1 All Habitats'!$X$3,AC18>0),"Any Loss Unacceptable",IF(AND(P18='G-1 All Habitats'!$X$3,W18>0),"Any Loss Unacceptable",H18*J18*L18*O18))))),"Check Data") ->  | W18: =IF(E18="","",IF(H18<S18+T18,"Error in Areas",IF(P18<>'G-1 All Habitats'!$X$3,H18-S18-T18,IF(AND(P18='G-1 All Habitats'!$X$3,Y18="Yes"),"Unacceptable Loss",IF(AND(P18='G-1 All Habitats'!$X$3,Y18="No"),AC18,IF(AND(P18='G-1 All Habitats'!$X$3,Y18=""),AC18,IF(AND(P18='G-1 All Habitats'!$X$3,AC18="None",AC18),IF(AND(P18='G-1 All Habitats'!$X$3,AC18>0),H18-S18-T18)))))))) ->  | X18: =IFERROR(IF(H18="","",IF(H18-S18-T18=0<0,"Error in Areas",IF(S18+T18>H18,"Error in Areas",IF(AND(P18='G-1 All Habitats'!$X$3,Y18="Yes"),"Alternative Compensation",IF(W18=0,0,IF(P18='G-1 All Habitats'!$X$3,"Unacceptable Loss",Q18-U18-V18)))))),"Check Data") ->  | AC18: =IF(P18="","",IF(P18='G-1 All Habitats'!$X$3,H18-S18-T18,"None")) ->  | AD18: =IFERROR(AC18*J18*L18*#REF!*O18,IF(P18="","","None")) ->  | AH18: =IF(I18="","",IF(#REF!>0,TRUE,FALSE)) ->  | AI18: 8 | AK18: =IFERROR(INDEX($AI$11:$AI$259, MATCH(0, IF(TRUE=$AF$11:$AF$259, COUNTIF($AK$10:$AK17, $AI$11:$AI$259), ""), 0)),"") ->  | AL18: =IFERROR(INDEX($AI$11:$AI$259, MATCH(0, IF(TRUE=$AG$11:$AG$259, COUNTIF($AL$10:$AL17, $AI$11:$AI$259), ""), 0)),"") ->  | AM18: =IFERROR(INDEX($AI$11:$AI$259, MATCH(0, IF(TRUE=$AH$11:$AH$259, COUNTIF($AM$10:$AM17, $AI$11:$AI$259), ""), 0)),"") ->  | AQ18: 0
A19: =IFERROR(INDEX('G-1 All Habitats'!$AG$3:$AG$15,MATCH(E19,'G-1 All Habitats'!$AF$3:$AF$15,0)),"") ->  | B19: =IFERROR(INDEX('G-8 Condition Look up'!$I$4:$I$131,MATCH(G19,'G-8 Condition Look up'!$A$4:$A$131,0)),"") ->  | D19: 9 | G19: =IFERROR(INDEX('G-1 All Habitats'!$B$3:$B$130,MATCH(F19,'G-1 All Habitats'!$A$3:$A$130,0)),"") ->  | I19: =IF(G19="","",VLOOKUP(G19,'G-1 All Habitats'!$B$2:$M$130,10,FALSE)) ->  | J19: =IFERROR(VLOOKUP(I19,'G-1 All Habitats'!$V$3:$W$7,2,FALSE),"") ->  | L19: =IFERROR(INDEX('G-8 Condition Look up'!$A$3:$H$131,MATCH(G19,'G-8 Condition Look up'!$A$3:$A$131,0),MATCH(K19,'G-8 Condition Look up'!$A$3:$H$3,0)),"") ->  | N19: =IF(M19="","",IF(VLOOKUP(M19,'G-3 Multipliers'!$L$3:$N$6,2,FALSE)=0,"Spatial Data Missing",VLOOKUP(M19,'G-3 Multipliers'!$L$3:$N$6,2,FALSE))) ->  | O19: =IF(M19="","",IF(VLOOKUP(M19,'G-3 Multipliers'!$L$3:$N$6,3,FALSE)=0,"Spatial Data Missing",VLOOKUP(M19,'G-3 Multipliers'!$L$3:$N$6,3,FALSE))) ->  | P19: =IFERROR(VLOOKUP(G19,'G-1 All Habitats'!$B$2:$M$130,12,FALSE),"") ->  | Q19: =IFERROR(IF(P19="","",IF(AND(P19='G-1 All Habitats'!$X$3,T19>0),U19+V19,IF(AND(P19='G-1 All Habitats'!$X$3,S19>0),U19+V19,IF(AND(P19='G-1 All Habitats'!$X$3,AC19>0),"Any Loss Unacceptable",IF(AND(P19='G-1 All Habitats'!$X$3,W19>0),"Any Loss Unacceptable",H19*J19*L19*O19))))),"Check Data") ->  | W19: =IF(E19="","",IF(H19<S19+T19,"Error in Areas",IF(P19<>'G-1 All Habitats'!$X$3,H19-S19-T19,IF(AND(P19='G-1 All Habitats'!$X$3,Y19="Yes"),"Unacceptable Loss",IF(AND(P19='G-1 All Habitats'!$X$3,Y19="No"),AC19,IF(AND(P19='G-1 All Habitats'!$X$3,Y19=""),AC19,IF(AND(P19='G-1 All Habitats'!$X$3,AC19="None",AC19),IF(AND(P19='G-1 All Habitats'!$X$3,AC19>0),H19-S19-T19)))))))) ->  | X19: =IFERROR(IF(H19="","",IF(H19-S19-T19=0<0,"Error in Areas",IF(S19+T19>H19,"Error in Areas",IF(AND(P19='G-1 All Habitats'!$X$3,Y19="Yes"),"Alternative Compensation",IF(W19=0,0,IF(P19='G-1 All Habitats'!$X$3,"Unacceptable Loss",Q19-U19-V19)))))),"Check Data") ->  | AC19: =IF(P19="","",IF(P19='G-1 All Habitats'!$X$3,H19-S19-T19,"None")) ->  | AD19: =IFERROR(AC19*J19*L19*#REF!*O19,IF(P19="","","None")) ->  | AH19: =IF(I19="","",IF(#REF!>0,TRUE,FALSE)) ->  | AI19: 9 | AK19: =IFERROR(INDEX($AI$11:$AI$259, MATCH(0, IF(TRUE=$AF$11:$AF$259, COUNTIF($AK$10:$AK18, $AI$11:$AI$259), ""), 0)),"") ->  | AL19: =IFERROR(INDEX($AI$11:$AI$259, MATCH(0, IF(TRUE=$AG$11:$AG$259, COUNTIF($AL$10:$AL18, $AI$11:$AI$259), ""), 0)),"") ->  | AM19: =IFERROR(INDEX($AI$11:$AI$259, MATCH(0, IF(TRUE=$AH$11:$AH$259, COUNTIF($AM$10:$AM18, $AI$11:$AI$259), ""), 0)),"") ->  | AQ19: 0
A20: =IFERROR(INDEX('G-1 All Habitats'!$AG$3:$AG$15,MATCH(E20,'G-1 All Habitats'!$AF$3:$AF$15,0)),"") ->  | B20: =IFERROR(INDEX('G-8 Condition Look up'!$I$4:$I$131,MATCH(G20,'G-8 Condition Look up'!$A$4:$A$131,0)),"") ->  | D20: 10 | G20: =IFERROR(INDEX('G-1 All Habitats'!$B$3:$B$130,MATCH(F20,'G-1 All Habitats'!$A$3:$A$130,0)),"") ->  | I20: =IF(G20="","",VLOOKUP(G20,'G-1 All Habitats'!$B$2:$M$130,10,FALSE)) ->  | J20: =IFERROR(VLOOKUP(I20,'G-1 All Habitats'!$V$3:$W$7,2,FALSE),"") ->  | L20: =IFERROR(INDEX('G-8 Condition Look up'!$A$3:$H$131,MATCH(G20,'G-8 Condition Look up'!$A$3:$A$131,0),MATCH(K20,'G-8 Condition Look up'!$A$3:$H$3,0)),"") ->  | N20: =IF(M20="","",IF(VLOOKUP(M20,'G-3 Multipliers'!$L$3:$N$6,2,FALSE)=0,"Spatial Data Missing",VLOOKUP(M20,'G-3 Multipliers'!$L$3:$N$6,2,FALSE))) ->  | O20: =IF(M20="","",IF(VLOOKUP(M20,'G-3 Multipliers'!$L$3:$N$6,3,FALSE)=0,"Spatial Data Missing",VLOOKUP(M20,'G-3 Multipliers'!$L$3:$N$6,3,FALSE))) ->  | P20: =IFERROR(VLOOKUP(G20,'G-1 All Habitats'!$B$2:$M$130,12,FALSE),"") ->  | Q20: =IFERROR(IF(P20="","",IF(AND(P20='G-1 All Habitats'!$X$3,T20>0),U20+V20,IF(AND(P20='G-1 All Habitats'!$X$3,S20>0),U20+V20,IF(AND(P20='G-1 All Habitats'!$X$3,AC20>0),"Any Loss Unacceptable",IF(AND(P20='G-1 All Habitats'!$X$3,W20>0),"Any Loss Unacceptable",H20*J20*L20*O20))))),"Check Data") ->  | W20: =IF(E20="","",IF(H20<S20+T20,"Error in Areas",IF(P20<>'G-1 All Habitats'!$X$3,H20-S20-T20,IF(AND(P20='G-1 All Habitats'!$X$3,Y20="Yes"),"Unacceptable Loss",IF(AND(P20='G-1 All Habitats'!$X$3,Y20="No"),AC20,IF(AND(P20='G-1 All Habitats'!$X$3,Y20=""),AC20,IF(AND(P20='G-1 All Habitats'!$X$3,AC20="None",AC20),IF(AND(P20='G-1 All Habitats'!$X$3,AC20>0),H20-S20-T20)))))))) ->  | X20: =IFERROR(IF(H20="","",IF(H20-S20-T20=0<0,"Error in Areas",IF(S20+T20>H20,"Error in Areas",IF(AND(P20='G-1 All Habitats'!$X$3,Y20="Yes"),"Alternative Compensation",IF(W20=0,0,IF(P20='G-1 All Habitats'!$X$3,"Unacceptable Loss",Q20-U20-V20)))))),"Check Data") ->  | AC20: =IF(P20="","",IF(P20='G-1 All Habitats'!$X$3,H20-S20-T20,"None")) ->  | AD20: =IFERROR(AC20*J20*L20*#REF!*O20,IF(P20="","","None")) ->  | AH20: =IF(I20="","",IF(#REF!>0,TRUE,FALSE)) ->  | AI20: 10 | AK20: =IFERROR(INDEX($AI$11:$AI$259, MATCH(0, IF(TRUE=$AF$11:$AF$259, COUNTIF($AK$10:$AK19, $AI$11:$AI$259), ""), 0)),"") ->  | AL20: =IFERROR(INDEX($AI$11:$AI$259, MATCH(0, IF(TRUE=$AG$11:$AG$259, COUNTIF($AL$10:$AL19, $AI$11:$AI$259), ""), 0)),"") ->  | AM20: =IFERROR(INDEX($AI$11:$AI$259, MATCH(0, IF(TRUE=$AH$11:$AH$259, COUNTIF($AM$10:$AM19, $AI$11:$AI$259), ""), 0)),"") ->  | AQ20: 0
A21: =IFERROR(INDEX('G-1 All Habitats'!$AG$3:$AG$15,MATCH(E21,'G-1 All Habitats'!$AF$3:$AF$15,0)),"") ->  | B21: =IFERROR(INDEX('G-8 Condition Look up'!$I$4:$I$131,MATCH(G21,'G-8 Condition Look up'!$A$4:$A$131,0)),"") ->  | D21: 11 | G21: =IFERROR(INDEX('G-1 All Habitats'!$B$3:$B$130,MATCH(F21,'G-1 All Habitats'!$A$3:$A$130,0)),"") ->  | I21: =IF(G21="","",VLOOKUP(G21,'G-1 All Habitats'!$B$2:$M$130,10,FALSE)) ->  | J21: =IFERROR(VLOOKUP(I21,'G-1 All Habitats'!$V$3:$W$7,2,FALSE),"") ->  | L21: =IFERROR(INDEX('G-8 Condition Look up'!$A$3:$H$131,MATCH(G21,'G-8 Condition Look up'!$A$3:$A$131,0),MATCH(K21,'G-8 Condition Look up'!$A$3:$H$3,0)),"") ->  | N21: =IF(M21="","",IF(VLOOKUP(M21,'G-3 Multipliers'!$L$3:$N$6,2,FALSE)=0,"Spatial Data Missing",VLOOKUP(M21,'G-3 Multipliers'!$L$3:$N$6,2,FALSE))) ->  | O21: =IF(M21="","",IF(VLOOKUP(M21,'G-3 Multipliers'!$L$3:$N$6,3,FALSE)=0,"Spatial Data Missing",VLOOKUP(M21,'G-3 Multipliers'!$L$3:$N$6,3,FALSE))) ->  | P21: =IFERROR(VLOOKUP(G21,'G-1 All Habitats'!$B$2:$M$130,12,FALSE),"") ->  | Q21: =IFERROR(IF(P21="","",IF(AND(P21='G-1 All Habitats'!$X$3,T21>0),U21+V21,IF(AND(P21='G-1 All Habitats'!$X$3,S21>0),U21+V21,IF(AND(P21='G-1 All Habitats'!$X$3,AC21>0),"Any Loss Unacceptable",IF(AND(P21='G-1 All Habitats'!$X$3,W21>0),"Any Loss Unacceptable",H21*J21*L21*O21))))),"Check Data") ->  | W21: =IF(E21="","",IF(H21<S21+T21,"Error in Areas",IF(P21<>'G-1 All Habitats'!$X$3,H21-S21-T21,IF(AND(P21='G-1 All Habitats'!$X$3,Y21="Yes"),"Unacceptable Loss",IF(AND(P21='G-1 All Habitats'!$X$3,Y21="No"),AC21,IF(AND(P21='G-1 All Habitats'!$X$3,Y21=""),AC21,IF(AND(P21='G-1 All Habitats'!$X$3,AC21="None",AC21),IF(AND(P21='G-1 All Habitats'!$X$3,AC21>0),H21-S21-T21)))))))) ->  | X21: =IFERROR(IF(H21="","",IF(H21-S21-T21=0<0,"Error in Areas",IF(S21+T21>H21,"Error in Areas",IF(AND(P21='G-1 All Habitats'!$X$3,Y21="Yes"),"Alternative Compensation",IF(W21=0,0,IF(P21='G-1 All Habitats'!$X$3,"Unacceptable Loss",Q21-U21-V21)))))),"Check Data") ->  | AC21: =IF(P21="","",IF(P21='G-1 All Habitats'!$X$3,H21-S21-T21,"None")) ->  | AD21: =IFERROR(AC21*J21*L21*#REF!*O21,IF(P21="","","None")) ->  | AH21: =IF(I21="","",IF(#REF!>0,TRUE,FALSE)) ->  | AI21: 11 | AK21: =IFERROR(INDEX($AI$11:$AI$259, MATCH(0, IF(TRUE=$AF$11:$AF$259, COUNTIF($AK$10:$AK20, $AI$11:$AI$259), ""), 0)),"") ->  | AL21: =IFERROR(INDEX($AI$11:$AI$259, MATCH(0, IF(TRUE=$AG$11:$AG$259, COUNTIF($AL$10:$AL20, $AI$11:$AI$259), ""), 0)),"") ->  | AM21: =IFERROR(INDEX($AI$11:$AI$259, MATCH(0, IF(TRUE=$AH$11:$AH$259, COUNTIF($AM$10:$AM20, $AI$11:$AI$259), ""), 0)),"") ->  | AQ21: 0
A22: =IFERROR(INDEX('G-1 All Habitats'!$AG$3:$AG$15,MATCH(E22,'G-1 All Habitats'!$AF$3:$AF$15,0)),"") ->  | B22: =IFERROR(INDEX('G-8 Condition Look up'!$I$4:$I$131,MATCH(G22,'G-8 Condition Look up'!$A$4:$A$131,0)),"") ->  | D22: 12 | G22: =IFERROR(INDEX('G-1 All Habitats'!$B$3:$B$130,MATCH(F22,'G-1 All Habitats'!$A$3:$A$130,0)),"") ->  | I22: =IF(G22="","",VLOOKUP(G22,'G-1 All Habitats'!$B$2:$M$130,10,FALSE)) ->  | J22: =IFERROR(VLOOKUP(I22,'G-1 All Habitats'!$V$3:$W$7,2,FALSE),"") ->  | L22: =IFERROR(INDEX('G-8 Condition Look up'!$A$3:$H$131,MATCH(G22,'G-8 Condition Look up'!$A$3:$A$131,0),MATCH(K22,'G-8 Condition Look up'!$A$3:$H$3,0)),"") ->  | N22: =IF(M22="","",IF(VLOOKUP(M22,'G-3 Multipliers'!$L$3:$N$6,2,FALSE)=0,"Spatial Data Missing",VLOOKUP(M22,'G-3 Multipliers'!$L$3:$N$6,2,FALSE))) ->  | O22: =IF(M22="","",IF(VLOOKUP(M22,'G-3 Multipliers'!$L$3:$N$6,3,FALSE)=0,"Spatial Data Missing",VLOOKUP(M22,'G-3 Multipliers'!$L$3:$N$6,3,FALSE))) ->  | P22: =IFERROR(VLOOKUP(G22,'G-1 All Habitats'!$B$2:$M$130,12,FALSE),"") ->  | Q22: =IFERROR(IF(P22="","",IF(AND(P22='G-1 All Habitats'!$X$3,T22>0),U22+V22,IF(AND(P22='G-1 All Habitats'!$X$3,S22>0),U22+V22,IF(AND(P22='G-1 All Habitats'!$X$3,AC22>0),"Any Loss Unacceptable",IF(AND(P22='G-1 All Habitats'!$X$3,W22>0),"Any Loss Unacceptable",H22*J22*L22*O22))))),"Check Data") ->  | W22: =IF(E22="","",IF(H22<S22+T22,"Error in Areas",IF(P22<>'G-1 All Habitats'!$X$3,H22-S22-T22,IF(AND(P22='G-1 All Habitats'!$X$3,Y22="Yes"),"Unacceptable Loss",IF(AND(P22='G-1 All Habitats'!$X$3,Y22="No"),AC22,IF(AND(P22='G-1 All Habitats'!$X$3,Y22=""),AC22,IF(AND(P22='G-1 All Habitats'!$X$3,AC22="None",AC22),IF(AND(P22='G-1 All Habitats'!$X$3,AC22>0),H22-S22-T22)))))))) ->  | X22: =IFERROR(IF(H22="","",IF(H22-S22-T22=0<0,"Error in Areas",IF(S22+T22>H22,"Error in Areas",IF(AND(P22='G-1 All Habitats'!$X$3,Y22="Yes"),"Alternative Compensation",IF(W22=0,0,IF(P22='G-1 All Habitats'!$X$3,"Unacceptable Loss",Q22-U22-V22)))))),"Check Data") ->  | AC22: =IF(P22="","",IF(P22='G-1 All Habitats'!$X$3,H22-S22-T22,"None")) ->  | AD22: =IFERROR(AC22*J22*L22*#REF!*O22,IF(P22="","","None")) ->  | AH22: =IF(I22="","",IF(#REF!>0,TRUE,FALSE)) ->  | AI22: 12 | AK22: =IFERROR(INDEX($AI$11:$AI$259, MATCH(0, IF(TRUE=$AF$11:$AF$259, COUNTIF($AK$10:$AK21, $AI$11:$AI$259), ""), 0)),"") ->  | AL22: =IFERROR(INDEX($AI$11:$AI$259, MATCH(0, IF(TRUE=$AG$11:$AG$259, COUNTIF($AL$10:$AL21, $AI$11:$AI$259), ""), 0)),"") ->  | AM22: =IFERROR(INDEX($AI$11:$AI$259, MATCH(0, IF(TRUE=$AH$11:$AH$259, COUNTIF($AM$10:$AM21, $AI$11:$AI$259), ""), 0)),"") ->  | AQ22: 0
A23: =IFERROR(INDEX('G-1 All Habitats'!$AG$3:$AG$15,MATCH(E23,'G-1 All Habitats'!$AF$3:$AF$15,0)),"") ->  | B23: =IFERROR(INDEX('G-8 Condition Look up'!$I$4:$I$131,MATCH(G23,'G-8 Condition Look up'!$A$4:$A$131,0)),"") ->  | D23: 13 | G23: =IFERROR(INDEX('G-1 All Habitats'!$B$3:$B$130,MATCH(F23,'G-1 All Habitats'!$A$3:$A$130,0)),"") ->  | I23: =IF(G23="","",VLOOKUP(G23,'G-1 All Habitats'!$B$2:$M$130,10,FALSE)) ->  | J23: =IFERROR(VLOOKUP(I23,'G-1 All Habitats'!$V$3:$W$7,2,FALSE),"") ->  | L23: =IFERROR(INDEX('G-8 Condition Look up'!$A$3:$H$131,MATCH(G23,'G-8 Condition Look up'!$A$3:$A$131,0),MATCH(K23,'G-8 Condition Look up'!$A$3:$H$3,0)),"") ->  | N23: =IF(M23="","",IF(VLOOKUP(M23,'G-3 Multipliers'!$L$3:$N$6,2,FALSE)=0,"Spatial Data Missing",VLOOKUP(M23,'G-3 Multipliers'!$L$3:$N$6,2,FALSE))) ->  | O23: =IF(M23="","",IF(VLOOKUP(M23,'G-3 Multipliers'!$L$3:$N$6,3,FALSE)=0,"Spatial Data Missing",VLOOKUP(M23,'G-3 Multipliers'!$L$3:$N$6,3,FALSE))) ->  | P23: =IFERROR(VLOOKUP(G23,'G-1 All Habitats'!$B$2:$M$130,12,FALSE),"") ->  | Q23: =IFERROR(IF(P23="","",IF(AND(P23='G-1 All Habitats'!$X$3,T23>0),U23+V23,IF(AND(P23='G-1 All Habitats'!$X$3,S23>0),U23+V23,IF(AND(P23='G-1 All Habitats'!$X$3,AC23>0),"Any Loss Unacceptable",IF(AND(P23='G-1 All Habitats'!$X$3,W23>0),"Any Loss Unacceptable",H23*J23*L23*O23))))),"Check Data") ->  | W23: =IF(E23="","",IF(H23<S23+T23,"Error in Areas",IF(P23<>'G-1 All Habitats'!$X$3,H23-S23-T23,IF(AND(P23='G-1 All Habitats'!$X$3,Y23="Yes"),"Unacceptable Loss",IF(AND(P23='G-1 All Habitats'!$X$3,Y23="No"),AC23,IF(AND(P23='G-1 All Habitats'!$X$3,Y23=""),AC23,IF(AND(P23='G-1 All Habitats'!$X$3,AC23="None",AC23),IF(AND(P23='G-1 All Habitats'!$X$3,AC23>0),H23-S23-T23)))))))) ->  | X23: =IFERROR(IF(H23="","",IF(H23-S23-T23=0<0,"Error in Areas",IF(S23+T23>H23,"Error in Areas",IF(AND(P23='G-1 All Habitats'!$X$3,Y23="Yes"),"Alternative Compensation",IF(W23=0,0,IF(P23='G-1 All Habitats'!$X$3,"Unacceptable Loss",Q23-U23-V23)))))),"Check Data") ->  | AC23: =IF(P23="","",IF(P23='G-1 All Habitats'!$X$3,H23-S23-T23,"None")) ->  | AD23: =IFERROR(AC23*J23*L23*#REF!*O23,IF(P23="","","None")) ->  | AH23: =IF(I23="","",IF(#REF!>0,TRUE,FALSE)) ->  | AI23: 13 | AK23: =IFERROR(INDEX($AI$11:$AI$259, MATCH(0, IF(TRUE=$AF$11:$AF$259, COUNTIF($AK$10:$AK22, $AI$11:$AI$259), ""), 0)),"") ->  | AL23: =IFERROR(INDEX($AI$11:$AI$259, MATCH(0, IF(TRUE=$AG$11:$AG$259, COUNTIF($AL$10:$AL22, $AI$11:$AI$259), ""), 0)),"") ->  | AM23: =IFERROR(INDEX($AI$11:$AI$259, MATCH(0, IF(TRUE=$AH$11:$AH$259, COUNTIF($AM$10:$AM22, $AI$11:$AI$259), ""), 0)),"") ->  | AQ23: 0
A24: =IFERROR(INDEX('G-1 All Habitats'!$AG$3:$AG$15,MATCH(E24,'G-1 All Habitats'!$AF$3:$AF$15,0)),"") ->  | B24: =IFERROR(INDEX('G-8 Condition Look up'!$I$4:$I$131,MATCH(G24,'G-8 Condition Look up'!$A$4:$A$131,0)),"") ->  | D24: 14 | G24: =IFERROR(INDEX('G-1 All Habitats'!$B$3:$B$130,MATCH(F24,'G-1 All Habitats'!$A$3:$A$130,0)),"") ->  | I24: =IF(G24="","",VLOOKUP(G24,'G-1 All Habitats'!$B$2:$M$130,10,FALSE)) ->  | J24: =IFERROR(VLOOKUP(I24,'G-1 All Habitats'!$V$3:$W$7,2,FALSE),"") ->  | L24: =IFERROR(INDEX('G-8 Condition Look up'!$A$3:$H$131,MATCH(G24,'G-8 Condition Look up'!$A$3:$A$131,0),MATCH(K24,'G-8 Condition Look up'!$A$3:$H$3,0)),"") ->  | N24: =IF(M24="","",IF(VLOOKUP(M24,'G-3 Multipliers'!$L$3:$N$6,2,FALSE)=0,"Spatial Data Missing",VLOOKUP(M24,'G-3 Multipliers'!$L$3:$N$6,2,FALSE))) ->  | O24: =IF(M24="","",IF(VLOOKUP(M24,'G-3 Multipliers'!$L$3:$N$6,3,FALSE)=0,"Spatial Data Missing",VLOOKUP(M24,'G-3 Multipliers'!$L$3:$N$6,3,FALSE))) ->  | P24: =IFERROR(VLOOKUP(G24,'G-1 All Habitats'!$B$2:$M$130,12,FALSE),"") ->  | Q24: =IFERROR(IF(P24="","",IF(AND(P24='G-1 All Habitats'!$X$3,T24>0),U24+V24,IF(AND(P24='G-1 All Habitats'!$X$3,S24>0),U24+V24,IF(AND(P24='G-1 All Habitats'!$X$3,AC24>0),"Any Loss Unacceptable",IF(AND(P24='G-1 All Habitats'!$X$3,W24>0),"Any Loss Unacceptable",H24*J24*L24*O24))))),"Check Data") ->  | W24: =IF(E24="","",IF(H24<S24+T24,"Error in Areas",IF(P24<>'G-1 All Habitats'!$X$3,H24-S24-T24,IF(AND(P24='G-1 All Habitats'!$X$3,Y24="Yes"),"Unacceptable Loss",IF(AND(P24='G-1 All Habitats'!$X$3,Y24="No"),AC24,IF(AND(P24='G-1 All Habitats'!$X$3,Y24=""),AC24,IF(AND(P24='G-1 All Habitats'!$X$3,AC24="None",AC24),IF(AND(P24='G-1 All Habitats'!$X$3,AC24>0),H24-S24-T24)))))))) ->  | X24: =IFERROR(IF(H24="","",IF(H24-S24-T24=0<0,"Error in Areas",IF(S24+T24>H24,"Error in Areas",IF(AND(P24='G-1 All Habitats'!$X$3,Y24="Yes"),"Alternative Compensation",IF(W24=0,0,IF(P24='G-1 All Habitats'!$X$3,"Unacceptable Loss",Q24-U24-V24)))))),"Check Data") ->  | AC24: =IF(P24="","",IF(P24='G-1 All Habitats'!$X$3,H24-S24-T24,"None")) ->  | AD24: =IFERROR(AC24*J24*L24*#REF!*O24,IF(P24="","","None")) ->  | AH24: =IF(I24="","",IF(#REF!>0,TRUE,FALSE)) ->  | AI24: 14 | AK24: =IFERROR(INDEX($AI$11:$AI$259, MATCH(0, IF(TRUE=$AF$11:$AF$259, COUNTIF($AK$10:$AK23, $AI$11:$AI$259), ""), 0)),"") ->  | AL24: =IFERROR(INDEX($AI$11:$AI$259, MATCH(0, IF(TRUE=$AG$11:$AG$259, COUNTIF($AL$10:$AL23, $AI$11:$AI$259), ""), 0)),"") ->  | AM24: =IFERROR(INDEX($AI$11:$AI$259, MATCH(0, IF(TRUE=$AH$11:$AH$259, COUNTIF($AM$10:$AM23, $AI$11:$AI$259), ""), 0)),"") ->  | AQ24: 0
A25: =IFERROR(INDEX('G-1 All Habitats'!$AG$3:$AG$15,MATCH(E25,'G-1 All Habitats'!$AF$3:$AF$15,0)),"") ->  | B25: =IFERROR(INDEX('G-8 Condition Look up'!$I$4:$I$131,MATCH(G25,'G-8 Condition Look up'!$A$4:$A$131,0)),"") ->  | D25: 15 | G25: =IFERROR(INDEX('G-1 All Habitats'!$B$3:$B$130,MATCH(F25,'G-1 All Habitats'!$A$3:$A$130,0)),"") ->  | I25: =IF(G25="","",VLOOKUP(G25,'G-1 All Habitats'!$B$2:$M$130,10,FALSE)) ->  | J25: =IFERROR(VLOOKUP(I25,'G-1 All Habitats'!$V$3:$W$7,2,FALSE),"") ->  | L25: =IFERROR(INDEX('G-8 Condition Look up'!$A$3:$H$131,MATCH(G25,'G-8 Condition Look up'!$A$3:$A$131,0),MATCH(K25,'G-8 Condition Look up'!$A$3:$H$3,0)),"") ->  | N25: =IF(M25="","",IF(VLOOKUP(M25,'G-3 Multipliers'!$L$3:$N$6,2,FALSE)=0,"Spatial Data Missing",VLOOKUP(M25,'G-3 Multipliers'!$L$3:$N$6,2,FALSE))) ->  | O25: =IF(M25="","",IF(VLOOKUP(M25,'G-3 Multipliers'!$L$3:$N$6,3,FALSE)=0,"Spatial Data Missing",VLOOKUP(M25,'G-3 Multipliers'!$L$3:$N$6,3,FALSE))) ->  | P25: =IFERROR(VLOOKUP(G25,'G-1 All Habitats'!$B$2:$M$130,12,FALSE),"") ->  | Q25: =IFERROR(IF(P25="","",IF(AND(P25='G-1 All Habitats'!$X$3,T25>0),U25+V25,IF(AND(P25='G-1 All Habitats'!$X$3,S25>0),U25+V25,IF(AND(P25='G-1 All Habitats'!$X$3,AC25>0),"Any Loss Unacceptable",IF(AND(P25='G-1 All Habitats'!$X$3,W25>0),"Any Loss Unacceptable",H25*J25*L25*O25))))),"Check Data") ->  | W25: =IF(E25="","",IF(H25<S25+T25,"Error in Areas",IF(P25<>'G-1 All Habitats'!$X$3,H25-S25-T25,IF(AND(P25='G-1 All Habitats'!$X$3,Y25="Yes"),"Unacceptable Loss",IF(AND(P25='G-1 All Habitats'!$X$3,Y25="No"),AC25,IF(AND(P25='G-1 All Habitats'!$X$3,Y25=""),AC25,IF(AND(P25='G-1 All Habitats'!$X$3,AC25="None",AC25),IF(AND(P25='G-1 All Habitats'!$X$3,AC25>0),H25-S25-T25)))))))) ->  | X25: =IFERROR(IF(H25="","",IF(H25-S25-T25=0<0,"Error in Areas",IF(S25+T25>H25,"Error in Areas",IF(AND(P25='G-1 All Habitats'!$X$3,Y25="Yes"),"Alternative Compensation",IF(W25=0,0,IF(P25='G-1 All Habitats'!$X$3,"Unacceptable Loss",Q25-U25-V25)))))),"Check Data") ->  | AC25: =IF(P25="","",IF(P25='G-1 All Habitats'!$X$3,H25-S25-T25,"None")) ->  | AD25: =IFERROR(AC25*J25*L25*#REF!*O25,IF(P25="","","None")) ->  | AH25: =IF(I25="","",IF(#REF!>0,TRUE,FALSE)) ->  | AI25: 15 | AK25: =IFERROR(INDEX($AI$11:$AI$259, MATCH(0, IF(TRUE=$AF$11:$AF$259, COUNTIF($AK$10:$AK24, $AI$11:$AI$259), ""), 0)),"") ->  | AL25: =IFERROR(INDEX($AI$11:$AI$259, MATCH(0, IF(TRUE=$AG$11:$AG$259, COUNTIF($AL$10:$AL24, $AI$11:$AI$259), ""), 0)),"") ->  | AM25: =IFERROR(INDEX($AI$11:$AI$259, MATCH(0, IF(TRUE=$AH$11:$AH$259, COUNTIF($AM$10:$AM24, $AI$11:$AI$259), ""), 0)),"") ->  | AQ25: 0
A26: =IFERROR(INDEX('G-1 All Habitats'!$AG$3:$AG$15,MATCH(E26,'G-1 All Habitats'!$AF$3:$AF$15,0)),"") ->  | B26: =IFERROR(INDEX('G-8 Condition Look up'!$I$4:$I$131,MATCH(G26,'G-8 Condition Look up'!$A$4:$A$131,0)),"") ->  | D26: 16 | G26: =IFERROR(INDEX('G-1 All Habitats'!$B$3:$B$130,MATCH(F26,'G-1 All Habitats'!$A$3:$A$130,0)),"") ->  | I26: =IF(G26="","",VLOOKUP(G26,'G-1 All Habitats'!$B$2:$M$130,10,FALSE)) ->  | J26: =IFERROR(VLOOKUP(I26,'G-1 All Habitats'!$V$3:$W$7,2,FALSE),"") ->  | L26: =IFERROR(INDEX('G-8 Condition Look up'!$A$3:$H$131,MATCH(G26,'G-8 Condition Look up'!$A$3:$A$131,0),MATCH(K26,'G-8 Condition Look up'!$A$3:$H$3,0)),"") ->  | N26: =IF(M26="","",IF(VLOOKUP(M26,'G-3 Multipliers'!$L$3:$N$6,2,FALSE)=0,"Spatial Data Missing",VLOOKUP(M26,'G-3 Multipliers'!$L$3:$N$6,2,FALSE))) ->  | O26: =IF(M26="","",IF(VLOOKUP(M26,'G-3 Multipliers'!$L$3:$N$6,3,FALSE)=0,"Spatial Data Missing",VLOOKUP(M26,'G-3 Multipliers'!$L$3:$N$6,3,FALSE))) ->  | P26: =IFERROR(VLOOKUP(G26,'G-1 All Habitats'!$B$2:$M$130,12,FALSE),"") ->  | Q26: =IFERROR(IF(P26="","",IF(AND(P26='G-1 All Habitats'!$X$3,T26>0),U26+V26,IF(AND(P26='G-1 All Habitats'!$X$3,S26>0),U26+V26,IF(AND(P26='G-1 All Habitats'!$X$3,AC26>0),"Any Loss Unacceptable",IF(AND(P26='G-1 All Habitats'!$X$3,W26>0),"Any Loss Unacceptable",H26*J26*L26*O26))))),"Check Data") ->  | W26: =IF(E26="","",IF(H26<S26+T26,"Error in Areas",IF(P26<>'G-1 All Habitats'!$X$3,H26-S26-T26,IF(AND(P26='G-1 All Habitats'!$X$3,Y26="Yes"),"Unacceptable Loss",IF(AND(P26='G-1 All Habitats'!$X$3,Y26="No"),AC26,IF(AND(P26='G-1 All Habitats'!$X$3,Y26=""),AC26,IF(AND(P26='G-1 All Habitats'!$X$3,AC26="None",AC26),IF(AND(P26='G-1 All Habitats'!$X$3,AC26>0),H26-S26-T26)))))))) ->  | X26: =IFERROR(IF(H26="","",IF(H26-S26-T26=0<0,"Error in Areas",IF(S26+T26>H26,"Error in Areas",IF(AND(P26='G-1 All Habitats'!$X$3,Y26="Yes"),"Alternative Compensation",IF(W26=0,0,IF(P26='G-1 All Habitats'!$X$3,"Unacceptable Loss",Q26-U26-V26)))))),"Check Data") ->  | AC26: =IF(P26="","",IF(P26='G-1 All Habitats'!$X$3,H26-S26-T26,"None")) ->  | AD26: =IFERROR(AC26*J26*L26*#REF!*O26,IF(P26="","","None")) ->  | AH26: =IF(I26="","",IF(#REF!>0,TRUE,FALSE)) ->  | AI26: 16 | AK26: =IFERROR(INDEX($AI$11:$AI$259, MATCH(0, IF(TRUE=$AF$11:$AF$259, COUNTIF($AK$10:$AK25, $AI$11:$AI$259), ""), 0)),"") ->  | AL26: =IFERROR(INDEX($AI$11:$AI$259, MATCH(0, IF(TRUE=$AG$11:$AG$259, COUNTIF($AL$10:$AL25, $AI$11:$AI$259), ""), 0)),"") ->  | AM26: =IFERROR(INDEX($AI$11:$AI$259, MATCH(0, IF(TRUE=$AH$11:$AH$259, COUNTIF($AM$10:$AM25, $AI$11:$AI$259), ""), 0)),"") ->  | AQ26: 0
A27: =IFERROR(INDEX('G-1 All Habitats'!$AG$3:$AG$15,MATCH(E27,'G-1 All Habitats'!$AF$3:$AF$15,0)),"") ->  | B27: =IFERROR(INDEX('G-8 Condition Look up'!$I$4:$I$131,MATCH(G27,'G-8 Condition Look up'!$A$4:$A$131,0)),"") ->  | D27: 17 | G27: =IFERROR(INDEX('G-1 All Habitats'!$B$3:$B$130,MATCH(F27,'G-1 All Habitats'!$A$3:$A$130,0)),"") ->  | I27: =IF(G27="","",VLOOKUP(G27,'G-1 All Habitats'!$B$2:$M$130,10,FALSE)) ->  | J27: =IFERROR(VLOOKUP(I27,'G-1 All Habitats'!$V$3:$W$7,2,FALSE),"") ->  | L27: =IFERROR(INDEX('G-8 Condition Look up'!$A$3:$H$131,MATCH(G27,'G-8 Condition Look up'!$A$3:$A$131,0),MATCH(K27,'G-8 Condition Look up'!$A$3:$H$3,0)),"") ->  | N27: =IF(M27="","",IF(VLOOKUP(M27,'G-3 Multipliers'!$L$3:$N$6,2,FALSE)=0,"Spatial Data Missing",VLOOKUP(M27,'G-3 Multipliers'!$L$3:$N$6,2,FALSE))) ->  | O27: =IF(M27="","",IF(VLOOKUP(M27,'G-3 Multipliers'!$L$3:$N$6,3,FALSE)=0,"Spatial Data Missing",VLOOKUP(M27,'G-3 Multipliers'!$L$3:$N$6,3,FALSE))) ->  | P27: =IFERROR(VLOOKUP(G27,'G-1 All Habitats'!$B$2:$M$130,12,FALSE),"") ->  | Q27: =IFERROR(IF(P27="","",IF(AND(P27='G-1 All Habitats'!$X$3,T27>0),U27+V27,IF(AND(P27='G-1 All Habitats'!$X$3,S27>0),U27+V27,IF(AND(P27='G-1 All Habitats'!$X$3,AC27>0),"Any Loss Unacceptable",IF(AND(P27='G-1 All Habitats'!$X$3,W27>0),"Any Loss Unacceptable",H27*J27*L27*O27))))),"Check Data") ->  | W27: =IF(E27="","",IF(H27<S27+T27,"Error in Areas",IF(P27<>'G-1 All Habitats'!$X$3,H27-S27-T27,IF(AND(P27='G-1 All Habitats'!$X$3,Y27="Yes"),"Unacceptable Loss",IF(AND(P27='G-1 All Habitats'!$X$3,Y27="No"),AC27,IF(AND(P27='G-1 All Habitats'!$X$3,Y27=""),AC27,IF(AND(P27='G-1 All Habitats'!$X$3,AC27="None",AC27),IF(AND(P27='G-1 All Habitats'!$X$3,AC27>0),H27-S27-T27)))))))) ->  | X27: =IFERROR(IF(H27="","",IF(H27-S27-T27=0<0,"Error in Areas",IF(S27+T27>H27,"Error in Areas",IF(AND(P27='G-1 All Habitats'!$X$3,Y27="Yes"),"Alternative Compensation",IF(W27=0,0,IF(P27='G-1 All Habitats'!$X$3,"Unacceptable Loss",Q27-U27-V27)))))),"Check Data") ->  | AC27: =IF(P27="","",IF(P27='G-1 All Habitats'!$X$3,H27-S27-T27,"None")) ->  | AD27: =IFERROR(AC27*J27*L27*#REF!*O27,IF(P27="","","None")) ->  | AH27: =IF(I27="","",IF(#REF!>0,TRUE,FALSE)) ->  | AI27: 17 | AK27: =IFERROR(INDEX($AI$11:$AI$259, MATCH(0, IF(TRUE=$AF$11:$AF$259, COUNTIF($AK$10:$AK26, $AI$11:$AI$259), ""), 0)),"") ->  | AL27: =IFERROR(INDEX($AI$11:$AI$259, MATCH(0, IF(TRUE=$AG$11:$AG$259, COUNTIF($AL$10:$AL26, $AI$11:$AI$259), ""), 0)),"") ->  | AM27: =IFERROR(INDEX($AI$11:$AI$259, MATCH(0, IF(TRUE=$AH$11:$AH$259, COUNTIF($AM$10:$AM26, $AI$11:$AI$259), ""), 0)),"") ->  | AQ27: 0
A28: =IFERROR(INDEX('G-1 All Habitats'!$AG$3:$AG$15,MATCH(E28,'G-1 All Habitats'!$AF$3:$AF$15,0)),"") ->  | B28: =IFERROR(INDEX('G-8 Condition Look up'!$I$4:$I$131,MATCH(G28,'G-8 Condition Look up'!$A$4:$A$131,0)),"") ->  | D28: 18 | G28: =IFERROR(INDEX('G-1 All Habitats'!$B$3:$B$130,MATCH(F28,'G-1 All Habitats'!$A$3:$A$130,0)),"") ->  | I28: =IF(G28="","",VLOOKUP(G28,'G-1 All Habitats'!$B$2:$M$130,10,FALSE)) ->  | J28: =IFERROR(VLOOKUP(I28,'G-1 All Habitats'!$V$3:$W$7,2,FALSE),"") ->  | L28: =IFERROR(INDEX('G-8 Condition Look up'!$A$3:$H$131,MATCH(G28,'G-8 Condition Look up'!$A$3:$A$131,0),MATCH(K28,'G-8 Condition Look up'!$A$3:$H$3,0)),"") ->  | N28: =IF(M28="","",IF(VLOOKUP(M28,'G-3 Multipliers'!$L$3:$N$6,2,FALSE)=0,"Spatial Data Missing",VLOOKUP(M28,'G-3 Multipliers'!$L$3:$N$6,2,FALSE))) ->  | O28: =IF(M28="","",IF(VLOOKUP(M28,'G-3 Multipliers'!$L$3:$N$6,3,FALSE)=0,"Spatial Data Missing",VLOOKUP(M28,'G-3 Multipliers'!$L$3:$N$6,3,FALSE))) ->  | P28: =IFERROR(VLOOKUP(G28,'G-1 All Habitats'!$B$2:$M$130,12,FALSE),"") ->  | Q28: =IFERROR(IF(P28="","",IF(AND(P28='G-1 All Habitats'!$X$3,T28>0),U28+V28,IF(AND(P28='G-1 All Habitats'!$X$3,S28>0),U28+V28,IF(AND(P28='G-1 All Habitats'!$X$3,AC28>0),"Any Loss Unacceptable",IF(AND(P28='G-1 All Habitats'!$X$3,W28>0),"Any Loss Unacceptable",H28*J28*L28*O28))))),"Check Data") ->  | W28: =IF(E28="","",IF(H28<S28+T28,"Error in Areas",IF(P28<>'G-1 All Habitats'!$X$3,H28-S28-T28,IF(AND(P28='G-1 All Habitats'!$X$3,Y28="Yes"),"Unacceptable Loss",IF(AND(P28='G-1 All Habitats'!$X$3,Y28="No"),AC28,IF(AND(P28='G-1 All Habitats'!$X$3,Y28=""),AC28,IF(AND(P28='G-1 All Habitats'!$X$3,AC28="None",AC28),IF(AND(P28='G-1 All Habitats'!$X$3,AC28>0),H28-S28-T28)))))))) ->  | X28: =IFERROR(IF(H28="","",IF(H28-S28-T28=0<0,"Error in Areas",IF(S28+T28>H28,"Error in Areas",IF(AND(P28='G-1 All Habitats'!$X$3,Y28="Yes"),"Alternative Compensation",IF(W28=0,0,IF(P28='G-1 All Habitats'!$X$3,"Unacceptable Loss",Q28-U28-V28)))))),"Check Data") ->  | AC28: =IF(P28="","",IF(P28='G-1 All Habitats'!$X$3,H28-S28-T28,"None")) ->  | AD28: =IFERROR(AC28*J28*L28*#REF!*O28,IF(P28="","","None")) ->  | AH28: =IF(I28="","",IF(#REF!>0,TRUE,FALSE)) ->  | AI28: 18 | AK28: =IFERROR(INDEX($AI$11:$AI$259, MATCH(0, IF(TRUE=$AF$11:$AF$259, COUNTIF($AK$10:$AK27, $AI$11:$AI$259), ""), 0)),"") ->  | AL28: =IFERROR(INDEX($AI$11:$AI$259, MATCH(0, IF(TRUE=$AG$11:$AG$259, COUNTIF($AL$10:$AL27, $AI$11:$AI$259), ""), 0)),"") ->  | AM28: =IFERROR(INDEX($AI$11:$AI$259, MATCH(0, IF(TRUE=$AH$11:$AH$259, COUNTIF($AM$10:$AM27, $AI$11:$AI$259), ""), 0)),"") ->  | AQ28: 0
A29: =IFERROR(INDEX('G-1 All Habitats'!$AG$3:$AG$15,MATCH(E29,'G-1 All Habitats'!$AF$3:$AF$15,0)),"") ->  | B29: =IFERROR(INDEX('G-8 Condition Look up'!$I$4:$I$131,MATCH(G29,'G-8 Condition Look up'!$A$4:$A$131,0)),"") ->  | D29: 19 | G29: =IFERROR(INDEX('G-1 All Habitats'!$B$3:$B$130,MATCH(F29,'G-1 All Habitats'!$A$3:$A$130,0)),"") ->  | I29: =IF(G29="","",VLOOKUP(G29,'G-1 All Habitats'!$B$2:$M$130,10,FALSE)) ->  | J29: =IFERROR(VLOOKUP(I29,'G-1 All Habitats'!$V$3:$W$7,2,FALSE),"") ->  | L29: =IFERROR(INDEX('G-8 Condition Look up'!$A$3:$H$131,MATCH(G29,'G-8 Condition Look up'!$A$3:$A$131,0),MATCH(K29,'G-8 Condition Look up'!$A$3:$H$3,0)),"") ->  | N29: =IF(M29="","",IF(VLOOKUP(M29,'G-3 Multipliers'!$L$3:$N$6,2,FALSE)=0,"Spatial Data Missing",VLOOKUP(M29,'G-3 Multipliers'!$L$3:$N$6,2,FALSE))) ->  | O29: =IF(M29="","",IF(VLOOKUP(M29,'G-3 Multipliers'!$L$3:$N$6,3,FALSE)=0,"Spatial Data Missing",VLOOKUP(M29,'G-3 Multipliers'!$L$3:$N$6,3,FALSE))) ->  | P29: =IFERROR(VLOOKUP(G29,'G-1 All Habitats'!$B$2:$M$130,12,FALSE),"") ->  | Q29: =IFERROR(IF(P29="","",IF(AND(P29='G-1 All Habitats'!$X$3,T29>0),U29+V29,IF(AND(P29='G-1 All Habitats'!$X$3,S29>0),U29+V29,IF(AND(P29='G-1 All Habitats'!$X$3,AC29>0),"Any Loss Unacceptable",IF(AND(P29='G-1 All Habitats'!$X$3,W29>0),"Any Loss Unacceptable",H29*J29*L29*O29))))),"Check Data") ->  | W29: =IF(E29="","",IF(H29<S29+T29,"Error in Areas",IF(P29<>'G-1 All Habitats'!$X$3,H29-S29-T29,IF(AND(P29='G-1 All Habitats'!$X$3,Y29="Yes"),"Unacceptable Loss",IF(AND(P29='G-1 All Habitats'!$X$3,Y29="No"),AC29,IF(AND(P29='G-1 All Habitats'!$X$3,Y29=""),AC29,IF(AND(P29='G-1 All Habitats'!$X$3,AC29="None",AC29),IF(AND(P29='G-1 All Habitats'!$X$3,AC29>0),H29-S29-T29)))))))) ->  | X29: =IFERROR(IF(H29="","",IF(H29-S29-T29=0<0,"Error in Areas",IF(S29+T29>H29,"Error in Areas",IF(AND(P29='G-1 All Habitats'!$X$3,Y29="Yes"),"Alternative Compensation",IF(W29=0,0,IF(P29='G-1 All Habitats'!$X$3,"Unacceptable Loss",Q29-U29-V29)))))),"Check Data") ->  | AC29: =IF(P29="","",IF(P29='G-1 All Habitats'!$X$3,H29-S29-T29,"None")) ->  | AD29: =IFERROR(AC29*J29*L29*#REF!*O29,IF(P29="","","None")) ->  | AH29: =IF(I29="","",IF(#REF!>0,TRUE,FALSE)) ->  | AI29: 19 | AK29: =IFERROR(INDEX($AI$11:$AI$259, MATCH(0, IF(TRUE=$AF$11:$AF$259, COUNTIF($AK$10:$AK28, $AI$11:$AI$259), ""), 0)),"") ->  | AL29: =IFERROR(INDEX($AI$11:$AI$259, MATCH(0, IF(TRUE=$AG$11:$AG$259, COUNTIF($AL$10:$AL28, $AI$11:$AI$259), ""), 0)),"") ->  | AM29: =IFERROR(INDEX($AI$11:$AI$259, MATCH(0, IF(TRUE=$AH$11:$AH$259, COUNTIF($AM$10:$AM28, $AI$11:$AI$259), ""), 0)),"") ->  | AQ29: 0
A30: =IFERROR(INDEX('G-1 All Habitats'!$AG$3:$AG$15,MATCH(E30,'G-1 All Habitats'!$AF$3:$AF$15,0)),"") ->  | B30: =IFERROR(INDEX('G-8 Condition Look up'!$I$4:$I$131,MATCH(G30,'G-8 Condition Look up'!$A$4:$A$131,0)),"") ->  | D30: 20 | G30: =IFERROR(INDEX('G-1 All Habitats'!$B$3:$B$130,MATCH(F30,'G-1 All Habitats'!$A$3:$A$130,0)),"") ->  | I30: =IF(G30="","",VLOOKUP(G30,'G-1 All Habitats'!$B$2:$M$130,10,FALSE)) ->  | J30: =IFERROR(VLOOKUP(I30,'G-1 All Habitats'!$V$3:$W$7,2,FALSE),"") ->  | L30: =IFERROR(INDEX('G-8 Condition Look up'!$A$3:$H$131,MATCH(G30,'G-8 Condition Look up'!$A$3:$A$131,0),MATCH(K30,'G-8 Condition Look up'!$A$3:$H$3,0)),"") ->  | N30: =IF(M30="","",IF(VLOOKUP(M30,'G-3 Multipliers'!$L$3:$N$6,2,FALSE)=0,"Spatial Data Missing",VLOOKUP(M30,'G-3 Multipliers'!$L$3:$N$6,2,FALSE))) ->  | O30: =IF(M30="","",IF(VLOOKUP(M30,'G-3 Multipliers'!$L$3:$N$6,3,FALSE)=0,"Spatial Data Missing",VLOOKUP(M30,'G-3 Multipliers'!$L$3:$N$6,3,FALSE))) ->  | P30: =IFERROR(VLOOKUP(G30,'G-1 All Habitats'!$B$2:$M$130,12,FALSE),"") ->  | Q30: =IFERROR(IF(P30="","",IF(AND(P30='G-1 All Habitats'!$X$3,T30>0),U30+V30,IF(AND(P30='G-1 All Habitats'!$X$3,S30>0),U30+V30,IF(AND(P30='G-1 All Habitats'!$X$3,AC30>0),"Any Loss Unacceptable",IF(AND(P30='G-1 All Habitats'!$X$3,W30>0),"Any Loss Unacceptable",H30*J30*L30*O30))))),"Check Data") ->  | W30: =IF(E30="","",IF(H30<S30+T30,"Error in Areas",IF(P30<>'G-1 All Habitats'!$X$3,H30-S30-T30,IF(AND(P30='G-1 All Habitats'!$X$3,Y30="Yes"),"Unacceptable Loss",IF(AND(P30='G-1 All Habitats'!$X$3,Y30="No"),AC30,IF(AND(P30='G-1 All Habitats'!$X$3,Y30=""),AC30,IF(AND(P30='G-1 All Habitats'!$X$3,AC30="None",AC30),IF(AND(P30='G-1 All Habitats'!$X$3,AC30>0),H30-S30-T30)))))))) ->  | X30: =IFERROR(IF(H30="","",IF(H30-S30-T30=0<0,"Error in Areas",IF(S30+T30>H30,"Error in Areas",IF(AND(P30='G-1 All Habitats'!$X$3,Y30="Yes"),"Alternative Compensation",IF(W30=0,0,IF(P30='G-1 All Habitats'!$X$3,"Unacceptable Loss",Q30-U30-V30)))))),"Check Data") ->  | AC30: =IF(P30="","",IF(P30='G-1 All Habitats'!$X$3,H30-S30-T30,"None")) ->  | AD30: =IFERROR(AC30*J30*L30*#REF!*O30,IF(P30="","","None")) ->  | AH30: =IF(I30="","",IF(#REF!>0,TRUE,FALSE)) ->  | AI30: 20 | AK30: =IFERROR(INDEX($AI$11:$AI$259, MATCH(0, IF(TRUE=$AF$11:$AF$259, COUNTIF($AK$10:$AK29, $AI$11:$AI$259), ""), 0)),"") ->  | AL30: =IFERROR(INDEX($AI$11:$AI$259, MATCH(0, IF(TRUE=$AG$11:$AG$259, COUNTIF($AL$10:$AL29, $AI$11:$AI$259), ""), 0)),"") ->  | AM30: =IFERROR(INDEX($AI$11:$AI$259, MATCH(0, IF(TRUE=$AH$11:$AH$259, COUNTIF($AM$10:$AM29, $AI$11:$AI$259), ""), 0)),"") ->  | AQ30: 0
A31: =IFERROR(INDEX('G-1 All Habitats'!$AG$3:$AG$15,MATCH(E31,'G-1 All Habitats'!$AF$3:$AF$15,0)),"") ->  | B31: =IFERROR(INDEX('G-8 Condition Look up'!$I$4:$I$131,MATCH(G31,'G-8 Condition Look up'!$A$4:$A$131,0)),"") ->  | D31: 21 | G31: =IFERROR(INDEX('G-1 All Habitats'!$B$3:$B$130,MATCH(F31,'G-1 All Habitats'!$A$3:$A$130,0)),"") ->  | I31: =IF(G31="","",VLOOKUP(G31,'G-1 All Habitats'!$B$2:$M$130,10,FALSE)) ->  | J31: =IFERROR(VLOOKUP(I31,'G-1 All Habitats'!$V$3:$W$7,2,FALSE),"") ->  | L31: =IFERROR(INDEX('G-8 Condition Look up'!$A$3:$H$131,MATCH(G31,'G-8 Condition Look up'!$A$3:$A$131,0),MATCH(K31,'G-8 Condition Look up'!$A$3:$H$3,0)),"") ->  | N31: =IF(M31="","",IF(VLOOKUP(M31,'G-3 Multipliers'!$L$3:$N$6,2,FALSE)=0,"Spatial Data Missing",VLOOKUP(M31,'G-3 Multipliers'!$L$3:$N$6,2,FALSE))) ->  | O31: =IF(M31="","",IF(VLOOKUP(M31,'G-3 Multipliers'!$L$3:$N$6,3,FALSE)=0,"Spatial Data Missing",VLOOKUP(M31,'G-3 Multipliers'!$L$3:$N$6,3,FALSE))) ->  | P31: =IFERROR(VLOOKUP(G31,'G-1 All Habitats'!$B$2:$M$130,12,FALSE),"") ->  | Q31: =IFERROR(IF(P31="","",IF(AND(P31='G-1 All Habitats'!$X$3,T31>0),U31+V31,IF(AND(P31='G-1 All Habitats'!$X$3,S31>0),U31+V31,IF(AND(P31='G-1 All Habitats'!$X$3,AC31>0),"Any Loss Unacceptable",IF(AND(P31='G-1 All Habitats'!$X$3,W31>0),"Any Loss Unacceptable",H31*J31*L31*O31))))),"Check Data") ->  | W31: =IF(E31="","",IF(H31<S31+T31,"Error in Areas",IF(P31<>'G-1 All Habitats'!$X$3,H31-S31-T31,IF(AND(P31='G-1 All Habitats'!$X$3,Y31="Yes"),"Unacceptable Loss",IF(AND(P31='G-1 All Habitats'!$X$3,Y31="No"),AC31,IF(AND(P31='G-1 All Habitats'!$X$3,Y31=""),AC31,IF(AND(P31='G-1 All Habitats'!$X$3,AC31="None",AC31),IF(AND(P31='G-1 All Habitats'!$X$3,AC31>0),H31-S31-T31)))))))) ->  | X31: =IFERROR(IF(H31="","",IF(H31-S31-T31=0<0,"Error in Areas",IF(S31+T31>H31,"Error in Areas",IF(AND(P31='G-1 All Habitats'!$X$3,Y31="Yes"),"Alternative Compensation",IF(W31=0,0,IF(P31='G-1 All Habitats'!$X$3,"Unacceptable Loss",Q31-U31-V31)))))),"Check Data") ->  | AC31: =IF(P31="","",IF(P31='G-1 All Habitats'!$X$3,H31-S31-T31,"None")) ->  | AD31: =IFERROR(AC31*J31*L31*#REF!*O31,IF(P31="","","None")) ->  | AH31: =IF(I31="","",IF(#REF!>0,TRUE,FALSE)) ->  | AI31: 21 | AK31: =IFERROR(INDEX($AI$11:$AI$259, MATCH(0, IF(TRUE=$AF$11:$AF$259, COUNTIF($AK$10:$AK30, $AI$11:$AI$259), ""), 0)),"") ->  | AL31: =IFERROR(INDEX($AI$11:$AI$259, MATCH(0, IF(TRUE=$AG$11:$AG$259, COUNTIF($AL$10:$AL30, $AI$11:$AI$259), ""), 0)),"") ->  | AM31: =IFERROR(INDEX($AI$11:$AI$259, MATCH(0, IF(TRUE=$AH$11:$AH$259, COUNTIF($AM$10:$AM30, $AI$11:$AI$259), ""), 0)),"") ->  | AQ31: 0
A32: =IFERROR(INDEX('G-1 All Habitats'!$AG$3:$AG$15,MATCH(E32,'G-1 All Habitats'!$AF$3:$AF$15,0)),"") ->  | B32: =IFERROR(INDEX('G-8 Condition Look up'!$I$4:$I$131,MATCH(G32,'G-8 Condition Look up'!$A$4:$A$131,0)),"") ->  | D32: 22 | G32: =IFERROR(INDEX('G-1 All Habitats'!$B$3:$B$130,MATCH(F32,'G-1 All Habitats'!$A$3:$A$130,0)),"") ->  | I32: =IF(G32="","",VLOOKUP(G32,'G-1 All Habitats'!$B$2:$M$130,10,FALSE)) ->  | J32: =IFERROR(VLOOKUP(I32,'G-1 All Habitats'!$V$3:$W$7,2,FALSE),"") ->  | L32: =IFERROR(INDEX('G-8 Condition Look up'!$A$3:$H$131,MATCH(G32,'G-8 Condition Look up'!$A$3:$A$131,0),MATCH(K32,'G-8 Condition Look up'!$A$3:$H$3,0)),"") ->  | N32: =IF(M32="","",IF(VLOOKUP(M32,'G-3 Multipliers'!$L$3:$N$6,2,FALSE)=0,"Spatial Data Missing",VLOOKUP(M32,'G-3 Multipliers'!$L$3:$N$6,2,FALSE))) ->  | O32: =IF(M32="","",IF(VLOOKUP(M32,'G-3 Multipliers'!$L$3:$N$6,3,FALSE)=0,"Spatial Data Missing",VLOOKUP(M32,'G-3 Multipliers'!$L$3:$N$6,3,FALSE))) ->  | P32: =IFERROR(VLOOKUP(G32,'G-1 All Habitats'!$B$2:$M$130,12,FALSE),"") ->  | Q32: =IFERROR(IF(P32="","",IF(AND(P32='G-1 All Habitats'!$X$3,T32>0),U32+V32,IF(AND(P32='G-1 All Habitats'!$X$3,S32>0),U32+V32,IF(AND(P32='G-1 All Habitats'!$X$3,AC32>0),"Any Loss Unacceptable",IF(AND(P32='G-1 All Habitats'!$X$3,W32>0),"Any Loss Unacceptable",H32*J32*L32*O32))))),"Check Data") ->  | W32: =IF(E32="","",IF(H32<S32+T32,"Error in Areas",IF(P32<>'G-1 All Habitats'!$X$3,H32-S32-T32,IF(AND(P32='G-1 All Habitats'!$X$3,Y32="Yes"),"Unacceptable Loss",IF(AND(P32='G-1 All Habitats'!$X$3,Y32="No"),AC32,IF(AND(P32='G-1 All Habitats'!$X$3,Y32=""),AC32,IF(AND(P32='G-1 All Habitats'!$X$3,AC32="None",AC32),IF(AND(P32='G-1 All Habitats'!$X$3,AC32>0),H32-S32-T32)))))))) ->  | X32: =IFERROR(IF(H32="","",IF(H32-S32-T32=0<0,"Error in Areas",IF(S32+T32>H32,"Error in Areas",IF(AND(P32='G-1 All Habitats'!$X$3,Y32="Yes"),"Alternative Compensation",IF(W32=0,0,IF(P32='G-1 All Habitats'!$X$3,"Unacceptable Loss",Q32-U32-V32)))))),"Check Data") ->  | AC32: =IF(P32="","",IF(P32='G-1 All Habitats'!$X$3,H32-S32-T32,"None")) ->  | AD32: =IFERROR(AC32*J32*L32*#REF!*O32,IF(P32="","","None")) ->  | AH32: =IF(I32="","",IF(#REF!>0,TRUE,FALSE)) ->  | AI32: 22 | AK32: =IFERROR(INDEX($AI$11:$AI$259, MATCH(0, IF(TRUE=$AF$11:$AF$259, COUNTIF($AK$10:$AK31, $AI$11:$AI$259), ""), 0)),"") ->  | AL32: =IFERROR(INDEX($AI$11:$AI$259, MATCH(0, IF(TRUE=$AG$11:$AG$259, COUNTIF($AL$10:$AL31, $AI$11:$AI$259), ""), 0)),"") ->  | AM32: =IFERROR(INDEX($AI$11:$AI$259, MATCH(0, IF(TRUE=$AH$11:$AH$259, COUNTIF($AM$10:$AM31, $AI$11:$AI$259), ""), 0)),"") ->  | AQ32: 0
A33: =IFERROR(INDEX('G-1 All Habitats'!$AG$3:$AG$15,MATCH(E33,'G-1 All Habitats'!$AF$3:$AF$15,0)),"") ->  | B33: =IFERROR(INDEX('G-8 Condition Look up'!$I$4:$I$131,MATCH(G33,'G-8 Condition Look up'!$A$4:$A$131,0)),"") ->  | D33: 23 | G33: =IFERROR(INDEX('G-1 All Habitats'!$B$3:$B$130,MATCH(F33,'G-1 All Habitats'!$A$3:$A$130,0)),"") ->  | I33: =IF(G33="","",VLOOKUP(G33,'G-1 All Habitats'!$B$2:$M$130,10,FALSE)) ->  | J33: =IFERROR(VLOOKUP(I33,'G-1 All Habitats'!$V$3:$W$7,2,FALSE),"") ->  | L33: =IFERROR(INDEX('G-8 Condition Look up'!$A$3:$H$131,MATCH(G33,'G-8 Condition Look up'!$A$3:$A$131,0),MATCH(K33,'G-8 Condition Look up'!$A$3:$H$3,0)),"") ->  | N33: =IF(M33="","",IF(VLOOKUP(M33,'G-3 Multipliers'!$L$3:$N$6,2,FALSE)=0,"Spatial Data Missing",VLOOKUP(M33,'G-3 Multipliers'!$L$3:$N$6,2,FALSE))) ->  | O33: =IF(M33="","",IF(VLOOKUP(M33,'G-3 Multipliers'!$L$3:$N$6,3,FALSE)=0,"Spatial Data Missing",VLOOKUP(M33,'G-3 Multipliers'!$L$3:$N$6,3,FALSE))) ->  | P33: =IFERROR(VLOOKUP(G33,'G-1 All Habitats'!$B$2:$M$130,12,FALSE),"") ->  | Q33: =IFERROR(IF(P33="","",IF(AND(P33='G-1 All Habitats'!$X$3,T33>0),U33+V33,IF(AND(P33='G-1 All Habitats'!$X$3,S33>0),U33+V33,IF(AND(P33='G-1 All Habitats'!$X$3,AC33>0),"Any Loss Unacceptable",IF(AND(P33='G-1 All Habitats'!$X$3,W33>0),"Any Loss Unacceptable",H33*J33*L33*O33))))),"Check Data") ->  | W33: =IF(E33="","",IF(H33<S33+T33,"Error in Areas",IF(P33<>'G-1 All Habitats'!$X$3,H33-S33-T33,IF(AND(P33='G-1 All Habitats'!$X$3,Y33="Yes"),"Unacceptable Loss",IF(AND(P33='G-1 All Habitats'!$X$3,Y33="No"),AC33,IF(AND(P33='G-1 All Habitats'!$X$3,Y33=""),AC33,IF(AND(P33='G-1 All Habitats'!$X$3,AC33="None",AC33),IF(AND(P33='G-1 All Habitats'!$X$3,AC33>0),H33-S33-T33)))))))) ->  | X33: =IFERROR(IF(H33="","",IF(H33-S33-T33=0<0,"Error in Areas",IF(S33+T33>H33,"Error in Areas",IF(AND(P33='G-1 All Habitats'!$X$3,Y33="Yes"),"Alternative Compensation",IF(W33=0,0,IF(P33='G-1 All Habitats'!$X$3,"Unacceptable Loss",Q33-U33-V33)))))),"Check Data") ->  | AC33: =IF(P33="","",IF(P33='G-1 All Habitats'!$X$3,H33-S33-T33,"None")) ->  | AD33: =IFERROR(AC33*J33*L33*#REF!*O33,IF(P33="","","None")) ->  | AH33: =IF(I33="","",IF(#REF!>0,TRUE,FALSE)) ->  | AI33: 23 | AK33: =IFERROR(INDEX($AI$11:$AI$259, MATCH(0, IF(TRUE=$AF$11:$AF$259, COUNTIF($AK$10:$AK32, $AI$11:$AI$259), ""), 0)),"") ->  | AL33: =IFERROR(INDEX($AI$11:$AI$259, MATCH(0, IF(TRUE=$AG$11:$AG$259, COUNTIF($AL$10:$AL32, $AI$11:$AI$259), ""), 0)),"") ->  | AM33: =IFERROR(INDEX($AI$11:$AI$259, MATCH(0, IF(TRUE=$AH$11:$AH$259, COUNTIF($AM$10:$AM32, $AI$11:$AI$259), ""), 0)),"") ->  | AQ33: 0
A34: =IFERROR(INDEX('G-1 All Habitats'!$AG$3:$AG$15,MATCH(E34,'G-1 All Habitats'!$AF$3:$AF$15,0)),"") ->  | B34: =IFERROR(INDEX('G-8 Condition Look up'!$I$4:$I$131,MATCH(G34,'G-8 Condition Look up'!$A$4:$A$131,0)),"") ->  | D34: 24 | G34: =IFERROR(INDEX('G-1 All Habitats'!$B$3:$B$130,MATCH(F34,'G-1 All Habitats'!$A$3:$A$130,0)),"") ->  | I34: =IF(G34="","",VLOOKUP(G34,'G-1 All Habitats'!$B$2:$M$130,10,FALSE)) ->  | J34: =IFERROR(VLOOKUP(I34,'G-1 All Habitats'!$V$3:$W$7,2,FALSE),"") ->  | L34: =IFERROR(INDEX('G-8 Condition Look up'!$A$3:$H$131,MATCH(G34,'G-8 Condition Look up'!$A$3:$A$131,0),MATCH(K34,'G-8 Condition Look up'!$A$3:$H$3,0)),"") ->  | N34: =IF(M34="","",IF(VLOOKUP(M34,'G-3 Multipliers'!$L$3:$N$6,2,FALSE)=0,"Spatial Data Missing",VLOOKUP(M34,'G-3 Multipliers'!$L$3:$N$6,2,FALSE))) ->  | O34: =IF(M34="","",IF(VLOOKUP(M34,'G-3 Multipliers'!$L$3:$N$6,3,FALSE)=0,"Spatial Data Missing",VLOOKUP(M34,'G-3 Multipliers'!$L$3:$N$6,3,FALSE))) ->  | P34: =IFERROR(VLOOKUP(G34,'G-1 All Habitats'!$B$2:$M$130,12,FALSE),"") ->  | Q34: =IFERROR(IF(P34="","",IF(AND(P34='G-1 All Habitats'!$X$3,T34>0),U34+V34,IF(AND(P34='G-1 All Habitats'!$X$3,S34>0),U34+V34,IF(AND(P34='G-1 All Habitats'!$X$3,AC34>0),"Any Loss Unacceptable",IF(AND(P34='G-1 All Habitats'!$X$3,W34>0),"Any Loss Unacceptable",H34*J34*L34*O34))))),"Check Data") ->  | W34: =IF(E34="","",IF(H34<S34+T34,"Error in Areas",IF(P34<>'G-1 All Habitats'!$X$3,H34-S34-T34,IF(AND(P34='G-1 All Habitats'!$X$3,Y34="Yes"),"Unacceptable Loss",IF(AND(P34='G-1 All Habitats'!$X$3,Y34="No"),AC34,IF(AND(P34='G-1 All Habitats'!$X$3,Y34=""),AC34,IF(AND(P34='G-1 All Habitats'!$X$3,AC34="None",AC34),IF(AND(P34='G-1 All Habitats'!$X$3,AC34>0),H34-S34-T34)))))))) ->  | X34: =IFERROR(IF(H34="","",IF(H34-S34-T34=0<0,"Error in Areas",IF(S34+T34>H34,"Error in Areas",IF(AND(P34='G-1 All Habitats'!$X$3,Y34="Yes"),"Alternative Compensation",IF(W34=0,0,IF(P34='G-1 All Habitats'!$X$3,"Unacceptable Loss",Q34-U34-V34)))))),"Check Data") ->  | AC34: =IF(P34="","",IF(P34='G-1 All Habitats'!$X$3,H34-S34-T34,"None")) ->  | AD34: =IFERROR(AC34*J34*L34*#REF!*O34,IF(P34="","","None")) ->  | AH34: =IF(I34="","",IF(#REF!>0,TRUE,FALSE)) ->  | AI34: 24 | AK34: =IFERROR(INDEX($AI$11:$AI$259, MATCH(0, IF(TRUE=$AF$11:$AF$259, COUNTIF($AK$10:$AK33, $AI$11:$AI$259), ""), 0)),"") ->  | AL34: =IFERROR(INDEX($AI$11:$AI$259, MATCH(0, IF(TRUE=$AG$11:$AG$259, COUNTIF($AL$10:$AL33, $AI$11:$AI$259), ""), 0)),"") ->  | AM34: =IFERROR(INDEX($AI$11:$AI$259, MATCH(0, IF(TRUE=$AH$11:$AH$259, COUNTIF($AM$10:$AM33, $AI$11:$AI$259), ""), 0)),"") ->  | AQ34: 0
A35: =IFERROR(INDEX('G-1 All Habitats'!$AG$3:$AG$15,MATCH(E35,'G-1 All Habitats'!$AF$3:$AF$15,0)),"") ->  | B35: =IFERROR(INDEX('G-8 Condition Look up'!$I$4:$I$131,MATCH(G35,'G-8 Condition Look up'!$A$4:$A$131,0)),"") ->  | D35: 25 | G35: =IFERROR(INDEX('G-1 All Habitats'!$B$3:$B$130,MATCH(F35,'G-1 All Habitats'!$A$3:$A$130,0)),"") ->  | I35: =IF(G35="","",VLOOKUP(G35,'G-1 All Habitats'!$B$2:$M$130,10,FALSE)) ->  | J35: =IFERROR(VLOOKUP(I35,'G-1 All Habitats'!$V$3:$W$7,2,FALSE),"") ->  | L35: =IFERROR(INDEX('G-8 Condition Look up'!$A$3:$H$131,MATCH(G35,'G-8 Condition Look up'!$A$3:$A$131,0),MATCH(K35,'G-8 Condition Look up'!$A$3:$H$3,0)),"") ->  | N35: =IF(M35="","",IF(VLOOKUP(M35,'G-3 Multipliers'!$L$3:$N$6,2,FALSE)=0,"Spatial Data Missing",VLOOKUP(M35,'G-3 Multipliers'!$L$3:$N$6,2,FALSE))) ->  | O35: =IF(M35="","",IF(VLOOKUP(M35,'G-3 Multipliers'!$L$3:$N$6,3,FALSE)=0,"Spatial Data Missing",VLOOKUP(M35,'G-3 Multipliers'!$L$3:$N$6,3,FALSE))) ->  | P35: =IFERROR(VLOOKUP(G35,'G-1 All Habitats'!$B$2:$M$130,12,FALSE),"") ->  | Q35: =IFERROR(IF(P35="","",IF(AND(P35='G-1 All Habitats'!$X$3,T35>0),U35+V35,IF(AND(P35='G-1 All Habitats'!$X$3,S35>0),U35+V35,IF(AND(P35='G-1 All Habitats'!$X$3,AC35>0),"Any Loss Unacceptable",IF(AND(P35='G-1 All Habitats'!$X$3,W35>0),"Any Loss Unacceptable",H35*J35*L35*O35))))),"Check Data") ->  | W35: =IF(E35="","",IF(H35<S35+T35,"Error in Areas",IF(P35<>'G-1 All Habitats'!$X$3,H35-S35-T35,IF(AND(P35='G-1 All Habitats'!$X$3,Y35="Yes"),"Unacceptable Loss",IF(AND(P35='G-1 All Habitats'!$X$3,Y35="No"),AC35,IF(AND(P35='G-1 All Habitats'!$X$3,Y35=""),AC35,IF(AND(P35='G-1 All Habitats'!$X$3,AC35="None",AC35),IF(AND(P35='G-1 All Habitats'!$X$3,AC35>0),H35-S35-T35)))))))) ->  | X35: =IFERROR(IF(H35="","",IF(H35-S35-T35=0<0,"Error in Areas",IF(S35+T35>H35,"Error in Areas",IF(AND(P35='G-1 All Habitats'!$X$3,Y35="Yes"),"Alternative Compensation",IF(W35=0,0,IF(P35='G-1 All Habitats'!$X$3,"Unacceptable Loss",Q35-U35-V35)))))),"Check Data") ->  | AC35: =IF(P35="","",IF(P35='G-1 All Habitats'!$X$3,H35-S35-T35,"None")) ->  | AD35: =IFERROR(AC35*J35*L35*#REF!*O35,IF(P35="","","None")) ->  | AH35: =IF(I35="","",IF(#REF!>0,TRUE,FALSE)) ->  | AI35: 25 | AK35: =IFERROR(INDEX($AI$11:$AI$259, MATCH(0, IF(TRUE=$AF$11:$AF$259, COUNTIF($AK$10:$AK34, $AI$11:$AI$259), ""), 0)),"") ->  | AL35: =IFERROR(INDEX($AI$11:$AI$259, MATCH(0, IF(TRUE=$AG$11:$AG$259, COUNTIF($AL$10:$AL34, $AI$11:$AI$259), ""), 0)),"") ->  | AM35: =IFERROR(INDEX($AI$11:$AI$259, MATCH(0, IF(TRUE=$AH$11:$AH$259, COUNTIF($AM$10:$AM34, $AI$11:$AI$259), ""), 0)),"") ->  | AQ35: 0
A36: =IFERROR(INDEX('G-1 All Habitats'!$AG$3:$AG$15,MATCH(E36,'G-1 All Habitats'!$AF$3:$AF$15,0)),"") ->  | B36: =IFERROR(INDEX('G-8 Condition Look up'!$I$4:$I$131,MATCH(G36,'G-8 Condition Look up'!$A$4:$A$131,0)),"") ->  | D36: 26 | G36: =IFERROR(INDEX('G-1 All Habitats'!$B$3:$B$130,MATCH(F36,'G-1 All Habitats'!$A$3:$A$130,0)),"") ->  | I36: =IF(G36="","",VLOOKUP(G36,'G-1 All Habitats'!$B$2:$M$130,10,FALSE)) ->  | J36: =IFERROR(VLOOKUP(I36,'G-1 All Habitats'!$V$3:$W$7,2,FALSE),"") ->  | L36: =IFERROR(INDEX('G-8 Condition Look up'!$A$3:$H$131,MATCH(G36,'G-8 Condition Look up'!$A$3:$A$131,0),MATCH(K36,'G-8 Condition Look up'!$A$3:$H$3,0)),"") ->  | N36: =IF(M36="","",IF(VLOOKUP(M36,'G-3 Multipliers'!$L$3:$N$6,2,FALSE)=0,"Spatial Data Missing",VLOOKUP(M36,'G-3 Multipliers'!$L$3:$N$6,2,FALSE))) ->  | O36: =IF(M36="","",IF(VLOOKUP(M36,'G-3 Multipliers'!$L$3:$N$6,3,FALSE)=0,"Spatial Data Missing",VLOOKUP(M36,'G-3 Multipliers'!$L$3:$N$6,3,FALSE))) ->  | P36: =IFERROR(VLOOKUP(G36,'G-1 All Habitats'!$B$2:$M$130,12,FALSE),"") ->  | Q36: =IFERROR(IF(P36="","",IF(AND(P36='G-1 All Habitats'!$X$3,T36>0),U36+V36,IF(AND(P36='G-1 All Habitats'!$X$3,S36>0),U36+V36,IF(AND(P36='G-1 All Habitats'!$X$3,AC36>0),"Any Loss Unacceptable",IF(AND(P36='G-1 All Habitats'!$X$3,W36>0),"Any Loss Unacceptable",H36*J36*L36*O36))))),"Check Data") ->  | W36: =IF(E36="","",IF(H36<S36+T36,"Error in Areas",IF(P36<>'G-1 All Habitats'!$X$3,H36-S36-T36,IF(AND(P36='G-1 All Habitats'!$X$3,Y36="Yes"),"Unacceptable Loss",IF(AND(P36='G-1 All Habitats'!$X$3,Y36="No"),AC36,IF(AND(P36='G-1 All Habitats'!$X$3,Y36=""),AC36,IF(AND(P36='G-1 All Habitats'!$X$3,AC36="None",AC36),IF(AND(P36='G-1 All Habitats'!$X$3,AC36>0),H36-S36-T36)))))))) ->  | X36: =IFERROR(IF(H36="","",IF(H36-S36-T36=0<0,"Error in Areas",IF(S36+T36>H36,"Error in Areas",IF(AND(P36='G-1 All Habitats'!$X$3,Y36="Yes"),"Alternative Compensation",IF(W36=0,0,IF(P36='G-1 All Habitats'!$X$3,"Unacceptable Loss",Q36-U36-V36)))))),"Check Data") ->  | AC36: =IF(P36="","",IF(P36='G-1 All Habitats'!$X$3,H36-S36-T36,"None")) ->  | AD36: =IFERROR(AC36*J36*L36*#REF!*O36,IF(P36="","","None")) ->  | AH36: =IF(I36="","",IF(#REF!>0,TRUE,FALSE)) ->  | AI36: 26 | AK36: =IFERROR(INDEX($AI$11:$AI$259, MATCH(0, IF(TRUE=$AF$11:$AF$259, COUNTIF($AK$10:$AK35, $AI$11:$AI$259), ""), 0)),"") ->  | AL36: =IFERROR(INDEX($AI$11:$AI$259, MATCH(0, IF(TRUE=$AG$11:$AG$259, COUNTIF($AL$10:$AL35, $AI$11:$AI$259), ""), 0)),"") ->  | AM36: =IFERROR(INDEX($AI$11:$AI$259, MATCH(0, IF(TRUE=$AH$11:$AH$259, COUNTIF($AM$10:$AM35, $AI$11:$AI$259), ""), 0)),"") ->  | AQ36: 0
A37: =IFERROR(INDEX('G-1 All Habitats'!$AG$3:$AG$15,MATCH(E37,'G-1 All Habitats'!$AF$3:$AF$15,0)),"") ->  | B37: =IFERROR(INDEX('G-8 Condition Look up'!$I$4:$I$131,MATCH(G37,'G-8 Condition Look up'!$A$4:$A$131,0)),"") ->  | D37: 27 | G37: =IFERROR(INDEX('G-1 All Habitats'!$B$3:$B$130,MATCH(F37,'G-1 All Habitats'!$A$3:$A$130,0)),"") ->  | I37: =IF(G37="","",VLOOKUP(G37,'G-1 All Habitats'!$B$2:$M$130,10,FALSE)) ->  | J37: =IFERROR(VLOOKUP(I37,'G-1 All Habitats'!$V$3:$W$7,2,FALSE),"") ->  | L37: =IFERROR(INDEX('G-8 Condition Look up'!$A$3:$H$131,MATCH(G37,'G-8 Condition Look up'!$A$3:$A$131,0),MATCH(K37,'G-8 Condition Look up'!$A$3:$H$3,0)),"") ->  | N37: =IF(M37="","",IF(VLOOKUP(M37,'G-3 Multipliers'!$L$3:$N$6,2,FALSE)=0,"Spatial Data Missing",VLOOKUP(M37,'G-3 Multipliers'!$L$3:$N$6,2,FALSE))) ->  | O37: =IF(M37="","",IF(VLOOKUP(M37,'G-3 Multipliers'!$L$3:$N$6,3,FALSE)=0,"Spatial Data Missing",VLOOKUP(M37,'G-3 Multipliers'!$L$3:$N$6,3,FALSE))) ->  | P37: =IFERROR(VLOOKUP(G37,'G-1 All Habitats'!$B$2:$M$130,12,FALSE),"") ->  | Q37: =IFERROR(IF(P37="","",IF(AND(P37='G-1 All Habitats'!$X$3,T37>0),U37+V37,IF(AND(P37='G-1 All Habitats'!$X$3,S37>0),U37+V37,IF(AND(P37='G-1 All Habitats'!$X$3,AC37>0),"Any Loss Unacceptable",IF(AND(P37='G-1 All Habitats'!$X$3,W37>0),"Any Loss Unacceptable",H37*J37*L37*O37))))),"Check Data") ->  | W37: =IF(E37="","",IF(H37<S37+T37,"Error in Areas",IF(P37<>'G-1 All Habitats'!$X$3,H37-S37-T37,IF(AND(P37='G-1 All Habitats'!$X$3,Y37="Yes"),"Unacceptable Loss",IF(AND(P37='G-1 All Habitats'!$X$3,Y37="No"),AC37,IF(AND(P37='G-1 All Habitats'!$X$3,Y37=""),AC37,IF(AND(P37='G-1 All Habitats'!$X$3,AC37="None",AC37),IF(AND(P37='G-1 All Habitats'!$X$3,AC37>0),H37-S37-T37)))))))) ->  | X37: =IFERROR(IF(H37="","",IF(H37-S37-T37=0<0,"Error in Areas",IF(S37+T37>H37,"Error in Areas",IF(AND(P37='G-1 All Habitats'!$X$3,Y37="Yes"),"Alternative Compensation",IF(W37=0,0,IF(P37='G-1 All Habitats'!$X$3,"Unacceptable Loss",Q37-U37-V37)))))),"Check Data") ->  | AC37: =IF(P37="","",IF(P37='G-1 All Habitats'!$X$3,H37-S37-T37,"None")) ->  | AD37: =IFERROR(AC37*J37*L37*#REF!*O37,IF(P37="","","None")) ->  | AH37: =IF(I37="","",IF(#REF!>0,TRUE,FALSE)) ->  | AI37: 27 | AK37: =IFERROR(INDEX($AI$11:$AI$259, MATCH(0, IF(TRUE=$AF$11:$AF$259, COUNTIF($AK$10:$AK36, $AI$11:$AI$259), ""), 0)),"") ->  | AL37: =IFERROR(INDEX($AI$11:$AI$259, MATCH(0, IF(TRUE=$AG$11:$AG$259, COUNTIF($AL$10:$AL36, $AI$11:$AI$259), ""), 0)),"") ->  | AM37: =IFERROR(INDEX($AI$11:$AI$259, MATCH(0, IF(TRUE=$AH$11:$AH$259, COUNTIF($AM$10:$AM36, $AI$11:$AI$259), ""), 0)),"") ->  | AQ37: 0
A38: =IFERROR(INDEX('G-1 All Habitats'!$AG$3:$AG$15,MATCH(E38,'G-1 All Habitats'!$AF$3:$AF$15,0)),"") ->  | B38: =IFERROR(INDEX('G-8 Condition Look up'!$I$4:$I$131,MATCH(G38,'G-8 Condition Look up'!$A$4:$A$131,0)),"") ->  | D38: 28 | G38: =IFERROR(INDEX('G-1 All Habitats'!$B$3:$B$130,MATCH(F38,'G-1 All Habitats'!$A$3:$A$130,0)),"") ->  | I38: =IF(G38="","",VLOOKUP(G38,'G-1 All Habitats'!$B$2:$M$130,10,FALSE)) ->  | J38: =IFERROR(VLOOKUP(I38,'G-1 All Habitats'!$V$3:$W$7,2,FALSE),"") ->  | L38: =IFERROR(INDEX('G-8 Condition Look up'!$A$3:$H$131,MATCH(G38,'G-8 Condition Look up'!$A$3:$A$131,0),MATCH(K38,'G-8 Condition Look up'!$A$3:$H$3,0)),"") ->  | N38: =IF(M38="","",IF(VLOOKUP(M38,'G-3 Multipliers'!$L$3:$N$6,2,FALSE)=0,"Spatial Data Missing",VLOOKUP(M38,'G-3 Multipliers'!$L$3:$N$6,2,FALSE))) ->  | O38: =IF(M38="","",IF(VLOOKUP(M38,'G-3 Multipliers'!$L$3:$N$6,3,FALSE)=0,"Spatial Data Missing",VLOOKUP(M38,'G-3 Multipliers'!$L$3:$N$6,3,FALSE))) ->  | P38: =IFERROR(VLOOKUP(G38,'G-1 All Habitats'!$B$2:$M$130,12,FALSE),"") ->  | Q38: =IFERROR(IF(P38="","",IF(AND(P38='G-1 All Habitats'!$X$3,T38>0),U38+V38,IF(AND(P38='G-1 All Habitats'!$X$3,S38>0),U38+V38,IF(AND(P38='G-1 All Habitats'!$X$3,AC38>0),"Any Loss Unacceptable",IF(AND(P38='G-1 All Habitats'!$X$3,W38>0),"Any Loss Unacceptable",H38*J38*L38*O38))))),"Check Data") ->  | W38: =IF(E38="","",IF(H38<S38+T38,"Error in Areas",IF(P38<>'G-1 All Habitats'!$X$3,H38-S38-T38,IF(AND(P38='G-1 All Habitats'!$X$3,Y38="Yes"),"Unacceptable Loss",IF(AND(P38='G-1 All Habitats'!$X$3,Y38="No"),AC38,IF(AND(P38='G-1 All Habitats'!$X$3,Y38=""),AC38,IF(AND(P38='G-1 All Habitats'!$X$3,AC38="None",AC38),IF(AND(P38='G-1 All Habitats'!$X$3,AC38>0),H38-S38-T38)))))))) ->  | X38: =IFERROR(IF(H38="","",IF(H38-S38-T38=0<0,"Error in Areas",IF(S38+T38>H38,"Error in Areas",IF(AND(P38='G-1 All Habitats'!$X$3,Y38="Yes"),"Alternative Compensation",IF(W38=0,0,IF(P38='G-1 All Habitats'!$X$3,"Unacceptable Loss",Q38-U38-V38)))))),"Check Data") ->  | AC38: =IF(P38="","",IF(P38='G-1 All Habitats'!$X$3,H38-S38-T38,"None")) ->  | AD38: =IFERROR(AC38*J38*L38*#REF!*O38,IF(P38="","","None")) ->  | AH38: =IF(I38="","",IF(#REF!>0,TRUE,FALSE)) ->  | AI38: 28 | AK38: =IFERROR(INDEX($AI$11:$AI$259, MATCH(0, IF(TRUE=$AF$11:$AF$259, COUNTIF($AK$10:$AK37, $AI$11:$AI$259), ""), 0)),"") ->  | AL38: =IFERROR(INDEX($AI$11:$AI$259, MATCH(0, IF(TRUE=$AG$11:$AG$259, COUNTIF($AL$10:$AL37, $AI$11:$AI$259), ""), 0)),"") ->  | AM38: =IFERROR(INDEX($AI$11:$AI$259, MATCH(0, IF(TRUE=$AH$11:$AH$259, COUNTIF($AM$10:$AM37, $AI$11:$AI$259), ""), 0)),"") ->  | AQ38: 0
A39: =IFERROR(INDEX('G-1 All Habitats'!$AG$3:$AG$15,MATCH(E39,'G-1 All Habitats'!$AF$3:$AF$15,0)),"") ->  | B39: =IFERROR(INDEX('G-8 Condition Look up'!$I$4:$I$131,MATCH(G39,'G-8 Condition Look up'!$A$4:$A$131,0)),"") ->  | D39: 29 | G39: =IFERROR(INDEX('G-1 All Habitats'!$B$3:$B$130,MATCH(F39,'G-1 All Habitats'!$A$3:$A$130,0)),"") ->  | I39: =IF(G39="","",VLOOKUP(G39,'G-1 All Habitats'!$B$2:$M$130,10,FALSE)) ->  | J39: =IFERROR(VLOOKUP(I39,'G-1 All Habitats'!$V$3:$W$7,2,FALSE),"") ->  | L39: =IFERROR(INDEX('G-8 Condition Look up'!$A$3:$H$131,MATCH(G39,'G-8 Condition Look up'!$A$3:$A$131,0),MATCH(K39,'G-8 Condition Look up'!$A$3:$H$3,0)),"") ->  | N39: =IF(M39="","",IF(VLOOKUP(M39,'G-3 Multipliers'!$L$3:$N$6,2,FALSE)=0,"Spatial Data Missing",VLOOKUP(M39,'G-3 Multipliers'!$L$3:$N$6,2,FALSE))) ->  | O39: =IF(M39="","",IF(VLOOKUP(M39,'G-3 Multipliers'!$L$3:$N$6,3,FALSE)=0,"Spatial Data Missing",VLOOKUP(M39,'G-3 Multipliers'!$L$3:$N$6,3,FALSE))) ->  | P39: =IFERROR(VLOOKUP(G39,'G-1 All Habitats'!$B$2:$M$130,12,FALSE),"") ->  | Q39: =IFERROR(IF(P39="","",IF(AND(P39='G-1 All Habitats'!$X$3,T39>0),U39+V39,IF(AND(P39='G-1 All Habitats'!$X$3,S39>0),U39+V39,IF(AND(P39='G-1 All Habitats'!$X$3,AC39>0),"Any Loss Unacceptable",IF(AND(P39='G-1 All Habitats'!$X$3,W39>0),"Any Loss Unacceptable",H39*J39*L39*O39))))),"Check Data") ->  | W39: =IF(E39="","",IF(H39<S39+T39,"Error in Areas",IF(P39<>'G-1 All Habitats'!$X$3,H39-S39-T39,IF(AND(P39='G-1 All Habitats'!$X$3,Y39="Yes"),"Unacceptable Loss",IF(AND(P39='G-1 All Habitats'!$X$3,Y39="No"),AC39,IF(AND(P39='G-1 All Habitats'!$X$3,Y39=""),AC39,IF(AND(P39='G-1 All Habitats'!$X$3,AC39="None",AC39),IF(AND(P39='G-1 All Habitats'!$X$3,AC39>0),H39-S39-T39)))))))) ->  | X39: =IFERROR(IF(H39="","",IF(H39-S39-T39=0<0,"Error in Areas",IF(S39+T39>H39,"Error in Areas",IF(AND(P39='G-1 All Habitats'!$X$3,Y39="Yes"),"Alternative Compensation",IF(W39=0,0,IF(P39='G-1 All Habitats'!$X$3,"Unacceptable Loss",Q39-U39-V39)))))),"Check Data") ->  | AC39: =IF(P39="","",IF(P39='G-1 All Habitats'!$X$3,H39-S39-T39,"None")) ->  | AD39: =IFERROR(AC39*J39*L39*#REF!*O39,IF(P39="","","None")) ->  | AH39: =IF(I39="","",IF(#REF!>0,TRUE,FALSE)) ->  | AI39: 29 | AK39: =IFERROR(INDEX($AI$11:$AI$259, MATCH(0, IF(TRUE=$AF$11:$AF$259, COUNTIF($AK$10:$AK38, $AI$11:$AI$259), ""), 0)),"") ->  | AL39: =IFERROR(INDEX($AI$11:$AI$259, MATCH(0, IF(TRUE=$AG$11:$AG$259, COUNTIF($AL$10:$AL38, $AI$11:$AI$259), ""), 0)),"") ->  | AM39: =IFERROR(INDEX($AI$11:$AI$259, MATCH(0, IF(TRUE=$AH$11:$AH$259, COUNTIF($AM$10:$AM38, $AI$11:$AI$259), ""), 0)),"") ->  | AQ39: 0
A40: =IFERROR(INDEX('G-1 All Habitats'!$AG$3:$AG$15,MATCH(E40,'G-1 All Habitats'!$AF$3:$AF$15,0)),"") ->  | B40: =IFERROR(INDEX('G-8 Condition Look up'!$I$4:$I$131,MATCH(G40,'G-8 Condition Look up'!$A$4:$A$131,0)),"") ->  | D40: 30 | G40: =IFERROR(INDEX('G-1 All Habitats'!$B$3:$B$130,MATCH(F40,'G-1 All Habitats'!$A$3:$A$130,0)),"") ->  | I40: =IF(G40="","",VLOOKUP(G40,'G-1 All Habitats'!$B$2:$M$130,10,FALSE)) ->  | J40: =IFERROR(VLOOKUP(I40,'G-1 All Habitats'!$V$3:$W$7,2,FALSE),"") ->  | L40: =IFERROR(INDEX('G-8 Condition Look up'!$A$3:$H$131,MATCH(G40,'G-8 Condition Look up'!$A$3:$A$131,0),MATCH(K40,'G-8 Condition Look up'!$A$3:$H$3,0)),"") ->  | N40: =IF(M40="","",IF(VLOOKUP(M40,'G-3 Multipliers'!$L$3:$N$6,2,FALSE)=0,"Spatial Data Missing",VLOOKUP(M40,'G-3 Multipliers'!$L$3:$N$6,2,FALSE))) ->  | O40: =IF(M40="","",IF(VLOOKUP(M40,'G-3 Multipliers'!$L$3:$N$6,3,FALSE)=0,"Spatial Data Missing",VLOOKUP(M40,'G-3 Multipliers'!$L$3:$N$6,3,FALSE))) ->  | P40: =IFERROR(VLOOKUP(G40,'G-1 All Habitats'!$B$2:$M$130,12,FALSE),"") ->  | Q40: =IFERROR(IF(P40="","",IF(AND(P40='G-1 All Habitats'!$X$3,T40>0),U40+V40,IF(AND(P40='G-1 All Habitats'!$X$3,S40>0),U40+V40,IF(AND(P40='G-1 All Habitats'!$X$3,AC40>0),"Any Loss Unacceptable",IF(AND(P40='G-1 All Habitats'!$X$3,W40>0),"Any Loss Unacceptable",H40*J40*L40*O40))))),"Check Data") ->  | W40: =IF(E40="","",IF(H40<S40+T40,"Error in Areas",IF(P40<>'G-1 All Habitats'!$X$3,H40-S40-T40,IF(AND(P40='G-1 All Habitats'!$X$3,Y40="Yes"),"Unacceptable Loss",IF(AND(P40='G-1 All Habitats'!$X$3,Y40="No"),AC40,IF(AND(P40='G-1 All Habitats'!$X$3,Y40=""),AC40,IF(AND(P40='G-1 All Habitats'!$X$3,AC40="None",AC40),IF(AND(P40='G-1 All Habitats'!$X$3,AC40>0),H40-S40-T40)))))))) ->  | X40: =IFERROR(IF(H40="","",IF(H40-S40-T40=0<0,"Error in Areas",IF(S40+T40>H40,"Error in Areas",IF(AND(P40='G-1 All Habitats'!$X$3,Y40="Yes"),"Alternative Compensation",IF(W40=0,0,IF(P40='G-1 All Habitats'!$X$3,"Unacceptable Loss",Q40-U40-V40)))))),"Check Data") ->  | AC40: =IF(P40="","",IF(P40='G-1 All Habitats'!$X$3,H40-S40-T40,"None")) ->  | AD40: =IFERROR(AC40*J40*L40*#REF!*O40,IF(P40="","","None")) ->  | AH40: =IF(I40="","",IF(#REF!>0,TRUE,FALSE)) ->  | AI40: 30 | AK40: =IFERROR(INDEX($AI$11:$AI$259, MATCH(0, IF(TRUE=$AF$11:$AF$259, COUNTIF($AK$10:$AK39, $AI$11:$AI$259), ""), 0)),"") ->  | AL40: =IFERROR(INDEX($AI$11:$AI$259, MATCH(0, IF(TRUE=$AG$11:$AG$259, COUNTIF($AL$10:$AL39, $AI$11:$AI$259), ""), 0)),"") ->  | AM40: =IFERROR(INDEX($AI$11:$AI$259, MATCH(0, IF(TRUE=$AH$11:$AH$259, COUNTIF($AM$10:$AM39, $AI$11:$AI$259), ""), 0)),"") ->  | AQ40: 0
A41: =IFERROR(INDEX('G-1 All Habitats'!$AG$3:$AG$15,MATCH(E41,'G-1 All Habitats'!$AF$3:$AF$15,0)),"") ->  | B41: =IFERROR(INDEX('G-8 Condition Look up'!$I$4:$I$131,MATCH(G41,'G-8 Condition Look up'!$A$4:$A$131,0)),"") ->  | D41: 31 | G41: =IFERROR(INDEX('G-1 All Habitats'!$B$3:$B$130,MATCH(F41,'G-1 All Habitats'!$A$3:$A$130,0)),"") ->  | I41: =IF(G41="","",VLOOKUP(G41,'G-1 All Habitats'!$B$2:$M$130,10,FALSE)) ->  | J41: =IFERROR(VLOOKUP(I41,'G-1 All Habitats'!$V$3:$W$7,2,FALSE),"") ->  | L41: =IFERROR(INDEX('G-8 Condition Look up'!$A$3:$H$131,MATCH(G41,'G-8 Condition Look up'!$A$3:$A$131,0),MATCH(K41,'G-8 Condition Look up'!$A$3:$H$3,0)),"") ->  | N41: =IF(M41="","",IF(VLOOKUP(M41,'G-3 Multipliers'!$L$3:$N$6,2,FALSE)=0,"Spatial Data Missing",VLOOKUP(M41,'G-3 Multipliers'!$L$3:$N$6,2,FALSE))) ->  | O41: =IF(M41="","",IF(VLOOKUP(M41,'G-3 Multipliers'!$L$3:$N$6,3,FALSE)=0,"Spatial Data Missing",VLOOKUP(M41,'G-3 Multipliers'!$L$3:$N$6,3,FALSE))) ->  | P41: =IFERROR(VLOOKUP(G41,'G-1 All Habitats'!$B$2:$M$130,12,FALSE),"") ->  | Q41: =IFERROR(IF(P41="","",IF(AND(P41='G-1 All Habitats'!$X$3,T41>0),U41+V41,IF(AND(P41='G-1 All Habitats'!$X$3,S41>0),U41+V41,IF(AND(P41='G-1 All Habitats'!$X$3,AC41>0),"Any Loss Unacceptable",IF(AND(P41='G-1 All Habitats'!$X$3,W41>0),"Any Loss Unacceptable",H41*J41*L41*O41))))),"Check Data") ->  | W41: =IF(E41="","",IF(H41<S41+T41,"Error in Areas",IF(P41<>'G-1 All Habitats'!$X$3,H41-S41-T41,IF(AND(P41='G-1 All Habitats'!$X$3,Y41="Yes"),"Unacceptable Loss",IF(AND(P41='G-1 All Habitats'!$X$3,Y41="No"),AC41,IF(AND(P41='G-1 All Habitats'!$X$3,Y41=""),AC41,IF(AND(P41='G-1 All Habitats'!$X$3,AC41="None",AC41),IF(AND(P41='G-1 All Habitats'!$X$3,AC41>0),H41-S41-T41)))))))) ->  | X41: =IFERROR(IF(H41="","",IF(H41-S41-T41=0<0,"Error in Areas",IF(S41+T41>H41,"Error in Areas",IF(AND(P41='G-1 All Habitats'!$X$3,Y41="Yes"),"Alternative Compensation",IF(W41=0,0,IF(P41='G-1 All Habitats'!$X$3,"Unacceptable Loss",Q41-U41-V41)))))),"Check Data") ->  | AC41: =IF(P41="","",IF(P41='G-1 All Habitats'!$X$3,H41-S41-T41,"None")) ->  | AD41: =IFERROR(AC41*J41*L41*#REF!*O41,IF(P41="","","None")) ->  | AH41: =IF(I41="","",IF(#REF!>0,TRUE,FALSE)) ->  | AI41: 31 | AK41: =IFERROR(INDEX($AI$11:$AI$259, MATCH(0, IF(TRUE=$AF$11:$AF$259, COUNTIF($AK$10:$AK40, $AI$11:$AI$259), ""), 0)),"") ->  | AL41: =IFERROR(INDEX($AI$11:$AI$259, MATCH(0, IF(TRUE=$AG$11:$AG$259, COUNTIF($AL$10:$AL40, $AI$11:$AI$259), ""), 0)),"") ->  | AM41: =IFERROR(INDEX($AI$11:$AI$259, MATCH(0, IF(TRUE=$AH$11:$AH$259, COUNTIF($AM$10:$AM40, $AI$11:$AI$259), ""), 0)),"") ->  | AQ41: 0
A42: =IFERROR(INDEX('G-1 All Habitats'!$AG$3:$AG$15,MATCH(E42,'G-1 All Habitats'!$AF$3:$AF$15,0)),"") ->  | B42: =IFERROR(INDEX('G-8 Condition Look up'!$I$4:$I$131,MATCH(G42,'G-8 Condition Look up'!$A$4:$A$131,0)),"") ->  | D42: 32 | G42: =IFERROR(INDEX('G-1 All Habitats'!$B$3:$B$130,MATCH(F42,'G-1 All Habitats'!$A$3:$A$130,0)),"") ->  | I42: =IF(G42="","",VLOOKUP(G42,'G-1 All Habitats'!$B$2:$M$130,10,FALSE)) ->  | J42: =IFERROR(VLOOKUP(I42,'G-1 All Habitats'!$V$3:$W$7,2,FALSE),"") ->  | L42: =IFERROR(INDEX('G-8 Condition Look up'!$A$3:$H$131,MATCH(G42,'G-8 Condition Look up'!$A$3:$A$131,0),MATCH(K42,'G-8 Condition Look up'!$A$3:$H$3,0)),"") ->  | N42: =IF(M42="","",IF(VLOOKUP(M42,'G-3 Multipliers'!$L$3:$N$6,2,FALSE)=0,"Spatial Data Missing",VLOOKUP(M42,'G-3 Multipliers'!$L$3:$N$6,2,FALSE))) ->  | O42: =IF(M42="","",IF(VLOOKUP(M42,'G-3 Multipliers'!$L$3:$N$6,3,FALSE)=0,"Spatial Data Missing",VLOOKUP(M42,'G-3 Multipliers'!$L$3:$N$6,3,FALSE))) ->  | P42: =IFERROR(VLOOKUP(G42,'G-1 All Habitats'!$B$2:$M$130,12,FALSE),"") ->  | Q42: =IFERROR(IF(P42="","",IF(AND(P42='G-1 All Habitats'!$X$3,T42>0),U42+V42,IF(AND(P42='G-1 All Habitats'!$X$3,S42>0),U42+V42,IF(AND(P42='G-1 All Habitats'!$X$3,AC42>0),"Any Loss Unacceptable",IF(AND(P42='G-1 All Habitats'!$X$3,W42>0),"Any Loss Unacceptable",H42*J42*L42*O42))))),"Check Data") ->  | W42: =IF(E42="","",IF(H42<S42+T42,"Error in Areas",IF(P42<>'G-1 All Habitats'!$X$3,H42-S42-T42,IF(AND(P42='G-1 All Habitats'!$X$3,Y42="Yes"),"Unacceptable Loss",IF(AND(P42='G-1 All Habitats'!$X$3,Y42="No"),AC42,IF(AND(P42='G-1 All Habitats'!$X$3,Y42=""),AC42,IF(AND(P42='G-1 All Habitats'!$X$3,AC42="None",AC42),IF(AND(P42='G-1 All Habitats'!$X$3,AC42>0),H42-S42-T42)))))))) ->  | X42: =IFERROR(IF(H42="","",IF(H42-S42-T42=0<0,"Error in Areas",IF(S42+T42>H42,"Error in Areas",IF(AND(P42='G-1 All Habitats'!$X$3,Y42="Yes"),"Alternative Compensation",IF(W42=0,0,IF(P42='G-1 All Habitats'!$X$3,"Unacceptable Loss",Q42-U42-V42)))))),"Check Data") ->  | AC42: =IF(P42="","",IF(P42='G-1 All Habitats'!$X$3,H42-S42-T42,"None")) ->  | AD42: =IFERROR(AC42*J42*L42*#REF!*O42,IF(P42="","","None")) ->  | AH42: =IF(I42="","",IF(#REF!>0,TRUE,FALSE)) ->  | AI42: 32 | AK42: =IFERROR(INDEX($AI$11:$AI$259, MATCH(0, IF(TRUE=$AF$11:$AF$259, COUNTIF($AK$10:$AK41, $AI$11:$AI$259), ""), 0)),"") ->  | AL42: =IFERROR(INDEX($AI$11:$AI$259, MATCH(0, IF(TRUE=$AG$11:$AG$259, COUNTIF($AL$10:$AL41, $AI$11:$AI$259), ""), 0)),"") ->  | AM42: =IFERROR(INDEX($AI$11:$AI$259, MATCH(0, IF(TRUE=$AH$11:$AH$259, COUNTIF($AM$10:$AM41, $AI$11:$AI$259), ""), 0)),"") ->  | AQ42: 0
A43: =IFERROR(INDEX('G-1 All Habitats'!$AG$3:$AG$15,MATCH(E43,'G-1 All Habitats'!$AF$3:$AF$15,0)),"") ->  | B43: =IFERROR(INDEX('G-8 Condition Look up'!$I$4:$I$131,MATCH(G43,'G-8 Condition Look up'!$A$4:$A$131,0)),"") ->  | D43: 33 | G43: =IFERROR(INDEX('G-1 All Habitats'!$B$3:$B$130,MATCH(F43,'G-1 All Habitats'!$A$3:$A$130,0)),"") ->  | I43: =IF(G43="","",VLOOKUP(G43,'G-1 All Habitats'!$B$2:$M$130,10,FALSE)) ->  | J43: =IFERROR(VLOOKUP(I43,'G-1 All Habitats'!$V$3:$W$7,2,FALSE),"") ->  | L43: =IFERROR(INDEX('G-8 Condition Look up'!$A$3:$H$131,MATCH(G43,'G-8 Condition Look up'!$A$3:$A$131,0),MATCH(K43,'G-8 Condition Look up'!$A$3:$H$3,0)),"") ->  | N43: =IF(M43="","",IF(VLOOKUP(M43,'G-3 Multipliers'!$L$3:$N$6,2,FALSE)=0,"Spatial Data Missing",VLOOKUP(M43,'G-3 Multipliers'!$L$3:$N$6,2,FALSE))) ->  | O43: =IF(M43="","",IF(VLOOKUP(M43,'G-3 Multipliers'!$L$3:$N$6,3,FALSE)=0,"Spatial Data Missing",VLOOKUP(M43,'G-3 Multipliers'!$L$3:$N$6,3,FALSE))) ->  | P43: =IFERROR(VLOOKUP(G43,'G-1 All Habitats'!$B$2:$M$130,12,FALSE),"") ->  | Q43: =IFERROR(IF(P43="","",IF(AND(P43='G-1 All Habitats'!$X$3,T43>0),U43+V43,IF(AND(P43='G-1 All Habitats'!$X$3,S43>0),U43+V43,IF(AND(P43='G-1 All Habitats'!$X$3,AC43>0),"Any Loss Unacceptable",IF(AND(P43='G-1 All Habitats'!$X$3,W43>0),"Any Loss Unacceptable",H43*J43*L43*O43))))),"Check Data") ->  | W43: =IF(E43="","",IF(H43<S43+T43,"Error in Areas",IF(P43<>'G-1 All Habitats'!$X$3,H43-S43-T43,IF(AND(P43='G-1 All Habitats'!$X$3,Y43="Yes"),"Unacceptable Loss",IF(AND(P43='G-1 All Habitats'!$X$3,Y43="No"),AC43,IF(AND(P43='G-1 All Habitats'!$X$3,Y43=""),AC43,IF(AND(P43='G-1 All Habitats'!$X$3,AC43="None",AC43),IF(AND(P43='G-1 All Habitats'!$X$3,AC43>0),H43-S43-T43)))))))) ->  | X43: =IFERROR(IF(H43="","",IF(H43-S43-T43=0<0,"Error in Areas",IF(S43+T43>H43,"Error in Areas",IF(AND(P43='G-1 All Habitats'!$X$3,Y43="Yes"),"Alternative Compensation",IF(W43=0,0,IF(P43='G-1 All Habitats'!$X$3,"Unacceptable Loss",Q43-U43-V43)))))),"Check Data") ->  | AC43: =IF(P43="","",IF(P43='G-1 All Habitats'!$X$3,H43-S43-T43,"None")) ->  | AD43: =IFERROR(AC43*J43*L43*#REF!*O43,IF(P43="","","None")) ->  | AH43: =IF(I43="","",IF(#REF!>0,TRUE,FALSE)) ->  | AI43: 33 | AK43: =IFERROR(INDEX($AI$11:$AI$259, MATCH(0, IF(TRUE=$AF$11:$AF$259, COUNTIF($AK$10:$AK42, $AI$11:$AI$259), ""), 0)),"") ->  | AL43: =IFERROR(INDEX($AI$11:$AI$259, MATCH(0, IF(TRUE=$AG$11:$AG$259, COUNTIF($AL$10:$AL42, $AI$11:$AI$259), ""), 0)),"") ->  | AM43: =IFERROR(INDEX($AI$11:$AI$259, MATCH(0, IF(TRUE=$AH$11:$AH$259, COUNTIF($AM$10:$AM42, $AI$11:$AI$259), ""), 0)),"") ->  | AQ43: 0
A44: =IFERROR(INDEX('G-1 All Habitats'!$AG$3:$AG$15,MATCH(E44,'G-1 All Habitats'!$AF$3:$AF$15,0)),"") ->  | B44: =IFERROR(INDEX('G-8 Condition Look up'!$I$4:$I$131,MATCH(G44,'G-8 Condition Look up'!$A$4:$A$131,0)),"") ->  | D44: 34 | G44: =IFERROR(INDEX('G-1 All Habitats'!$B$3:$B$130,MATCH(F44,'G-1 All Habitats'!$A$3:$A$130,0)),"") ->  | I44: =IF(G44="","",VLOOKUP(G44,'G-1 All Habitats'!$B$2:$M$130,10,FALSE)) ->  | J44: =IFERROR(VLOOKUP(I44,'G-1 All Habitats'!$V$3:$W$7,2,FALSE),"") ->  | L44: =IFERROR(INDEX('G-8 Condition Look up'!$A$3:$H$131,MATCH(G44,'G-8 Condition Look up'!$A$3:$A$131,0),MATCH(K44,'G-8 Condition Look up'!$A$3:$H$3,0)),"") ->  | N44: =IF(M44="","",IF(VLOOKUP(M44,'G-3 Multipliers'!$L$3:$N$6,2,FALSE)=0,"Spatial Data Missing",VLOOKUP(M44,'G-3 Multipliers'!$L$3:$N$6,2,FALSE))) ->  | O44: =IF(M44="","",IF(VLOOKUP(M44,'G-3 Multipliers'!$L$3:$N$6,3,FALSE)=0,"Spatial Data Missing",VLOOKUP(M44,'G-3 Multipliers'!$L$3:$N$6,3,FALSE))) ->  | P44: =IFERROR(VLOOKUP(G44,'G-1 All Habitats'!$B$2:$M$130,12,FALSE),"") ->  | Q44: =IFERROR(IF(P44="","",IF(AND(P44='G-1 All Habitats'!$X$3,T44>0),U44+V44,IF(AND(P44='G-1 All Habitats'!$X$3,S44>0),U44+V44,IF(AND(P44='G-1 All Habitats'!$X$3,AC44>0),"Any Loss Unacceptable",IF(AND(P44='G-1 All Habitats'!$X$3,W44>0),"Any Loss Unacceptable",H44*J44*L44*O44))))),"Check Data") ->  | W44: =IF(E44="","",IF(H44<S44+T44,"Error in Areas",IF(P44<>'G-1 All Habitats'!$X$3,H44-S44-T44,IF(AND(P44='G-1 All Habitats'!$X$3,Y44="Yes"),"Unacceptable Loss",IF(AND(P44='G-1 All Habitats'!$X$3,Y44="No"),AC44,IF(AND(P44='G-1 All Habitats'!$X$3,Y44=""),AC44,IF(AND(P44='G-1 All Habitats'!$X$3,AC44="None",AC44),IF(AND(P44='G-1 All Habitats'!$X$3,AC44>0),H44-S44-T44)))))))) ->  | X44: =IFERROR(IF(H44="","",IF(H44-S44-T44=0<0,"Error in Areas",IF(S44+T44>H44,"Error in Areas",IF(AND(P44='G-1 All Habitats'!$X$3,Y44="Yes"),"Alternative Compensation",IF(W44=0,0,IF(P44='G-1 All Habitats'!$X$3,"Unacceptable Loss",Q44-U44-V44)))))),"Check Data") ->  | AC44: =IF(P44="","",IF(P44='G-1 All Habitats'!$X$3,H44-S44-T44,"None")) ->  | AD44: =IFERROR(AC44*J44*L44*#REF!*O44,IF(P44="","","None")) ->  | AH44: =IF(I44="","",IF(#REF!>0,TRUE,FALSE)) ->  | AI44: 34 | AK44: =IFERROR(INDEX($AI$11:$AI$259, MATCH(0, IF(TRUE=$AF$11:$AF$259, COUNTIF($AK$10:$AK43, $AI$11:$AI$259), ""), 0)),"") ->  | AL44: =IFERROR(INDEX($AI$11:$AI$259, MATCH(0, IF(TRUE=$AG$11:$AG$259, COUNTIF($AL$10:$AL43, $AI$11:$AI$259), ""), 0)),"") ->  | AM44: =IFERROR(INDEX($AI$11:$AI$259, MATCH(0, IF(TRUE=$AH$11:$AH$259, COUNTIF($AM$10:$AM43, $AI$11:$AI$259), ""), 0)),"") ->  | AQ44: 0
A45: =IFERROR(INDEX('G-1 All Habitats'!$AG$3:$AG$15,MATCH(E45,'G-1 All Habitats'!$AF$3:$AF$15,0)),"") ->  | B45: =IFERROR(INDEX('G-8 Condition Look up'!$I$4:$I$131,MATCH(G45,'G-8 Condition Look up'!$A$4:$A$131,0)),"") ->  | D45: 35 | G45: =IFERROR(INDEX('G-1 All Habitats'!$B$3:$B$130,MATCH(F45,'G-1 All Habitats'!$A$3:$A$130,0)),"") ->  | I45: =IF(G45="","",VLOOKUP(G45,'G-1 All Habitats'!$B$2:$M$130,10,FALSE)) ->  | J45: =IFERROR(VLOOKUP(I45,'G-1 All Habitats'!$V$3:$W$7,2,FALSE),"") ->  | L45: =IFERROR(INDEX('G-8 Condition Look up'!$A$3:$H$131,MATCH(G45,'G-8 Condition Look up'!$A$3:$A$131,0),MATCH(K45,'G-8 Condition Look up'!$A$3:$H$3,0)),"") ->  | N45: =IF(M45="","",IF(VLOOKUP(M45,'G-3 Multipliers'!$L$3:$N$6,2,FALSE)=0,"Spatial Data Missing",VLOOKUP(M45,'G-3 Multipliers'!$L$3:$N$6,2,FALSE))) ->  | O45: =IF(M45="","",IF(VLOOKUP(M45,'G-3 Multipliers'!$L$3:$N$6,3,FALSE)=0,"Spatial Data Missing",VLOOKUP(M45,'G-3 Multipliers'!$L$3:$N$6,3,FALSE))) ->  | P45: =IFERROR(VLOOKUP(G45,'G-1 All Habitats'!$B$2:$M$130,12,FALSE),"") ->  | Q45: =IFERROR(IF(P45="","",IF(AND(P45='G-1 All Habitats'!$X$3,T45>0),U45+V45,IF(AND(P45='G-1 All Habitats'!$X$3,S45>0),U45+V45,IF(AND(P45='G-1 All Habitats'!$X$3,AC45>0),"Any Loss Unacceptable",IF(AND(P45='G-1 All Habitats'!$X$3,W45>0),"Any Loss Unacceptable",H45*J45*L45*O45))))),"Check Data") ->  | W45: =IF(E45="","",IF(H45<S45+T45,"Error in Areas",IF(P45<>'G-1 All Habitats'!$X$3,H45-S45-T45,IF(AND(P45='G-1 All Habitats'!$X$3,Y45="Yes"),"Unacceptable Loss",IF(AND(P45='G-1 All Habitats'!$X$3,Y45="No"),AC45,IF(AND(P45='G-1 All Habitats'!$X$3,Y45=""),AC45,IF(AND(P45='G-1 All Habitats'!$X$3,AC45="None",AC45),IF(AND(P45='G-1 All Habitats'!$X$3,AC45>0),H45-S45-T45)))))))) ->  | X45: =IFERROR(IF(H45="","",IF(H45-S45-T45=0<0,"Error in Areas",IF(S45+T45>H45,"Error in Areas",IF(AND(P45='G-1 All Habitats'!$X$3,Y45="Yes"),"Alternative Compensation",IF(W45=0,0,IF(P45='G-1 All Habitats'!$X$3,"Unacceptable Loss",Q45-U45-V45)))))),"Check Data") ->  | AC45: =IF(P45="","",IF(P45='G-1 All Habitats'!$X$3,H45-S45-T45,"None")) ->  | AD45: =IFERROR(AC45*J45*L45*#REF!*O45,IF(P45="","","None")) ->  | AH45: =IF(I45="","",IF(#REF!>0,TRUE,FALSE)) ->  | AI45: 35 | AK45: =IFERROR(INDEX($AI$11:$AI$259, MATCH(0, IF(TRUE=$AF$11:$AF$259, COUNTIF($AK$10:$AK44, $AI$11:$AI$259), ""), 0)),"") ->  | AL45: =IFERROR(INDEX($AI$11:$AI$259, MATCH(0, IF(TRUE=$AG$11:$AG$259, COUNTIF($AL$10:$AL44, $AI$11:$AI$259), ""), 0)),"") ->  | AM45: =IFERROR(INDEX($AI$11:$AI$259, MATCH(0, IF(TRUE=$AH$11:$AH$259, COUNTIF($AM$10:$AM44, $AI$11:$AI$259), ""), 0)),"") ->  | AQ45: 0
A46: =IFERROR(INDEX('G-1 All Habitats'!$AG$3:$AG$15,MATCH(E46,'G-1 All Habitats'!$AF$3:$AF$15,0)),"") ->  | B46: =IFERROR(INDEX('G-8 Condition Look up'!$I$4:$I$131,MATCH(G46,'G-8 Condition Look up'!$A$4:$A$131,0)),"") ->  | D46: 36 | G46: =IFERROR(INDEX('G-1 All Habitats'!$B$3:$B$130,MATCH(F46,'G-1 All Habitats'!$A$3:$A$130,0)),"") ->  | I46: =IF(G46="","",VLOOKUP(G46,'G-1 All Habitats'!$B$2:$M$130,10,FALSE)) ->  | J46: =IFERROR(VLOOKUP(I46,'G-1 All Habitats'!$V$3:$W$7,2,FALSE),"") ->  | L46: =IFERROR(INDEX('G-8 Condition Look up'!$A$3:$H$131,MATCH(G46,'G-8 Condition Look up'!$A$3:$A$131,0),MATCH(K46,'G-8 Condition Look up'!$A$3:$H$3,0)),"") ->  | N46: =IF(M46="","",IF(VLOOKUP(M46,'G-3 Multipliers'!$L$3:$N$6,2,FALSE)=0,"Spatial Data Missing",VLOOKUP(M46,'G-3 Multipliers'!$L$3:$N$6,2,FALSE))) ->  | O46: =IF(M46="","",IF(VLOOKUP(M46,'G-3 Multipliers'!$L$3:$N$6,3,FALSE)=0,"Spatial Data Missing",VLOOKUP(M46,'G-3 Multipliers'!$L$3:$N$6,3,FALSE))) ->  | P46: =IFERROR(VLOOKUP(G46,'G-1 All Habitats'!$B$2:$M$130,12,FALSE),"") ->  | Q46: =IFERROR(IF(P46="","",IF(AND(P46='G-1 All Habitats'!$X$3,T46>0),U46+V46,IF(AND(P46='G-1 All Habitats'!$X$3,S46>0),U46+V46,IF(AND(P46='G-1 All Habitats'!$X$3,AC46>0),"Any Loss Unacceptable",IF(AND(P46='G-1 All Habitats'!$X$3,W46>0),"Any Loss Unacceptable",H46*J46*L46*O46))))),"Check Data") ->  | W46: =IF(E46="","",IF(H46<S46+T46,"Error in Areas",IF(P46<>'G-1 All Habitats'!$X$3,H46-S46-T46,IF(AND(P46='G-1 All Habitats'!$X$3,Y46="Yes"),"Unacceptable Loss",IF(AND(P46='G-1 All Habitats'!$X$3,Y46="No"),AC46,IF(AND(P46='G-1 All Habitats'!$X$3,Y46=""),AC46,IF(AND(P46='G-1 All Habitats'!$X$3,AC46="None",AC46),IF(AND(P46='G-1 All Habitats'!$X$3,AC46>0),H46-S46-T46)))))))) ->  | X46: =IFERROR(IF(H46="","",IF(H46-S46-T46=0<0,"Error in Areas",IF(S46+T46>H46,"Error in Areas",IF(AND(P46='G-1 All Habitats'!$X$3,Y46="Yes"),"Alternative Compensation",IF(W46=0,0,IF(P46='G-1 All Habitats'!$X$3,"Unacceptable Loss",Q46-U46-V46)))))),"Check Data") ->  | AC46: =IF(P46="","",IF(P46='G-1 All Habitats'!$X$3,H46-S46-T46,"None")) ->  | AD46: =IFERROR(AC46*J46*L46*#REF!*O46,IF(P46="","","None")) ->  | AH46: =IF(I46="","",IF(#REF!>0,TRUE,FALSE)) ->  | AI46: 36 | AK46: =IFERROR(INDEX($AI$11:$AI$259, MATCH(0, IF(TRUE=$AF$11:$AF$259, COUNTIF($AK$10:$AK45, $AI$11:$AI$259), ""), 0)),"") ->  | AL46: =IFERROR(INDEX($AI$11:$AI$259, MATCH(0, IF(TRUE=$AG$11:$AG$259, COUNTIF($AL$10:$AL45, $AI$11:$AI$259), ""), 0)),"") ->  | AM46: =IFERROR(INDEX($AI$11:$AI$259, MATCH(0, IF(TRUE=$AH$11:$AH$259, COUNTIF($AM$10:$AM45, $AI$11:$AI$259), ""), 0)),"") ->  | AQ46: 0
A47: =IFERROR(INDEX('G-1 All Habitats'!$AG$3:$AG$15,MATCH(E47,'G-1 All Habitats'!$AF$3:$AF$15,0)),"") ->  | B47: =IFERROR(INDEX('G-8 Condition Look up'!$I$4:$I$131,MATCH(G47,'G-8 Condition Look up'!$A$4:$A$131,0)),"") ->  | D47: 37 | G47: =IFERROR(INDEX('G-1 All Habitats'!$B$3:$B$130,MATCH(F47,'G-1 All Habitats'!$A$3:$A$130,0)),"") ->  | I47: =IF(G47="","",VLOOKUP(G47,'G-1 All Habitats'!$B$2:$M$130,10,FALSE)) ->  | J47: =IFERROR(VLOOKUP(I47,'G-1 All Habitats'!$V$3:$W$7,2,FALSE),"") ->  | L47: =IFERROR(INDEX('G-8 Condition Look up'!$A$3:$H$131,MATCH(G47,'G-8 Condition Look up'!$A$3:$A$131,0),MATCH(K47,'G-8 Condition Look up'!$A$3:$H$3,0)),"") ->  | N47: =IF(M47="","",IF(VLOOKUP(M47,'G-3 Multipliers'!$L$3:$N$6,2,FALSE)=0,"Spatial Data Missing",VLOOKUP(M47,'G-3 Multipliers'!$L$3:$N$6,2,FALSE))) ->  | O47: =IF(M47="","",IF(VLOOKUP(M47,'G-3 Multipliers'!$L$3:$N$6,3,FALSE)=0,"Spatial Data Missing",VLOOKUP(M47,'G-3 Multipliers'!$L$3:$N$6,3,FALSE))) ->  | P47: =IFERROR(VLOOKUP(G47,'G-1 All Habitats'!$B$2:$M$130,12,FALSE),"") ->  | Q47: =IFERROR(IF(P47="","",IF(AND(P47='G-1 All Habitats'!$X$3,T47>0),U47+V47,IF(AND(P47='G-1 All Habitats'!$X$3,S47>0),U47+V47,IF(AND(P47='G-1 All Habitats'!$X$3,AC47>0),"Any Loss Unacceptable",IF(AND(P47='G-1 All Habitats'!$X$3,W47>0),"Any Loss Unacceptable",H47*J47*L47*O47))))),"Check Data") ->  | W47: =IF(E47="","",IF(H47<S47+T47,"Error in Areas",IF(P47<>'G-1 All Habitats'!$X$3,H47-S47-T47,IF(AND(P47='G-1 All Habitats'!$X$3,Y47="Yes"),"Unacceptable Loss",IF(AND(P47='G-1 All Habitats'!$X$3,Y47="No"),AC47,IF(AND(P47='G-1 All Habitats'!$X$3,Y47=""),AC47,IF(AND(P47='G-1 All Habitats'!$X$3,AC47="None",AC47),IF(AND(P47='G-1 All Habitats'!$X$3,AC47>0),H47-S47-T47)))))))) ->  | X47: =IFERROR(IF(H47="","",IF(H47-S47-T47=0<0,"Error in Areas",IF(S47+T47>H47,"Error in Areas",IF(AND(P47='G-1 All Habitats'!$X$3,Y47="Yes"),"Alternative Compensation",IF(W47=0,0,IF(P47='G-1 All Habitats'!$X$3,"Unacceptable Loss",Q47-U47-V47)))))),"Check Data") ->  | AC47: =IF(P47="","",IF(P47='G-1 All Habitats'!$X$3,H47-S47-T47,"None")) ->  | AD47: =IFERROR(AC47*J47*L47*#REF!*O47,IF(P47="","","None")) ->  | AH47: =IF(I47="","",IF(#REF!>0,TRUE,FALSE)) ->  | AI47: 37 | AK47: =IFERROR(INDEX($AI$11:$AI$259, MATCH(0, IF(TRUE=$AF$11:$AF$259, COUNTIF($AK$10:$AK46, $AI$11:$AI$259), ""), 0)),"") ->  | AL47: =IFERROR(INDEX($AI$11:$AI$259, MATCH(0, IF(TRUE=$AG$11:$AG$259, COUNTIF($AL$10:$AL46, $AI$11:$AI$259), ""), 0)),"") ->  | AM47: =IFERROR(INDEX($AI$11:$AI$259, MATCH(0, IF(TRUE=$AH$11:$AH$259, COUNTIF($AM$10:$AM46, $AI$11:$AI$259), ""), 0)),"") ->  | AQ47: 0
A48: =IFERROR(INDEX('G-1 All Habitats'!$AG$3:$AG$15,MATCH(E48,'G-1 All Habitats'!$AF$3:$AF$15,0)),"") ->  | B48: =IFERROR(INDEX('G-8 Condition Look up'!$I$4:$I$131,MATCH(G48,'G-8 Condition Look up'!$A$4:$A$131,0)),"") ->  | D48: 38 | G48: =IFERROR(INDEX('G-1 All Habitats'!$B$3:$B$130,MATCH(F48,'G-1 All Habitats'!$A$3:$A$130,0)),"") ->  | I48: =IF(G48="","",VLOOKUP(G48,'G-1 All Habitats'!$B$2:$M$130,10,FALSE)) ->  | J48: =IFERROR(VLOOKUP(I48,'G-1 All Habitats'!$V$3:$W$7,2,FALSE),"") ->  | L48: =IFERROR(INDEX('G-8 Condition Look up'!$A$3:$H$131,MATCH(G48,'G-8 Condition Look up'!$A$3:$A$131,0),MATCH(K48,'G-8 Condition Look up'!$A$3:$H$3,0)),"") ->  | N48: =IF(M48="","",IF(VLOOKUP(M48,'G-3 Multipliers'!$L$3:$N$6,2,FALSE)=0,"Spatial Data Missing",VLOOKUP(M48,'G-3 Multipliers'!$L$3:$N$6,2,FALSE))) ->  | O48: =IF(M48="","",IF(VLOOKUP(M48,'G-3 Multipliers'!$L$3:$N$6,3,FALSE)=0,"Spatial Data Missing",VLOOKUP(M48,'G-3 Multipliers'!$L$3:$N$6,3,FALSE))) ->  | P48: =IFERROR(VLOOKUP(G48,'G-1 All Habitats'!$B$2:$M$130,12,FALSE),"") ->  | Q48: =IFERROR(IF(P48="","",IF(AND(P48='G-1 All Habitats'!$X$3,T48>0),U48+V48,IF(AND(P48='G-1 All Habitats'!$X$3,S48>0),U48+V48,IF(AND(P48='G-1 All Habitats'!$X$3,AC48>0),"Any Loss Unacceptable",IF(AND(P48='G-1 All Habitats'!$X$3,W48>0),"Any Loss Unacceptable",H48*J48*L48*O48))))),"Check Data") ->  | W48: =IF(E48="","",IF(H48<S48+T48,"Error in Areas",IF(P48<>'G-1 All Habitats'!$X$3,H48-S48-T48,IF(AND(P48='G-1 All Habitats'!$X$3,Y48="Yes"),"Unacceptable Loss",IF(AND(P48='G-1 All Habitats'!$X$3,Y48="No"),AC48,IF(AND(P48='G-1 All Habitats'!$X$3,Y48=""),AC48,IF(AND(P48='G-1 All Habitats'!$X$3,AC48="None",AC48),IF(AND(P48='G-1 All Habitats'!$X$3,AC48>0),H48-S48-T48)))))))) ->  | X48: =IFERROR(IF(H48="","",IF(H48-S48-T48=0<0,"Error in Areas",IF(S48+T48>H48,"Error in Areas",IF(AND(P48='G-1 All Habitats'!$X$3,Y48="Yes"),"Alternative Compensation",IF(W48=0,0,IF(P48='G-1 All Habitats'!$X$3,"Unacceptable Loss",Q48-U48-V48)))))),"Check Data") ->  | AC48: =IF(P48="","",IF(P48='G-1 All Habitats'!$X$3,H48-S48-T48,"None")) ->  | AD48: =IFERROR(AC48*J48*L48*#REF!*O48,IF(P48="","","None")) ->  | AH48: =IF(I48="","",IF(#REF!>0,TRUE,FALSE)) ->  | AI48: 38 | AK48: =IFERROR(INDEX($AI$11:$AI$259, MATCH(0, IF(TRUE=$AF$11:$AF$259, COUNTIF($AK$10:$AK47, $AI$11:$AI$259), ""), 0)),"") ->  | AL48: =IFERROR(INDEX($AI$11:$AI$259, MATCH(0, IF(TRUE=$AG$11:$AG$259, COUNTIF($AL$10:$AL47, $AI$11:$AI$259), ""), 0)),"") ->  | AM48: =IFERROR(INDEX($AI$11:$AI$259, MATCH(0, IF(TRUE=$AH$11:$AH$259, COUNTIF($AM$10:$AM47, $AI$11:$AI$259), ""), 0)),"") ->  | AQ48: 0
A49: =IFERROR(INDEX('G-1 All Habitats'!$AG$3:$AG$15,MATCH(E49,'G-1 All Habitats'!$AF$3:$AF$15,0)),"") ->  | B49: =IFERROR(INDEX('G-8 Condition Look up'!$I$4:$I$131,MATCH(G49,'G-8 Condition Look up'!$A$4:$A$131,0)),"") ->  | D49: 39 | G49: =IFERROR(INDEX('G-1 All Habitats'!$B$3:$B$130,MATCH(F49,'G-1 All Habitats'!$A$3:$A$130,0)),"") ->  | I49: =IF(G49="","",VLOOKUP(G49,'G-1 All Habitats'!$B$2:$M$130,10,FALSE)) ->  | J49: =IFERROR(VLOOKUP(I49,'G-1 All Habitats'!$V$3:$W$7,2,FALSE),"") ->  | L49: =IFERROR(INDEX('G-8 Condition Look up'!$A$3:$H$131,MATCH(G49,'G-8 Condition Look up'!$A$3:$A$131,0),MATCH(K49,'G-8 Condition Look up'!$A$3:$H$3,0)),"") ->  | N49: =IF(M49="","",IF(VLOOKUP(M49,'G-3 Multipliers'!$L$3:$N$6,2,FALSE)=0,"Spatial Data Missing",VLOOKUP(M49,'G-3 Multipliers'!$L$3:$N$6,2,FALSE))) ->  | O49: =IF(M49="","",IF(VLOOKUP(M49,'G-3 Multipliers'!$L$3:$N$6,3,FALSE)=0,"Spatial Data Missing",VLOOKUP(M49,'G-3 Multipliers'!$L$3:$N$6,3,FALSE))) ->  | P49: =IFERROR(VLOOKUP(G49,'G-1 All Habitats'!$B$2:$M$130,12,FALSE),"") ->  | Q49: =IFERROR(IF(P49="","",IF(AND(P49='G-1 All Habitats'!$X$3,T49>0),U49+V49,IF(AND(P49='G-1 All Habitats'!$X$3,S49>0),U49+V49,IF(AND(P49='G-1 All Habitats'!$X$3,AC49>0),"Any Loss Unacceptable",IF(AND(P49='G-1 All Habitats'!$X$3,W49>0),"Any Loss Unacceptable",H49*J49*L49*O49))))),"Check Data") ->  | W49: =IF(E49="","",IF(H49<S49+T49,"Error in Areas",IF(P49<>'G-1 All Habitats'!$X$3,H49-S49-T49,IF(AND(P49='G-1 All Habitats'!$X$3,Y49="Yes"),"Unacceptable Loss",IF(AND(P49='G-1 All Habitats'!$X$3,Y49="No"),AC49,IF(AND(P49='G-1 All Habitats'!$X$3,Y49=""),AC49,IF(AND(P49='G-1 All Habitats'!$X$3,AC49="None",AC49),IF(AND(P49='G-1 All Habitats'!$X$3,AC49>0),H49-S49-T49)))))))) ->  | X49: =IFERROR(IF(H49="","",IF(H49-S49-T49=0<0,"Error in Areas",IF(S49+T49>H49,"Error in Areas",IF(AND(P49='G-1 All Habitats'!$X$3,Y49="Yes"),"Alternative Compensation",IF(W49=0,0,IF(P49='G-1 All Habitats'!$X$3,"Unacceptable Loss",Q49-U49-V49)))))),"Check Data") ->  | AC49: =IF(P49="","",IF(P49='G-1 All Habitats'!$X$3,H49-S49-T49,"None")) ->  | AD49: =IFERROR(AC49*J49*L49*#REF!*O49,IF(P49="","","None")) ->  | AH49: =IF(I49="","",IF(#REF!>0,TRUE,FALSE)) ->  | AI49: 39 | AK49: =IFERROR(INDEX($AI$11:$AI$259, MATCH(0, IF(TRUE=$AF$11:$AF$259, COUNTIF($AK$10:$AK48, $AI$11:$AI$259), ""), 0)),"") ->  | AL49: =IFERROR(INDEX($AI$11:$AI$259, MATCH(0, IF(TRUE=$AG$11:$AG$259, COUNTIF($AL$10:$AL48, $AI$11:$AI$259), ""), 0)),"") ->  | AM49: =IFERROR(INDEX($AI$11:$AI$259, MATCH(0, IF(TRUE=$AH$11:$AH$259, COUNTIF($AM$10:$AM48, $AI$11:$AI$259), ""), 0)),"") ->  | AQ49: 0
A50: =IFERROR(INDEX('G-1 All Habitats'!$AG$3:$AG$15,MATCH(E50,'G-1 All Habitats'!$AF$3:$AF$15,0)),"") ->  | B50: =IFERROR(INDEX('G-8 Condition Look up'!$I$4:$I$131,MATCH(G50,'G-8 Condition Look up'!$A$4:$A$131,0)),"") ->  | D50: 40 | G50: =IFERROR(INDEX('G-1 All Habitats'!$B$3:$B$130,MATCH(F50,'G-1 All Habitats'!$A$3:$A$130,0)),"") ->  | I50: =IF(G50="","",VLOOKUP(G50,'G-1 All Habitats'!$B$2:$M$130,10,FALSE)) ->  | J50: =IFERROR(VLOOKUP(I50,'G-1 All Habitats'!$V$3:$W$7,2,FALSE),"") ->  | L50: =IFERROR(INDEX('G-8 Condition Look up'!$A$3:$H$131,MATCH(G50,'G-8 Condition Look up'!$A$3:$A$131,0),MATCH(K50,'G-8 Condition Look up'!$A$3:$H$3,0)),"") ->  | N50: =IF(M50="","",IF(VLOOKUP(M50,'G-3 Multipliers'!$L$3:$N$6,2,FALSE)=0,"Spatial Data Missing",VLOOKUP(M50,'G-3 Multipliers'!$L$3:$N$6,2,FALSE))) ->  | O50: =IF(M50="","",IF(VLOOKUP(M50,'G-3 Multipliers'!$L$3:$N$6,3,FALSE)=0,"Spatial Data Missing",VLOOKUP(M50,'G-3 Multipliers'!$L$3:$N$6,3,FALSE))) ->  | P50: =IFERROR(VLOOKUP(G50,'G-1 All Habitats'!$B$2:$M$130,12,FALSE),"") ->  | Q50: =IFERROR(IF(P50="","",IF(AND(P50='G-1 All Habitats'!$X$3,T50>0),U50+V50,IF(AND(P50='G-1 All Habitats'!$X$3,S50>0),U50+V50,IF(AND(P50='G-1 All Habitats'!$X$3,AC50>0),"Any Loss Unacceptable",IF(AND(P50='G-1 All Habitats'!$X$3,W50>0),"Any Loss Unacceptable",H50*J50*L50*O50))))),"Check Data") ->  | W50: =IF(E50="","",IF(H50<S50+T50,"Error in Areas",IF(P50<>'G-1 All Habitats'!$X$3,H50-S50-T50,IF(AND(P50='G-1 All Habitats'!$X$3,Y50="Yes"),"Unacceptable Loss",IF(AND(P50='G-1 All Habitats'!$X$3,Y50="No"),AC50,IF(AND(P50='G-1 All Habitats'!$X$3,Y50=""),AC50,IF(AND(P50='G-1 All Habitats'!$X$3,AC50="None",AC50),IF(AND(P50='G-1 All Habitats'!$X$3,AC50>0),H50-S50-T50)))))))) ->  | X50: =IFERROR(IF(H50="","",IF(H50-S50-T50=0<0,"Error in Areas",IF(S50+T50>H50,"Error in Areas",IF(AND(P50='G-1 All Habitats'!$X$3,Y50="Yes"),"Alternative Compensation",IF(W50=0,0,IF(P50='G-1 All Habitats'!$X$3,"Unacceptable Loss",Q50-U50-V50)))))),"Check Data") ->  | AC50: =IF(P50="","",IF(P50='G-1 All Habitats'!$X$3,H50-S50-T50,"None")) ->  | AD50: =IFERROR(AC50*J50*L50*#REF!*O50,IF(P50="","","None")) ->  | AH50: =IF(I50="","",IF(#REF!>0,TRUE,FALSE)) ->  | AI50: 40 | AK50: =IFERROR(INDEX($AI$11:$AI$259, MATCH(0, IF(TRUE=$AF$11:$AF$259, COUNTIF($AK$10:$AK49, $AI$11:$AI$259), ""), 0)),"") ->  | AL50: =IFERROR(INDEX($AI$11:$AI$259, MATCH(0, IF(TRUE=$AG$11:$AG$259, COUNTIF($AL$10:$AL49, $AI$11:$AI$259), ""), 0)),"") ->  | AM50: =IFERROR(INDEX($AI$11:$AI$259, MATCH(0, IF(TRUE=$AH$11:$AH$259, COUNTIF($AM$10:$AM49, $AI$11:$AI$259), ""), 0)),"") ->  | AQ50: 0
A51: =IFERROR(INDEX('G-1 All Habitats'!$AG$3:$AG$15,MATCH(E51,'G-1 All Habitats'!$AF$3:$AF$15,0)),"") ->  | B51: =IFERROR(INDEX('G-8 Condition Look up'!$I$4:$I$131,MATCH(G51,'G-8 Condition Look up'!$A$4:$A$131,0)),"") ->  | D51: 41 | G51: =IFERROR(INDEX('G-1 All Habitats'!$B$3:$B$130,MATCH(F51,'G-1 All Habitats'!$A$3:$A$130,0)),"") ->  | I51: =IF(G51="","",VLOOKUP(G51,'G-1 All Habitats'!$B$2:$M$130,10,FALSE)) ->  | J51: =IFERROR(VLOOKUP(I51,'G-1 All Habitats'!$V$3:$W$7,2,FALSE),"") ->  | L51: =IFERROR(INDEX('G-8 Condition Look up'!$A$3:$H$131,MATCH(G51,'G-8 Condition Look up'!$A$3:$A$131,0),MATCH(K51,'G-8 Condition Look up'!$A$3:$H$3,0)),"") ->  | N51: =IF(M51="","",IF(VLOOKUP(M51,'G-3 Multipliers'!$L$3:$N$6,2,FALSE)=0,"Spatial Data Missing",VLOOKUP(M51,'G-3 Multipliers'!$L$3:$N$6,2,FALSE))) ->  | O51: =IF(M51="","",IF(VLOOKUP(M51,'G-3 Multipliers'!$L$3:$N$6,3,FALSE)=0,"Spatial Data Missing",VLOOKUP(M51,'G-3 Multipliers'!$L$3:$N$6,3,FALSE))) ->  | P51: =IFERROR(VLOOKUP(G51,'G-1 All Habitats'!$B$2:$M$130,12,FALSE),"") ->  | Q51: =IFERROR(IF(P51="","",IF(AND(P51='G-1 All Habitats'!$X$3,T51>0),U51+V51,IF(AND(P51='G-1 All Habitats'!$X$3,S51>0),U51+V51,IF(AND(P51='G-1 All Habitats'!$X$3,AC51>0),"Any Loss Unacceptable",IF(AND(P51='G-1 All Habitats'!$X$3,W51>0),"Any Loss Unacceptable",H51*J51*L51*O51))))),"Check Data") ->  | W51: =IF(E51="","",IF(H51<S51+T51,"Error in Areas",IF(P51<>'G-1 All Habitats'!$X$3,H51-S51-T51,IF(AND(P51='G-1 All Habitats'!$X$3,Y51="Yes"),"Unacceptable Loss",IF(AND(P51='G-1 All Habitats'!$X$3,Y51="No"),AC51,IF(AND(P51='G-1 All Habitats'!$X$3,Y51=""),AC51,IF(AND(P51='G-1 All Habitats'!$X$3,AC51="None",AC51),IF(AND(P51='G-1 All Habitats'!$X$3,AC51>0),H51-S51-T51)))))))) ->  | X51: =IFERROR(IF(H51="","",IF(H51-S51-T51=0<0,"Error in Areas",IF(S51+T51>H51,"Error in Areas",IF(AND(P51='G-1 All Habitats'!$X$3,Y51="Yes"),"Alternative Compensation",IF(W51=0,0,IF(P51='G-1 All Habitats'!$X$3,"Unacceptable Loss",Q51-U51-V51)))))),"Check Data") ->  | AC51: =IF(P51="","",IF(P51='G-1 All Habitats'!$X$3,H51-S51-T51,"None")) ->  | AD51: =IFERROR(AC51*J51*L51*#REF!*O51,IF(P51="","","None")) ->  | AH51: =IF(I51="","",IF(#REF!>0,TRUE,FALSE)) ->  | AI51: 41 | AK51: =IFERROR(INDEX($AI$11:$AI$259, MATCH(0, IF(TRUE=$AF$11:$AF$259, COUNTIF($AK$10:$AK50, $AI$11:$AI$259), ""), 0)),"") ->  | AL51: =IFERROR(INDEX($AI$11:$AI$259, MATCH(0, IF(TRUE=$AG$11:$AG$259, COUNTIF($AL$10:$AL50, $AI$11:$AI$259), ""), 0)),"") ->  | AM51: =IFERROR(INDEX($AI$11:$AI$259, MATCH(0, IF(TRUE=$AH$11:$AH$259, COUNTIF($AM$10:$AM50, $AI$11:$AI$259), ""), 0)),"") ->  | AQ51: 0
A52: =IFERROR(INDEX('G-1 All Habitats'!$AG$3:$AG$15,MATCH(E52,'G-1 All Habitats'!$AF$3:$AF$15,0)),"") ->  | B52: =IFERROR(INDEX('G-8 Condition Look up'!$I$4:$I$131,MATCH(G52,'G-8 Condition Look up'!$A$4:$A$131,0)),"") ->  | D52: 42 | G52: =IFERROR(INDEX('G-1 All Habitats'!$B$3:$B$130,MATCH(F52,'G-1 All Habitats'!$A$3:$A$130,0)),"") ->  | I52: =IF(G52="","",VLOOKUP(G52,'G-1 All Habitats'!$B$2:$M$130,10,FALSE)) ->  | J52: =IFERROR(VLOOKUP(I52,'G-1 All Habitats'!$V$3:$W$7,2,FALSE),"") ->  | L52: =IFERROR(INDEX('G-8 Condition Look up'!$A$3:$H$131,MATCH(G52,'G-8 Condition Look up'!$A$3:$A$131,0),MATCH(K52,'G-8 Condition Look up'!$A$3:$H$3,0)),"") ->  | N52: =IF(M52="","",IF(VLOOKUP(M52,'G-3 Multipliers'!$L$3:$N$6,2,FALSE)=0,"Spatial Data Missing",VLOOKUP(M52,'G-3 Multipliers'!$L$3:$N$6,2,FALSE))) ->  | O52: =IF(M52="","",IF(VLOOKUP(M52,'G-3 Multipliers'!$L$3:$N$6,3,FALSE)=0,"Spatial Data Missing",VLOOKUP(M52,'G-3 Multipliers'!$L$3:$N$6,3,FALSE))) ->  | P52: =IFERROR(VLOOKUP(G52,'G-1 All Habitats'!$B$2:$M$130,12,FALSE),"") ->  | Q52: =IFERROR(IF(P52="","",IF(AND(P52='G-1 All Habitats'!$X$3,T52>0),U52+V52,IF(AND(P52='G-1 All Habitats'!$X$3,S52>0),U52+V52,IF(AND(P52='G-1 All Habitats'!$X$3,AC52>0),"Any Loss Unacceptable",IF(AND(P52='G-1 All Habitats'!$X$3,W52>0),"Any Loss Unacceptable",H52*J52*L52*O52))))),"Check Data") ->  | W52: =IF(E52="","",IF(H52<S52+T52,"Error in Areas",IF(P52<>'G-1 All Habitats'!$X$3,H52-S52-T52,IF(AND(P52='G-1 All Habitats'!$X$3,Y52="Yes"),"Unacceptable Loss",IF(AND(P52='G-1 All Habitats'!$X$3,Y52="No"),AC52,IF(AND(P52='G-1 All Habitats'!$X$3,Y52=""),AC52,IF(AND(P52='G-1 All Habitats'!$X$3,AC52="None",AC52),IF(AND(P52='G-1 All Habitats'!$X$3,AC52>0),H52-S52-T52)))))))) ->  | X52: =IFERROR(IF(H52="","",IF(H52-S52-T52=0<0,"Error in Areas",IF(S52+T52>H52,"Error in Areas",IF(AND(P52='G-1 All Habitats'!$X$3,Y52="Yes"),"Alternative Compensation",IF(W52=0,0,IF(P52='G-1 All Habitats'!$X$3,"Unacceptable Loss",Q52-U52-V52)))))),"Check Data") ->  | AC52: =IF(P52="","",IF(P52='G-1 All Habitats'!$X$3,H52-S52-T52,"None")) ->  | AD52: =IFERROR(AC52*J52*L52*#REF!*O52,IF(P52="","","None")) ->  | AH52: =IF(I52="","",IF(#REF!>0,TRUE,FALSE)) ->  | AI52: 42 | AK52: =IFERROR(INDEX($AI$11:$AI$259, MATCH(0, IF(TRUE=$AF$11:$AF$259, COUNTIF($AK$10:$AK51, $AI$11:$AI$259), ""), 0)),"") ->  | AL52: =IFERROR(INDEX($AI$11:$AI$259, MATCH(0, IF(TRUE=$AG$11:$AG$259, COUNTIF($AL$10:$AL51, $AI$11:$AI$259), ""), 0)),"") ->  | AM52: =IFERROR(INDEX($AI$11:$AI$259, MATCH(0, IF(TRUE=$AH$11:$AH$259, COUNTIF($AM$10:$AM51, $AI$11:$AI$259), ""), 0)),"") ->  | AQ52: 0
A53: =IFERROR(INDEX('G-1 All Habitats'!$AG$3:$AG$15,MATCH(E53,'G-1 All Habitats'!$AF$3:$AF$15,0)),"") ->  | B53: =IFERROR(INDEX('G-8 Condition Look up'!$I$4:$I$131,MATCH(G53,'G-8 Condition Look up'!$A$4:$A$131,0)),"") ->  | D53: 43 | G53: =IFERROR(INDEX('G-1 All Habitats'!$B$3:$B$130,MATCH(F53,'G-1 All Habitats'!$A$3:$A$130,0)),"") ->  | I53: =IF(G53="","",VLOOKUP(G53,'G-1 All Habitats'!$B$2:$M$130,10,FALSE)) ->  | J53: =IFERROR(VLOOKUP(I53,'G-1 All Habitats'!$V$3:$W$7,2,FALSE),"") ->  | L53: =IFERROR(INDEX('G-8 Condition Look up'!$A$3:$H$131,MATCH(G53,'G-8 Condition Look up'!$A$3:$A$131,0),MATCH(K53,'G-8 Condition Look up'!$A$3:$H$3,0)),"") ->  | N53: =IF(M53="","",IF(VLOOKUP(M53,'G-3 Multipliers'!$L$3:$N$6,2,FALSE)=0,"Spatial Data Missing",VLOOKUP(M53,'G-3 Multipliers'!$L$3:$N$6,2,FALSE))) ->  | O53: =IF(M53="","",IF(VLOOKUP(M53,'G-3 Multipliers'!$L$3:$N$6,3,FALSE)=0,"Spatial Data Missing",VLOOKUP(M53,'G-3 Multipliers'!$L$3:$N$6,3,FALSE))) ->  | P53: =IFERROR(VLOOKUP(G53,'G-1 All Habitats'!$B$2:$M$130,12,FALSE),"") ->  | Q53: =IFERROR(IF(P53="","",IF(AND(P53='G-1 All Habitats'!$X$3,T53>0),U53+V53,IF(AND(P53='G-1 All Habitats'!$X$3,S53>0),U53+V53,IF(AND(P53='G-1 All Habitats'!$X$3,AC53>0),"Any Loss Unacceptable",IF(AND(P53='G-1 All Habitats'!$X$3,W53>0),"Any Loss Unacceptable",H53*J53*L53*O53))))),"Check Data") ->  | W53: =IF(E53="","",IF(H53<S53+T53,"Error in Areas",IF(P53<>'G-1 All Habitats'!$X$3,H53-S53-T53,IF(AND(P53='G-1 All Habitats'!$X$3,Y53="Yes"),"Unacceptable Loss",IF(AND(P53='G-1 All Habitats'!$X$3,Y53="No"),AC53,IF(AND(P53='G-1 All Habitats'!$X$3,Y53=""),AC53,IF(AND(P53='G-1 All Habitats'!$X$3,AC53="None",AC53),IF(AND(P53='G-1 All Habitats'!$X$3,AC53>0),H53-S53-T53)))))))) ->  | X53: =IFERROR(IF(H53="","",IF(H53-S53-T53=0<0,"Error in Areas",IF(S53+T53>H53,"Error in Areas",IF(AND(P53='G-1 All Habitats'!$X$3,Y53="Yes"),"Alternative Compensation",IF(W53=0,0,IF(P53='G-1 All Habitats'!$X$3,"Unacceptable Loss",Q53-U53-V53)))))),"Check Data") ->  | AC53: =IF(P53="","",IF(P53='G-1 All Habitats'!$X$3,H53-S53-T53,"None")) ->  | AD53: =IFERROR(AC53*J53*L53*#REF!*O53,IF(P53="","","None")) ->  | AH53: =IF(I53="","",IF(#REF!>0,TRUE,FALSE)) ->  | AI53: 43 | AK53: =IFERROR(INDEX($AI$11:$AI$259, MATCH(0, IF(TRUE=$AF$11:$AF$259, COUNTIF($AK$10:$AK52, $AI$11:$AI$259), ""), 0)),"") ->  | AL53: =IFERROR(INDEX($AI$11:$AI$259, MATCH(0, IF(TRUE=$AG$11:$AG$259, COUNTIF($AL$10:$AL52, $AI$11:$AI$259), ""), 0)),"") ->  | AM53: =IFERROR(INDEX($AI$11:$AI$259, MATCH(0, IF(TRUE=$AH$11:$AH$259, COUNTIF($AM$10:$AM52, $AI$11:$AI$259), ""), 0)),"") ->  | AQ53: 0
A54: =IFERROR(INDEX('G-1 All Habitats'!$AG$3:$AG$15,MATCH(E54,'G-1 All Habitats'!$AF$3:$AF$15,0)),"") ->  | B54: =IFERROR(INDEX('G-8 Condition Look up'!$I$4:$I$131,MATCH(G54,'G-8 Condition Look up'!$A$4:$A$131,0)),"") ->  | D54: 44 | G54: =IFERROR(INDEX('G-1 All Habitats'!$B$3:$B$130,MATCH(F54,'G-1 All Habitats'!$A$3:$A$130,0)),"") ->  | I54: =IF(G54="","",VLOOKUP(G54,'G-1 All Habitats'!$B$2:$M$130,10,FALSE)) ->  | J54: =IFERROR(VLOOKUP(I54,'G-1 All Habitats'!$V$3:$W$7,2,FALSE),"") ->  | L54: =IFERROR(INDEX('G-8 Condition Look up'!$A$3:$H$131,MATCH(G54,'G-8 Condition Look up'!$A$3:$A$131,0),MATCH(K54,'G-8 Condition Look up'!$A$3:$H$3,0)),"") ->  | N54: =IF(M54="","",IF(VLOOKUP(M54,'G-3 Multipliers'!$L$3:$N$6,2,FALSE)=0,"Spatial Data Missing",VLOOKUP(M54,'G-3 Multipliers'!$L$3:$N$6,2,FALSE))) ->  | O54: =IF(M54="","",IF(VLOOKUP(M54,'G-3 Multipliers'!$L$3:$N$6,3,FALSE)=0,"Spatial Data Missing",VLOOKUP(M54,'G-3 Multipliers'!$L$3:$N$6,3,FALSE))) ->  | P54: =IFERROR(VLOOKUP(G54,'G-1 All Habitats'!$B$2:$M$130,12,FALSE),"") ->  | Q54: =IFERROR(IF(P54="","",IF(AND(P54='G-1 All Habitats'!$X$3,T54>0),U54+V54,IF(AND(P54='G-1 All Habitats'!$X$3,S54>0),U54+V54,IF(AND(P54='G-1 All Habitats'!$X$3,AC54>0),"Any Loss Unacceptable",IF(AND(P54='G-1 All Habitats'!$X$3,W54>0),"Any Loss Unacceptable",H54*J54*L54*O54))))),"Check Data") ->  | W54: =IF(E54="","",IF(H54<S54+T54,"Error in Areas",IF(P54<>'G-1 All Habitats'!$X$3,H54-S54-T54,IF(AND(P54='G-1 All Habitats'!$X$3,Y54="Yes"),"Unacceptable Loss",IF(AND(P54='G-1 All Habitats'!$X$3,Y54="No"),AC54,IF(AND(P54='G-1 All Habitats'!$X$3,Y54=""),AC54,IF(AND(P54='G-1 All Habitats'!$X$3,AC54="None",AC54),IF(AND(P54='G-1 All Habitats'!$X$3,AC54>0),H54-S54-T54)))))))) ->  | X54: =IFERROR(IF(H54="","",IF(H54-S54-T54=0<0,"Error in Areas",IF(S54+T54>H54,"Error in Areas",IF(AND(P54='G-1 All Habitats'!$X$3,Y54="Yes"),"Alternative Compensation",IF(W54=0,0,IF(P54='G-1 All Habitats'!$X$3,"Unacceptable Loss",Q54-U54-V54)))))),"Check Data") ->  | AC54: =IF(P54="","",IF(P54='G-1 All Habitats'!$X$3,H54-S54-T54,"None")) ->  | AD54: =IFERROR(AC54*J54*L54*#REF!*O54,IF(P54="","","None")) ->  | AH54: =IF(I54="","",IF(#REF!>0,TRUE,FALSE)) ->  | AI54: 44 | AK54: =IFERROR(INDEX($AI$11:$AI$259, MATCH(0, IF(TRUE=$AF$11:$AF$259, COUNTIF($AK$10:$AK53, $AI$11:$AI$259), ""), 0)),"") ->  | AL54: =IFERROR(INDEX($AI$11:$AI$259, MATCH(0, IF(TRUE=$AG$11:$AG$259, COUNTIF($AL$10:$AL53, $AI$11:$AI$259), ""), 0)),"") ->  | AM54: =IFERROR(INDEX($AI$11:$AI$259, MATCH(0, IF(TRUE=$AH$11:$AH$259, COUNTIF($AM$10:$AM53, $AI$11:$AI$259), ""), 0)),"") ->  | AQ54: 0
A55: =IFERROR(INDEX('G-1 All Habitats'!$AG$3:$AG$15,MATCH(E55,'G-1 All Habitats'!$AF$3:$AF$15,0)),"") ->  | B55: =IFERROR(INDEX('G-8 Condition Look up'!$I$4:$I$131,MATCH(G55,'G-8 Condition Look up'!$A$4:$A$131,0)),"") ->  | D55: 45 | G55: =IFERROR(INDEX('G-1 All Habitats'!$B$3:$B$130,MATCH(F55,'G-1 All Habitats'!$A$3:$A$130,0)),"") ->  | I55: =IF(G55="","",VLOOKUP(G55,'G-1 All Habitats'!$B$2:$M$130,10,FALSE)) ->  | J55: =IFERROR(VLOOKUP(I55,'G-1 All Habitats'!$V$3:$W$7,2,FALSE),"") ->  | L55: =IFERROR(INDEX('G-8 Condition Look up'!$A$3:$H$131,MATCH(G55,'G-8 Condition Look up'!$A$3:$A$131,0),MATCH(K55,'G-8 Condition Look up'!$A$3:$H$3,0)),"") ->  | N55: =IF(M55="","",IF(VLOOKUP(M55,'G-3 Multipliers'!$L$3:$N$6,2,FALSE)=0,"Spatial Data Missing",VLOOKUP(M55,'G-3 Multipliers'!$L$3:$N$6,2,FALSE))) ->  | O55: =IF(M55="","",IF(VLOOKUP(M55,'G-3 Multipliers'!$L$3:$N$6,3,FALSE)=0,"Spatial Data Missing",VLOOKUP(M55,'G-3 Multipliers'!$L$3:$N$6,3,FALSE))) ->  | P55: =IFERROR(VLOOKUP(G55,'G-1 All Habitats'!$B$2:$M$130,12,FALSE),"") ->  | Q55: =IFERROR(IF(P55="","",IF(AND(P55='G-1 All Habitats'!$X$3,T55>0),U55+V55,IF(AND(P55='G-1 All Habitats'!$X$3,S55>0),U55+V55,IF(AND(P55='G-1 All Habitats'!$X$3,AC55>0),"Any Loss Unacceptable",IF(AND(P55='G-1 All Habitats'!$X$3,W55>0),"Any Loss Unacceptable",H55*J55*L55*O55))))),"Check Data") ->  | W55: =IF(E55="","",IF(H55<S55+T55,"Error in Areas",IF(P55<>'G-1 All Habitats'!$X$3,H55-S55-T55,IF(AND(P55='G-1 All Habitats'!$X$3,Y55="Yes"),"Unacceptable Loss",IF(AND(P55='G-1 All Habitats'!$X$3,Y55="No"),AC55,IF(AND(P55='G-1 All Habitats'!$X$3,Y55=""),AC55,IF(AND(P55='G-1 All Habitats'!$X$3,AC55="None",AC55),IF(AND(P55='G-1 All Habitats'!$X$3,AC55>0),H55-S55-T55)))))))) ->  | X55: =IFERROR(IF(H55="","",IF(H55-S55-T55=0<0,"Error in Areas",IF(S55+T55>H55,"Error in Areas",IF(AND(P55='G-1 All Habitats'!$X$3,Y55="Yes"),"Alternative Compensation",IF(W55=0,0,IF(P55='G-1 All Habitats'!$X$3,"Unacceptable Loss",Q55-U55-V55)))))),"Check Data") ->  | AC55: =IF(P55="","",IF(P55='G-1 All Habitats'!$X$3,H55-S55-T55,"None")) ->  | AD55: =IFERROR(AC55*J55*L55*#REF!*O55,IF(P55="","","None")) ->  | AH55: =IF(I55="","",IF(#REF!>0,TRUE,FALSE)) ->  | AI55: 45 | AK55: =IFERROR(INDEX($AI$11:$AI$259, MATCH(0, IF(TRUE=$AF$11:$AF$259, COUNTIF($AK$10:$AK54, $AI$11:$AI$259), ""), 0)),"") ->  | AL55: =IFERROR(INDEX($AI$11:$AI$259, MATCH(0, IF(TRUE=$AG$11:$AG$259, COUNTIF($AL$10:$AL54, $AI$11:$AI$259), ""), 0)),"") ->  | AM55: =IFERROR(INDEX($AI$11:$AI$259, MATCH(0, IF(TRUE=$AH$11:$AH$259, COUNTIF($AM$10:$AM54, $AI$11:$AI$259), ""), 0)),"") ->  | AQ55: 0
A56: =IFERROR(INDEX('G-1 All Habitats'!$AG$3:$AG$15,MATCH(E56,'G-1 All Habitats'!$AF$3:$AF$15,0)),"") ->  | B56: =IFERROR(INDEX('G-8 Condition Look up'!$I$4:$I$131,MATCH(G56,'G-8 Condition Look up'!$A$4:$A$131,0)),"") ->  | D56: 46 | G56: =IFERROR(INDEX('G-1 All Habitats'!$B$3:$B$130,MATCH(F56,'G-1 All Habitats'!$A$3:$A$130,0)),"") ->  | I56: =IF(G56="","",VLOOKUP(G56,'G-1 All Habitats'!$B$2:$M$130,10,FALSE)) ->  | J56: =IFERROR(VLOOKUP(I56,'G-1 All Habitats'!$V$3:$W$7,2,FALSE),"") ->  | L56: =IFERROR(INDEX('G-8 Condition Look up'!$A$3:$H$131,MATCH(G56,'G-8 Condition Look up'!$A$3:$A$131,0),MATCH(K56,'G-8 Condition Look up'!$A$3:$H$3,0)),"") ->  | N56: =IF(M56="","",IF(VLOOKUP(M56,'G-3 Multipliers'!$L$3:$N$6,2,FALSE)=0,"Spatial Data Missing",VLOOKUP(M56,'G-3 Multipliers'!$L$3:$N$6,2,FALSE))) ->  | O56: =IF(M56="","",IF(VLOOKUP(M56,'G-3 Multipliers'!$L$3:$N$6,3,FALSE)=0,"Spatial Data Missing",VLOOKUP(M56,'G-3 Multipliers'!$L$3:$N$6,3,FALSE))) ->  | P56: =IFERROR(VLOOKUP(G56,'G-1 All Habitats'!$B$2:$M$130,12,FALSE),"") ->  | Q56: =IFERROR(IF(P56="","",IF(AND(P56='G-1 All Habitats'!$X$3,T56>0),U56+V56,IF(AND(P56='G-1 All Habitats'!$X$3,S56>0),U56+V56,IF(AND(P56='G-1 All Habitats'!$X$3,AC56>0),"Any Loss Unacceptable",IF(AND(P56='G-1 All Habitats'!$X$3,W56>0),"Any Loss Unacceptable",H56*J56*L56*O56))))),"Check Data") ->  | W56: =IF(E56="","",IF(H56<S56+T56,"Error in Areas",IF(P56<>'G-1 All Habitats'!$X$3,H56-S56-T56,IF(AND(P56='G-1 All Habitats'!$X$3,Y56="Yes"),"Unacceptable Loss",IF(AND(P56='G-1 All Habitats'!$X$3,Y56="No"),AC56,IF(AND(P56='G-1 All Habitats'!$X$3,Y56=""),AC56,IF(AND(P56='G-1 All Habitats'!$X$3,AC56="None",AC56),IF(AND(P56='G-1 All Habitats'!$X$3,AC56>0),H56-S56-T56)))))))) ->  | X56: =IFERROR(IF(H56="","",IF(H56-S56-T56=0<0,"Error in Areas",IF(S56+T56>H56,"Error in Areas",IF(AND(P56='G-1 All Habitats'!$X$3,Y56="Yes"),"Alternative Compensation",IF(W56=0,0,IF(P56='G-1 All Habitats'!$X$3,"Unacceptable Loss",Q56-U56-V56)))))),"Check Data") ->  | AC56: =IF(P56="","",IF(P56='G-1 All Habitats'!$X$3,H56-S56-T56,"None")) ->  | AD56: =IFERROR(AC56*J56*L56*#REF!*O56,IF(P56="","","None")) ->  | AH56: =IF(I56="","",IF(#REF!>0,TRUE,FALSE)) ->  | AI56: 46 | AK56: =IFERROR(INDEX($AI$11:$AI$259, MATCH(0, IF(TRUE=$AF$11:$AF$259, COUNTIF($AK$10:$AK55, $AI$11:$AI$259), ""), 0)),"") ->  | AL56: =IFERROR(INDEX($AI$11:$AI$259, MATCH(0, IF(TRUE=$AG$11:$AG$259, COUNTIF($AL$10:$AL55, $AI$11:$AI$259), ""), 0)),"") ->  | AM56: =IFERROR(INDEX($AI$11:$AI$259, MATCH(0, IF(TRUE=$AH$11:$AH$259, COUNTIF($AM$10:$AM55, $AI$11:$AI$259), ""), 0)),"") ->  | AQ56: 0
A57: =IFERROR(INDEX('G-1 All Habitats'!$AG$3:$AG$15,MATCH(E57,'G-1 All Habitats'!$AF$3:$AF$15,0)),"") ->  | B57: =IFERROR(INDEX('G-8 Condition Look up'!$I$4:$I$131,MATCH(G57,'G-8 Condition Look up'!$A$4:$A$131,0)),"") ->  | D57: 47 | G57: =IFERROR(INDEX('G-1 All Habitats'!$B$3:$B$130,MATCH(F57,'G-1 All Habitats'!$A$3:$A$130,0)),"") ->  | I57: =IF(G57="","",VLOOKUP(G57,'G-1 All Habitats'!$B$2:$M$130,10,FALSE)) ->  | J57: =IFERROR(VLOOKUP(I57,'G-1 All Habitats'!$V$3:$W$7,2,FALSE),"") ->  | L57: =IFERROR(INDEX('G-8 Condition Look up'!$A$3:$H$131,MATCH(G57,'G-8 Condition Look up'!$A$3:$A$131,0),MATCH(K57,'G-8 Condition Look up'!$A$3:$H$3,0)),"") ->  | N57: =IF(M57="","",IF(VLOOKUP(M57,'G-3 Multipliers'!$L$3:$N$6,2,FALSE)=0,"Spatial Data Missing",VLOOKUP(M57,'G-3 Multipliers'!$L$3:$N$6,2,FALSE))) ->  | O57: =IF(M57="","",IF(VLOOKUP(M57,'G-3 Multipliers'!$L$3:$N$6,3,FALSE)=0,"Spatial Data Missing",VLOOKUP(M57,'G-3 Multipliers'!$L$3:$N$6,3,FALSE))) ->  | P57: =IFERROR(VLOOKUP(G57,'G-1 All Habitats'!$B$2:$M$130,12,FALSE),"") ->  | Q57: =IFERROR(IF(P57="","",IF(AND(P57='G-1 All Habitats'!$X$3,T57>0),U57+V57,IF(AND(P57='G-1 All Habitats'!$X$3,S57>0),U57+V57,IF(AND(P57='G-1 All Habitats'!$X$3,AC57>0),"Any Loss Unacceptable",IF(AND(P57='G-1 All Habitats'!$X$3,W57>0),"Any Loss Unacceptable",H57*J57*L57*O57))))),"Check Data") ->  | W57: =IF(E57="","",IF(H57<S57+T57,"Error in Areas",IF(P57<>'G-1 All Habitats'!$X$3,H57-S57-T57,IF(AND(P57='G-1 All Habitats'!$X$3,Y57="Yes"),"Unacceptable Loss",IF(AND(P57='G-1 All Habitats'!$X$3,Y57="No"),AC57,IF(AND(P57='G-1 All Habitats'!$X$3,Y57=""),AC57,IF(AND(P57='G-1 All Habitats'!$X$3,AC57="None",AC57),IF(AND(P57='G-1 All Habitats'!$X$3,AC57>0),H57-S57-T57)))))))) ->  | X57: =IFERROR(IF(H57="","",IF(H57-S57-T57=0<0,"Error in Areas",IF(S57+T57>H57,"Error in Areas",IF(AND(P57='G-1 All Habitats'!$X$3,Y57="Yes"),"Alternative Compensation",IF(W57=0,0,IF(P57='G-1 All Habitats'!$X$3,"Unacceptable Loss",Q57-U57-V57)))))),"Check Data") ->  | AC57: =IF(P57="","",IF(P57='G-1 All Habitats'!$X$3,H57-S57-T57,"None")) ->  | AD57: =IFERROR(AC57*J57*L57*#REF!*O57,IF(P57="","","None")) ->  | AH57: =IF(I57="","",IF(#REF!>0,TRUE,FALSE)) ->  | AI57: 47 | AK57: =IFERROR(INDEX($AI$11:$AI$259, MATCH(0, IF(TRUE=$AF$11:$AF$259, COUNTIF($AK$10:$AK56, $AI$11:$AI$259), ""), 0)),"") ->  | AL57: =IFERROR(INDEX($AI$11:$AI$259, MATCH(0, IF(TRUE=$AG$11:$AG$259, COUNTIF($AL$10:$AL56, $AI$11:$AI$259), ""), 0)),"") ->  | AM57: =IFERROR(INDEX($AI$11:$AI$259, MATCH(0, IF(TRUE=$AH$11:$AH$259, COUNTIF($AM$10:$AM56, $AI$11:$AI$259), ""), 0)),"") ->  | AQ57: 0
A58: =IFERROR(INDEX('G-1 All Habitats'!$AG$3:$AG$15,MATCH(E58,'G-1 All Habitats'!$AF$3:$AF$15,0)),"") ->  | B58: =IFERROR(INDEX('G-8 Condition Look up'!$I$4:$I$131,MATCH(G58,'G-8 Condition Look up'!$A$4:$A$131,0)),"") ->  | D58: 48 | G58: =IFERROR(INDEX('G-1 All Habitats'!$B$3:$B$130,MATCH(F58,'G-1 All Habitats'!$A$3:$A$130,0)),"") ->  | I58: =IF(G58="","",VLOOKUP(G58,'G-1 All Habitats'!$B$2:$M$130,10,FALSE)) ->  | J58: =IFERROR(VLOOKUP(I58,'G-1 All Habitats'!$V$3:$W$7,2,FALSE),"") ->  | L58: =IFERROR(INDEX('G-8 Condition Look up'!$A$3:$H$131,MATCH(G58,'G-8 Condition Look up'!$A$3:$A$131,0),MATCH(K58,'G-8 Condition Look up'!$A$3:$H$3,0)),"") ->  | N58: =IF(M58="","",IF(VLOOKUP(M58,'G-3 Multipliers'!$L$3:$N$6,2,FALSE)=0,"Spatial Data Missing",VLOOKUP(M58,'G-3 Multipliers'!$L$3:$N$6,2,FALSE))) ->  | O58: =IF(M58="","",IF(VLOOKUP(M58,'G-3 Multipliers'!$L$3:$N$6,3,FALSE)=0,"Spatial Data Missing",VLOOKUP(M58,'G-3 Multipliers'!$L$3:$N$6,3,FALSE))) ->  | P58: =IFERROR(VLOOKUP(G58,'G-1 All Habitats'!$B$2:$M$130,12,FALSE),"") ->  | Q58: =IFERROR(IF(P58="","",IF(AND(P58='G-1 All Habitats'!$X$3,T58>0),U58+V58,IF(AND(P58='G-1 All Habitats'!$X$3,S58>0),U58+V58,IF(AND(P58='G-1 All Habitats'!$X$3,AC58>0),"Any Loss Unacceptable",IF(AND(P58='G-1 All Habitats'!$X$3,W58>0),"Any Loss Unacceptable",H58*J58*L58*O58))))),"Check Data") ->  | W58: =IF(E58="","",IF(H58<S58+T58,"Error in Areas",IF(P58<>'G-1 All Habitats'!$X$3,H58-S58-T58,IF(AND(P58='G-1 All Habitats'!$X$3,Y58="Yes"),"Unacceptable Loss",IF(AND(P58='G-1 All Habitats'!$X$3,Y58="No"),AC58,IF(AND(P58='G-1 All Habitats'!$X$3,Y58=""),AC58,IF(AND(P58='G-1 All Habitats'!$X$3,AC58="None",AC58),IF(AND(P58='G-1 All Habitats'!$X$3,AC58>0),H58-S58-T58)))))))) ->  | X58: =IFERROR(IF(H58="","",IF(H58-S58-T58=0<0,"Error in Areas",IF(S58+T58>H58,"Error in Areas",IF(AND(P58='G-1 All Habitats'!$X$3,Y58="Yes"),"Alternative Compensation",IF(W58=0,0,IF(P58='G-1 All Habitats'!$X$3,"Unacceptable Loss",Q58-U58-V58)))))),"Check Data") ->  | AC58: =IF(P58="","",IF(P58='G-1 All Habitats'!$X$3,H58-S58-T58,"None")) ->  | AD58: =IFERROR(AC58*J58*L58*#REF!*O58,IF(P58="","","None")) ->  | AH58: =IF(I58="","",IF(#REF!>0,TRUE,FALSE)) ->  | AI58: 48 | AK58: =IFERROR(INDEX($AI$11:$AI$259, MATCH(0, IF(TRUE=$AF$11:$AF$259, COUNTIF($AK$10:$AK57, $AI$11:$AI$259), ""), 0)),"") ->  | AL58: =IFERROR(INDEX($AI$11:$AI$259, MATCH(0, IF(TRUE=$AG$11:$AG$259, COUNTIF($AL$10:$AL57, $AI$11:$AI$259), ""), 0)),"") ->  | AM58: =IFERROR(INDEX($AI$11:$AI$259, MATCH(0, IF(TRUE=$AH$11:$AH$259, COUNTIF($AM$10:$AM57, $AI$11:$AI$259), ""), 0)),"") ->  | AQ58: 0
A59: =IFERROR(INDEX('G-1 All Habitats'!$AG$3:$AG$15,MATCH(E59,'G-1 All Habitats'!$AF$3:$AF$15,0)),"") ->  | B59: =IFERROR(INDEX('G-8 Condition Look up'!$I$4:$I$131,MATCH(G59,'G-8 Condition Look up'!$A$4:$A$131,0)),"") ->  | D59: 49 | G59: =IFERROR(INDEX('G-1 All Habitats'!$B$3:$B$130,MATCH(F59,'G-1 All Habitats'!$A$3:$A$130,0)),"") ->  | I59: =IF(G59="","",VLOOKUP(G59,'G-1 All Habitats'!$B$2:$M$130,10,FALSE)) ->  | J59: =IFERROR(VLOOKUP(I59,'G-1 All Habitats'!$V$3:$W$7,2,FALSE),"") ->  | L59: =IFERROR(INDEX('G-8 Condition Look up'!$A$3:$H$131,MATCH(G59,'G-8 Condition Look up'!$A$3:$A$131,0),MATCH(K59,'G-8 Condition Look up'!$A$3:$H$3,0)),"") ->  | N59: =IF(M59="","",IF(VLOOKUP(M59,'G-3 Multipliers'!$L$3:$N$6,2,FALSE)=0,"Spatial Data Missing",VLOOKUP(M59,'G-3 Multipliers'!$L$3:$N$6,2,FALSE))) ->  | O59: =IF(M59="","",IF(VLOOKUP(M59,'G-3 Multipliers'!$L$3:$N$6,3,FALSE)=0,"Spatial Data Missing",VLOOKUP(M59,'G-3 Multipliers'!$L$3:$N$6,3,FALSE))) ->  | P59: =IFERROR(VLOOKUP(G59,'G-1 All Habitats'!$B$2:$M$130,12,FALSE),"") ->  | Q59: =IFERROR(IF(P59="","",IF(AND(P59='G-1 All Habitats'!$X$3,T59>0),U59+V59,IF(AND(P59='G-1 All Habitats'!$X$3,S59>0),U59+V59,IF(AND(P59='G-1 All Habitats'!$X$3,AC59>0),"Any Loss Unacceptable",IF(AND(P59='G-1 All Habitats'!$X$3,W59>0),"Any Loss Unacceptable",H59*J59*L59*O59))))),"Check Data") ->  | W59: =IF(E59="","",IF(H59<S59+T59,"Error in Areas",IF(P59<>'G-1 All Habitats'!$X$3,H59-S59-T59,IF(AND(P59='G-1 All Habitats'!$X$3,Y59="Yes"),"Unacceptable Loss",IF(AND(P59='G-1 All Habitats'!$X$3,Y59="No"),AC59,IF(AND(P59='G-1 All Habitats'!$X$3,Y59=""),AC59,IF(AND(P59='G-1 All Habitats'!$X$3,AC59="None",AC59),IF(AND(P59='G-1 All Habitats'!$X$3,AC59>0),H59-S59-T59)))))))) ->  | X59: =IFERROR(IF(H59="","",IF(H59-S59-T59=0<0,"Error in Areas",IF(S59+T59>H59,"Error in Areas",IF(AND(P59='G-1 All Habitats'!$X$3,Y59="Yes"),"Alternative Compensation",IF(W59=0,0,IF(P59='G-1 All Habitats'!$X$3,"Unacceptable Loss",Q59-U59-V59)))))),"Check Data") ->  | AC59: =IF(P59="","",IF(P59='G-1 All Habitats'!$X$3,H59-S59-T59,"None")) ->  | AD59: =IFERROR(AC59*J59*L59*#REF!*O59,IF(P59="","","None")) ->  | AH59: =IF(I59="","",IF(#REF!>0,TRUE,FALSE)) ->  | AI59: 49 | AK59: =IFERROR(INDEX($AI$11:$AI$259, MATCH(0, IF(TRUE=$AF$11:$AF$259, COUNTIF($AK$10:$AK58, $AI$11:$AI$259), ""), 0)),"") ->  | AL59: =IFERROR(INDEX($AI$11:$AI$259, MATCH(0, IF(TRUE=$AG$11:$AG$259, COUNTIF($AL$10:$AL58, $AI$11:$AI$259), ""), 0)),"") ->  | AM59: =IFERROR(INDEX($AI$11:$AI$259, MATCH(0, IF(TRUE=$AH$11:$AH$259, COUNTIF($AM$10:$AM58, $AI$11:$AI$259), ""), 0)),"") ->  | AQ59: 0
A60: =IFERROR(INDEX('G-1 All Habitats'!$AG$3:$AG$15,MATCH(E60,'G-1 All Habitats'!$AF$3:$AF$15,0)),"") ->  | B60: =IFERROR(INDEX('G-8 Condition Look up'!$I$4:$I$131,MATCH(G60,'G-8 Condition Look up'!$A$4:$A$131,0)),"") ->  | D60: 50 | G60: =IFERROR(INDEX('G-1 All Habitats'!$B$3:$B$130,MATCH(F60,'G-1 All Habitats'!$A$3:$A$130,0)),"") ->  | I60: =IF(G60="","",VLOOKUP(G60,'G-1 All Habitats'!$B$2:$M$130,10,FALSE)) ->  | J60: =IFERROR(VLOOKUP(I60,'G-1 All Habitats'!$V$3:$W$7,2,FALSE),"") ->  | L60: =IFERROR(INDEX('G-8 Condition Look up'!$A$3:$H$131,MATCH(G60,'G-8 Condition Look up'!$A$3:$A$131,0),MATCH(K60,'G-8 Condition Look up'!$A$3:$H$3,0)),"") ->  | N60: =IF(M60="","",IF(VLOOKUP(M60,'G-3 Multipliers'!$L$3:$N$6,2,FALSE)=0,"Spatial Data Missing",VLOOKUP(M60,'G-3 Multipliers'!$L$3:$N$6,2,FALSE))) ->  | O60: =IF(M60="","",IF(VLOOKUP(M60,'G-3 Multipliers'!$L$3:$N$6,3,FALSE)=0,"Spatial Data Missing",VLOOKUP(M60,'G-3 Multipliers'!$L$3:$N$6,3,FALSE))) ->  | P60: =IFERROR(VLOOKUP(G60,'G-1 All Habitats'!$B$2:$M$130,12,FALSE),"") ->  | Q60: =IFERROR(IF(P60="","",IF(AND(P60='G-1 All Habitats'!$X$3,T60>0),U60+V60,IF(AND(P60='G-1 All Habitats'!$X$3,S60>0),U60+V60,IF(AND(P60='G-1 All Habitats'!$X$3,AC60>0),"Any Loss Unacceptable",IF(AND(P60='G-1 All Habitats'!$X$3,W60>0),"Any Loss Unacceptable",H60*J60*L60*O60))))),"Check Data") ->  | W60: =IF(E60="","",IF(H60<S60+T60,"Error in Areas",IF(P60<>'G-1 All Habitats'!$X$3,H60-S60-T60,IF(AND(P60='G-1 All Habitats'!$X$3,Y60="Yes"),"Unacceptable Loss",IF(AND(P60='G-1 All Habitats'!$X$3,Y60="No"),AC60,IF(AND(P60='G-1 All Habitats'!$X$3,Y60=""),AC60,IF(AND(P60='G-1 All Habitats'!$X$3,AC60="None",AC60),IF(AND(P60='G-1 All Habitats'!$X$3,AC60>0),H60-S60-T60)))))))) ->  | X60: =IFERROR(IF(H60="","",IF(H60-S60-T60=0<0,"Error in Areas",IF(S60+T60>H60,"Error in Areas",IF(AND(P60='G-1 All Habitats'!$X$3,Y60="Yes"),"Alternative Compensation",IF(W60=0,0,IF(P60='G-1 All Habitats'!$X$3,"Unacceptable Loss",Q60-U60-V60)))))),"Check Data") ->  | AC60: =IF(P60="","",IF(P60='G-1 All Habitats'!$X$3,H60-S60-T60,"None")) ->  | AD60: =IFERROR(AC60*J60*L60*#REF!*O60,IF(P60="","","None")) ->  | AH60: =IF(I60="","",IF(#REF!>0,TRUE,FALSE)) ->  | AI60: 50 | AK60: =IFERROR(INDEX($AI$11:$AI$259, MATCH(0, IF(TRUE=$AF$11:$AF$259, COUNTIF($AK$10:$AK59, $AI$11:$AI$259), ""), 0)),"") ->  | AL60: =IFERROR(INDEX($AI$11:$AI$259, MATCH(0, IF(TRUE=$AG$11:$AG$259, COUNTIF($AL$10:$AL59, $AI$11:$AI$259), ""), 0)),"") ->  | AM60: =IFERROR(INDEX($AI$11:$AI$259, MATCH(0, IF(TRUE=$AH$11:$AH$259, COUNTIF($AM$10:$AM59, $AI$11:$AI$259), ""), 0)),"") ->  | AQ60: 0
A61: =IFERROR(INDEX('G-1 All Habitats'!$AG$3:$AG$15,MATCH(E61,'G-1 All Habitats'!$AF$3:$AF$15,0)),"") ->  | B61: =IFERROR(INDEX('G-8 Condition Look up'!$I$4:$I$131,MATCH(G61,'G-8 Condition Look up'!$A$4:$A$131,0)),"") ->  | D61: 51 | G61: =IFERROR(INDEX('G-1 All Habitats'!$B$3:$B$130,MATCH(F61,'G-1 All Habitats'!$A$3:$A$130,0)),"") ->  | I61: =IF(G61="","",VLOOKUP(G61,'G-1 All Habitats'!$B$2:$M$130,10,FALSE)) ->  | J61: =IFERROR(VLOOKUP(I61,'G-1 All Habitats'!$V$3:$W$7,2,FALSE),"") ->  | L61: =IFERROR(INDEX('G-8 Condition Look up'!$A$3:$H$131,MATCH(G61,'G-8 Condition Look up'!$A$3:$A$131,0),MATCH(K61,'G-8 Condition Look up'!$A$3:$H$3,0)),"") ->  | N61: =IF(M61="","",IF(VLOOKUP(M61,'G-3 Multipliers'!$L$3:$N$6,2,FALSE)=0,"Spatial Data Missing",VLOOKUP(M61,'G-3 Multipliers'!$L$3:$N$6,2,FALSE))) ->  | O61: =IF(M61="","",IF(VLOOKUP(M61,'G-3 Multipliers'!$L$3:$N$6,3,FALSE)=0,"Spatial Data Missing",VLOOKUP(M61,'G-3 Multipliers'!$L$3:$N$6,3,FALSE))) ->  | P61: =IFERROR(VLOOKUP(G61,'G-1 All Habitats'!$B$2:$M$130,12,FALSE),"") ->  | Q61: =IFERROR(IF(P61="","",IF(AND(P61='G-1 All Habitats'!$X$3,T61>0),U61+V61,IF(AND(P61='G-1 All Habitats'!$X$3,S61>0),U61+V61,IF(AND(P61='G-1 All Habitats'!$X$3,AC61>0),"Any Loss Unacceptable",IF(AND(P61='G-1 All Habitats'!$X$3,W61>0),"Any Loss Unacceptable",H61*J61*L61*O61))))),"Check Data") ->  | W61: =IF(E61="","",IF(H61<S61+T61,"Error in Areas",IF(P61<>'G-1 All Habitats'!$X$3,H61-S61-T61,IF(AND(P61='G-1 All Habitats'!$X$3,Y61="Yes"),"Unacceptable Loss",IF(AND(P61='G-1 All Habitats'!$X$3,Y61="No"),AC61,IF(AND(P61='G-1 All Habitats'!$X$3,Y61=""),AC61,IF(AND(P61='G-1 All Habitats'!$X$3,AC61="None",AC61),IF(AND(P61='G-1 All Habitats'!$X$3,AC61>0),H61-S61-T61)))))))) ->  | X61: =IFERROR(IF(H61="","",IF(H61-S61-T61=0<0,"Error in Areas",IF(S61+T61>H61,"Error in Areas",IF(AND(P61='G-1 All Habitats'!$X$3,Y61="Yes"),"Alternative Compensation",IF(W61=0,0,IF(P61='G-1 All Habitats'!$X$3,"Unacceptable Loss",Q61-U61-V61)))))),"Check Data") ->  | AC61: =IF(P61="","",IF(P61='G-1 All Habitats'!$X$3,H61-S61-T61,"None")) ->  | AD61: =IFERROR(AC61*J61*L61*#REF!*O61,IF(P61="","","None")) ->  | AH61: =IF(I61="","",IF(#REF!>0,TRUE,FALSE)) ->  | AI61: 51 | AK61: =IFERROR(INDEX($AI$11:$AI$259, MATCH(0, IF(TRUE=$AF$11:$AF$259, COUNTIF($AK$10:$AK60, $AI$11:$AI$259), ""), 0)),"") ->  | AL61: =IFERROR(INDEX($AI$11:$AI$259, MATCH(0, IF(TRUE=$AG$11:$AG$259, COUNTIF($AL$10:$AL60, $AI$11:$AI$259), ""), 0)),"") ->  | AM61: =IFERROR(INDEX($AI$11:$AI$259, MATCH(0, IF(TRUE=$AH$11:$AH$259, COUNTIF($AM$10:$AM60, $AI$11:$AI$259), ""), 0)),"") ->  | AQ61: 0
A62: =IFERROR(INDEX('G-1 All Habitats'!$AG$3:$AG$15,MATCH(E62,'G-1 All Habitats'!$AF$3:$AF$15,0)),"") ->  | B62: =IFERROR(INDEX('G-8 Condition Look up'!$I$4:$I$131,MATCH(G62,'G-8 Condition Look up'!$A$4:$A$131,0)),"") ->  | D62: 52 | G62: =IFERROR(INDEX('G-1 All Habitats'!$B$3:$B$130,MATCH(F62,'G-1 All Habitats'!$A$3:$A$130,0)),"") ->  | I62: =IF(G62="","",VLOOKUP(G62,'G-1 All Habitats'!$B$2:$M$130,10,FALSE)) ->  | J62: =IFERROR(VLOOKUP(I62,'G-1 All Habitats'!$V$3:$W$7,2,FALSE),"") ->  | L62: =IFERROR(INDEX('G-8 Condition Look up'!$A$3:$H$131,MATCH(G62,'G-8 Condition Look up'!$A$3:$A$131,0),MATCH(K62,'G-8 Condition Look up'!$A$3:$H$3,0)),"") ->  | N62: =IF(M62="","",IF(VLOOKUP(M62,'G-3 Multipliers'!$L$3:$N$6,2,FALSE)=0,"Spatial Data Missing",VLOOKUP(M62,'G-3 Multipliers'!$L$3:$N$6,2,FALSE))) ->  | O62: =IF(M62="","",IF(VLOOKUP(M62,'G-3 Multipliers'!$L$3:$N$6,3,FALSE)=0,"Spatial Data Missing",VLOOKUP(M62,'G-3 Multipliers'!$L$3:$N$6,3,FALSE))) ->  | P62: =IFERROR(VLOOKUP(G62,'G-1 All Habitats'!$B$2:$M$130,12,FALSE),"") ->  | Q62: =IFERROR(IF(P62="","",IF(AND(P62='G-1 All Habitats'!$X$3,T62>0),U62+V62,IF(AND(P62='G-1 All Habitats'!$X$3,S62>0),U62+V62,IF(AND(P62='G-1 All Habitats'!$X$3,AC62>0),"Any Loss Unacceptable",IF(AND(P62='G-1 All Habitats'!$X$3,W62>0),"Any Loss Unacceptable",H62*J62*L62*O62))))),"Check Data") ->  | W62: =IF(E62="","",IF(H62<S62+T62,"Error in Areas",IF(P62<>'G-1 All Habitats'!$X$3,H62-S62-T62,IF(AND(P62='G-1 All Habitats'!$X$3,Y62="Yes"),"Unacceptable Loss",IF(AND(P62='G-1 All Habitats'!$X$3,Y62="No"),AC62,IF(AND(P62='G-1 All Habitats'!$X$3,Y62=""),AC62,IF(AND(P62='G-1 All Habitats'!$X$3,AC62="None",AC62),IF(AND(P62='G-1 All Habitats'!$X$3,AC62>0),H62-S62-T62)))))))) ->  | X62: =IFERROR(IF(H62="","",IF(H62-S62-T62=0<0,"Error in Areas",IF(S62+T62>H62,"Error in Areas",IF(AND(P62='G-1 All Habitats'!$X$3,Y62="Yes"),"Alternative Compensation",IF(W62=0,0,IF(P62='G-1 All Habitats'!$X$3,"Unacceptable Loss",Q62-U62-V62)))))),"Check Data") ->  | AC62: =IF(P62="","",IF(P62='G-1 All Habitats'!$X$3,H62-S62-T62,"None")) ->  | AD62: =IFERROR(AC62*J62*L62*#REF!*O62,IF(P62="","","None")) ->  | AH62: =IF(I62="","",IF(#REF!>0,TRUE,FALSE)) ->  | AI62: 52 | AK62: =IFERROR(INDEX($AI$11:$AI$259, MATCH(0, IF(TRUE=$AF$11:$AF$259, COUNTIF($AK$10:$AK61, $AI$11:$AI$259), ""), 0)),"") ->  | AL62: =IFERROR(INDEX($AI$11:$AI$259, MATCH(0, IF(TRUE=$AG$11:$AG$259, COUNTIF($AL$10:$AL61, $AI$11:$AI$259), ""), 0)),"") ->  | AM62: =IFERROR(INDEX($AI$11:$AI$259, MATCH(0, IF(TRUE=$AH$11:$AH$259, COUNTIF($AM$10:$AM61, $AI$11:$AI$259), ""), 0)),"") ->  | AQ62: 0
A63: =IFERROR(INDEX('G-1 All Habitats'!$AG$3:$AG$15,MATCH(E63,'G-1 All Habitats'!$AF$3:$AF$15,0)),"") ->  | B63: =IFERROR(INDEX('G-8 Condition Look up'!$I$4:$I$131,MATCH(G63,'G-8 Condition Look up'!$A$4:$A$131,0)),"") ->  | D63: 53 | G63: =IFERROR(INDEX('G-1 All Habitats'!$B$3:$B$130,MATCH(F63,'G-1 All Habitats'!$A$3:$A$130,0)),"") ->  | I63: =IF(G63="","",VLOOKUP(G63,'G-1 All Habitats'!$B$2:$M$130,10,FALSE)) ->  | J63: =IFERROR(VLOOKUP(I63,'G-1 All Habitats'!$V$3:$W$7,2,FALSE),"") ->  | L63: =IFERROR(INDEX('G-8 Condition Look up'!$A$3:$H$131,MATCH(G63,'G-8 Condition Look up'!$A$3:$A$131,0),MATCH(K63,'G-8 Condition Look up'!$A$3:$H$3,0)),"") ->  | N63: =IF(M63="","",IF(VLOOKUP(M63,'G-3 Multipliers'!$L$3:$N$6,2,FALSE)=0,"Spatial Data Missing",VLOOKUP(M63,'G-3 Multipliers'!$L$3:$N$6,2,FALSE))) ->  | O63: =IF(M63="","",IF(VLOOKUP(M63,'G-3 Multipliers'!$L$3:$N$6,3,FALSE)=0,"Spatial Data Missing",VLOOKUP(M63,'G-3 Multipliers'!$L$3:$N$6,3,FALSE))) ->  | P63: =IFERROR(VLOOKUP(G63,'G-1 All Habitats'!$B$2:$M$130,12,FALSE),"") ->  | Q63: =IFERROR(IF(P63="","",IF(AND(P63='G-1 All Habitats'!$X$3,T63>0),U63+V63,IF(AND(P63='G-1 All Habitats'!$X$3,S63>0),U63+V63,IF(AND(P63='G-1 All Habitats'!$X$3,AC63>0),"Any Loss Unacceptable",IF(AND(P63='G-1 All Habitats'!$X$3,W63>0),"Any Loss Unacceptable",H63*J63*L63*O63))))),"Check Data") ->  | W63: =IF(E63="","",IF(H63<S63+T63,"Error in Areas",IF(P63<>'G-1 All Habitats'!$X$3,H63-S63-T63,IF(AND(P63='G-1 All Habitats'!$X$3,Y63="Yes"),"Unacceptable Loss",IF(AND(P63='G-1 All Habitats'!$X$3,Y63="No"),AC63,IF(AND(P63='G-1 All Habitats'!$X$3,Y63=""),AC63,IF(AND(P63='G-1 All Habitats'!$X$3,AC63="None",AC63),IF(AND(P63='G-1 All Habitats'!$X$3,AC63>0),H63-S63-T63)))))))) ->  | X63: =IFERROR(IF(H63="","",IF(H63-S63-T63=0<0,"Error in Areas",IF(S63+T63>H63,"Error in Areas",IF(AND(P63='G-1 All Habitats'!$X$3,Y63="Yes"),"Alternative Compensation",IF(W63=0,0,IF(P63='G-1 All Habitats'!$X$3,"Unacceptable Loss",Q63-U63-V63)))))),"Check Data") ->  | AC63: =IF(P63="","",IF(P63='G-1 All Habitats'!$X$3,H63-S63-T63,"None")) ->  | AD63: =IFERROR(AC63*J63*L63*#REF!*O63,IF(P63="","","None")) ->  | AH63: =IF(I63="","",IF(#REF!>0,TRUE,FALSE)) ->  | AI63: 53 | AK63: =IFERROR(INDEX($AI$11:$AI$259, MATCH(0, IF(TRUE=$AF$11:$AF$259, COUNTIF($AK$10:$AK62, $AI$11:$AI$259), ""), 0)),"") ->  | AL63: =IFERROR(INDEX($AI$11:$AI$259, MATCH(0, IF(TRUE=$AG$11:$AG$259, COUNTIF($AL$10:$AL62, $AI$11:$AI$259), ""), 0)),"") ->  | AM63: =IFERROR(INDEX($AI$11:$AI$259, MATCH(0, IF(TRUE=$AH$11:$AH$259, COUNTIF($AM$10:$AM62, $AI$11:$AI$259), ""), 0)),"") ->  | AQ63: 0
A64: =IFERROR(INDEX('G-1 All Habitats'!$AG$3:$AG$15,MATCH(E64,'G-1 All Habitats'!$AF$3:$AF$15,0)),"") ->  | B64: =IFERROR(INDEX('G-8 Condition Look up'!$I$4:$I$131,MATCH(G64,'G-8 Condition Look up'!$A$4:$A$131,0)),"") ->  | D64: 54 | G64: =IFERROR(INDEX('G-1 All Habitats'!$B$3:$B$130,MATCH(F64,'G-1 All Habitats'!$A$3:$A$130,0)),"") ->  | I64: =IF(G64="","",VLOOKUP(G64,'G-1 All Habitats'!$B$2:$M$130,10,FALSE)) ->  | J64: =IFERROR(VLOOKUP(I64,'G-1 All Habitats'!$V$3:$W$7,2,FALSE),"") ->  | L64: =IFERROR(INDEX('G-8 Condition Look up'!$A$3:$H$131,MATCH(G64,'G-8 Condition Look up'!$A$3:$A$131,0),MATCH(K64,'G-8 Condition Look up'!$A$3:$H$3,0)),"") ->  | N64: =IF(M64="","",IF(VLOOKUP(M64,'G-3 Multipliers'!$L$3:$N$6,2,FALSE)=0,"Spatial Data Missing",VLOOKUP(M64,'G-3 Multipliers'!$L$3:$N$6,2,FALSE))) ->  | O64: =IF(M64="","",IF(VLOOKUP(M64,'G-3 Multipliers'!$L$3:$N$6,3,FALSE)=0,"Spatial Data Missing",VLOOKUP(M64,'G-3 Multipliers'!$L$3:$N$6,3,FALSE))) ->  | P64: =IFERROR(VLOOKUP(G64,'G-1 All Habitats'!$B$2:$M$130,12,FALSE),"") ->  | Q64: =IFERROR(IF(P64="","",IF(AND(P64='G-1 All Habitats'!$X$3,T64>0),U64+V64,IF(AND(P64='G-1 All Habitats'!$X$3,S64>0),U64+V64,IF(AND(P64='G-1 All Habitats'!$X$3,AC64>0),"Any Loss Unacceptable",IF(AND(P64='G-1 All Habitats'!$X$3,W64>0),"Any Loss Unacceptable",H64*J64*L64*O64))))),"Check Data") ->  | W64: =IF(E64="","",IF(H64<S64+T64,"Error in Areas",IF(P64<>'G-1 All Habitats'!$X$3,H64-S64-T64,IF(AND(P64='G-1 All Habitats'!$X$3,Y64="Yes"),"Unacceptable Loss",IF(AND(P64='G-1 All Habitats'!$X$3,Y64="No"),AC64,IF(AND(P64='G-1 All Habitats'!$X$3,Y64=""),AC64,IF(AND(P64='G-1 All Habitats'!$X$3,AC64="None",AC64),IF(AND(P64='G-1 All Habitats'!$X$3,AC64>0),H64-S64-T64)))))))) ->  | X64: =IFERROR(IF(H64="","",IF(H64-S64-T64=0<0,"Error in Areas",IF(S64+T64>H64,"Error in Areas",IF(AND(P64='G-1 All Habitats'!$X$3,Y64="Yes"),"Alternative Compensation",IF(W64=0,0,IF(P64='G-1 All Habitats'!$X$3,"Unacceptable Loss",Q64-U64-V64)))))),"Check Data") ->  | AC64: =IF(P64="","",IF(P64='G-1 All Habitats'!$X$3,H64-S64-T64,"None")) ->  | AD64: =IFERROR(AC64*J64*L64*#REF!*O64,IF(P64="","","None")) ->  | AH64: =IF(I64="","",IF(#REF!>0,TRUE,FALSE)) ->  | AI64: 54 | AK64: =IFERROR(INDEX($AI$11:$AI$259, MATCH(0, IF(TRUE=$AF$11:$AF$259, COUNTIF($AK$10:$AK63, $AI$11:$AI$259), ""), 0)),"") ->  | AL64: =IFERROR(INDEX($AI$11:$AI$259, MATCH(0, IF(TRUE=$AG$11:$AG$259, COUNTIF($AL$10:$AL63, $AI$11:$AI$259), ""), 0)),"") ->  | AM64: =IFERROR(INDEX($AI$11:$AI$259, MATCH(0, IF(TRUE=$AH$11:$AH$259, COUNTIF($AM$10:$AM63, $AI$11:$AI$259), ""), 0)),"") ->  | AQ64: 0
A65: =IFERROR(INDEX('G-1 All Habitats'!$AG$3:$AG$15,MATCH(E65,'G-1 All Habitats'!$AF$3:$AF$15,0)),"") ->  | B65: =IFERROR(INDEX('G-8 Condition Look up'!$I$4:$I$131,MATCH(G65,'G-8 Condition Look up'!$A$4:$A$131,0)),"") ->  | D65: 55 | G65: =IFERROR(INDEX('G-1 All Habitats'!$B$3:$B$130,MATCH(F65,'G-1 All Habitats'!$A$3:$A$130,0)),"") ->  | I65: =IF(G65="","",VLOOKUP(G65,'G-1 All Habitats'!$B$2:$M$130,10,FALSE)) ->  | J65: =IFERROR(VLOOKUP(I65,'G-1 All Habitats'!$V$3:$W$7,2,FALSE),"") ->  | L65: =IFERROR(INDEX('G-8 Condition Look up'!$A$3:$H$131,MATCH(G65,'G-8 Condition Look up'!$A$3:$A$131,0),MATCH(K65,'G-8 Condition Look up'!$A$3:$H$3,0)),"") ->  | N65: =IF(M65="","",IF(VLOOKUP(M65,'G-3 Multipliers'!$L$3:$N$6,2,FALSE)=0,"Spatial Data Missing",VLOOKUP(M65,'G-3 Multipliers'!$L$3:$N$6,2,FALSE))) ->  | O65: =IF(M65="","",IF(VLOOKUP(M65,'G-3 Multipliers'!$L$3:$N$6,3,FALSE)=0,"Spatial Data Missing",VLOOKUP(M65,'G-3 Multipliers'!$L$3:$N$6,3,FALSE))) ->  | P65: =IFERROR(VLOOKUP(G65,'G-1 All Habitats'!$B$2:$M$130,12,FALSE),"") ->  | Q65: =IFERROR(IF(P65="","",IF(AND(P65='G-1 All Habitats'!$X$3,T65>0),U65+V65,IF(AND(P65='G-1 All Habitats'!$X$3,S65>0),U65+V65,IF(AND(P65='G-1 All Habitats'!$X$3,AC65>0),"Any Loss Unacceptable",IF(AND(P65='G-1 All Habitats'!$X$3,W65>0),"Any Loss Unacceptable",H65*J65*L65*O65))))),"Check Data") ->  | W65: =IF(E65="","",IF(H65<S65+T65,"Error in Areas",IF(P65<>'G-1 All Habitats'!$X$3,H65-S65-T65,IF(AND(P65='G-1 All Habitats'!$X$3,Y65="Yes"),"Unacceptable Loss",IF(AND(P65='G-1 All Habitats'!$X$3,Y65="No"),AC65,IF(AND(P65='G-1 All Habitats'!$X$3,Y65=""),AC65,IF(AND(P65='G-1 All Habitats'!$X$3,AC65="None",AC65),IF(AND(P65='G-1 All Habitats'!$X$3,AC65>0),H65-S65-T65)))))))) ->  | X65: =IFERROR(IF(H65="","",IF(H65-S65-T65=0<0,"Error in Areas",IF(S65+T65>H65,"Error in Areas",IF(AND(P65='G-1 All Habitats'!$X$3,Y65="Yes"),"Alternative Compensation",IF(W65=0,0,IF(P65='G-1 All Habitats'!$X$3,"Unacceptable Loss",Q65-U65-V65)))))),"Check Data") ->  | AC65: =IF(P65="","",IF(P65='G-1 All Habitats'!$X$3,H65-S65-T65,"None")) ->  | AD65: =IFERROR(AC65*J65*L65*#REF!*O65,IF(P65="","","None")) ->  | AH65: =IF(I65="","",IF(#REF!>0,TRUE,FALSE)) ->  | AI65: 55 | AK65: =IFERROR(INDEX($AI$11:$AI$259, MATCH(0, IF(TRUE=$AF$11:$AF$259, COUNTIF($AK$10:$AK64, $AI$11:$AI$259), ""), 0)),"") ->  | AL65: =IFERROR(INDEX($AI$11:$AI$259, MATCH(0, IF(TRUE=$AG$11:$AG$259, COUNTIF($AL$10:$AL64, $AI$11:$AI$259), ""), 0)),"") ->  | AM65: =IFERROR(INDEX($AI$11:$AI$259, MATCH(0, IF(TRUE=$AH$11:$AH$259, COUNTIF($AM$10:$AM64, $AI$11:$AI$259), ""), 0)),"") ->  | AQ65: 0
A66: =IFERROR(INDEX('G-1 All Habitats'!$AG$3:$AG$15,MATCH(E66,'G-1 All Habitats'!$AF$3:$AF$15,0)),"") ->  | B66: =IFERROR(INDEX('G-8 Condition Look up'!$I$4:$I$131,MATCH(G66,'G-8 Condition Look up'!$A$4:$A$131,0)),"") ->  | D66: 56 | G66: =IFERROR(INDEX('G-1 All Habitats'!$B$3:$B$130,MATCH(F66,'G-1 All Habitats'!$A$3:$A$130,0)),"") ->  | I66: =IF(G66="","",VLOOKUP(G66,'G-1 All Habitats'!$B$2:$M$130,10,FALSE)) ->  | J66: =IFERROR(VLOOKUP(I66,'G-1 All Habitats'!$V$3:$W$7,2,FALSE),"") ->  | L66: =IFERROR(INDEX('G-8 Condition Look up'!$A$3:$H$131,MATCH(G66,'G-8 Condition Look up'!$A$3:$A$131,0),MATCH(K66,'G-8 Condition Look up'!$A$3:$H$3,0)),"") ->  | N66: =IF(M66="","",IF(VLOOKUP(M66,'G-3 Multipliers'!$L$3:$N$6,2,FALSE)=0,"Spatial Data Missing",VLOOKUP(M66,'G-3 Multipliers'!$L$3:$N$6,2,FALSE))) ->  | O66: =IF(M66="","",IF(VLOOKUP(M66,'G-3 Multipliers'!$L$3:$N$6,3,FALSE)=0,"Spatial Data Missing",VLOOKUP(M66,'G-3 Multipliers'!$L$3:$N$6,3,FALSE))) ->  | P66: =IFERROR(VLOOKUP(G66,'G-1 All Habitats'!$B$2:$M$130,12,FALSE),"") ->  | Q66: =IFERROR(IF(P66="","",IF(AND(P66='G-1 All Habitats'!$X$3,T66>0),U66+V66,IF(AND(P66='G-1 All Habitats'!$X$3,S66>0),U66+V66,IF(AND(P66='G-1 All Habitats'!$X$3,AC66>0),"Any Loss Unacceptable",IF(AND(P66='G-1 All Habitats'!$X$3,W66>0),"Any Loss Unacceptable",H66*J66*L66*O66))))),"Check Data") ->  | W66: =IF(E66="","",IF(H66<S66+T66,"Error in Areas",IF(P66<>'G-1 All Habitats'!$X$3,H66-S66-T66,IF(AND(P66='G-1 All Habitats'!$X$3,Y66="Yes"),"Unacceptable Loss",IF(AND(P66='G-1 All Habitats'!$X$3,Y66="No"),AC66,IF(AND(P66='G-1 All Habitats'!$X$3,Y66=""),AC66,IF(AND(P66='G-1 All Habitats'!$X$3,AC66="None",AC66),IF(AND(P66='G-1 All Habitats'!$X$3,AC66>0),H66-S66-T66)))))))) ->  | X66: =IFERROR(IF(H66="","",IF(H66-S66-T66=0<0,"Error in Areas",IF(S66+T66>H66,"Error in Areas",IF(AND(P66='G-1 All Habitats'!$X$3,Y66="Yes"),"Alternative Compensation",IF(W66=0,0,IF(P66='G-1 All Habitats'!$X$3,"Unacceptable Loss",Q66-U66-V66)))))),"Check Data") ->  | AC66: =IF(P66="","",IF(P66='G-1 All Habitats'!$X$3,H66-S66-T66,"None")) ->  | AD66: =IFERROR(AC66*J66*L66*#REF!*O66,IF(P66="","","None")) ->  | AH66: =IF(I66="","",IF(#REF!>0,TRUE,FALSE)) ->  | AI66: 56 | AK66: =IFERROR(INDEX($AI$11:$AI$259, MATCH(0, IF(TRUE=$AF$11:$AF$259, COUNTIF($AK$10:$AK65, $AI$11:$AI$259), ""), 0)),"") ->  | AL66: =IFERROR(INDEX($AI$11:$AI$259, MATCH(0, IF(TRUE=$AG$11:$AG$259, COUNTIF($AL$10:$AL65, $AI$11:$AI$259), ""), 0)),"") ->  | AM66: =IFERROR(INDEX($AI$11:$AI$259, MATCH(0, IF(TRUE=$AH$11:$AH$259, COUNTIF($AM$10:$AM65, $AI$11:$AI$259), ""), 0)),"") ->  | AQ66: 0
A67: =IFERROR(INDEX('G-1 All Habitats'!$AG$3:$AG$15,MATCH(E67,'G-1 All Habitats'!$AF$3:$AF$15,0)),"") ->  | B67: =IFERROR(INDEX('G-8 Condition Look up'!$I$4:$I$131,MATCH(G67,'G-8 Condition Look up'!$A$4:$A$131,0)),"") ->  | D67: 57 | G67: =IFERROR(INDEX('G-1 All Habitats'!$B$3:$B$130,MATCH(F67,'G-1 All Habitats'!$A$3:$A$130,0)),"") ->  | I67: =IF(G67="","",VLOOKUP(G67,'G-1 All Habitats'!$B$2:$M$130,10,FALSE)) ->  | J67: =IFERROR(VLOOKUP(I67,'G-1 All Habitats'!$V$3:$W$7,2,FALSE),"") ->  | L67: =IFERROR(INDEX('G-8 Condition Look up'!$A$3:$H$131,MATCH(G67,'G-8 Condition Look up'!$A$3:$A$131,0),MATCH(K67,'G-8 Condition Look up'!$A$3:$H$3,0)),"") ->  | N67: =IF(M67="","",IF(VLOOKUP(M67,'G-3 Multipliers'!$L$3:$N$6,2,FALSE)=0,"Spatial Data Missing",VLOOKUP(M67,'G-3 Multipliers'!$L$3:$N$6,2,FALSE))) ->  | O67: =IF(M67="","",IF(VLOOKUP(M67,'G-3 Multipliers'!$L$3:$N$6,3,FALSE)=0,"Spatial Data Missing",VLOOKUP(M67,'G-3 Multipliers'!$L$3:$N$6,3,FALSE))) ->  | P67: =IFERROR(VLOOKUP(G67,'G-1 All Habitats'!$B$2:$M$130,12,FALSE),"") ->  | Q67: =IFERROR(IF(P67="","",IF(AND(P67='G-1 All Habitats'!$X$3,T67>0),U67+V67,IF(AND(P67='G-1 All Habitats'!$X$3,S67>0),U67+V67,IF(AND(P67='G-1 All Habitats'!$X$3,AC67>0),"Any Loss Unacceptable",IF(AND(P67='G-1 All Habitats'!$X$3,W67>0),"Any Loss Unacceptable",H67*J67*L67*O67))))),"Check Data") ->  | W67: =IF(E67="","",IF(H67<S67+T67,"Error in Areas",IF(P67<>'G-1 All Habitats'!$X$3,H67-S67-T67,IF(AND(P67='G-1 All Habitats'!$X$3,Y67="Yes"),"Unacceptable Loss",IF(AND(P67='G-1 All Habitats'!$X$3,Y67="No"),AC67,IF(AND(P67='G-1 All Habitats'!$X$3,Y67=""),AC67,IF(AND(P67='G-1 All Habitats'!$X$3,AC67="None",AC67),IF(AND(P67='G-1 All Habitats'!$X$3,AC67>0),H67-S67-T67)))))))) ->  | X67: =IFERROR(IF(H67="","",IF(H67-S67-T67=0<0,"Error in Areas",IF(S67+T67>H67,"Error in Areas",IF(AND(P67='G-1 All Habitats'!$X$3,Y67="Yes"),"Alternative Compensation",IF(W67=0,0,IF(P67='G-1 All Habitats'!$X$3,"Unacceptable Loss",Q67-U67-V67)))))),"Check Data") ->  | AC67: =IF(P67="","",IF(P67='G-1 All Habitats'!$X$3,H67-S67-T67,"None")) ->  | AD67: =IFERROR(AC67*J67*L67*#REF!*O67,IF(P67="","","None")) ->  | AH67: =IF(I67="","",IF(#REF!>0,TRUE,FALSE)) ->  | AI67: 57 | AK67: =IFERROR(INDEX($AI$11:$AI$259, MATCH(0, IF(TRUE=$AF$11:$AF$259, COUNTIF($AK$10:$AK66, $AI$11:$AI$259), ""), 0)),"") ->  | AL67: =IFERROR(INDEX($AI$11:$AI$259, MATCH(0, IF(TRUE=$AG$11:$AG$259, COUNTIF($AL$10:$AL66, $AI$11:$AI$259), ""), 0)),"") ->  | AM67: =IFERROR(INDEX($AI$11:$AI$259, MATCH(0, IF(TRUE=$AH$11:$AH$259, COUNTIF($AM$10:$AM66, $AI$11:$AI$259), ""), 0)),"") ->  | AQ67: 0
A68: =IFERROR(INDEX('G-1 All Habitats'!$AG$3:$AG$15,MATCH(E68,'G-1 All Habitats'!$AF$3:$AF$15,0)),"") ->  | B68: =IFERROR(INDEX('G-8 Condition Look up'!$I$4:$I$131,MATCH(G68,'G-8 Condition Look up'!$A$4:$A$131,0)),"") ->  | D68: 58 | G68: =IFERROR(INDEX('G-1 All Habitats'!$B$3:$B$130,MATCH(F68,'G-1 All Habitats'!$A$3:$A$130,0)),"") ->  | I68: =IF(G68="","",VLOOKUP(G68,'G-1 All Habitats'!$B$2:$M$130,10,FALSE)) ->  | J68: =IFERROR(VLOOKUP(I68,'G-1 All Habitats'!$V$3:$W$7,2,FALSE),"") ->  | L68: =IFERROR(INDEX('G-8 Condition Look up'!$A$3:$H$131,MATCH(G68,'G-8 Condition Look up'!$A$3:$A$131,0),MATCH(K68,'G-8 Condition Look up'!$A$3:$H$3,0)),"") ->  | N68: =IF(M68="","",IF(VLOOKUP(M68,'G-3 Multipliers'!$L$3:$N$6,2,FALSE)=0,"Spatial Data Missing",VLOOKUP(M68,'G-3 Multipliers'!$L$3:$N$6,2,FALSE))) ->  | O68: =IF(M68="","",IF(VLOOKUP(M68,'G-3 Multipliers'!$L$3:$N$6,3,FALSE)=0,"Spatial Data Missing",VLOOKUP(M68,'G-3 Multipliers'!$L$3:$N$6,3,FALSE))) ->  | P68: =IFERROR(VLOOKUP(G68,'G-1 All Habitats'!$B$2:$M$130,12,FALSE),"") ->  | Q68: =IFERROR(IF(P68="","",IF(AND(P68='G-1 All Habitats'!$X$3,T68>0),U68+V68,IF(AND(P68='G-1 All Habitats'!$X$3,S68>0),U68+V68,IF(AND(P68='G-1 All Habitats'!$X$3,AC68>0),"Any Loss Unacceptable",IF(AND(P68='G-1 All Habitats'!$X$3,W68>0),"Any Loss Unacceptable",H68*J68*L68*O68))))),"Check Data") ->  | W68: =IF(E68="","",IF(H68<S68+T68,"Error in Areas",IF(P68<>'G-1 All Habitats'!$X$3,H68-S68-T68,IF(AND(P68='G-1 All Habitats'!$X$3,Y68="Yes"),"Unacceptable Loss",IF(AND(P68='G-1 All Habitats'!$X$3,Y68="No"),AC68,IF(AND(P68='G-1 All Habitats'!$X$3,Y68=""),AC68,IF(AND(P68='G-1 All Habitats'!$X$3,AC68="None",AC68),IF(AND(P68='G-1 All Habitats'!$X$3,AC68>0),H68-S68-T68)))))))) ->  | X68: =IFERROR(IF(H68="","",IF(H68-S68-T68=0<0,"Error in Areas",IF(S68+T68>H68,"Error in Areas",IF(AND(P68='G-1 All Habitats'!$X$3,Y68="Yes"),"Alternative Compensation",IF(W68=0,0,IF(P68='G-1 All Habitats'!$X$3,"Unacceptable Loss",Q68-U68-V68)))))),"Check Data") ->  | AC68: =IF(P68="","",IF(P68='G-1 All Habitats'!$X$3,H68-S68-T68,"None")) ->  | AD68: =IFERROR(AC68*J68*L68*#REF!*O68,IF(P68="","","None")) ->  | AH68: =IF(I68="","",IF(#REF!>0,TRUE,FALSE)) ->  | AI68: 58 | AK68: =IFERROR(INDEX($AI$11:$AI$259, MATCH(0, IF(TRUE=$AF$11:$AF$259, COUNTIF($AK$10:$AK67, $AI$11:$AI$259), ""), 0)),"") ->  | AL68: =IFERROR(INDEX($AI$11:$AI$259, MATCH(0, IF(TRUE=$AG$11:$AG$259, COUNTIF($AL$10:$AL67, $AI$11:$AI$259), ""), 0)),"") ->  | AM68: =IFERROR(INDEX($AI$11:$AI$259, MATCH(0, IF(TRUE=$AH$11:$AH$259, COUNTIF($AM$10:$AM67, $AI$11:$AI$259), ""), 0)),"") ->  | AQ68: 0
A69: =IFERROR(INDEX('G-1 All Habitats'!$AG$3:$AG$15,MATCH(E69,'G-1 All Habitats'!$AF$3:$AF$15,0)),"") ->  | B69: =IFERROR(INDEX('G-8 Condition Look up'!$I$4:$I$131,MATCH(G69,'G-8 Condition Look up'!$A$4:$A$131,0)),"") ->  | D69: 59 | G69: =IFERROR(INDEX('G-1 All Habitats'!$B$3:$B$130,MATCH(F69,'G-1 All Habitats'!$A$3:$A$130,0)),"") ->  | I69: =IF(G69="","",VLOOKUP(G69,'G-1 All Habitats'!$B$2:$M$130,10,FALSE)) ->  | J69: =IFERROR(VLOOKUP(I69,'G-1 All Habitats'!$V$3:$W$7,2,FALSE),"") ->  | L69: =IFERROR(INDEX('G-8 Condition Look up'!$A$3:$H$131,MATCH(G69,'G-8 Condition Look up'!$A$3:$A$131,0),MATCH(K69,'G-8 Condition Look up'!$A$3:$H$3,0)),"") ->  | N69: =IF(M69="","",IF(VLOOKUP(M69,'G-3 Multipliers'!$L$3:$N$6,2,FALSE)=0,"Spatial Data Missing",VLOOKUP(M69,'G-3 Multipliers'!$L$3:$N$6,2,FALSE))) ->  | O69: =IF(M69="","",IF(VLOOKUP(M69,'G-3 Multipliers'!$L$3:$N$6,3,FALSE)=0,"Spatial Data Missing",VLOOKUP(M69,'G-3 Multipliers'!$L$3:$N$6,3,FALSE))) ->  | P69: =IFERROR(VLOOKUP(G69,'G-1 All Habitats'!$B$2:$M$130,12,FALSE),"") ->  | Q69: =IFERROR(IF(P69="","",IF(AND(P69='G-1 All Habitats'!$X$3,T69>0),U69+V69,IF(AND(P69='G-1 All Habitats'!$X$3,S69>0),U69+V69,IF(AND(P69='G-1 All Habitats'!$X$3,AC69>0),"Any Loss Unacceptable",IF(AND(P69='G-1 All Habitats'!$X$3,W69>0),"Any Loss Unacceptable",H69*J69*L69*O69))))),"Check Data") ->  | W69: =IF(E69="","",IF(H69<S69+T69,"Error in Areas",IF(P69<>'G-1 All Habitats'!$X$3,H69-S69-T69,IF(AND(P69='G-1 All Habitats'!$X$3,Y69="Yes"),"Unacceptable Loss",IF(AND(P69='G-1 All Habitats'!$X$3,Y69="No"),AC69,IF(AND(P69='G-1 All Habitats'!$X$3,Y69=""),AC69,IF(AND(P69='G-1 All Habitats'!$X$3,AC69="None",AC69),IF(AND(P69='G-1 All Habitats'!$X$3,AC69>0),H69-S69-T69)))))))) ->  | X69: =IFERROR(IF(H69="","",IF(H69-S69-T69=0<0,"Error in Areas",IF(S69+T69>H69,"Error in Areas",IF(AND(P69='G-1 All Habitats'!$X$3,Y69="Yes"),"Alternative Compensation",IF(W69=0,0,IF(P69='G-1 All Habitats'!$X$3,"Unacceptable Loss",Q69-U69-V69)))))),"Check Data") ->  | AC69: =IF(P69="","",IF(P69='G-1 All Habitats'!$X$3,H69-S69-T69,"None")) ->  | AD69: =IFERROR(AC69*J69*L69*#REF!*O69,IF(P69="","","None")) ->  | AH69: =IF(I69="","",IF(#REF!>0,TRUE,FALSE)) ->  | AI69: 59 | AK69: =IFERROR(INDEX($AI$11:$AI$259, MATCH(0, IF(TRUE=$AF$11:$AF$259, COUNTIF($AK$10:$AK68, $AI$11:$AI$259), ""), 0)),"") ->  | AL69: =IFERROR(INDEX($AI$11:$AI$259, MATCH(0, IF(TRUE=$AG$11:$AG$259, COUNTIF($AL$10:$AL68, $AI$11:$AI$259), ""), 0)),"") ->  | AM69: =IFERROR(INDEX($AI$11:$AI$259, MATCH(0, IF(TRUE=$AH$11:$AH$259, COUNTIF($AM$10:$AM68, $AI$11:$AI$259), ""), 0)),"") ->  | AQ69: 0
A70: =IFERROR(INDEX('G-1 All Habitats'!$AG$3:$AG$15,MATCH(E70,'G-1 All Habitats'!$AF$3:$AF$15,0)),"") ->  | B70: =IFERROR(INDEX('G-8 Condition Look up'!$I$4:$I$131,MATCH(G70,'G-8 Condition Look up'!$A$4:$A$131,0)),"") ->  | D70: 60 | G70: =IFERROR(INDEX('G-1 All Habitats'!$B$3:$B$130,MATCH(F70,'G-1 All Habitats'!$A$3:$A$130,0)),"") ->  | I70: =IF(G70="","",VLOOKUP(G70,'G-1 All Habitats'!$B$2:$M$130,10,FALSE)) ->  | J70: =IFERROR(VLOOKUP(I70,'G-1 All Habitats'!$V$3:$W$7,2,FALSE),"") ->  | L70: =IFERROR(INDEX('G-8 Condition Look up'!$A$3:$H$131,MATCH(G70,'G-8 Condition Look up'!$A$3:$A$131,0),MATCH(K70,'G-8 Condition Look up'!$A$3:$H$3,0)),"") ->  | N70: =IF(M70="","",IF(VLOOKUP(M70,'G-3 Multipliers'!$L$3:$N$6,2,FALSE)=0,"Spatial Data Missing",VLOOKUP(M70,'G-3 Multipliers'!$L$3:$N$6,2,FALSE))) ->  | O70: =IF(M70="","",IF(VLOOKUP(M70,'G-3 Multipliers'!$L$3:$N$6,3,FALSE)=0,"Spatial Data Missing",VLOOKUP(M70,'G-3 Multipliers'!$L$3:$N$6,3,FALSE))) ->  | P70: =IFERROR(VLOOKUP(G70,'G-1 All Habitats'!$B$2:$M$130,12,FALSE),"") ->  | Q70: =IFERROR(IF(P70="","",IF(AND(P70='G-1 All Habitats'!$X$3,T70>0),U70+V70,IF(AND(P70='G-1 All Habitats'!$X$3,S70>0),U70+V70,IF(AND(P70='G-1 All Habitats'!$X$3,AC70>0),"Any Loss Unacceptable",IF(AND(P70='G-1 All Habitats'!$X$3,W70>0),"Any Loss Unacceptable",H70*J70*L70*O70))))),"Check Data") ->  | W70: =IF(E70="","",IF(H70<S70+T70,"Error in Areas",IF(P70<>'G-1 All Habitats'!$X$3,H70-S70-T70,IF(AND(P70='G-1 All Habitats'!$X$3,Y70="Yes"),"Unacceptable Loss",IF(AND(P70='G-1 All Habitats'!$X$3,Y70="No"),AC70,IF(AND(P70='G-1 All Habitats'!$X$3,Y70=""),AC70,IF(AND(P70='G-1 All Habitats'!$X$3,AC70="None",AC70),IF(AND(P70='G-1 All Habitats'!$X$3,AC70>0),H70-S70-T70)))))))) ->  | X70: =IFERROR(IF(H70="","",IF(H70-S70-T70=0<0,"Error in Areas",IF(S70+T70>H70,"Error in Areas",IF(AND(P70='G-1 All Habitats'!$X$3,Y70="Yes"),"Alternative Compensation",IF(W70=0,0,IF(P70='G-1 All Habitats'!$X$3,"Unacceptable Loss",Q70-U70-V70)))))),"Check Data") ->  | AC70: =IF(P70="","",IF(P70='G-1 All Habitats'!$X$3,H70-S70-T70,"None")) ->  | AD70: =IFERROR(AC70*J70*L70*#REF!*O70,IF(P70="","","None")) ->  | AH70: =IF(I70="","",IF(#REF!>0,TRUE,FALSE)) ->  | AI70: 60 | AK70: =IFERROR(INDEX($AI$11:$AI$259, MATCH(0, IF(TRUE=$AF$11:$AF$259, COUNTIF($AK$10:$AK69, $AI$11:$AI$259), ""), 0)),"") ->  | AL70: =IFERROR(INDEX($AI$11:$AI$259, MATCH(0, IF(TRUE=$AG$11:$AG$259, COUNTIF($AL$10:$AL69, $AI$11:$AI$259), ""), 0)),"") ->  | AM70: =IFERROR(INDEX($AI$11:$AI$259, MATCH(0, IF(TRUE=$AH$11:$AH$259, COUNTIF($AM$10:$AM69, $AI$11:$AI$259), ""), 0)),"") ->  | AQ70: 0
A71: =IFERROR(INDEX('G-1 All Habitats'!$AG$3:$AG$15,MATCH(E71,'G-1 All Habitats'!$AF$3:$AF$15,0)),"") ->  | B71: =IFERROR(INDEX('G-8 Condition Look up'!$I$4:$I$131,MATCH(G71,'G-8 Condition Look up'!$A$4:$A$131,0)),"") ->  | D71: 61 | G71: =IFERROR(INDEX('G-1 All Habitats'!$B$3:$B$130,MATCH(F71,'G-1 All Habitats'!$A$3:$A$130,0)),"") ->  | I71: =IF(G71="","",VLOOKUP(G71,'G-1 All Habitats'!$B$2:$M$130,10,FALSE)) ->  | J71: =IFERROR(VLOOKUP(I71,'G-1 All Habitats'!$V$3:$W$7,2,FALSE),"") ->  | L71: =IFERROR(INDEX('G-8 Condition Look up'!$A$3:$H$131,MATCH(G71,'G-8 Condition Look up'!$A$3:$A$131,0),MATCH(K71,'G-8 Condition Look up'!$A$3:$H$3,0)),"") ->  | N71: =IF(M71="","",IF(VLOOKUP(M71,'G-3 Multipliers'!$L$3:$N$6,2,FALSE)=0,"Spatial Data Missing",VLOOKUP(M71,'G-3 Multipliers'!$L$3:$N$6,2,FALSE))) ->  | O71: =IF(M71="","",IF(VLOOKUP(M71,'G-3 Multipliers'!$L$3:$N$6,3,FALSE)=0,"Spatial Data Missing",VLOOKUP(M71,'G-3 Multipliers'!$L$3:$N$6,3,FALSE))) ->  | P71: =IFERROR(VLOOKUP(G71,'G-1 All Habitats'!$B$2:$M$130,12,FALSE),"") ->  | Q71: =IFERROR(IF(P71="","",IF(AND(P71='G-1 All Habitats'!$X$3,T71>0),U71+V71,IF(AND(P71='G-1 All Habitats'!$X$3,S71>0),U71+V71,IF(AND(P71='G-1 All Habitats'!$X$3,AC71>0),"Any Loss Unacceptable",IF(AND(P71='G-1 All Habitats'!$X$3,W71>0),"Any Loss Unacceptable",H71*J71*L71*O71))))),"Check Data") ->  | W71: =IF(E71="","",IF(H71<S71+T71,"Error in Areas",IF(P71<>'G-1 All Habitats'!$X$3,H71-S71-T71,IF(AND(P71='G-1 All Habitats'!$X$3,Y71="Yes"),"Unacceptable Loss",IF(AND(P71='G-1 All Habitats'!$X$3,Y71="No"),AC71,IF(AND(P71='G-1 All Habitats'!$X$3,Y71=""),AC71,IF(AND(P71='G-1 All Habitats'!$X$3,AC71="None",AC71),IF(AND(P71='G-1 All Habitats'!$X$3,AC71>0),H71-S71-T71)))))))) ->  | X71: =IFERROR(IF(H71="","",IF(H71-S71-T71=0<0,"Error in Areas",IF(S71+T71>H71,"Error in Areas",IF(AND(P71='G-1 All Habitats'!$X$3,Y71="Yes"),"Alternative Compensation",IF(W71=0,0,IF(P71='G-1 All Habitats'!$X$3,"Unacceptable Loss",Q71-U71-V71)))))),"Check Data") ->  | AC71: =IF(P71="","",IF(P71='G-1 All Habitats'!$X$3,H71-S71-T71,"None")) ->  | AD71: =IFERROR(AC71*J71*L71*#REF!*O71,IF(P71="","","None")) ->  | AH71: =IF(I71="","",IF(#REF!>0,TRUE,FALSE)) ->  | AI71: 61 | AK71: =IFERROR(INDEX($AI$11:$AI$259, MATCH(0, IF(TRUE=$AF$11:$AF$259, COUNTIF($AK$10:$AK70, $AI$11:$AI$259), ""), 0)),"") ->  | AL71: =IFERROR(INDEX($AI$11:$AI$259, MATCH(0, IF(TRUE=$AG$11:$AG$259, COUNTIF($AL$10:$AL70, $AI$11:$AI$259), ""), 0)),"") ->  | AM71: =IFERROR(INDEX($AI$11:$AI$259, MATCH(0, IF(TRUE=$AH$11:$AH$259, COUNTIF($AM$10:$AM70, $AI$11:$AI$259), ""), 0)),"") ->  | AQ71: 0
A72: =IFERROR(INDEX('G-1 All Habitats'!$AG$3:$AG$15,MATCH(E72,'G-1 All Habitats'!$AF$3:$AF$15,0)),"") ->  | B72: =IFERROR(INDEX('G-8 Condition Look up'!$I$4:$I$131,MATCH(G72,'G-8 Condition Look up'!$A$4:$A$131,0)),"") ->  | D72: 62 | G72: =IFERROR(INDEX('G-1 All Habitats'!$B$3:$B$130,MATCH(F72,'G-1 All Habitats'!$A$3:$A$130,0)),"") ->  | I72: =IF(G72="","",VLOOKUP(G72,'G-1 All Habitats'!$B$2:$M$130,10,FALSE)) ->  | J72: =IFERROR(VLOOKUP(I72,'G-1 All Habitats'!$V$3:$W$7,2,FALSE),"") ->  | L72: =IFERROR(INDEX('G-8 Condition Look up'!$A$3:$H$131,MATCH(G72,'G-8 Condition Look up'!$A$3:$A$131,0),MATCH(K72,'G-8 Condition Look up'!$A$3:$H$3,0)),"") ->  | N72: =IF(M72="","",IF(VLOOKUP(M72,'G-3 Multipliers'!$L$3:$N$6,2,FALSE)=0,"Spatial Data Missing",VLOOKUP(M72,'G-3 Multipliers'!$L$3:$N$6,2,FALSE))) ->  | O72: =IF(M72="","",IF(VLOOKUP(M72,'G-3 Multipliers'!$L$3:$N$6,3,FALSE)=0,"Spatial Data Missing",VLOOKUP(M72,'G-3 Multipliers'!$L$3:$N$6,3,FALSE))) ->  | P72: =IFERROR(VLOOKUP(G72,'G-1 All Habitats'!$B$2:$M$130,12,FALSE),"") ->  | Q72: =IFERROR(IF(P72="","",IF(AND(P72='G-1 All Habitats'!$X$3,T72>0),U72+V72,IF(AND(P72='G-1 All Habitats'!$X$3,S72>0),U72+V72,IF(AND(P72='G-1 All Habitats'!$X$3,AC72>0),"Any Loss Unacceptable",IF(AND(P72='G-1 All Habitats'!$X$3,W72>0),"Any Loss Unacceptable",H72*J72*L72*O72))))),"Check Data") ->  | W72: =IF(E72="","",IF(H72<S72+T72,"Error in Areas",IF(P72<>'G-1 All Habitats'!$X$3,H72-S72-T72,IF(AND(P72='G-1 All Habitats'!$X$3,Y72="Yes"),"Unacceptable Loss",IF(AND(P72='G-1 All Habitats'!$X$3,Y72="No"),AC72,IF(AND(P72='G-1 All Habitats'!$X$3,Y72=""),AC72,IF(AND(P72='G-1 All Habitats'!$X$3,AC72="None",AC72),IF(AND(P72='G-1 All Habitats'!$X$3,AC72>0),H72-S72-T72)))))))) ->  | X72: =IFERROR(IF(H72="","",IF(H72-S72-T72=0<0,"Error in Areas",IF(S72+T72>H72,"Error in Areas",IF(AND(P72='G-1 All Habitats'!$X$3,Y72="Yes"),"Alternative Compensation",IF(W72=0,0,IF(P72='G-1 All Habitats'!$X$3,"Unacceptable Loss",Q72-U72-V72)))))),"Check Data") ->  | AC72: =IF(P72="","",IF(P72='G-1 All Habitats'!$X$3,H72-S72-T72,"None")) ->  | AD72: =IFERROR(AC72*J72*L72*#REF!*O72,IF(P72="","","None")) ->  | AH72: =IF(I72="","",IF(#REF!>0,TRUE,FALSE)) ->  | AI72: 62 | AK72: =IFERROR(INDEX($AI$11:$AI$259, MATCH(0, IF(TRUE=$AF$11:$AF$259, COUNTIF($AK$10:$AK71, $AI$11:$AI$259), ""), 0)),"") ->  | AL72: =IFERROR(INDEX($AI$11:$AI$259, MATCH(0, IF(TRUE=$AG$11:$AG$259, COUNTIF($AL$10:$AL71, $AI$11:$AI$259), ""), 0)),"") ->  | AM72: =IFERROR(INDEX($AI$11:$AI$259, MATCH(0, IF(TRUE=$AH$11:$AH$259, COUNTIF($AM$10:$AM71, $AI$11:$AI$259), ""), 0)),"") ->  | AQ72: 0
A73: =IFERROR(INDEX('G-1 All Habitats'!$AG$3:$AG$15,MATCH(E73,'G-1 All Habitats'!$AF$3:$AF$15,0)),"") ->  | B73: =IFERROR(INDEX('G-8 Condition Look up'!$I$4:$I$131,MATCH(G73,'G-8 Condition Look up'!$A$4:$A$131,0)),"") ->  | D73: 63 | G73: =IFERROR(INDEX('G-1 All Habitats'!$B$3:$B$130,MATCH(F73,'G-1 All Habitats'!$A$3:$A$130,0)),"") ->  | I73: =IF(G73="","",VLOOKUP(G73,'G-1 All Habitats'!$B$2:$M$130,10,FALSE)) ->  | J73: =IFERROR(VLOOKUP(I73,'G-1 All Habitats'!$V$3:$W$7,2,FALSE),"") ->  | L73: =IFERROR(INDEX('G-8 Condition Look up'!$A$3:$H$131,MATCH(G73,'G-8 Condition Look up'!$A$3:$A$131,0),MATCH(K73,'G-8 Condition Look up'!$A$3:$H$3,0)),"") ->  | N73: =IF(M73="","",IF(VLOOKUP(M73,'G-3 Multipliers'!$L$3:$N$6,2,FALSE)=0,"Spatial Data Missing",VLOOKUP(M73,'G-3 Multipliers'!$L$3:$N$6,2,FALSE))) ->  | O73: =IF(M73="","",IF(VLOOKUP(M73,'G-3 Multipliers'!$L$3:$N$6,3,FALSE)=0,"Spatial Data Missing",VLOOKUP(M73,'G-3 Multipliers'!$L$3:$N$6,3,FALSE))) ->  | P73: =IFERROR(VLOOKUP(G73,'G-1 All Habitats'!$B$2:$M$130,12,FALSE),"") ->  | Q73: =IFERROR(IF(P73="","",IF(AND(P73='G-1 All Habitats'!$X$3,T73>0),U73+V73,IF(AND(P73='G-1 All Habitats'!$X$3,S73>0),U73+V73,IF(AND(P73='G-1 All Habitats'!$X$3,AC73>0),"Any Loss Unacceptable",IF(AND(P73='G-1 All Habitats'!$X$3,W73>0),"Any Loss Unacceptable",H73*J73*L73*O73))))),"Check Data") ->  | W73: =IF(E73="","",IF(H73<S73+T73,"Error in Areas",IF(P73<>'G-1 All Habitats'!$X$3,H73-S73-T73,IF(AND(P73='G-1 All Habitats'!$X$3,Y73="Yes"),"Unacceptable Loss",IF(AND(P73='G-1 All Habitats'!$X$3,Y73="No"),AC73,IF(AND(P73='G-1 All Habitats'!$X$3,Y73=""),AC73,IF(AND(P73='G-1 All Habitats'!$X$3,AC73="None",AC73),IF(AND(P73='G-1 All Habitats'!$X$3,AC73>0),H73-S73-T73)))))))) ->  | X73: =IFERROR(IF(H73="","",IF(H73-S73-T73=0<0,"Error in Areas",IF(S73+T73>H73,"Error in Areas",IF(AND(P73='G-1 All Habitats'!$X$3,Y73="Yes"),"Alternative Compensation",IF(W73=0,0,IF(P73='G-1 All Habitats'!$X$3,"Unacceptable Loss",Q73-U73-V73)))))),"Check Data") ->  | AC73: =IF(P73="","",IF(P73='G-1 All Habitats'!$X$3,H73-S73-T73,"None")) ->  | AD73: =IFERROR(AC73*J73*L73*#REF!*O73,IF(P73="","","None")) ->  | AH73: =IF(I73="","",IF(#REF!>0,TRUE,FALSE)) ->  | AI73: 63 | AK73: =IFERROR(INDEX($AI$11:$AI$259, MATCH(0, IF(TRUE=$AF$11:$AF$259, COUNTIF($AK$10:$AK72, $AI$11:$AI$259), ""), 0)),"") ->  | AL73: =IFERROR(INDEX($AI$11:$AI$259, MATCH(0, IF(TRUE=$AG$11:$AG$259, COUNTIF($AL$10:$AL72, $AI$11:$AI$259), ""), 0)),"") ->  | AM73: =IFERROR(INDEX($AI$11:$AI$259, MATCH(0, IF(TRUE=$AH$11:$AH$259, COUNTIF($AM$10:$AM72, $AI$11:$AI$259), ""), 0)),"") ->  | AQ73: 0
A74: =IFERROR(INDEX('G-1 All Habitats'!$AG$3:$AG$15,MATCH(E74,'G-1 All Habitats'!$AF$3:$AF$15,0)),"") ->  | B74: =IFERROR(INDEX('G-8 Condition Look up'!$I$4:$I$131,MATCH(G74,'G-8 Condition Look up'!$A$4:$A$131,0)),"") ->  | D74: 64 | G74: =IFERROR(INDEX('G-1 All Habitats'!$B$3:$B$130,MATCH(F74,'G-1 All Habitats'!$A$3:$A$130,0)),"") ->  | I74: =IF(G74="","",VLOOKUP(G74,'G-1 All Habitats'!$B$2:$M$130,10,FALSE)) ->  | J74: =IFERROR(VLOOKUP(I74,'G-1 All Habitats'!$V$3:$W$7,2,FALSE),"") ->  | L74: =IFERROR(INDEX('G-8 Condition Look up'!$A$3:$H$131,MATCH(G74,'G-8 Condition Look up'!$A$3:$A$131,0),MATCH(K74,'G-8 Condition Look up'!$A$3:$H$3,0)),"") ->  | N74: =IF(M74="","",IF(VLOOKUP(M74,'G-3 Multipliers'!$L$3:$N$6,2,FALSE)=0,"Spatial Data Missing",VLOOKUP(M74,'G-3 Multipliers'!$L$3:$N$6,2,FALSE))) ->  | O74: =IF(M74="","",IF(VLOOKUP(M74,'G-3 Multipliers'!$L$3:$N$6,3,FALSE)=0,"Spatial Data Missing",VLOOKUP(M74,'G-3 Multipliers'!$L$3:$N$6,3,FALSE))) ->  | P74: =IFERROR(VLOOKUP(G74,'G-1 All Habitats'!$B$2:$M$130,12,FALSE),"") ->  | Q74: =IFERROR(IF(P74="","",IF(AND(P74='G-1 All Habitats'!$X$3,T74>0),U74+V74,IF(AND(P74='G-1 All Habitats'!$X$3,S74>0),U74+V74,IF(AND(P74='G-1 All Habitats'!$X$3,AC74>0),"Any Loss Unacceptable",IF(AND(P74='G-1 All Habitats'!$X$3,W74>0),"Any Loss Unacceptable",H74*J74*L74*O74))))),"Check Data") ->  | W74: =IF(E74="","",IF(H74<S74+T74,"Error in Areas",IF(P74<>'G-1 All Habitats'!$X$3,H74-S74-T74,IF(AND(P74='G-1 All Habitats'!$X$3,Y74="Yes"),"Unacceptable Loss",IF(AND(P74='G-1 All Habitats'!$X$3,Y74="No"),AC74,IF(AND(P74='G-1 All Habitats'!$X$3,Y74=""),AC74,IF(AND(P74='G-1 All Habitats'!$X$3,AC74="None",AC74),IF(AND(P74='G-1 All Habitats'!$X$3,AC74>0),H74-S74-T74)))))))) ->  | X74: =IFERROR(IF(H74="","",IF(H74-S74-T74=0<0,"Error in Areas",IF(S74+T74>H74,"Error in Areas",IF(AND(P74='G-1 All Habitats'!$X$3,Y74="Yes"),"Alternative Compensation",IF(W74=0,0,IF(P74='G-1 All Habitats'!$X$3,"Unacceptable Loss",Q74-U74-V74)))))),"Check Data") ->  | AC74: =IF(P74="","",IF(P74='G-1 All Habitats'!$X$3,H74-S74-T74,"None")) ->  | AD74: =IFERROR(AC74*J74*L74*#REF!*O74,IF(P74="","","None")) ->  | AH74: =IF(I74="","",IF(#REF!>0,TRUE,FALSE)) ->  | AI74: 64 | AK74: =IFERROR(INDEX($AI$11:$AI$259, MATCH(0, IF(TRUE=$AF$11:$AF$259, COUNTIF($AK$10:$AK73, $AI$11:$AI$259), ""), 0)),"") ->  | AL74: =IFERROR(INDEX($AI$11:$AI$259, MATCH(0, IF(TRUE=$AG$11:$AG$259, COUNTIF($AL$10:$AL73, $AI$11:$AI$259), ""), 0)),"") ->  | AM74: =IFERROR(INDEX($AI$11:$AI$259, MATCH(0, IF(TRUE=$AH$11:$AH$259, COUNTIF($AM$10:$AM73, $AI$11:$AI$259), ""), 0)),"") ->  | AQ74: 0
A75: =IFERROR(INDEX('G-1 All Habitats'!$AG$3:$AG$15,MATCH(E75,'G-1 All Habitats'!$AF$3:$AF$15,0)),"") ->  | B75: =IFERROR(INDEX('G-8 Condition Look up'!$I$4:$I$131,MATCH(G75,'G-8 Condition Look up'!$A$4:$A$131,0)),"") ->  | D75: 65 | G75: =IFERROR(INDEX('G-1 All Habitats'!$B$3:$B$130,MATCH(F75,'G-1 All Habitats'!$A$3:$A$130,0)),"") ->  | I75: =IF(G75="","",VLOOKUP(G75,'G-1 All Habitats'!$B$2:$M$130,10,FALSE)) ->  | J75: =IFERROR(VLOOKUP(I75,'G-1 All Habitats'!$V$3:$W$7,2,FALSE),"") ->  | L75: =IFERROR(INDEX('G-8 Condition Look up'!$A$3:$H$131,MATCH(G75,'G-8 Condition Look up'!$A$3:$A$131,0),MATCH(K75,'G-8 Condition Look up'!$A$3:$H$3,0)),"") ->  | N75: =IF(M75="","",IF(VLOOKUP(M75,'G-3 Multipliers'!$L$3:$N$6,2,FALSE)=0,"Spatial Data Missing",VLOOKUP(M75,'G-3 Multipliers'!$L$3:$N$6,2,FALSE))) ->  | O75: =IF(M75="","",IF(VLOOKUP(M75,'G-3 Multipliers'!$L$3:$N$6,3,FALSE)=0,"Spatial Data Missing",VLOOKUP(M75,'G-3 Multipliers'!$L$3:$N$6,3,FALSE))) ->  | P75: =IFERROR(VLOOKUP(G75,'G-1 All Habitats'!$B$2:$M$130,12,FALSE),"") ->  | Q75: =IFERROR(IF(P75="","",IF(AND(P75='G-1 All Habitats'!$X$3,T75>0),U75+V75,IF(AND(P75='G-1 All Habitats'!$X$3,S75>0),U75+V75,IF(AND(P75='G-1 All Habitats'!$X$3,AC75>0),"Any Loss Unacceptable",IF(AND(P75='G-1 All Habitats'!$X$3,W75>0),"Any Loss Unacceptable",H75*J75*L75*O75))))),"Check Data") ->  | W75: =IF(E75="","",IF(H75<S75+T75,"Error in Areas",IF(P75<>'G-1 All Habitats'!$X$3,H75-S75-T75,IF(AND(P75='G-1 All Habitats'!$X$3,Y75="Yes"),"Unacceptable Loss",IF(AND(P75='G-1 All Habitats'!$X$3,Y75="No"),AC75,IF(AND(P75='G-1 All Habitats'!$X$3,Y75=""),AC75,IF(AND(P75='G-1 All Habitats'!$X$3,AC75="None",AC75),IF(AND(P75='G-1 All Habitats'!$X$3,AC75>0),H75-S75-T75)))))))) ->  | X75: =IFERROR(IF(H75="","",IF(H75-S75-T75=0<0,"Error in Areas",IF(S75+T75>H75,"Error in Areas",IF(AND(P75='G-1 All Habitats'!$X$3,Y75="Yes"),"Alternative Compensation",IF(W75=0,0,IF(P75='G-1 All Habitats'!$X$3,"Unacceptable Loss",Q75-U75-V75)))))),"Check Data") ->  | AC75: =IF(P75="","",IF(P75='G-1 All Habitats'!$X$3,H75-S75-T75,"None")) ->  | AD75: =IFERROR(AC75*J75*L75*#REF!*O75,IF(P75="","","None")) ->  | AF75: =IF(G75="","",IF(S75>0,TRUE,FALSE)) ->  | AG75: =IF(H75="","",IF(T75>0,TRUE,FALSE)) ->  | AH75: =IF(I75="","",IF(#REF!>0,TRUE,FALSE)) ->  | AI75: 65 | AK75: =IFERROR(INDEX($AI$11:$AI$259, MATCH(0, IF(TRUE=$AF$11:$AF$259, COUNTIF($AK$10:$AK74, $AI$11:$AI$259), ""), 0)),"") ->  | AL75: =IFERROR(INDEX($AI$11:$AI$259, MATCH(0, IF(TRUE=$AG$11:$AG$259, COUNTIF($AL$10:$AL74, $AI$11:$AI$259), ""), 0)),"") ->  | AM75: =IFERROR(INDEX($AI$11:$AI$259, MATCH(0, IF(TRUE=$AH$11:$AH$259, COUNTIF($AM$10:$AM74, $AI$11:$AI$259), ""), 0)),"") ->  | AQ75: 0
A76: =IFERROR(INDEX('G-1 All Habitats'!$AG$3:$AG$15,MATCH(E76,'G-1 All Habitats'!$AF$3:$AF$15,0)),"") ->  | B76: =IFERROR(INDEX('G-8 Condition Look up'!$I$4:$I$131,MATCH(G76,'G-8 Condition Look up'!$A$4:$A$131,0)),"") ->  | D76: 66 | G76: =IFERROR(INDEX('G-1 All Habitats'!$B$3:$B$130,MATCH(F76,'G-1 All Habitats'!$A$3:$A$130,0)),"") ->  | I76: =IF(G76="","",VLOOKUP(G76,'G-1 All Habitats'!$B$2:$M$130,10,FALSE)) ->  | J76: =IFERROR(VLOOKUP(I76,'G-1 All Habitats'!$V$3:$W$7,2,FALSE),"") ->  | L76: =IFERROR(INDEX('G-8 Condition Look up'!$A$3:$H$131,MATCH(G76,'G-8 Condition Look up'!$A$3:$A$131,0),MATCH(K76,'G-8 Condition Look up'!$A$3:$H$3,0)),"") ->  | N76: =IF(M76="","",IF(VLOOKUP(M76,'G-3 Multipliers'!$L$3:$N$6,2,FALSE)=0,"Spatial Data Missing",VLOOKUP(M76,'G-3 Multipliers'!$L$3:$N$6,2,FALSE))) ->  | O76: =IF(M76="","",IF(VLOOKUP(M76,'G-3 Multipliers'!$L$3:$N$6,3,FALSE)=0,"Spatial Data Missing",VLOOKUP(M76,'G-3 Multipliers'!$L$3:$N$6,3,FALSE))) ->  | P76: =IFERROR(VLOOKUP(G76,'G-1 All Habitats'!$B$2:$M$130,12,FALSE),"") ->  | Q76: =IFERROR(IF(P76="","",IF(AND(P76='G-1 All Habitats'!$X$3,T76>0),U76+V76,IF(AND(P76='G-1 All Habitats'!$X$3,S76>0),U76+V76,IF(AND(P76='G-1 All Habitats'!$X$3,AC76>0),"Any Loss Unacceptable",IF(AND(P76='G-1 All Habitats'!$X$3,W76>0),"Any Loss Unacceptable",H76*J76*L76*O76))))),"Check Data") ->  | W76: =IF(E76="","",IF(H76<S76+T76,"Error in Areas",IF(P76<>'G-1 All Habitats'!$X$3,H76-S76-T76,IF(AND(P76='G-1 All Habitats'!$X$3,Y76="Yes"),"Unacceptable Loss",IF(AND(P76='G-1 All Habitats'!$X$3,Y76="No"),AC76,IF(AND(P76='G-1 All Habitats'!$X$3,Y76=""),AC76,IF(AND(P76='G-1 All Habitats'!$X$3,AC76="None",AC76),IF(AND(P76='G-1 All Habitats'!$X$3,AC76>0),H76-S76-T76)))))))) ->  | X76: =IFERROR(IF(H76="","",IF(H76-S76-T76=0<0,"Error in Areas",IF(S76+T76>H76,"Error in Areas",IF(AND(P76='G-1 All Habitats'!$X$3,Y76="Yes"),"Alternative Compensation",IF(W76=0,0,IF(P76='G-1 All Habitats'!$X$3,"Unacceptable Loss",Q76-U76-V76)))))),"Check Data") ->  | AC76: =IF(P76="","",IF(P76='G-1 All Habitats'!$X$3,H76-S76-T76,"None")) ->  | AD76: =IFERROR(AC76*J76*L76*#REF!*O76,IF(P76="","","None")) ->  | AH76: =IF(I76="","",IF(#REF!>0,TRUE,FALSE)) ->  | AI76: 66 | AK76: =IFERROR(INDEX($AI$11:$AI$259, MATCH(0, IF(TRUE=$AF$11:$AF$259, COUNTIF($AK$10:$AK75, $AI$11:$AI$259), ""), 0)),"") ->  | AL76: =IFERROR(INDEX($AI$11:$AI$259, MATCH(0, IF(TRUE=$AG$11:$AG$259, COUNTIF($AL$10:$AL75, $AI$11:$AI$259), ""), 0)),"") ->  | AM76: =IFERROR(INDEX($AI$11:$AI$259, MATCH(0, IF(TRUE=$AH$11:$AH$259, COUNTIF($AM$10:$AM75, $AI$11:$AI$259), ""), 0)),"") ->  | AQ76: =IF(X76="Unacceptable Loss",1,0) -> 0
A77: =IFERROR(INDEX('G-1 All Habitats'!$AG$3:$AG$15,MATCH(E77,'G-1 All Habitats'!$AF$3:$AF$15,0)),"") ->  | B77: =IFERROR(INDEX('G-8 Condition Look up'!$I$4:$I$131,MATCH(G77,'G-8 Condition Look up'!$A$4:$A$131,0)),"") ->  | D77: 67 | G77: =IFERROR(INDEX('G-1 All Habitats'!$B$3:$B$130,MATCH(F77,'G-1 All Habitats'!$A$3:$A$130,0)),"") ->  | I77: =IF(G77="","",VLOOKUP(G77,'G-1 All Habitats'!$B$2:$M$130,10,FALSE)) ->  | J77: =IFERROR(VLOOKUP(I77,'G-1 All Habitats'!$V$3:$W$7,2,FALSE),"") ->  | L77: =IFERROR(INDEX('G-8 Condition Look up'!$A$3:$H$131,MATCH(G77,'G-8 Condition Look up'!$A$3:$A$131,0),MATCH(K77,'G-8 Condition Look up'!$A$3:$H$3,0)),"") ->  | N77: =IF(M77="","",IF(VLOOKUP(M77,'G-3 Multipliers'!$L$3:$N$6,2,FALSE)=0,"Spatial Data Missing",VLOOKUP(M77,'G-3 Multipliers'!$L$3:$N$6,2,FALSE))) ->  | O77: =IF(M77="","",IF(VLOOKUP(M77,'G-3 Multipliers'!$L$3:$N$6,3,FALSE)=0,"Spatial Data Missing",VLOOKUP(M77,'G-3 Multipliers'!$L$3:$N$6,3,FALSE))) ->  | P77: =IFERROR(VLOOKUP(G77,'G-1 All Habitats'!$B$2:$M$130,12,FALSE),"") ->  | Q77: =IFERROR(IF(P77="","",IF(AND(P77='G-1 All Habitats'!$X$3,T77>0),U77+V77,IF(AND(P77='G-1 All Habitats'!$X$3,S77>0),U77+V77,IF(AND(P77='G-1 All Habitats'!$X$3,AC77>0),"Any Loss Unacceptable",IF(AND(P77='G-1 All Habitats'!$X$3,W77>0),"Any Loss Unacceptable",H77*J77*L77*O77))))),"Check Data") ->  | U77: =IFERROR(S77*J77*L77*O77,"") ->  | V77: =IFERROR(T77*J77*L77*O77,"") ->  | W77: =IF(E77="","",IF(H77<S77+T77,"Error in Areas",IF(P77<>'G-1 All Habitats'!$X$3,H77-S77-T77,IF(AND(P77='G-1 All Habitats'!$X$3,Y77="Yes"),"Unacceptable Loss",IF(AND(P77='G-1 All Habitats'!$X$3,Y77="No"),AC77,IF(AND(P77='G-1 All Habitats'!$X$3,Y77=""),AC77,IF(AND(P77='G-1 All Habitats'!$X$3,AC77="None",AC77),IF(AND(P77='G-1 All Habitats'!$X$3,AC77>0),H77-S77-T77)))))))) ->  | X77: =IFERROR(IF(H77="","",IF(H77-S77-T77=0<0,"Error in Areas",IF(S77+T77>H77,"Error in Areas",IF(AND(P77='G-1 All Habitats'!$X$3,Y77="Yes"),"Alternative Compensation",IF(W77=0,0,IF(P77='G-1 All Habitats'!$X$3,"Unacceptable Loss",Q77-U77-V77)))))),"Check Data") ->  | AC77: =IF(P77="","",IF(P77='G-1 All Habitats'!$X$3,H77-S77-T77,"None")) ->  | AD77: =IFERROR(AC77*J77*L77*#REF!*O77,IF(P77="","","None")) ->  | AH77: =IF(I77="","",IF(#REF!>0,TRUE,FALSE)) ->  | AI77: 67 | AK77: =IFERROR(INDEX($AI$11:$AI$259, MATCH(0, IF(TRUE=$AF$11:$AF$259, COUNTIF($AK$10:$AK76, $AI$11:$AI$259), ""), 0)),"") ->  | AL77: =IFERROR(INDEX($AI$11:$AI$259, MATCH(0, IF(TRUE=$AG$11:$AG$259, COUNTIF($AL$10:$AL76, $AI$11:$AI$259), ""), 0)),"") ->  | AM77: =IFERROR(INDEX($AI$11:$AI$259, MATCH(0, IF(TRUE=$AH$11:$AH$259, COUNTIF($AM$10:$AM76, $AI$11:$AI$259), ""), 0)),"") ->  | AQ77: 0
A78: =IFERROR(INDEX('G-1 All Habitats'!$AG$3:$AG$15,MATCH(E78,'G-1 All Habitats'!$AF$3:$AF$15,0)),"") ->  | B78: =IFERROR(INDEX('G-8 Condition Look up'!$I$4:$I$131,MATCH(G78,'G-8 Condition Look up'!$A$4:$A$131,0)),"") ->  | D78: 68 | G78: =IFERROR(INDEX('G-1 All Habitats'!$B$3:$B$130,MATCH(F78,'G-1 All Habitats'!$A$3:$A$130,0)),"") ->  | I78: =IF(G78="","",VLOOKUP(G78,'G-1 All Habitats'!$B$2:$M$130,10,FALSE)) ->  | J78: =IFERROR(VLOOKUP(I78,'G-1 All Habitats'!$V$3:$W$7,2,FALSE),"") ->  | L78: =IFERROR(INDEX('G-8 Condition Look up'!$A$3:$H$131,MATCH(G78,'G-8 Condition Look up'!$A$3:$A$131,0),MATCH(K78,'G-8 Condition Look up'!$A$3:$H$3,0)),"") ->  | N78: =IF(M78="","",IF(VLOOKUP(M78,'G-3 Multipliers'!$L$3:$N$6,2,FALSE)=0,"Spatial Data Missing",VLOOKUP(M78,'G-3 Multipliers'!$L$3:$N$6,2,FALSE))) ->  | O78: =IF(M78="","",IF(VLOOKUP(M78,'G-3 Multipliers'!$L$3:$N$6,3,FALSE)=0,"Spatial Data Missing",VLOOKUP(M78,'G-3 Multipliers'!$L$3:$N$6,3,FALSE))) ->  | P78: =IFERROR(VLOOKUP(G78,'G-1 All Habitats'!$B$2:$M$130,12,FALSE),"") ->  | Q78: =IFERROR(IF(P78="","",IF(AND(P78='G-1 All Habitats'!$X$3,T78>0),U78+V78,IF(AND(P78='G-1 All Habitats'!$X$3,S78>0),U78+V78,IF(AND(P78='G-1 All Habitats'!$X$3,AC78>0),"Any Loss Unacceptable",IF(AND(P78='G-1 All Habitats'!$X$3,W78>0),"Any Loss Unacceptable",H78*J78*L78*O78))))),"Check Data") ->  | W78: =IF(E78="","",IF(H78<S78+T78,"Error in Areas",IF(P78<>'G-1 All Habitats'!$X$3,H78-S78-T78,IF(AND(P78='G-1 All Habitats'!$X$3,Y78="Yes"),"Unacceptable Loss",IF(AND(P78='G-1 All Habitats'!$X$3,Y78="No"),AC78,IF(AND(P78='G-1 All Habitats'!$X$3,Y78=""),AC78,IF(AND(P78='G-1 All Habitats'!$X$3,AC78="None",AC78),IF(AND(P78='G-1 All Habitats'!$X$3,AC78>0),H78-S78-T78)))))))) ->  | X78: =IFERROR(IF(H78="","",IF(H78-S78-T78=0<0,"Error in Areas",IF(S78+T78>H78,"Error in Areas",IF(AND(P78='G-1 All Habitats'!$X$3,Y78="Yes"),"Alternative Compensation",IF(W78=0,0,IF(P78='G-1 All Habitats'!$X$3,"Unacceptable Loss",Q78-U78-V78)))))),"Check Data") ->  | AC78: =IF(P78="","",IF(P78='G-1 All Habitats'!$X$3,H78-S78-T78,"None")) ->  | AD78: =IFERROR(AC78*J78*L78*#REF!*O78,IF(P78="","","None")) ->  | AH78: =IF(I78="","",IF(#REF!>0,TRUE,FALSE)) ->  | AI78: 68 | AK78: =IFERROR(INDEX($AI$11:$AI$259, MATCH(0, IF(TRUE=$AF$11:$AF$259, COUNTIF($AK$10:$AK77, $AI$11:$AI$259), ""), 0)),"") ->  | AL78: =IFERROR(INDEX($AI$11:$AI$259, MATCH(0, IF(TRUE=$AG$11:$AG$259, COUNTIF($AL$10:$AL77, $AI$11:$AI$259), ""), 0)),"") ->  | AM78: =IFERROR(INDEX($AI$11:$AI$259, MATCH(0, IF(TRUE=$AH$11:$AH$259, COUNTIF($AM$10:$AM77, $AI$11:$AI$259), ""), 0)),"") ->  | AQ78: 0
A79: =IFERROR(INDEX('G-1 All Habitats'!$AG$3:$AG$15,MATCH(E79,'G-1 All Habitats'!$AF$3:$AF$15,0)),"") ->  | B79: =IFERROR(INDEX('G-8 Condition Look up'!$I$4:$I$131,MATCH(G79,'G-8 Condition Look up'!$A$4:$A$131,0)),"") ->  | D79: 69 | G79: =IFERROR(INDEX('G-1 All Habitats'!$B$3:$B$130,MATCH(F79,'G-1 All Habitats'!$A$3:$A$130,0)),"") ->  | I79: =IF(G79="","",VLOOKUP(G79,'G-1 All Habitats'!$B$2:$M$130,10,FALSE)) ->  | J79: =IFERROR(VLOOKUP(I79,'G-1 All Habitats'!$V$3:$W$7,2,FALSE),"") ->  | L79: =IFERROR(INDEX('G-8 Condition Look up'!$A$3:$H$131,MATCH(G79,'G-8 Condition Look up'!$A$3:$A$131,0),MATCH(K79,'G-8 Condition Look up'!$A$3:$H$3,0)),"") ->  | N79: =IF(M79="","",IF(VLOOKUP(M79,'G-3 Multipliers'!$L$3:$N$6,2,FALSE)=0,"Spatial Data Missing",VLOOKUP(M79,'G-3 Multipliers'!$L$3:$N$6,2,FALSE))) ->  | O79: =IF(M79="","",IF(VLOOKUP(M79,'G-3 Multipliers'!$L$3:$N$6,3,FALSE)=0,"Spatial Data Missing",VLOOKUP(M79,'G-3 Multipliers'!$L$3:$N$6,3,FALSE))) ->  | P79: =IFERROR(VLOOKUP(G79,'G-1 All Habitats'!$B$2:$M$130,12,FALSE),"") ->  | Q79: =IFERROR(IF(P79="","",IF(AND(P79='G-1 All Habitats'!$X$3,T79>0),U79+V79,IF(AND(P79='G-1 All Habitats'!$X$3,S79>0),U79+V79,IF(AND(P79='G-1 All Habitats'!$X$3,AC79>0),"Any Loss Unacceptable",IF(AND(P79='G-1 All Habitats'!$X$3,W79>0),"Any Loss Unacceptable",H79*J79*L79*O79))))),"Check Data") ->  | W79: =IF(E79="","",IF(H79<S79+T79,"Error in Areas",IF(P79<>'G-1 All Habitats'!$X$3,H79-S79-T79,IF(AND(P79='G-1 All Habitats'!$X$3,Y79="Yes"),"Unacceptable Loss",IF(AND(P79='G-1 All Habitats'!$X$3,Y79="No"),AC79,IF(AND(P79='G-1 All Habitats'!$X$3,Y79=""),AC79,IF(AND(P79='G-1 All Habitats'!$X$3,AC79="None",AC79),IF(AND(P79='G-1 All Habitats'!$X$3,AC79>0),H79-S79-T79)))))))) ->  | X79: =IFERROR(IF(H79="","",IF(H79-S79-T79=0<0,"Error in Areas",IF(S79+T79>H79,"Error in Areas",IF(AND(P79='G-1 All Habitats'!$X$3,Y79="Yes"),"Alternative Compensation",IF(W79=0,0,IF(P79='G-1 All Habitats'!$X$3,"Unacceptable Loss",Q79-U79-V79)))))),"Check Data") ->  | AC79: =IF(P79="","",IF(P79='G-1 All Habitats'!$X$3,H79-S79-T79,"None")) ->  | AD79: =IFERROR(AC79*J79*L79*#REF!*O79,IF(P79="","","None")) ->  | AH79: =IF(I79="","",IF(#REF!>0,TRUE,FALSE)) ->  | AI79: 69 | AK79: =IFERROR(INDEX($AI$11:$AI$259, MATCH(0, IF(TRUE=$AF$11:$AF$259, COUNTIF($AK$10:$AK78, $AI$11:$AI$259), ""), 0)),"") ->  | AL79: =IFERROR(INDEX($AI$11:$AI$259, MATCH(0, IF(TRUE=$AG$11:$AG$259, COUNTIF($AL$10:$AL78, $AI$11:$AI$259), ""), 0)),"") ->  | AM79: =IFERROR(INDEX($AI$11:$AI$259, MATCH(0, IF(TRUE=$AH$11:$AH$259, COUNTIF($AM$10:$AM78, $AI$11:$AI$259), ""), 0)),"") ->  | AQ79: 0
A80: =IFERROR(INDEX('G-1 All Habitats'!$AG$3:$AG$15,MATCH(E80,'G-1 All Habitats'!$AF$3:$AF$15,0)),"") ->  | B80: =IFERROR(INDEX('G-8 Condition Look up'!$I$4:$I$131,MATCH(G80,'G-8 Condition Look up'!$A$4:$A$131,0)),"") ->  | D80: 70 | G80: =IFERROR(INDEX('G-1 All Habitats'!$B$3:$B$130,MATCH(F80,'G-1 All Habitats'!$A$3:$A$130,0)),"") ->  | I80: =IF(G80="","",VLOOKUP(G80,'G-1 All Habitats'!$B$2:$M$130,10,FALSE)) ->  | J80: =IFERROR(VLOOKUP(I80,'G-1 All Habitats'!$V$3:$W$7,2,FALSE),"") ->  | L80: =IFERROR(INDEX('G-8 Condition Look up'!$A$3:$H$131,MATCH(G80,'G-8 Condition Look up'!$A$3:$A$131,0),MATCH(K80,'G-8 Condition Look up'!$A$3:$H$3,0)),"") ->  | N80: =IF(M80="","",IF(VLOOKUP(M80,'G-3 Multipliers'!$L$3:$N$6,2,FALSE)=0,"Spatial Data Missing",VLOOKUP(M80,'G-3 Multipliers'!$L$3:$N$6,2,FALSE))) ->  | O80: =IF(M80="","",IF(VLOOKUP(M80,'G-3 Multipliers'!$L$3:$N$6,3,FALSE)=0,"Spatial Data Missing",VLOOKUP(M80,'G-3 Multipliers'!$L$3:$N$6,3,FALSE))) ->  | P80: =IFERROR(VLOOKUP(G80,'G-1 All Habitats'!$B$2:$M$130,12,FALSE),"") ->  | Q80: =IFERROR(IF(P80="","",IF(AND(P80='G-1 All Habitats'!$X$3,T80>0),U80+V80,IF(AND(P80='G-1 All Habitats'!$X$3,S80>0),U80+V80,IF(AND(P80='G-1 All Habitats'!$X$3,AC80>0),"Any Loss Unacceptable",IF(AND(P80='G-1 All Habitats'!$X$3,W80>0),"Any Loss Unacceptable",H80*J80*L80*O80))))),"Check Data") ->  | W80: =IF(E80="","",IF(H80<S80+T80,"Error in Areas",IF(P80<>'G-1 All Habitats'!$X$3,H80-S80-T80,IF(AND(P80='G-1 All Habitats'!$X$3,Y80="Yes"),"Unacceptable Loss",IF(AND(P80='G-1 All Habitats'!$X$3,Y80="No"),AC80,IF(AND(P80='G-1 All Habitats'!$X$3,Y80=""),AC80,IF(AND(P80='G-1 All Habitats'!$X$3,AC80="None",AC80),IF(AND(P80='G-1 All Habitats'!$X$3,AC80>0),H80-S80-T80)))))))) ->  | X80: =IFERROR(IF(H80="","",IF(H80-S80-T80=0<0,"Error in Areas",IF(S80+T80>H80,"Error in Areas",IF(AND(P80='G-1 All Habitats'!$X$3,Y80="Yes"),"Alternative Compensation",IF(W80=0,0,IF(P80='G-1 All Habitats'!$X$3,"Unacceptable Loss",Q80-U80-V80)))))),"Check Data") ->  | AC80: =IF(P80="","",IF(P80='G-1 All Habitats'!$X$3,H80-S80-T80,"None")) ->  | AD80: =IFERROR(AC80*J80*L80*#REF!*O80,IF(P80="","","None")) ->  | AH80: =IF(I80="","",IF(#REF!>0,TRUE,FALSE)) ->  | AI80: 70 | AK80: =IFERROR(INDEX($AI$11:$AI$259, MATCH(0, IF(TRUE=$AF$11:$AF$259, COUNTIF($AK$10:$AK79, $AI$11:$AI$259), ""), 0)),"") ->  | AL80: =IFERROR(INDEX($AI$11:$AI$259, MATCH(0, IF(TRUE=$AG$11:$AG$259, COUNTIF($AL$10:$AL79, $AI$11:$AI$259), ""), 0)),"") ->  | AM80: =IFERROR(INDEX($AI$11:$AI$259, MATCH(0, IF(TRUE=$AH$11:$AH$259, COUNTIF($AM$10:$AM79, $AI$11:$AI$259), ""), 0)),"") ->  | AQ80: 0
A81: =IFERROR(INDEX('G-1 All Habitats'!$AG$3:$AG$15,MATCH(E81,'G-1 All Habitats'!$AF$3:$AF$15,0)),"") ->  | B81: =IFERROR(INDEX('G-8 Condition Look up'!$I$4:$I$131,MATCH(G81,'G-8 Condition Look up'!$A$4:$A$131,0)),"") ->  | D81: 71 | G81: =IFERROR(INDEX('G-1 All Habitats'!$B$3:$B$130,MATCH(F81,'G-1 All Habitats'!$A$3:$A$130,0)),"") ->  | I81: =IF(G81="","",VLOOKUP(G81,'G-1 All Habitats'!$B$2:$M$130,10,FALSE)) ->  | J81: =IFERROR(VLOOKUP(I81,'G-1 All Habitats'!$V$3:$W$7,2,FALSE),"") ->  | L81: =IFERROR(INDEX('G-8 Condition Look up'!$A$3:$H$131,MATCH(G81,'G-8 Condition Look up'!$A$3:$A$131,0),MATCH(K81,'G-8 Condition Look up'!$A$3:$H$3,0)),"") ->  | N81: =IF(M81="","",IF(VLOOKUP(M81,'G-3 Multipliers'!$L$3:$N$6,2,FALSE)=0,"Spatial Data Missing",VLOOKUP(M81,'G-3 Multipliers'!$L$3:$N$6,2,FALSE))) ->  | O81: =IF(M81="","",IF(VLOOKUP(M81,'G-3 Multipliers'!$L$3:$N$6,3,FALSE)=0,"Spatial Data Missing",VLOOKUP(M81,'G-3 Multipliers'!$L$3:$N$6,3,FALSE))) ->  | P81: =IFERROR(VLOOKUP(G81,'G-1 All Habitats'!$B$2:$M$130,12,FALSE),"") ->  | Q81: =IFERROR(IF(P81="","",IF(AND(P81='G-1 All Habitats'!$X$3,T81>0),U81+V81,IF(AND(P81='G-1 All Habitats'!$X$3,S81>0),U81+V81,IF(AND(P81='G-1 All Habitats'!$X$3,AC81>0),"Any Loss Unacceptable",IF(AND(P81='G-1 All Habitats'!$X$3,W81>0),"Any Loss Unacceptable",H81*J81*L81*O81))))),"Check Data") ->  | W81: =IF(E81="","",IF(H81<S81+T81,"Error in Areas",IF(P81<>'G-1 All Habitats'!$X$3,H81-S81-T81,IF(AND(P81='G-1 All Habitats'!$X$3,Y81="Yes"),"Unacceptable Loss",IF(AND(P81='G-1 All Habitats'!$X$3,Y81="No"),AC81,IF(AND(P81='G-1 All Habitats'!$X$3,Y81=""),AC81,IF(AND(P81='G-1 All Habitats'!$X$3,AC81="None",AC81),IF(AND(P81='G-1 All Habitats'!$X$3,AC81>0),H81-S81-T81)))))))) ->  | X81: =IFERROR(IF(H81="","",IF(H81-S81-T81=0<0,"Error in Areas",IF(S81+T81>H81,"Error in Areas",IF(AND(P81='G-1 All Habitats'!$X$3,Y81="Yes"),"Alternative Compensation",IF(W81=0,0,IF(P81='G-1 All Habitats'!$X$3,"Unacceptable Loss",Q81-U81-V81)))))),"Check Data") ->  | AC81: =IF(P81="","",IF(P81='G-1 All Habitats'!$X$3,H81-S81-T81,"None")) ->  | AD81: =IFERROR(AC81*J81*L81*#REF!*O81,IF(P81="","","None")) ->  | AH81: =IF(I81="","",IF(#REF!>0,TRUE,FALSE)) ->  | AI81: 71 | AK81: =IFERROR(INDEX($AI$11:$AI$259, MATCH(0, IF(TRUE=$AF$11:$AF$259, COUNTIF($AK$10:$AK80, $AI$11:$AI$259), ""), 0)),"") ->  | AL81: =IFERROR(INDEX($AI$11:$AI$259, MATCH(0, IF(TRUE=$AG$11:$AG$259, COUNTIF($AL$10:$AL80, $AI$11:$AI$259), ""), 0)),"") ->  | AM81: =IFERROR(INDEX($AI$11:$AI$259, MATCH(0, IF(TRUE=$AH$11:$AH$259, COUNTIF($AM$10:$AM80, $AI$11:$AI$259), ""), 0)),"") ->  | AQ81: 0
A82: =IFERROR(INDEX('G-1 All Habitats'!$AG$3:$AG$15,MATCH(E82,'G-1 All Habitats'!$AF$3:$AF$15,0)),"") ->  | B82: =IFERROR(INDEX('G-8 Condition Look up'!$I$4:$I$131,MATCH(G82,'G-8 Condition Look up'!$A$4:$A$131,0)),"") ->  | D82: 72 | G82: =IFERROR(INDEX('G-1 All Habitats'!$B$3:$B$130,MATCH(F82,'G-1 All Habitats'!$A$3:$A$130,0)),"") ->  | I82: =IF(G82="","",VLOOKUP(G82,'G-1 All Habitats'!$B$2:$M$130,10,FALSE)) ->  | J82: =IFERROR(VLOOKUP(I82,'G-1 All Habitats'!$V$3:$W$7,2,FALSE),"") ->  | L82: =IFERROR(INDEX('G-8 Condition Look up'!$A$3:$H$131,MATCH(G82,'G-8 Condition Look up'!$A$3:$A$131,0),MATCH(K82,'G-8 Condition Look up'!$A$3:$H$3,0)),"") ->  | N82: =IF(M82="","",IF(VLOOKUP(M82,'G-3 Multipliers'!$L$3:$N$6,2,FALSE)=0,"Spatial Data Missing",VLOOKUP(M82,'G-3 Multipliers'!$L$3:$N$6,2,FALSE))) ->  | O82: =IF(M82="","",IF(VLOOKUP(M82,'G-3 Multipliers'!$L$3:$N$6,3,FALSE)=0,"Spatial Data Missing",VLOOKUP(M82,'G-3 Multipliers'!$L$3:$N$6,3,FALSE))) ->  | P82: =IFERROR(VLOOKUP(G82,'G-1 All Habitats'!$B$2:$M$130,12,FALSE),"") ->  | Q82: =IFERROR(IF(P82="","",IF(AND(P82='G-1 All Habitats'!$X$3,T82>0),U82+V82,IF(AND(P82='G-1 All Habitats'!$X$3,S82>0),U82+V82,IF(AND(P82='G-1 All Habitats'!$X$3,AC82>0),"Any Loss Unacceptable",IF(AND(P82='G-1 All Habitats'!$X$3,W82>0),"Any Loss Unacceptable",H82*J82*L82*O82))))),"Check Data") ->  | W82: =IF(E82="","",IF(H82<S82+T82,"Error in Areas",IF(P82<>'G-1 All Habitats'!$X$3,H82-S82-T82,IF(AND(P82='G-1 All Habitats'!$X$3,Y82="Yes"),"Unacceptable Loss",IF(AND(P82='G-1 All Habitats'!$X$3,Y82="No"),AC82,IF(AND(P82='G-1 All Habitats'!$X$3,Y82=""),AC82,IF(AND(P82='G-1 All Habitats'!$X$3,AC82="None",AC82),IF(AND(P82='G-1 All Habitats'!$X$3,AC82>0),H82-S82-T82)))))))) ->  | X82: =IFERROR(IF(H82="","",IF(H82-S82-T82=0<0,"Error in Areas",IF(S82+T82>H82,"Error in Areas",IF(AND(P82='G-1 All Habitats'!$X$3,Y82="Yes"),"Alternative Compensation",IF(W82=0,0,IF(P82='G-1 All Habitats'!$X$3,"Unacceptable Loss",Q82-U82-V82)))))),"Check Data") ->  | AC82: =IF(P82="","",IF(P82='G-1 All Habitats'!$X$3,H82-S82-T82,"None")) ->  | AD82: =IFERROR(AC82*J82*L82*#REF!*O82,IF(P82="","","None")) ->  | AH82: =IF(I82="","",IF(#REF!>0,TRUE,FALSE)) ->  | AI82: 72 | AK82: =IFERROR(INDEX($AI$11:$AI$259, MATCH(0, IF(TRUE=$AF$11:$AF$259, COUNTIF($AK$10:$AK81, $AI$11:$AI$259), ""), 0)),"") ->  | AL82: =IFERROR(INDEX($AI$11:$AI$259, MATCH(0, IF(TRUE=$AG$11:$AG$259, COUNTIF($AL$10:$AL81, $AI$11:$AI$259), ""), 0)),"") ->  | AM82: =IFERROR(INDEX($AI$11:$AI$259, MATCH(0, IF(TRUE=$AH$11:$AH$259, COUNTIF($AM$10:$AM81, $AI$11:$AI$259), ""), 0)),"") ->  | AQ82: 0
A83: =IFERROR(INDEX('G-1 All Habitats'!$AG$3:$AG$15,MATCH(E83,'G-1 All Habitats'!$AF$3:$AF$15,0)),"") ->  | B83: =IFERROR(INDEX('G-8 Condition Look up'!$I$4:$I$131,MATCH(G83,'G-8 Condition Look up'!$A$4:$A$131,0)),"") ->  | D83: 73 | G83: =IFERROR(INDEX('G-1 All Habitats'!$B$3:$B$130,MATCH(F83,'G-1 All Habitats'!$A$3:$A$130,0)),"") ->  | I83: =IF(G83="","",VLOOKUP(G83,'G-1 All Habitats'!$B$2:$M$130,10,FALSE)) ->  | J83: =IFERROR(VLOOKUP(I83,'G-1 All Habitats'!$V$3:$W$7,2,FALSE),"") ->  | L83: =IFERROR(INDEX('G-8 Condition Look up'!$A$3:$H$131,MATCH(G83,'G-8 Condition Look up'!$A$3:$A$131,0),MATCH(K83,'G-8 Condition Look up'!$A$3:$H$3,0)),"") ->  | N83: =IF(M83="","",IF(VLOOKUP(M83,'G-3 Multipliers'!$L$3:$N$6,2,FALSE)=0,"Spatial Data Missing",VLOOKUP(M83,'G-3 Multipliers'!$L$3:$N$6,2,FALSE))) ->  | O83: =IF(M83="","",IF(VLOOKUP(M83,'G-3 Multipliers'!$L$3:$N$6,3,FALSE)=0,"Spatial Data Missing",VLOOKUP(M83,'G-3 Multipliers'!$L$3:$N$6,3,FALSE))) ->  | P83: =IFERROR(VLOOKUP(G83,'G-1 All Habitats'!$B$2:$M$130,12,FALSE),"") ->  | Q83: =IFERROR(IF(P83="","",IF(AND(P83='G-1 All Habitats'!$X$3,T83>0),U83+V83,IF(AND(P83='G-1 All Habitats'!$X$3,S83>0),U83+V83,IF(AND(P83='G-1 All Habitats'!$X$3,AC83>0),"Any Loss Unacceptable",IF(AND(P83='G-1 All Habitats'!$X$3,W83>0),"Any Loss Unacceptable",H83*J83*L83*O83))))),"Check Data") ->  | W83: =IF(E83="","",IF(H83<S83+T83,"Error in Areas",IF(P83<>'G-1 All Habitats'!$X$3,H83-S83-T83,IF(AND(P83='G-1 All Habitats'!$X$3,Y83="Yes"),"Unacceptable Loss",IF(AND(P83='G-1 All Habitats'!$X$3,Y83="No"),AC83,IF(AND(P83='G-1 All Habitats'!$X$3,Y83=""),AC83,IF(AND(P83='G-1 All Habitats'!$X$3,AC83="None",AC83),IF(AND(P83='G-1 All Habitats'!$X$3,AC83>0),H83-S83-T83)))))))) ->  | X83: =IFERROR(IF(H83="","",IF(H83-S83-T83=0<0,"Error in Areas",IF(S83+T83>H83,"Error in Areas",IF(AND(P83='G-1 All Habitats'!$X$3,Y83="Yes"),"Alternative Compensation",IF(W83=0,0,IF(P83='G-1 All Habitats'!$X$3,"Unacceptable Loss",Q83-U83-V83)))))),"Check Data") ->  | AC83: =IF(P83="","",IF(P83='G-1 All Habitats'!$X$3,H83-S83-T83,"None")) ->  | AD83: =IFERROR(AC83*J83*L83*#REF!*O83,IF(P83="","","None")) ->  | AH83: =IF(I83="","",IF(#REF!>0,TRUE,FALSE)) ->  | AI83: 73 | AK83: =IFERROR(INDEX($AI$11:$AI$259, MATCH(0, IF(TRUE=$AF$11:$AF$259, COUNTIF($AK$10:$AK82, $AI$11:$AI$259), ""), 0)),"") ->  | AL83: =IFERROR(INDEX($AI$11:$AI$259, MATCH(0, IF(TRUE=$AG$11:$AG$259, COUNTIF($AL$10:$AL82, $AI$11:$AI$259), ""), 0)),"") ->  | AM83: =IFERROR(INDEX($AI$11:$AI$259, MATCH(0, IF(TRUE=$AH$11:$AH$259, COUNTIF($AM$10:$AM82, $AI$11:$AI$259), ""), 0)),"") ->  | AQ83: 0
A84: =IFERROR(INDEX('G-1 All Habitats'!$AG$3:$AG$15,MATCH(E84,'G-1 All Habitats'!$AF$3:$AF$15,0)),"") ->  | B84: =IFERROR(INDEX('G-8 Condition Look up'!$I$4:$I$131,MATCH(G84,'G-8 Condition Look up'!$A$4:$A$131,0)),"") ->  | D84: 74 | G84: =IFERROR(INDEX('G-1 All Habitats'!$B$3:$B$130,MATCH(F84,'G-1 All Habitats'!$A$3:$A$130,0)),"") ->  | I84: =IF(G84="","",VLOOKUP(G84,'G-1 All Habitats'!$B$2:$M$130,10,FALSE)) ->  | J84: =IFERROR(VLOOKUP(I84,'G-1 All Habitats'!$V$3:$W$7,2,FALSE),"") ->  | L84: =IFERROR(INDEX('G-8 Condition Look up'!$A$3:$H$131,MATCH(G84,'G-8 Condition Look up'!$A$3:$A$131,0),MATCH(K84,'G-8 Condition Look up'!$A$3:$H$3,0)),"") ->  | N84: =IF(M84="","",IF(VLOOKUP(M84,'G-3 Multipliers'!$L$3:$N$6,2,FALSE)=0,"Spatial Data Missing",VLOOKUP(M84,'G-3 Multipliers'!$L$3:$N$6,2,FALSE))) ->  | O84: =IF(M84="","",IF(VLOOKUP(M84,'G-3 Multipliers'!$L$3:$N$6,3,FALSE)=0,"Spatial Data Missing",VLOOKUP(M84,'G-3 Multipliers'!$L$3:$N$6,3,FALSE))) ->  | P84: =IFERROR(VLOOKUP(G84,'G-1 All Habitats'!$B$2:$M$130,12,FALSE),"") ->  | Q84: =IFERROR(IF(P84="","",IF(AND(P84='G-1 All Habitats'!$X$3,T84>0),U84+V84,IF(AND(P84='G-1 All Habitats'!$X$3,S84>0),U84+V84,IF(AND(P84='G-1 All Habitats'!$X$3,AC84>0),"Any Loss Unacceptable",IF(AND(P84='G-1 All Habitats'!$X$3,W84>0),"Any Loss Unacceptable",H84*J84*L84*O84))))),"Check Data") ->  | W84: =IF(E84="","",IF(H84<S84+T84,"Error in Areas",IF(P84<>'G-1 All Habitats'!$X$3,H84-S84-T84,IF(AND(P84='G-1 All Habitats'!$X$3,Y84="Yes"),"Unacceptable Loss",IF(AND(P84='G-1 All Habitats'!$X$3,Y84="No"),AC84,IF(AND(P84='G-1 All Habitats'!$X$3,Y84=""),AC84,IF(AND(P84='G-1 All Habitats'!$X$3,AC84="None",AC84),IF(AND(P84='G-1 All Habitats'!$X$3,AC84>0),H84-S84-T84)))))))) ->  | X84: =IFERROR(IF(H84="","",IF(H84-S84-T84=0<0,"Error in Areas",IF(S84+T84>H84,"Error in Areas",IF(AND(P84='G-1 All Habitats'!$X$3,Y84="Yes"),"Alternative Compensation",IF(W84=0,0,IF(P84='G-1 All Habitats'!$X$3,"Unacceptable Loss",Q84-U84-V84)))))),"Check Data") ->  | AC84: =IF(P84="","",IF(P84='G-1 All Habitats'!$X$3,H84-S84-T84,"None")) ->  | AD84: =IFERROR(AC84*J84*L84*#REF!*O84,IF(P84="","","None")) ->  | AH84: =IF(I84="","",IF(#REF!>0,TRUE,FALSE)) ->  | AI84: 74 | AK84: =IFERROR(INDEX($AI$11:$AI$259, MATCH(0, IF(TRUE=$AF$11:$AF$259, COUNTIF($AK$10:$AK83, $AI$11:$AI$259), ""), 0)),"") ->  | AL84: =IFERROR(INDEX($AI$11:$AI$259, MATCH(0, IF(TRUE=$AG$11:$AG$259, COUNTIF($AL$10:$AL83, $AI$11:$AI$259), ""), 0)),"") ->  | AM84: =IFERROR(INDEX($AI$11:$AI$259, MATCH(0, IF(TRUE=$AH$11:$AH$259, COUNTIF($AM$10:$AM83, $AI$11:$AI$259), ""), 0)),"") ->  | AQ84: 0
A85: =IFERROR(INDEX('G-1 All Habitats'!$AG$3:$AG$15,MATCH(E85,'G-1 All Habitats'!$AF$3:$AF$15,0)),"") ->  | B85: =IFERROR(INDEX('G-8 Condition Look up'!$I$4:$I$131,MATCH(G85,'G-8 Condition Look up'!$A$4:$A$131,0)),"") ->  | D85: 75 | G85: =IFERROR(INDEX('G-1 All Habitats'!$B$3:$B$130,MATCH(F85,'G-1 All Habitats'!$A$3:$A$130,0)),"") ->  | I85: =IF(G85="","",VLOOKUP(G85,'G-1 All Habitats'!$B$2:$M$130,10,FALSE)) ->  | J85: =IFERROR(VLOOKUP(I85,'G-1 All Habitats'!$V$3:$W$7,2,FALSE),"") ->  | L85: =IFERROR(INDEX('G-8 Condition Look up'!$A$3:$H$131,MATCH(G85,'G-8 Condition Look up'!$A$3:$A$131,0),MATCH(K85,'G-8 Condition Look up'!$A$3:$H$3,0)),"") ->  | N85: =IF(M85="","",IF(VLOOKUP(M85,'G-3 Multipliers'!$L$3:$N$6,2,FALSE)=0,"Spatial Data Missing",VLOOKUP(M85,'G-3 Multipliers'!$L$3:$N$6,2,FALSE))) ->  | O85: =IF(M85="","",IF(VLOOKUP(M85,'G-3 Multipliers'!$L$3:$N$6,3,FALSE)=0,"Spatial Data Missing",VLOOKUP(M85,'G-3 Multipliers'!$L$3:$N$6,3,FALSE))) ->  | P85: =IFERROR(VLOOKUP(G85,'G-1 All Habitats'!$B$2:$M$130,12,FALSE),"") ->  | Q85: =IFERROR(IF(P85="","",IF(AND(P85='G-1 All Habitats'!$X$3,T85>0),U85+V85,IF(AND(P85='G-1 All Habitats'!$X$3,S85>0),U85+V85,IF(AND(P85='G-1 All Habitats'!$X$3,AC85>0),"Any Loss Unacceptable",IF(AND(P85='G-1 All Habitats'!$X$3,W85>0),"Any Loss Unacceptable",H85*J85*L85*O85))))),"Check Data") ->  | W85: =IF(E85="","",IF(H85<S85+T85,"Error in Areas",IF(P85<>'G-1 All Habitats'!$X$3,H85-S85-T85,IF(AND(P85='G-1 All Habitats'!$X$3,Y85="Yes"),"Unacceptable Loss",IF(AND(P85='G-1 All Habitats'!$X$3,Y85="No"),AC85,IF(AND(P85='G-1 All Habitats'!$X$3,Y85=""),AC85,IF(AND(P85='G-1 All Habitats'!$X$3,AC85="None",AC85),IF(AND(P85='G-1 All Habitats'!$X$3,AC85>0),H85-S85-T85)))))))) ->  | X85: =IFERROR(IF(H85="","",IF(H85-S85-T85=0<0,"Error in Areas",IF(S85+T85>H85,"Error in Areas",IF(AND(P85='G-1 All Habitats'!$X$3,Y85="Yes"),"Alternative Compensation",IF(W85=0,0,IF(P85='G-1 All Habitats'!$X$3,"Unacceptable Loss",Q85-U85-V85)))))),"Check Data") ->  | AC85: =IF(P85="","",IF(P85='G-1 All Habitats'!$X$3,H85-S85-T85,"None")) ->  | AD85: =IFERROR(AC85*J85*L85*#REF!*O85,IF(P85="","","None")) ->  | AH85: =IF(I85="","",IF(#REF!>0,TRUE,FALSE)) ->  | AI85: 75 | AK85: =IFERROR(INDEX($AI$11:$AI$259, MATCH(0, IF(TRUE=$AF$11:$AF$259, COUNTIF($AK$10:$AK84, $AI$11:$AI$259), ""), 0)),"") ->  | AL85: =IFERROR(INDEX($AI$11:$AI$259, MATCH(0, IF(TRUE=$AG$11:$AG$259, COUNTIF($AL$10:$AL84, $AI$11:$AI$259), ""), 0)),"") ->  | AM85: =IFERROR(INDEX($AI$11:$AI$259, MATCH(0, IF(TRUE=$AH$11:$AH$259, COUNTIF($AM$10:$AM84, $AI$11:$AI$259), ""), 0)),"") ->  | AQ85: 0
A86: =IFERROR(INDEX('G-1 All Habitats'!$AG$3:$AG$15,MATCH(E86,'G-1 All Habitats'!$AF$3:$AF$15,0)),"") ->  | B86: =IFERROR(INDEX('G-8 Condition Look up'!$I$4:$I$131,MATCH(G86,'G-8 Condition Look up'!$A$4:$A$131,0)),"") ->  | D86: 76 | G86: =IFERROR(INDEX('G-1 All Habitats'!$B$3:$B$130,MATCH(F86,'G-1 All Habitats'!$A$3:$A$130,0)),"") ->  | I86: =IF(G86="","",VLOOKUP(G86,'G-1 All Habitats'!$B$2:$M$130,10,FALSE)) ->  | J86: =IFERROR(VLOOKUP(I86,'G-1 All Habitats'!$V$3:$W$7,2,FALSE),"") ->  | L86: =IFERROR(INDEX('G-8 Condition Look up'!$A$3:$H$131,MATCH(G86,'G-8 Condition Look up'!$A$3:$A$131,0),MATCH(K86,'G-8 Condition Look up'!$A$3:$H$3,0)),"") ->  | N86: =IF(M86="","",IF(VLOOKUP(M86,'G-3 Multipliers'!$L$3:$N$6,2,FALSE)=0,"Spatial Data Missing",VLOOKUP(M86,'G-3 Multipliers'!$L$3:$N$6,2,FALSE))) ->  | O86: =IF(M86="","",IF(VLOOKUP(M86,'G-3 Multipliers'!$L$3:$N$6,3,FALSE)=0,"Spatial Data Missing",VLOOKUP(M86,'G-3 Multipliers'!$L$3:$N$6,3,FALSE))) ->  | P86: =IFERROR(VLOOKUP(G86,'G-1 All Habitats'!$B$2:$M$130,12,FALSE),"") ->  | Q86: =IFERROR(IF(P86="","",IF(AND(P86='G-1 All Habitats'!$X$3,T86>0),U86+V86,IF(AND(P86='G-1 All Habitats'!$X$3,S86>0),U86+V86,IF(AND(P86='G-1 All Habitats'!$X$3,AC86>0),"Any Loss Unacceptable",IF(AND(P86='G-1 All Habitats'!$X$3,W86>0),"Any Loss Unacceptable",H86*J86*L86*O86))))),"Check Data") ->  | W86: =IF(E86="","",IF(H86<S86+T86,"Error in Areas",IF(P86<>'G-1 All Habitats'!$X$3,H86-S86-T86,IF(AND(P86='G-1 All Habitats'!$X$3,Y86="Yes"),"Unacceptable Loss",IF(AND(P86='G-1 All Habitats'!$X$3,Y86="No"),AC86,IF(AND(P86='G-1 All Habitats'!$X$3,Y86=""),AC86,IF(AND(P86='G-1 All Habitats'!$X$3,AC86="None",AC86),IF(AND(P86='G-1 All Habitats'!$X$3,AC86>0),H86-S86-T86)))))))) ->  | X86: =IFERROR(IF(H86="","",IF(H86-S86-T86=0<0,"Error in Areas",IF(S86+T86>H86,"Error in Areas",IF(AND(P86='G-1 All Habitats'!$X$3,Y86="Yes"),"Alternative Compensation",IF(W86=0,0,IF(P86='G-1 All Habitats'!$X$3,"Unacceptable Loss",Q86-U86-V86)))))),"Check Data") ->  | AC86: =IF(P86="","",IF(P86='G-1 All Habitats'!$X$3,H86-S86-T86,"None")) ->  | AD86: =IFERROR(AC86*J86*L86*#REF!*O86,IF(P86="","","None")) ->  | AH86: =IF(I86="","",IF(#REF!>0,TRUE,FALSE)) ->  | AI86: 76 | AK86: =IFERROR(INDEX($AI$11:$AI$259, MATCH(0, IF(TRUE=$AF$11:$AF$259, COUNTIF($AK$10:$AK85, $AI$11:$AI$259), ""), 0)),"") ->  | AL86: =IFERROR(INDEX($AI$11:$AI$259, MATCH(0, IF(TRUE=$AG$11:$AG$259, COUNTIF($AL$10:$AL85, $AI$11:$AI$259), ""), 0)),"") ->  | AM86: =IFERROR(INDEX($AI$11:$AI$259, MATCH(0, IF(TRUE=$AH$11:$AH$259, COUNTIF($AM$10:$AM85, $AI$11:$AI$259), ""), 0)),"") ->  | AQ86: 0
A87: =IFERROR(INDEX('G-1 All Habitats'!$AG$3:$AG$15,MATCH(E87,'G-1 All Habitats'!$AF$3:$AF$15,0)),"") ->  | B87: =IFERROR(INDEX('G-8 Condition Look up'!$I$4:$I$131,MATCH(G87,'G-8 Condition Look up'!$A$4:$A$131,0)),"") ->  | D87: 77 | G87: =IFERROR(INDEX('G-1 All Habitats'!$B$3:$B$130,MATCH(F87,'G-1 All Habitats'!$A$3:$A$130,0)),"") ->  | I87: =IF(G87="","",VLOOKUP(G87,'G-1 All Habitats'!$B$2:$M$130,10,FALSE)) ->  | J87: =IFERROR(VLOOKUP(I87,'G-1 All Habitats'!$V$3:$W$7,2,FALSE),"") ->  | L87: =IFERROR(INDEX('G-8 Condition Look up'!$A$3:$H$131,MATCH(G87,'G-8 Condition Look up'!$A$3:$A$131,0),MATCH(K87,'G-8 Condition Look up'!$A$3:$H$3,0)),"") ->  | N87: =IF(M87="","",IF(VLOOKUP(M87,'G-3 Multipliers'!$L$3:$N$6,2,FALSE)=0,"Spatial Data Missing",VLOOKUP(M87,'G-3 Multipliers'!$L$3:$N$6,2,FALSE))) ->  | O87: =IF(M87="","",IF(VLOOKUP(M87,'G-3 Multipliers'!$L$3:$N$6,3,FALSE)=0,"Spatial Data Missing",VLOOKUP(M87,'G-3 Multipliers'!$L$3:$N$6,3,FALSE))) ->  | P87: =IFERROR(VLOOKUP(G87,'G-1 All Habitats'!$B$2:$M$130,12,FALSE),"") ->  | Q87: =IFERROR(IF(P87="","",IF(AND(P87='G-1 All Habitats'!$X$3,T87>0),U87+V87,IF(AND(P87='G-1 All Habitats'!$X$3,S87>0),U87+V87,IF(AND(P87='G-1 All Habitats'!$X$3,AC87>0),"Any Loss Unacceptable",IF(AND(P87='G-1 All Habitats'!$X$3,W87>0),"Any Loss Unacceptable",H87*J87*L87*O87))))),"Check Data") ->  | W87: =IF(E87="","",IF(H87<S87+T87,"Error in Areas",IF(P87<>'G-1 All Habitats'!$X$3,H87-S87-T87,IF(AND(P87='G-1 All Habitats'!$X$3,Y87="Yes"),"Unacceptable Loss",IF(AND(P87='G-1 All Habitats'!$X$3,Y87="No"),AC87,IF(AND(P87='G-1 All Habitats'!$X$3,Y87=""),AC87,IF(AND(P87='G-1 All Habitats'!$X$3,AC87="None",AC87),IF(AND(P87='G-1 All Habitats'!$X$3,AC87>0),H87-S87-T87)))))))) ->  | X87: =IFERROR(IF(H87="","",IF(H87-S87-T87=0<0,"Error in Areas",IF(S87+T87>H87,"Error in Areas",IF(AND(P87='G-1 All Habitats'!$X$3,Y87="Yes"),"Alternative Compensation",IF(W87=0,0,IF(P87='G-1 All Habitats'!$X$3,"Unacceptable Loss",Q87-U87-V87)))))),"Check Data") ->  | AC87: =IF(P87="","",IF(P87='G-1 All Habitats'!$X$3,H87-S87-T87,"None")) ->  | AD87: =IFERROR(AC87*J87*L87*#REF!*O87,IF(P87="","","None")) ->  | AH87: =IF(I87="","",IF(#REF!>0,TRUE,FALSE)) ->  | AI87: 77 | AK87: =IFERROR(INDEX($AI$11:$AI$259, MATCH(0, IF(TRUE=$AF$11:$AF$259, COUNTIF($AK$10:$AK86, $AI$11:$AI$259), ""), 0)),"") ->  | AL87: =IFERROR(INDEX($AI$11:$AI$259, MATCH(0, IF(TRUE=$AG$11:$AG$259, COUNTIF($AL$10:$AL86, $AI$11:$AI$259), ""), 0)),"") ->  | AM87: =IFERROR(INDEX($AI$11:$AI$259, MATCH(0, IF(TRUE=$AH$11:$AH$259, COUNTIF($AM$10:$AM86, $AI$11:$AI$259), ""), 0)),"") ->  | AQ87: 0
A88: =IFERROR(INDEX('G-1 All Habitats'!$AG$3:$AG$15,MATCH(E88,'G-1 All Habitats'!$AF$3:$AF$15,0)),"") ->  | B88: =IFERROR(INDEX('G-8 Condition Look up'!$I$4:$I$131,MATCH(G88,'G-8 Condition Look up'!$A$4:$A$131,0)),"") ->  | D88: 78 | G88: =IFERROR(INDEX('G-1 All Habitats'!$B$3:$B$130,MATCH(F88,'G-1 All Habitats'!$A$3:$A$130,0)),"") ->  | I88: =IF(G88="","",VLOOKUP(G88,'G-1 All Habitats'!$B$2:$M$130,10,FALSE)) ->  | J88: =IFERROR(VLOOKUP(I88,'G-1 All Habitats'!$V$3:$W$7,2,FALSE),"") ->  | L88: =IFERROR(INDEX('G-8 Condition Look up'!$A$3:$H$131,MATCH(G88,'G-8 Condition Look up'!$A$3:$A$131,0),MATCH(K88,'G-8 Condition Look up'!$A$3:$H$3,0)),"") ->  | N88: =IF(M88="","",IF(VLOOKUP(M88,'G-3 Multipliers'!$L$3:$N$6,2,FALSE)=0,"Spatial Data Missing",VLOOKUP(M88,'G-3 Multipliers'!$L$3:$N$6,2,FALSE))) ->  | O88: =IF(M88="","",IF(VLOOKUP(M88,'G-3 Multipliers'!$L$3:$N$6,3,FALSE)=0,"Spatial Data Missing",VLOOKUP(M88,'G-3 Multipliers'!$L$3:$N$6,3,FALSE))) ->  | P88: =IFERROR(VLOOKUP(G88,'G-1 All Habitats'!$B$2:$M$130,12,FALSE),"") ->  | Q88: =IFERROR(IF(P88="","",IF(AND(P88='G-1 All Habitats'!$X$3,T88>0),U88+V88,IF(AND(P88='G-1 All Habitats'!$X$3,S88>0),U88+V88,IF(AND(P88='G-1 All Habitats'!$X$3,AC88>0),"Any Loss Unacceptable",IF(AND(P88='G-1 All Habitats'!$X$3,W88>0),"Any Loss Unacceptable",H88*J88*L88*O88))))),"Check Data") ->  | W88: =IF(E88="","",IF(H88<S88+T88,"Error in Areas",IF(P88<>'G-1 All Habitats'!$X$3,H88-S88-T88,IF(AND(P88='G-1 All Habitats'!$X$3,Y88="Yes"),"Unacceptable Loss",IF(AND(P88='G-1 All Habitats'!$X$3,Y88="No"),AC88,IF(AND(P88='G-1 All Habitats'!$X$3,Y88=""),AC88,IF(AND(P88='G-1 All Habitats'!$X$3,AC88="None",AC88),IF(AND(P88='G-1 All Habitats'!$X$3,AC88>0),H88-S88-T88)))))))) ->  | X88: =IFERROR(IF(H88="","",IF(H88-S88-T88=0<0,"Error in Areas",IF(S88+T88>H88,"Error in Areas",IF(AND(P88='G-1 All Habitats'!$X$3,Y88="Yes"),"Alternative Compensation",IF(W88=0,0,IF(P88='G-1 All Habitats'!$X$3,"Unacceptable Loss",Q88-U88-V88)))))),"Check Data") ->  | AC88: =IF(P88="","",IF(P88='G-1 All Habitats'!$X$3,H88-S88-T88,"None")) ->  | AD88: =IFERROR(AC88*J88*L88*#REF!*O88,IF(P88="","","None")) ->  | AH88: =IF(I88="","",IF(#REF!>0,TRUE,FALSE)) ->  | AI88: 78 | AK88: =IFERROR(INDEX($AI$11:$AI$259, MATCH(0, IF(TRUE=$AF$11:$AF$259, COUNTIF($AK$10:$AK87, $AI$11:$AI$259), ""), 0)),"") ->  | AL88: =IFERROR(INDEX($AI$11:$AI$259, MATCH(0, IF(TRUE=$AG$11:$AG$259, COUNTIF($AL$10:$AL87, $AI$11:$AI$259), ""), 0)),"") ->  | AM88: =IFERROR(INDEX($AI$11:$AI$259, MATCH(0, IF(TRUE=$AH$11:$AH$259, COUNTIF($AM$10:$AM87, $AI$11:$AI$259), ""), 0)),"") ->  | AQ88: 0
A89: =IFERROR(INDEX('G-1 All Habitats'!$AG$3:$AG$15,MATCH(E89,'G-1 All Habitats'!$AF$3:$AF$15,0)),"") ->  | B89: =IFERROR(INDEX('G-8 Condition Look up'!$I$4:$I$131,MATCH(G89,'G-8 Condition Look up'!$A$4:$A$131,0)),"") ->  | D89: 79 | G89: =IFERROR(INDEX('G-1 All Habitats'!$B$3:$B$130,MATCH(F89,'G-1 All Habitats'!$A$3:$A$130,0)),"") ->  | I89: =IF(G89="","",VLOOKUP(G89,'G-1 All Habitats'!$B$2:$M$130,10,FALSE)) ->  | J89: =IFERROR(VLOOKUP(I89,'G-1 All Habitats'!$V$3:$W$7,2,FALSE),"") ->  | L89: =IFERROR(INDEX('G-8 Condition Look up'!$A$3:$H$131,MATCH(G89,'G-8 Condition Look up'!$A$3:$A$131,0),MATCH(K89,'G-8 Condition Look up'!$A$3:$H$3,0)),"") ->  | N89: =IF(M89="","",IF(VLOOKUP(M89,'G-3 Multipliers'!$L$3:$N$6,2,FALSE)=0,"Spatial Data Missing",VLOOKUP(M89,'G-3 Multipliers'!$L$3:$N$6,2,FALSE))) ->  | O89: =IF(M89="","",IF(VLOOKUP(M89,'G-3 Multipliers'!$L$3:$N$6,3,FALSE)=0,"Spatial Data Missing",VLOOKUP(M89,'G-3 Multipliers'!$L$3:$N$6,3,FALSE))) ->  | P89: =IFERROR(VLOOKUP(G89,'G-1 All Habitats'!$B$2:$M$130,12,FALSE),"") ->  | Q89: =IFERROR(IF(P89="","",IF(AND(P89='G-1 All Habitats'!$X$3,T89>0),U89+V89,IF(AND(P89='G-1 All Habitats'!$X$3,S89>0),U89+V89,IF(AND(P89='G-1 All Habitats'!$X$3,AC89>0),"Any Loss Unacceptable",IF(AND(P89='G-1 All Habitats'!$X$3,W89>0),"Any Loss Unacceptable",H89*J89*L89*O89))))),"Check Data") ->  | W89: =IF(E89="","",IF(H89<S89+T89,"Error in Areas",IF(P89<>'G-1 All Habitats'!$X$3,H89-S89-T89,IF(AND(P89='G-1 All Habitats'!$X$3,Y89="Yes"),"Unacceptable Loss",IF(AND(P89='G-1 All Habitats'!$X$3,Y89="No"),AC89,IF(AND(P89='G-1 All Habitats'!$X$3,Y89=""),AC89,IF(AND(P89='G-1 All Habitats'!$X$3,AC89="None",AC89),IF(AND(P89='G-1 All Habitats'!$X$3,AC89>0),H89-S89-T89)))))))) ->  | X89: =IFERROR(IF(H89="","",IF(H89-S89-T89=0<0,"Error in Areas",IF(S89+T89>H89,"Error in Areas",IF(AND(P89='G-1 All Habitats'!$X$3,Y89="Yes"),"Alternative Compensation",IF(W89=0,0,IF(P89='G-1 All Habitats'!$X$3,"Unacceptable Loss",Q89-U89-V89)))))),"Check Data") ->  | AC89: =IF(P89="","",IF(P89='G-1 All Habitats'!$X$3,H89-S89-T89,"None")) ->  | AD89: =IFERROR(AC89*J89*L89*#REF!*O89,IF(P89="","","None")) ->  | AH89: =IF(I89="","",IF(#REF!>0,TRUE,FALSE)) ->  | AI89: 79 | AK89: =IFERROR(INDEX($AI$11:$AI$259, MATCH(0, IF(TRUE=$AF$11:$AF$259, COUNTIF($AK$10:$AK88, $AI$11:$AI$259), ""), 0)),"") ->  | AL89: =IFERROR(INDEX($AI$11:$AI$259, MATCH(0, IF(TRUE=$AG$11:$AG$259, COUNTIF($AL$10:$AL88, $AI$11:$AI$259), ""), 0)),"") ->  | AM89: =IFERROR(INDEX($AI$11:$AI$259, MATCH(0, IF(TRUE=$AH$11:$AH$259, COUNTIF($AM$10:$AM88, $AI$11:$AI$259), ""), 0)),"") ->  | AQ89: 0
A90: =IFERROR(INDEX('G-1 All Habitats'!$AG$3:$AG$15,MATCH(E90,'G-1 All Habitats'!$AF$3:$AF$15,0)),"") ->  | B90: =IFERROR(INDEX('G-8 Condition Look up'!$I$4:$I$131,MATCH(G90,'G-8 Condition Look up'!$A$4:$A$131,0)),"") ->  | D90: 80 | G90: =IFERROR(INDEX('G-1 All Habitats'!$B$3:$B$130,MATCH(F90,'G-1 All Habitats'!$A$3:$A$130,0)),"") ->  | I90: =IF(G90="","",VLOOKUP(G90,'G-1 All Habitats'!$B$2:$M$130,10,FALSE)) ->  | J90: =IFERROR(VLOOKUP(I90,'G-1 All Habitats'!$V$3:$W$7,2,FALSE),"") ->  | L90: =IFERROR(INDEX('G-8 Condition Look up'!$A$3:$H$131,MATCH(G90,'G-8 Condition Look up'!$A$3:$A$131,0),MATCH(K90,'G-8 Condition Look up'!$A$3:$H$3,0)),"") ->  | N90: =IF(M90="","",IF(VLOOKUP(M90,'G-3 Multipliers'!$L$3:$N$6,2,FALSE)=0,"Spatial Data Missing",VLOOKUP(M90,'G-3 Multipliers'!$L$3:$N$6,2,FALSE))) ->  | O90: =IF(M90="","",IF(VLOOKUP(M90,'G-3 Multipliers'!$L$3:$N$6,3,FALSE)=0,"Spatial Data Missing",VLOOKUP(M90,'G-3 Multipliers'!$L$3:$N$6,3,FALSE))) ->  | P90: =IFERROR(VLOOKUP(G90,'G-1 All Habitats'!$B$2:$M$130,12,FALSE),"") ->  | Q90: =IFERROR(IF(P90="","",IF(AND(P90='G-1 All Habitats'!$X$3,T90>0),U90+V90,IF(AND(P90='G-1 All Habitats'!$X$3,S90>0),U90+V90,IF(AND(P90='G-1 All Habitats'!$X$3,AC90>0),"Any Loss Unacceptable",IF(AND(P90='G-1 All Habitats'!$X$3,W90>0),"Any Loss Unacceptable",H90*J90*L90*O90))))),"Check Data") ->  | W90: =IF(E90="","",IF(H90<S90+T90,"Error in Areas",IF(P90<>'G-1 All Habitats'!$X$3,H90-S90-T90,IF(AND(P90='G-1 All Habitats'!$X$3,Y90="Yes"),"Unacceptable Loss",IF(AND(P90='G-1 All Habitats'!$X$3,Y90="No"),AC90,IF(AND(P90='G-1 All Habitats'!$X$3,Y90=""),AC90,IF(AND(P90='G-1 All Habitats'!$X$3,AC90="None",AC90),IF(AND(P90='G-1 All Habitats'!$X$3,AC90>0),H90-S90-T90)))))))) ->  | X90: =IFERROR(IF(H90="","",IF(H90-S90-T90=0<0,"Error in Areas",IF(S90+T90>H90,"Error in Areas",IF(AND(P90='G-1 All Habitats'!$X$3,Y90="Yes"),"Alternative Compensation",IF(W90=0,0,IF(P90='G-1 All Habitats'!$X$3,"Unacceptable Loss",Q90-U90-V90)))))),"Check Data") ->  | AC90: =IF(P90="","",IF(P90='G-1 All Habitats'!$X$3,H90-S90-T90,"None")) ->  | AD90: =IFERROR(AC90*J90*L90*#REF!*O90,IF(P90="","","None")) ->  | AH90: =IF(I90="","",IF(#REF!>0,TRUE,FALSE)) ->  | AI90: 80 | AK90: =IFERROR(INDEX($AI$11:$AI$259, MATCH(0, IF(TRUE=$AF$11:$AF$259, COUNTIF($AK$10:$AK89, $AI$11:$AI$259), ""), 0)),"") ->  | AL90: =IFERROR(INDEX($AI$11:$AI$259, MATCH(0, IF(TRUE=$AG$11:$AG$259, COUNTIF($AL$10:$AL89, $AI$11:$AI$259), ""), 0)),"") ->  | AM90: =IFERROR(INDEX($AI$11:$AI$259, MATCH(0, IF(TRUE=$AH$11:$AH$259, COUNTIF($AM$10:$AM89, $AI$11:$AI$259), ""), 0)),"") ->  | AQ90: 0
A91: =IFERROR(INDEX('G-1 All Habitats'!$AG$3:$AG$15,MATCH(E91,'G-1 All Habitats'!$AF$3:$AF$15,0)),"") ->  | B91: =IFERROR(INDEX('G-8 Condition Look up'!$I$4:$I$131,MATCH(G91,'G-8 Condition Look up'!$A$4:$A$131,0)),"") ->  | D91: 81 | G91: =IFERROR(INDEX('G-1 All Habitats'!$B$3:$B$130,MATCH(F91,'G-1 All Habitats'!$A$3:$A$130,0)),"") ->  | I91: =IF(G91="","",VLOOKUP(G91,'G-1 All Habitats'!$B$2:$M$130,10,FALSE)) ->  | J91: =IFERROR(VLOOKUP(I91,'G-1 All Habitats'!$V$3:$W$7,2,FALSE),"") ->  | L91: =IFERROR(INDEX('G-8 Condition Look up'!$A$3:$H$131,MATCH(G91,'G-8 Condition Look up'!$A$3:$A$131,0),MATCH(K91,'G-8 Condition Look up'!$A$3:$H$3,0)),"") ->  | N91: =IF(M91="","",IF(VLOOKUP(M91,'G-3 Multipliers'!$L$3:$N$6,2,FALSE)=0,"Spatial Data Missing",VLOOKUP(M91,'G-3 Multipliers'!$L$3:$N$6,2,FALSE))) ->  | O91: =IF(M91="","",IF(VLOOKUP(M91,'G-3 Multipliers'!$L$3:$N$6,3,FALSE)=0,"Spatial Data Missing",VLOOKUP(M91,'G-3 Multipliers'!$L$3:$N$6,3,FALSE))) ->  | P91: =IFERROR(VLOOKUP(G91,'G-1 All Habitats'!$B$2:$M$130,12,FALSE),"") ->  | Q91: =IFERROR(IF(P91="","",IF(AND(P91='G-1 All Habitats'!$X$3,T91>0),U91+V91,IF(AND(P91='G-1 All Habitats'!$X$3,S91>0),U91+V91,IF(AND(P91='G-1 All Habitats'!$X$3,AC91>0),"Any Loss Unacceptable",IF(AND(P91='G-1 All Habitats'!$X$3,W91>0),"Any Loss Unacceptable",H91*J91*L91*O91))))),"Check Data") ->  | W91: =IF(E91="","",IF(H91<S91+T91,"Error in Areas",IF(P91<>'G-1 All Habitats'!$X$3,H91-S91-T91,IF(AND(P91='G-1 All Habitats'!$X$3,Y91="Yes"),"Unacceptable Loss",IF(AND(P91='G-1 All Habitats'!$X$3,Y91="No"),AC91,IF(AND(P91='G-1 All Habitats'!$X$3,Y91=""),AC91,IF(AND(P91='G-1 All Habitats'!$X$3,AC91="None",AC91),IF(AND(P91='G-1 All Habitats'!$X$3,AC91>0),H91-S91-T91)))))))) ->  | X91: =IFERROR(IF(H91="","",IF(H91-S91-T91=0<0,"Error in Areas",IF(S91+T91>H91,"Error in Areas",IF(AND(P91='G-1 All Habitats'!$X$3,Y91="Yes"),"Alternative Compensation",IF(W91=0,0,IF(P91='G-1 All Habitats'!$X$3,"Unacceptable Loss",Q91-U91-V91)))))),"Check Data") ->  | AC91: =IF(P91="","",IF(P91='G-1 All Habitats'!$X$3,H91-S91-T91,"None")) ->  | AD91: =IFERROR(AC91*J91*L91*#REF!*O91,IF(P91="","","None")) ->  | AH91: =IF(I91="","",IF(#REF!>0,TRUE,FALSE)) ->  | AI91: 81 | AK91: =IFERROR(INDEX($AI$11:$AI$259, MATCH(0, IF(TRUE=$AF$11:$AF$259, COUNTIF($AK$10:$AK90, $AI$11:$AI$259), ""), 0)),"") ->  | AL91: =IFERROR(INDEX($AI$11:$AI$259, MATCH(0, IF(TRUE=$AG$11:$AG$259, COUNTIF($AL$10:$AL90, $AI$11:$AI$259), ""), 0)),"") ->  | AM91: =IFERROR(INDEX($AI$11:$AI$259, MATCH(0, IF(TRUE=$AH$11:$AH$259, COUNTIF($AM$10:$AM90, $AI$11:$AI$259), ""), 0)),"") ->  | AQ91: 0
A92: =IFERROR(INDEX('G-1 All Habitats'!$AG$3:$AG$15,MATCH(E92,'G-1 All Habitats'!$AF$3:$AF$15,0)),"") ->  | B92: =IFERROR(INDEX('G-8 Condition Look up'!$I$4:$I$131,MATCH(G92,'G-8 Condition Look up'!$A$4:$A$131,0)),"") ->  | D92: 82 | G92: =IFERROR(INDEX('G-1 All Habitats'!$B$3:$B$130,MATCH(F92,'G-1 All Habitats'!$A$3:$A$130,0)),"") ->  | I92: =IF(G92="","",VLOOKUP(G92,'G-1 All Habitats'!$B$2:$M$130,10,FALSE)) ->  | J92: =IFERROR(VLOOKUP(I92,'G-1 All Habitats'!$V$3:$W$7,2,FALSE),"") ->  | L92: =IFERROR(INDEX('G-8 Condition Look up'!$A$3:$H$131,MATCH(G92,'G-8 Condition Look up'!$A$3:$A$131,0),MATCH(K92,'G-8 Condition Look up'!$A$3:$H$3,0)),"") ->  | N92: =IF(M92="","",IF(VLOOKUP(M92,'G-3 Multipliers'!$L$3:$N$6,2,FALSE)=0,"Spatial Data Missing",VLOOKUP(M92,'G-3 Multipliers'!$L$3:$N$6,2,FALSE))) ->  | O92: =IF(M92="","",IF(VLOOKUP(M92,'G-3 Multipliers'!$L$3:$N$6,3,FALSE)=0,"Spatial Data Missing",VLOOKUP(M92,'G-3 Multipliers'!$L$3:$N$6,3,FALSE))) ->  | P92: =IFERROR(VLOOKUP(G92,'G-1 All Habitats'!$B$2:$M$130,12,FALSE),"") ->  | Q92: =IFERROR(IF(P92="","",IF(AND(P92='G-1 All Habitats'!$X$3,T92>0),U92+V92,IF(AND(P92='G-1 All Habitats'!$X$3,S92>0),U92+V92,IF(AND(P92='G-1 All Habitats'!$X$3,AC92>0),"Any Loss Unacceptable",IF(AND(P92='G-1 All Habitats'!$X$3,W92>0),"Any Loss Unacceptable",H92*J92*L92*O92))))),"Check Data") ->  | W92: =IF(E92="","",IF(H92<S92+T92,"Error in Areas",IF(P92<>'G-1 All Habitats'!$X$3,H92-S92-T92,IF(AND(P92='G-1 All Habitats'!$X$3,Y92="Yes"),"Unacceptable Loss",IF(AND(P92='G-1 All Habitats'!$X$3,Y92="No"),AC92,IF(AND(P92='G-1 All Habitats'!$X$3,Y92=""),AC92,IF(AND(P92='G-1 All Habitats'!$X$3,AC92="None",AC92),IF(AND(P92='G-1 All Habitats'!$X$3,AC92>0),H92-S92-T92)))))))) ->  | X92: =IFERROR(IF(H92="","",IF(H92-S92-T92=0<0,"Error in Areas",IF(S92+T92>H92,"Error in Areas",IF(AND(P92='G-1 All Habitats'!$X$3,Y92="Yes"),"Alternative Compensation",IF(W92=0,0,IF(P92='G-1 All Habitats'!$X$3,"Unacceptable Loss",Q92-U92-V92)))))),"Check Data") ->  | AC92: =IF(P92="","",IF(P92='G-1 All Habitats'!$X$3,H92-S92-T92,"None")) ->  | AD92: =IFERROR(AC92*J92*L92*#REF!*O92,IF(P92="","","None")) ->  | AH92: =IF(I92="","",IF(#REF!>0,TRUE,FALSE)) ->  | AI92: 82 | AK92: =IFERROR(INDEX($AI$11:$AI$259, MATCH(0, IF(TRUE=$AF$11:$AF$259, COUNTIF($AK$10:$AK91, $AI$11:$AI$259), ""), 0)),"") ->  | AL92: =IFERROR(INDEX($AI$11:$AI$259, MATCH(0, IF(TRUE=$AG$11:$AG$259, COUNTIF($AL$10:$AL91, $AI$11:$AI$259), ""), 0)),"") ->  | AM92: =IFERROR(INDEX($AI$11:$AI$259, MATCH(0, IF(TRUE=$AH$11:$AH$259, COUNTIF($AM$10:$AM91, $AI$11:$AI$259), ""), 0)),"") ->  | AQ92: 0
A93: =IFERROR(INDEX('G-1 All Habitats'!$AG$3:$AG$15,MATCH(E93,'G-1 All Habitats'!$AF$3:$AF$15,0)),"") ->  | B93: =IFERROR(INDEX('G-8 Condition Look up'!$I$4:$I$131,MATCH(G93,'G-8 Condition Look up'!$A$4:$A$131,0)),"") ->  | D93: 83 | G93: =IFERROR(INDEX('G-1 All Habitats'!$B$3:$B$130,MATCH(F93,'G-1 All Habitats'!$A$3:$A$130,0)),"") ->  | I93: =IF(G93="","",VLOOKUP(G93,'G-1 All Habitats'!$B$2:$M$130,10,FALSE)) ->  | J93: =IFERROR(VLOOKUP(I93,'G-1 All Habitats'!$V$3:$W$7,2,FALSE),"") ->  | L93: =IFERROR(INDEX('G-8 Condition Look up'!$A$3:$H$131,MATCH(G93,'G-8 Condition Look up'!$A$3:$A$131,0),MATCH(K93,'G-8 Condition Look up'!$A$3:$H$3,0)),"") ->  | N93: =IF(M93="","",IF(VLOOKUP(M93,'G-3 Multipliers'!$L$3:$N$6,2,FALSE)=0,"Spatial Data Missing",VLOOKUP(M93,'G-3 Multipliers'!$L$3:$N$6,2,FALSE))) ->  | O93: =IF(M93="","",IF(VLOOKUP(M93,'G-3 Multipliers'!$L$3:$N$6,3,FALSE)=0,"Spatial Data Missing",VLOOKUP(M93,'G-3 Multipliers'!$L$3:$N$6,3,FALSE))) ->  | P93: =IFERROR(VLOOKUP(G93,'G-1 All Habitats'!$B$2:$M$130,12,FALSE),"") ->  | Q93: =IFERROR(IF(P93="","",IF(AND(P93='G-1 All Habitats'!$X$3,T93>0),U93+V93,IF(AND(P93='G-1 All Habitats'!$X$3,S93>0),U93+V93,IF(AND(P93='G-1 All Habitats'!$X$3,AC93>0),"Any Loss Unacceptable",IF(AND(P93='G-1 All Habitats'!$X$3,W93>0),"Any Loss Unacceptable",H93*J93*L93*O93))))),"Check Data") ->  | W93: =IF(E93="","",IF(H93<S93+T93,"Error in Areas",IF(P93<>'G-1 All Habitats'!$X$3,H93-S93-T93,IF(AND(P93='G-1 All Habitats'!$X$3,Y93="Yes"),"Unacceptable Loss",IF(AND(P93='G-1 All Habitats'!$X$3,Y93="No"),AC93,IF(AND(P93='G-1 All Habitats'!$X$3,Y93=""),AC93,IF(AND(P93='G-1 All Habitats'!$X$3,AC93="None",AC93),IF(AND(P93='G-1 All Habitats'!$X$3,AC93>0),H93-S93-T93)))))))) ->  | X93: =IFERROR(IF(H93="","",IF(H93-S93-T93=0<0,"Error in Areas",IF(S93+T93>H93,"Error in Areas",IF(AND(P93='G-1 All Habitats'!$X$3,Y93="Yes"),"Alternative Compensation",IF(W93=0,0,IF(P93='G-1 All Habitats'!$X$3,"Unacceptable Loss",Q93-U93-V93)))))),"Check Data") ->  | AC93: =IF(P93="","",IF(P93='G-1 All Habitats'!$X$3,H93-S93-T93,"None")) ->  | AD93: =IFERROR(AC93*J93*L93*#REF!*O93,IF(P93="","","None")) ->  | AH93: =IF(I93="","",IF(#REF!>0,TRUE,FALSE)) ->  | AI93: 83 | AK93: =IFERROR(INDEX($AI$11:$AI$259, MATCH(0, IF(TRUE=$AF$11:$AF$259, COUNTIF($AK$10:$AK92, $AI$11:$AI$259), ""), 0)),"") ->  | AL93: =IFERROR(INDEX($AI$11:$AI$259, MATCH(0, IF(TRUE=$AG$11:$AG$259, COUNTIF($AL$10:$AL92, $AI$11:$AI$259), ""), 0)),"") ->  | AM93: =IFERROR(INDEX($AI$11:$AI$259, MATCH(0, IF(TRUE=$AH$11:$AH$259, COUNTIF($AM$10:$AM92, $AI$11:$AI$259), ""), 0)),"") ->  | AQ93: 0
A94: =IFERROR(INDEX('G-1 All Habitats'!$AG$3:$AG$15,MATCH(E94,'G-1 All Habitats'!$AF$3:$AF$15,0)),"") ->  | B94: =IFERROR(INDEX('G-8 Condition Look up'!$I$4:$I$131,MATCH(G94,'G-8 Condition Look up'!$A$4:$A$131,0)),"") ->  | D94: 84 | G94: =IFERROR(INDEX('G-1 All Habitats'!$B$3:$B$130,MATCH(F94,'G-1 All Habitats'!$A$3:$A$130,0)),"") ->  | I94: =IF(G94="","",VLOOKUP(G94,'G-1 All Habitats'!$B$2:$M$130,10,FALSE)) ->  | J94: =IFERROR(VLOOKUP(I94,'G-1 All Habitats'!$V$3:$W$7,2,FALSE),"") ->  | L94: =IFERROR(INDEX('G-8 Condition Look up'!$A$3:$H$131,MATCH(G94,'G-8 Condition Look up'!$A$3:$A$131,0),MATCH(K94,'G-8 Condition Look up'!$A$3:$H$3,0)),"") ->  | N94: =IF(M94="","",IF(VLOOKUP(M94,'G-3 Multipliers'!$L$3:$N$6,2,FALSE)=0,"Spatial Data Missing",VLOOKUP(M94,'G-3 Multipliers'!$L$3:$N$6,2,FALSE))) ->  | O94: =IF(M94="","",IF(VLOOKUP(M94,'G-3 Multipliers'!$L$3:$N$6,3,FALSE)=0,"Spatial Data Missing",VLOOKUP(M94,'G-3 Multipliers'!$L$3:$N$6,3,FALSE))) ->  | P94: =IFERROR(VLOOKUP(G94,'G-1 All Habitats'!$B$2:$M$130,12,FALSE),"") ->  | Q94: =IFERROR(IF(P94="","",IF(AND(P94='G-1 All Habitats'!$X$3,T94>0),U94+V94,IF(AND(P94='G-1 All Habitats'!$X$3,S94>0),U94+V94,IF(AND(P94='G-1 All Habitats'!$X$3,AC94>0),"Any Loss Unacceptable",IF(AND(P94='G-1 All Habitats'!$X$3,W94>0),"Any Loss Unacceptable",H94*J94*L94*O94))))),"Check Data") ->  | W94: =IF(E94="","",IF(H94<S94+T94,"Error in Areas",IF(P94<>'G-1 All Habitats'!$X$3,H94-S94-T94,IF(AND(P94='G-1 All Habitats'!$X$3,Y94="Yes"),"Unacceptable Loss",IF(AND(P94='G-1 All Habitats'!$X$3,Y94="No"),AC94,IF(AND(P94='G-1 All Habitats'!$X$3,Y94=""),AC94,IF(AND(P94='G-1 All Habitats'!$X$3,AC94="None",AC94),IF(AND(P94='G-1 All Habitats'!$X$3,AC94>0),H94-S94-T94)))))))) ->  | X94: =IFERROR(IF(H94="","",IF(H94-S94-T94=0<0,"Error in Areas",IF(S94+T94>H94,"Error in Areas",IF(AND(P94='G-1 All Habitats'!$X$3,Y94="Yes"),"Alternative Compensation",IF(W94=0,0,IF(P94='G-1 All Habitats'!$X$3,"Unacceptable Loss",Q94-U94-V94)))))),"Check Data") ->  | AC94: =IF(P94="","",IF(P94='G-1 All Habitats'!$X$3,H94-S94-T94,"None")) ->  | AD94: =IFERROR(AC94*J94*L94*#REF!*O94,IF(P94="","","None")) ->  | AH94: =IF(I94="","",IF(#REF!>0,TRUE,FALSE)) ->  | AI94: 84 | AK94: =IFERROR(INDEX($AI$11:$AI$259, MATCH(0, IF(TRUE=$AF$11:$AF$259, COUNTIF($AK$10:$AK93, $AI$11:$AI$259), ""), 0)),"") ->  | AL94: =IFERROR(INDEX($AI$11:$AI$259, MATCH(0, IF(TRUE=$AG$11:$AG$259, COUNTIF($AL$10:$AL93, $AI$11:$AI$259), ""), 0)),"") ->  | AM94: =IFERROR(INDEX($AI$11:$AI$259, MATCH(0, IF(TRUE=$AH$11:$AH$259, COUNTIF($AM$10:$AM93, $AI$11:$AI$259), ""), 0)),"") ->  | AQ94: 0
A95: =IFERROR(INDEX('G-1 All Habitats'!$AG$3:$AG$15,MATCH(E95,'G-1 All Habitats'!$AF$3:$AF$15,0)),"") ->  | B95: =IFERROR(INDEX('G-8 Condition Look up'!$I$4:$I$131,MATCH(G95,'G-8 Condition Look up'!$A$4:$A$131,0)),"") ->  | D95: 85 | G95: =IFERROR(INDEX('G-1 All Habitats'!$B$3:$B$130,MATCH(F95,'G-1 All Habitats'!$A$3:$A$130,0)),"") ->  | I95: =IF(G95="","",VLOOKUP(G95,'G-1 All Habitats'!$B$2:$M$130,10,FALSE)) ->  | J95: =IFERROR(VLOOKUP(I95,'G-1 All Habitats'!$V$3:$W$7,2,FALSE),"") ->  | L95: =IFERROR(INDEX('G-8 Condition Look up'!$A$3:$H$131,MATCH(G95,'G-8 Condition Look up'!$A$3:$A$131,0),MATCH(K95,'G-8 Condition Look up'!$A$3:$H$3,0)),"") ->  | N95: =IF(M95="","",IF(VLOOKUP(M95,'G-3 Multipliers'!$L$3:$N$6,2,FALSE)=0,"Spatial Data Missing",VLOOKUP(M95,'G-3 Multipliers'!$L$3:$N$6,2,FALSE))) ->  | O95: =IF(M95="","",IF(VLOOKUP(M95,'G-3 Multipliers'!$L$3:$N$6,3,FALSE)=0,"Spatial Data Missing",VLOOKUP(M95,'G-3 Multipliers'!$L$3:$N$6,3,FALSE))) ->  | P95: =IFERROR(VLOOKUP(G95,'G-1 All Habitats'!$B$2:$M$130,12,FALSE),"") ->  | Q95: =IFERROR(IF(P95="","",IF(AND(P95='G-1 All Habitats'!$X$3,T95>0),U95+V95,IF(AND(P95='G-1 All Habitats'!$X$3,S95>0),U95+V95,IF(AND(P95='G-1 All Habitats'!$X$3,AC95>0),"Any Loss Unacceptable",IF(AND(P95='G-1 All Habitats'!$X$3,W95>0),"Any Loss Unacceptable",H95*J95*L95*O95))))),"Check Data") ->  | W95: =IF(E95="","",IF(H95<S95+T95,"Error in Areas",IF(P95<>'G-1 All Habitats'!$X$3,H95-S95-T95,IF(AND(P95='G-1 All Habitats'!$X$3,Y95="Yes"),"Unacceptable Loss",IF(AND(P95='G-1 All Habitats'!$X$3,Y95="No"),AC95,IF(AND(P95='G-1 All Habitats'!$X$3,Y95=""),AC95,IF(AND(P95='G-1 All Habitats'!$X$3,AC95="None",AC95),IF(AND(P95='G-1 All Habitats'!$X$3,AC95>0),H95-S95-T95)))))))) ->  | X95: =IFERROR(IF(H95="","",IF(H95-S95-T95=0<0,"Error in Areas",IF(S95+T95>H95,"Error in Areas",IF(AND(P95='G-1 All Habitats'!$X$3,Y95="Yes"),"Alternative Compensation",IF(W95=0,0,IF(P95='G-1 All Habitats'!$X$3,"Unacceptable Loss",Q95-U95-V95)))))),"Check Data") ->  | AC95: =IF(P95="","",IF(P95='G-1 All Habitats'!$X$3,H95-S95-T95,"None")) ->  | AD95: =IFERROR(AC95*J95*L95*#REF!*O95,IF(P95="","","None")) ->  | AH95: =IF(I95="","",IF(#REF!>0,TRUE,FALSE)) ->  | AI95: 85 | AK95: =IFERROR(INDEX($AI$11:$AI$259, MATCH(0, IF(TRUE=$AF$11:$AF$259, COUNTIF($AK$10:$AK94, $AI$11:$AI$259), ""), 0)),"") ->  | AL95: =IFERROR(INDEX($AI$11:$AI$259, MATCH(0, IF(TRUE=$AG$11:$AG$259, COUNTIF($AL$10:$AL94, $AI$11:$AI$259), ""), 0)),"") ->  | AM95: =IFERROR(INDEX($AI$11:$AI$259, MATCH(0, IF(TRUE=$AH$11:$AH$259, COUNTIF($AM$10:$AM94, $AI$11:$AI$259), ""), 0)),"") ->  | AQ95: 0
A96: =IFERROR(INDEX('G-1 All Habitats'!$AG$3:$AG$15,MATCH(E96,'G-1 All Habitats'!$AF$3:$AF$15,0)),"") ->  | B96: =IFERROR(INDEX('G-8 Condition Look up'!$I$4:$I$131,MATCH(G96,'G-8 Condition Look up'!$A$4:$A$131,0)),"") ->  | D96: 86 | G96: =IFERROR(INDEX('G-1 All Habitats'!$B$3:$B$130,MATCH(F96,'G-1 All Habitats'!$A$3:$A$130,0)),"") ->  | I96: =IF(G96="","",VLOOKUP(G96,'G-1 All Habitats'!$B$2:$M$130,10,FALSE)) ->  | J96: =IFERROR(VLOOKUP(I96,'G-1 All Habitats'!$V$3:$W$7,2,FALSE),"") ->  | L96: =IFERROR(INDEX('G-8 Condition Look up'!$A$3:$H$131,MATCH(G96,'G-8 Condition Look up'!$A$3:$A$131,0),MATCH(K96,'G-8 Condition Look up'!$A$3:$H$3,0)),"") ->  | N96: =IF(M96="","",IF(VLOOKUP(M96,'G-3 Multipliers'!$L$3:$N$6,2,FALSE)=0,"Spatial Data Missing",VLOOKUP(M96,'G-3 Multipliers'!$L$3:$N$6,2,FALSE))) ->  | O96: =IF(M96="","",IF(VLOOKUP(M96,'G-3 Multipliers'!$L$3:$N$6,3,FALSE)=0,"Spatial Data Missing",VLOOKUP(M96,'G-3 Multipliers'!$L$3:$N$6,3,FALSE))) ->  | P96: =IFERROR(VLOOKUP(G96,'G-1 All Habitats'!$B$2:$M$130,12,FALSE),"") ->  | Q96: =IFERROR(IF(P96="","",IF(AND(P96='G-1 All Habitats'!$X$3,T96>0),U96+V96,IF(AND(P96='G-1 All Habitats'!$X$3,S96>0),U96+V96,IF(AND(P96='G-1 All Habitats'!$X$3,AC96>0),"Any Loss Unacceptable",IF(AND(P96='G-1 All Habitats'!$X$3,W96>0),"Any Loss Unacceptable",H96*J96*L96*O96))))),"Check Data") ->  | W96: =IF(E96="","",IF(H96<S96+T96,"Error in Areas",IF(P96<>'G-1 All Habitats'!$X$3,H96-S96-T96,IF(AND(P96='G-1 All Habitats'!$X$3,Y96="Yes"),"Unacceptable Loss",IF(AND(P96='G-1 All Habitats'!$X$3,Y96="No"),AC96,IF(AND(P96='G-1 All Habitats'!$X$3,Y96=""),AC96,IF(AND(P96='G-1 All Habitats'!$X$3,AC96="None",AC96),IF(AND(P96='G-1 All Habitats'!$X$3,AC96>0),H96-S96-T96)))))))) ->  | X96: =IFERROR(IF(H96="","",IF(H96-S96-T96=0<0,"Error in Areas",IF(S96+T96>H96,"Error in Areas",IF(AND(P96='G-1 All Habitats'!$X$3,Y96="Yes"),"Alternative Compensation",IF(W96=0,0,IF(P96='G-1 All Habitats'!$X$3,"Unacceptable Loss",Q96-U96-V96)))))),"Check Data") ->  | AC96: =IF(P96="","",IF(P96='G-1 All Habitats'!$X$3,H96-S96-T96,"None")) ->  | AD96: =IFERROR(AC96*J96*L96*#REF!*O96,IF(P96="","","None")) ->  | AH96: =IF(I96="","",IF(#REF!>0,TRUE,FALSE)) ->  | AI96: 86 | AK96: =IFERROR(INDEX($AI$11:$AI$259, MATCH(0, IF(TRUE=$AF$11:$AF$259, COUNTIF($AK$10:$AK95, $AI$11:$AI$259), ""), 0)),"") ->  | AL96: =IFERROR(INDEX($AI$11:$AI$259, MATCH(0, IF(TRUE=$AG$11:$AG$259, COUNTIF($AL$10:$AL95, $AI$11:$AI$259), ""), 0)),"") ->  | AM96: =IFERROR(INDEX($AI$11:$AI$259, MATCH(0, IF(TRUE=$AH$11:$AH$259, COUNTIF($AM$10:$AM95, $AI$11:$AI$259), ""), 0)),"") ->  | AQ96: 0
A97: =IFERROR(INDEX('G-1 All Habitats'!$AG$3:$AG$15,MATCH(E97,'G-1 All Habitats'!$AF$3:$AF$15,0)),"") ->  | B97: =IFERROR(INDEX('G-8 Condition Look up'!$I$4:$I$131,MATCH(G97,'G-8 Condition Look up'!$A$4:$A$131,0)),"") ->  | D97: 87 | G97: =IFERROR(INDEX('G-1 All Habitats'!$B$3:$B$130,MATCH(F97,'G-1 All Habitats'!$A$3:$A$130,0)),"") ->  | I97: =IF(G97="","",VLOOKUP(G97,'G-1 All Habitats'!$B$2:$M$130,10,FALSE)) ->  | J97: =IFERROR(VLOOKUP(I97,'G-1 All Habitats'!$V$3:$W$7,2,FALSE),"") ->  | L97: =IFERROR(INDEX('G-8 Condition Look up'!$A$3:$H$131,MATCH(G97,'G-8 Condition Look up'!$A$3:$A$131,0),MATCH(K97,'G-8 Condition Look up'!$A$3:$H$3,0)),"") ->  | N97: =IF(M97="","",IF(VLOOKUP(M97,'G-3 Multipliers'!$L$3:$N$6,2,FALSE)=0,"Spatial Data Missing",VLOOKUP(M97,'G-3 Multipliers'!$L$3:$N$6,2,FALSE))) ->  | O97: =IF(M97="","",IF(VLOOKUP(M97,'G-3 Multipliers'!$L$3:$N$6,3,FALSE)=0,"Spatial Data Missing",VLOOKUP(M97,'G-3 Multipliers'!$L$3:$N$6,3,FALSE))) ->  | P97: =IFERROR(VLOOKUP(G97,'G-1 All Habitats'!$B$2:$M$130,12,FALSE),"") ->  | Q97: =IFERROR(IF(P97="","",IF(AND(P97='G-1 All Habitats'!$X$3,T97>0),U97+V97,IF(AND(P97='G-1 All Habitats'!$X$3,S97>0),U97+V97,IF(AND(P97='G-1 All Habitats'!$X$3,AC97>0),"Any Loss Unacceptable",IF(AND(P97='G-1 All Habitats'!$X$3,W97>0),"Any Loss Unacceptable",H97*J97*L97*O97))))),"Check Data") ->  | W97: =IF(E97="","",IF(H97<S97+T97,"Error in Areas",IF(P97<>'G-1 All Habitats'!$X$3,H97-S97-T97,IF(AND(P97='G-1 All Habitats'!$X$3,Y97="Yes"),"Unacceptable Loss",IF(AND(P97='G-1 All Habitats'!$X$3,Y97="No"),AC97,IF(AND(P97='G-1 All Habitats'!$X$3,Y97=""),AC97,IF(AND(P97='G-1 All Habitats'!$X$3,AC97="None",AC97),IF(AND(P97='G-1 All Habitats'!$X$3,AC97>0),H97-S97-T97)))))))) ->  | X97: =IFERROR(IF(H97="","",IF(H97-S97-T97=0<0,"Error in Areas",IF(S97+T97>H97,"Error in Areas",IF(AND(P97='G-1 All Habitats'!$X$3,Y97="Yes"),"Alternative Compensation",IF(W97=0,0,IF(P97='G-1 All Habitats'!$X$3,"Unacceptable Loss",Q97-U97-V97)))))),"Check Data") ->  | AC97: =IF(P97="","",IF(P97='G-1 All Habitats'!$X$3,H97-S97-T97,"None")) ->  | AD97: =IFERROR(AC97*J97*L97*#REF!*O97,IF(P97="","","None")) ->  | AH97: =IF(I97="","",IF(#REF!>0,TRUE,FALSE)) ->  | AI97: 87 | AK97: =IFERROR(INDEX($AI$11:$AI$259, MATCH(0, IF(TRUE=$AF$11:$AF$259, COUNTIF($AK$10:$AK96, $AI$11:$AI$259), ""), 0)),"") ->  | AL97: =IFERROR(INDEX($AI$11:$AI$259, MATCH(0, IF(TRUE=$AG$11:$AG$259, COUNTIF($AL$10:$AL96, $AI$11:$AI$259), ""), 0)),"") ->  | AM97: =IFERROR(INDEX($AI$11:$AI$259, MATCH(0, IF(TRUE=$AH$11:$AH$259, COUNTIF($AM$10:$AM96, $AI$11:$AI$259), ""), 0)),"") ->  | AQ97: 0
A98: =IFERROR(INDEX('G-1 All Habitats'!$AG$3:$AG$15,MATCH(E98,'G-1 All Habitats'!$AF$3:$AF$15,0)),"") ->  | B98: =IFERROR(INDEX('G-8 Condition Look up'!$I$4:$I$131,MATCH(G98,'G-8 Condition Look up'!$A$4:$A$131,0)),"") ->  | D98: 88 | G98: =IFERROR(INDEX('G-1 All Habitats'!$B$3:$B$130,MATCH(F98,'G-1 All Habitats'!$A$3:$A$130,0)),"") ->  | I98: =IF(G98="","",VLOOKUP(G98,'G-1 All Habitats'!$B$2:$M$130,10,FALSE)) ->  | J98: =IFERROR(VLOOKUP(I98,'G-1 All Habitats'!$V$3:$W$7,2,FALSE),"") ->  | L98: =IFERROR(INDEX('G-8 Condition Look up'!$A$3:$H$131,MATCH(G98,'G-8 Condition Look up'!$A$3:$A$131,0),MATCH(K98,'G-8 Condition Look up'!$A$3:$H$3,0)),"") ->  | N98: =IF(M98="","",IF(VLOOKUP(M98,'G-3 Multipliers'!$L$3:$N$6,2,FALSE)=0,"Spatial Data Missing",VLOOKUP(M98,'G-3 Multipliers'!$L$3:$N$6,2,FALSE))) ->  | O98: =IF(M98="","",IF(VLOOKUP(M98,'G-3 Multipliers'!$L$3:$N$6,3,FALSE)=0,"Spatial Data Missing",VLOOKUP(M98,'G-3 Multipliers'!$L$3:$N$6,3,FALSE))) ->  | P98: =IFERROR(VLOOKUP(G98,'G-1 All Habitats'!$B$2:$M$130,12,FALSE),"") ->  | Q98: =IFERROR(IF(P98="","",IF(AND(P98='G-1 All Habitats'!$X$3,T98>0),U98+V98,IF(AND(P98='G-1 All Habitats'!$X$3,S98>0),U98+V98,IF(AND(P98='G-1 All Habitats'!$X$3,AC98>0),"Any Loss Unacceptable",IF(AND(P98='G-1 All Habitats'!$X$3,W98>0),"Any Loss Unacceptable",H98*J98*L98*O98))))),"Check Data") ->  | W98: =IF(E98="","",IF(H98<S98+T98,"Error in Areas",IF(P98<>'G-1 All Habitats'!$X$3,H98-S98-T98,IF(AND(P98='G-1 All Habitats'!$X$3,Y98="Yes"),"Unacceptable Loss",IF(AND(P98='G-1 All Habitats'!$X$3,Y98="No"),AC98,IF(AND(P98='G-1 All Habitats'!$X$3,Y98=""),AC98,IF(AND(P98='G-1 All Habitats'!$X$3,AC98="None",AC98),IF(AND(P98='G-1 All Habitats'!$X$3,AC98>0),H98-S98-T98)))))))) ->  | X98: =IFERROR(IF(H98="","",IF(H98-S98-T98=0<0,"Error in Areas",IF(S98+T98>H98,"Error in Areas",IF(AND(P98='G-1 All Habitats'!$X$3,Y98="Yes"),"Alternative Compensation",IF(W98=0,0,IF(P98='G-1 All Habitats'!$X$3,"Unacceptable Loss",Q98-U98-V98)))))),"Check Data") ->  | AC98: =IF(P98="","",IF(P98='G-1 All Habitats'!$X$3,H98-S98-T98,"None")) ->  | AD98: =IFERROR(AC98*J98*L98*#REF!*O98,IF(P98="","","None")) ->  | AH98: =IF(I98="","",IF(#REF!>0,TRUE,FALSE)) ->  | AI98: 88 | AK98: =IFERROR(INDEX($AI$11:$AI$259, MATCH(0, IF(TRUE=$AF$11:$AF$259, COUNTIF($AK$10:$AK97, $AI$11:$AI$259), ""), 0)),"") ->  | AL98: =IFERROR(INDEX($AI$11:$AI$259, MATCH(0, IF(TRUE=$AG$11:$AG$259, COUNTIF($AL$10:$AL97, $AI$11:$AI$259), ""), 0)),"") ->  | AM98: =IFERROR(INDEX($AI$11:$AI$259, MATCH(0, IF(TRUE=$AH$11:$AH$259, COUNTIF($AM$10:$AM97, $AI$11:$AI$259), ""), 0)),"") ->  | AQ98: 0
